Workbook

Sheet 1. Information Sheet
V1: Algoma Power Inc.
V2: Atikokan Hydro Inc.
V3: Attawapiskat Power Corporation
V4: Bluewater Power Distribution Corporation
V5: Brant County Power Inc.
V6: Brantford Power Inc.
V7: Burlington Hydro Inc.
V8: Cambridge and North Dumfries Hydro Inc.
V9: Canadian Niagara Power Inc.
V10: Centre Wellington Hydro Ltd.
V11: Chapleau Public Utilities Corporation
M12: Version | N12: 2.6 | V12: COLLUS PowerStream Corp.
V13: Cooperative Hydro Embrun Inc.
E14: Utility Name | F14: Wellington North Power Inc. | V14: E.L.K. Energy Inc.
V15: Enersource Hydro Mississauga Inc.
E16: Service Territory | V16: Entegrus Powerlines Inc.
V17: EnWin Utilities Ltd.
E18: Assigned EB Number | F18: EB-2015-0110 | V18: Erie Thames Powerlines Corporation
V19: Espanola Regional Hydro Distribution Corporation
E20: Name of Contact and Title | F20: Richard Bucknall, CAO | V20: Essex Powerlines Corporation
V21: Festival Hydro Inc.
E22: Phone Number | F22: 1-519-323-1710 | V22: Fort Albany Power Corporation
V23: Fort Frances Power Corporation
E24: Email Address | F24: rbucknall@wellingtonnorthpower.com | V24: Greater Sudbury Hydro Inc.
V25: Grimsby Power Inc.
V26: Guelph Hydro Electric Systems Inc.
B27: General Notes 1. Please ensure that your macros have been enabled. (Tools -> Macro -> Security) 2. Due to the time lag of deferral/variance account dispositions, this model assumes that all opening balances include previously disposed of amounts. Accordingly, all "Board Approved Dispositions" are deducted from the opening balance. 3. Please provide information in this model since the last time your balances were disposed. 4. For all Board-Approved dispositions, please ensure that the disposition amount has the same sign (e.g: debit balances are to have a positive figure and credit balance are to have a negative figure) as per the related Board decision. | V27: Haldimand County Hydro Inc.
V28: Halton Hills Hydro Inc.
B29: Notes | V29: Hearst Power Distribution Company Limited
V30: Horizon Utilities Corporation
C31: Pale green cells represent input cells. | V31: Hydro 2000 Inc.
V32: Hydro Hawkesbury Inc.
C33: Pale blue cells represent drop-down lists. The applicant should select the appropriate item from the drop-down list. | V33: Hydro One Brampton Networks Inc.
V34: Hydro One Networks Inc.
C35: White cells contain fixed values, automatically generated values or formulae. | V35: Hydro One Remote Communities Inc.
V36: Hydro Ottawa Limited
V37: Innpower Corporation
V38: Kashechewan Power Corporation
V39: Kenora Hydro Electric Corporation Ltd.
V40: Kingston Hydro Corporation
V41: Kitchener-Wilmot Hydro Inc.
V42: Lakefront Utilities Inc.
V43: Lakeland Power Distribution Ltd.
V44: London Hydro Inc.
V45: Midland Power Utility Corporation
V46: Milton Hydro Distribution Inc.
V47: Newmarket-Tay Power Distribution Ltd.
V48: Niagara Peninsula Energy Inc.
V49: Niagara-on-the-Lake Hydro Inc.
V50: Norfolk Power Distribution Inc.
V51: North Bay Hydro Distribution Limited
V52: Northern Ontario Wires Inc.
V53: Oakville Hydro Electricity Distribution Inc.
V54: Orangeville Hydro Limited
V55: Orillia Power Distribution Corporation
V56: Oshawa PUC Networks Inc.
V57: Ottawa River Power Corporation
V58: Peterborough Distribution Incorporated
V59: PowerStream Inc.
V60: PUC Distribution Inc.
V61: Renfrew Hydro Inc.
V62: Rideau St. Lawrence Distribution Inc.
V63: Sioux Lookout Hydro Inc.
V64: St. Thomas Energy Inc.
V65: Thunder Bay Hydro Electricity Distribution Inc.
V66: Tillsonburg Hydro Inc.
V67: Toronto Hydro-Electric System Limited
V68: Veridian Connections Inc.
V69: Wasaga Distribution Inc.
V70: Waterloo North Hydro Inc.
V71: Welland Hydro-Electric System Corp.
V72: Wellington North Power Inc.
V73: West Coast Huron Energy Inc.
V74: Westario Power Inc.
V75: Whitby Hydro Electric Corporation
V76: Woodstock Hydro Services Inc.

Sheet 2. 2015 Continuity Schedule
E19: 2009 | O19: 2010 | Y19: 2011 | AI19: 2012 | AS19: 2013 | BC19: 2014 | BM19: 2015 | BQ19: Projected Interest on Dec-31-14 Balances | BT19: 2.1.7 RRR
C20: Account Descriptions | D20: Account Number | E20: Opening Principal Amounts as of Jan-1-09 | F20: Transactions1 Debit / (Credit) during 2009 | G20: Board-Approved Disposition during 2009 | H20: Principal Adjustments2 during 2009 | I20: Closing Principal Balance as of Dec-31-09 | J20: Opening Interest Amounts as of Jan-1-09 | K20: Interest Jan-1 to Dec-31-09 | L20: Board-Approved Disposition during 2009 | M20: Interest Adjustments1 during 2009 | N20: Closing Interest Amounts as of Dec-31-09 | O20: Opening Principal Amounts as of Jan-1-10 | P20: Transactions2 Debit / (Credit) during 2010 | Q20: Board-Approved Disposition during 2010 | R20: Principal Adjustments2 during 2010 | S20: Closing Principal Balance as of Dec-31-10 | T20: Opening Interest Amounts as of Jan-1-10 | U20: Interest Jan-1 to Dec-31-10 | V20: Board-Approved Disposition during 2010 | W20: Interest Adjustments1 during 2010 | X20: Closing Interest Amounts as of Dec-31-10 | Y20: Opening Principal Amounts as of Jan-1-11 | Z20: Transactions2 Debit / (Credit) during 2011 | AA20: Board-Approved Disposition during 2011 | AB20: Principal Adjustments2 during 2011 | AC20: Closing Principal Balance as of Dec-31-11 | AD20: Opening Interest Amounts as of Jan-1-11 | AE20: Interest Jan-1 to Dec-31-11 | AF20: Board-Approved Disposition during 2011 | AG20: Interest Adjustments1 during 2011 | AH20: Closing Interest Amounts as of Dec-31-11 | AI20: Opening Principal Amounts as of Jan-1-12 | AJ20: Transactions2 Debit / (Credit) during 2012 | AK20: Board-Approved Disposition during 2012 | AL20: Principal Adjustments2 during 2012 | AM20: Closing Principal Balance as of Dec-31-12 | AN20: Opening Interest Amounts as of Jan-1-12 | AO20: Interest Jan-1 to Dec-31-12 | AP20: Board-Approved Disposition during 2012 | AQ20: Interest Adjustments1 during 2012 | AR20: Closing Interest Amounts as of Dec-31-12 | AS20: Opening Principal Amounts as of Jan-1-13 | AT20: Transactions2 Debit / (Credit) during 2013 | AU20: Board-Approved Disposition during 2013 | AV20: Principal Adjustments2 during 2013 | AW20: Closing Principal Balance as of Dec-31-13 | AX20: Opening Interest Amounts as of Jan-1-13 | AY20: Interest Jan-1 to Dec-31-13 | AZ20: Board-Approved Disposition during 2013 | BA20: Interest Adjustments1 during 2013 | BB20: Closing Interest Amounts as of Dec-31-13 | BC20: Opening Principal Amounts as of Jan-1-14 | BD20: Transactions2 Debit / (Credit) during 2014 | BE20: Board-Approved Disposition during 2014 | BF20: Principal Adjustments2 during 2014 | BG20: Closing Principal Balance as of Dec-31-14 | BH20: Opening Interest Amounts as of Jan-1-14 | BI20: Interest Jan-1 to Dec-31-14 | BJ20: Board-Approved Disposition during 2014 | BK20: Interest Adjustments1 during 2014 | BL20: Closing Interest Amounts as of Dec-31-14 | BM20: Principal Disposition during 2015 - instructed by Board | BN20: Interest Disposition during 2015 - instructed by Board | BO20: Closing Principal Balances as of Dec 31-14 Adjusted for Dispositions during 2015 | BP20: Closing Interest Balances as of Dec 31-13 Adjusted for Dispositions during 2014 | BQ20: Projected Interest from Jan 1, 2015 to December 31, 2015 on Dec 31 -14 balance adjusted for disposition during 2014 5 | BR20: Projected Interest from January 1, 2016 to April 30, 2016 on Dec 31 -14 balance adjusted for disposition during 2015 5 | BS20: Total Claim | BT20: As of Dec 31-14 | BU20: Variance RRR vs. 2014 Balance (Principal + Interest)
BS22: Claim before Forecasted Transactions
C23: Group 1 Accounts
A24: 1 | C24: LV Variance Account | D24: 1550 | E24: ='[4]9.1 EDDVAR Cont Sch'!D6 -> 14335.33 | F24: ='[4]9.1 EDDVAR Cont Sch'!E6 -> -77784.79 | G24: ='[4]9.1 EDDVAR Cont Sch'!F6 -> 0 | H24: ='[4]9.1 EDDVAR Cont Sch'!G6 -> 0 | I24: =E24+F24-G24+H24 -> -63449.46 | J24: ='[4]9.1 EDDVAR Cont Sch'!I6 -> 32 | K24: ='[4]9.1 EDDVAR Cont Sch'!J6 -> -212.41 | L24: ='[4]9.1 EDDVAR Cont Sch'!K6 -> 0 | M24: ='[4]9.1 EDDVAR Cont Sch'!L6 -> 0 | N24: =J24+K24-L24+M24 -> -180.41 | O24: =I24 -> -63449.46 | P24: ='[4]9.1 EDDVAR Cont Sch'!O6 -> -50304.94 | Q24: ='[4]9.1 EDDVAR Cont Sch'!P6 -> 14335.37 | R24: ='[4]9.1 EDDVAR Cont Sch'!Q6 -> 0 | S24: =O24+P24-Q24+R24 -> -128089.77 | T24: =N24 -> -180.41 | U24: ='[4]9.1 EDDVAR Cont Sch'!T6 -> -942.1 | V24: ='[4]9.1 EDDVAR Cont Sch'!U6 -> 220 | W24: ='[4]9.1 EDDVAR Cont Sch'!V6 -> 0 | X24: =T24+U24-V24+W24 -> -1342.51 | Y24: =S24 -> -128089.77 | Z24: ='[4]9.1 EDDVAR Cont Sch'!Y6 -> -25887.58 | AA24: ='[4]9.1 EDDVAR Cont Sch'!Z6 -> 0 | AB24: ='[4]9.1 EDDVAR Cont Sch'!AA6 -> 0 | AC24: =Y24+Z24-AA24+SUM(AB24:AB24) -> -153977.35 | AD24: =X24 -> -1342.51 | AE24: ='[4]9.1 EDDVAR Cont Sch'!AD6 -> -2201.47 | AF24: ='[4]9.1 EDDVAR Cont Sch'!AE6 -> 0 | AG24: ='[4]9.1 EDDVAR Cont Sch'!AF6 -> 0 | AH24: =AD24+AE24-AF24+AG24 -> -3543.98 | AI24: =AC24 -> -153977.35 | AJ24: ='[4]9.1 EDDVAR Cont Sch'!AI6 -> -12883 | AK24: ='[4]9.1 EDDVAR Cont Sch'!AJ6 -> -126645 | AL24: ='[4]9.1 EDDVAR Cont Sch'!AK6 -> 0 | AM24: =AI24+AJ24-AK24+SUM(AL24:AL24) -> -40215.35 | AN24: =AH24 -> -3543.98 | AO24: ='[4]9.1 EDDVAR Cont Sch'!AQ6 -> -1956 | AP24: ='[4]9.1 EDDVAR Cont Sch'!AR6 -> -5269 | AQ24: ='[4]9.1 EDDVAR Cont Sch'!AS6 -> 0 | AR24: =AN24+AO24-AP24+AQ24 -> -230.98 | AS24: =AM24 -> -40215.35 | AT24: ='[4]9.1 EDDVAR Cont Sch'!AV6 -> 37318.44 | AU24: ='[4]9.1 EDDVAR Cont Sch'!AW6 -> 0 | AV24: ='[4]9.1 EDDVAR Cont Sch'!AX6 -> 0 | AW24: =AS24+AT24-AU24+SUM(AV24:AV24) -> -2896.91 | AX24: =AR24 -> -230.98 | AY24: ='[4]9.1 EDDVAR Cont Sch'!BD6 -> -506.22 | AZ24: ='[4]9.1 EDDVAR Cont Sch'!BE6 -> 0 | BA24: ='[4]9.1 EDDVAR Cont Sch'!BF6 -> 8.61 | BB24: =AX24+AY24-AZ24+BA24 -> -728.59 | BC24: =AW24 -> -2896.91 | BD24: ='[4]9.1 EDDVAR Cont Sch'!BI6 -> 42732.86 | BE24: ='[4]9.1 EDDVAR Cont Sch'!BJ6 -> -40216 | BF24: ='[4]9.1 EDDVAR Cont Sch'!BK6 -> 0 | BG24: =BC24+BD24-BE24+SUM(BF24:BF24) -> 80051.95 | BH24: =BB24 -> -728.59 | BI24: ='[4]9.1 EDDVAR Cont Sch'!BQ6 -> 485.63 | BJ24: ='[4]9.1 EDDVAR Cont Sch'!BR6 -> -1018 | BK24: ='[4]9.1 EDDVAR Cont Sch'!BS6 -> 0 | BL24: =BH24+BI24-BJ24+BK24 -> 775.04 | BM24: ='[4]9.1 EDDVAR Cont Sch'!BU6 -> 0 | BN24: ='[4]9.1 EDDVAR Cont Sch'!BV6 -> 0 | BO24: =BG24-BM24 -> 80051.95 | BP24: =BL24-BN24 -> 775.04 | BQ24: ='[4]9.1 EDDVAR Cont Sch'!BY6 -> 954.6195038 | BR24: ='[4]9.1 EDDVAR Cont Sch'!BZ6 -> 293.5238167 | BS24: =SUM(BO24:BR24) -> 82075.13332 | BT24: ='[4]9.1 EDDVAR Cont Sch'!CB6 -> 80828.45 | BU24: =BT24-SUM(BG24,BL24) -> 1.46
A25: 2 | C25: Smart Metering Entity Charge Variance Account | D25: 1551 | E25: ='[4]9.1 EDDVAR Cont Sch'!D7 -> 0 | F25: ='[4]9.1 EDDVAR Cont Sch'!E7 -> 0 | G25: ='[4]9.1 EDDVAR Cont Sch'!F7 -> 0 | H25: ='[4]9.1 EDDVAR Cont Sch'!G7 -> 0 | I25: =E25+F25-G25+H25 -> 0 | J25: ='[4]9.1 EDDVAR Cont Sch'!I7 -> 0 | K25: ='[4]9.1 EDDVAR Cont Sch'!J7 -> 0 | L25: ='[4]9.1 EDDVAR Cont Sch'!K7 -> 0 | M25: ='[4]9.1 EDDVAR Cont Sch'!L7 -> 0 | N25: =J25+K25-L25+M25 -> 0 | O25: =I25 -> 0 | P25: ='[4]9.1 EDDVAR Cont Sch'!O7 -> 0 | Q25: ='[4]9.1 EDDVAR Cont Sch'!P7 -> 0 | R25: ='[4]9.1 EDDVAR Cont Sch'!Q7 -> 0 | S25: =O25+P25-Q25+SUM(R25:R25) -> 0 | T25: =N25 -> 0 | U25: ='[4]9.1 EDDVAR Cont Sch'!T7 -> 0 | V25: ='[4]9.1 EDDVAR Cont Sch'!U7 -> 0 | W25: ='[4]9.1 EDDVAR Cont Sch'!V7 -> 0 | X25: =T25+U25-V25+W25 -> 0 | Y25: 0 | Z25: ='[4]9.1 EDDVAR Cont Sch'!Y7 -> 0 | AA25: ='[4]9.1 EDDVAR Cont Sch'!Z7 -> 0 | AB25: ='[4]9.1 EDDVAR Cont Sch'!AA7 -> 0 | AC25: =Y25+Z25-AA25+SUM(AB25:AB25) -> 0 | AD25: =X25 -> 0 | AE25: ='[4]9.1 EDDVAR Cont Sch'!AD7 -> 0 | AF25: ='[4]9.1 EDDVAR Cont Sch'!AE7 -> 0 | AG25: ='[4]9.1 EDDVAR Cont Sch'!AF7 -> 0 | AH25: =AD25+AE25-AF25+AG25 -> 0 | AI25: 0 | AJ25: ='[4]9.1 EDDVAR Cont Sch'!AI7 -> 0 | AK25: ='[4]9.1 EDDVAR Cont Sch'!AJ7 -> 0 | AL25: ='[4]9.1 EDDVAR Cont Sch'!AK7 -> 0 | AM25: 0 | AN25: 0 | AO25: ='[4]9.1 EDDVAR Cont Sch'!AQ7 -> 0 | AP25: ='[4]9.1 EDDVAR Cont Sch'!AR7 -> 0 | AQ25: ='[4]9.1 EDDVAR Cont Sch'!AS7 -> 0 | AR25: =AN25+AO25-AP25+AQ25 -> 0 | AS25: 0 | AT25: ='[4]9.1 EDDVAR Cont Sch'!AV7 -> 5424.87 | AU25: ='[4]9.1 EDDVAR Cont Sch'!AW7 -> 0 | AV25: ='[4]9.1 EDDVAR Cont Sch'!AX7 -> 0 | AW25: 5424.87 | AX25: 0 | AY25: ='[4]9.1 EDDVAR Cont Sch'!BD7 -> 47.67 | AZ25: ='[4]9.1 EDDVAR Cont Sch'!BE7 -> 0 | BA25: ='[4]9.1 EDDVAR Cont Sch'!BF7 -> 0 | BB25: =AX25+AY25-AZ25+BA25 -> 47.67 | BC25: 5424.87 | BD25: ='[4]9.1 EDDVAR Cont Sch'!BI7 -> -3373.01 | BE25: ='[4]9.1 EDDVAR Cont Sch'!BJ7 -> 0 | BF25: ='[4]9.1 EDDVAR Cont Sch'!BK7 -> 0 | BG25: 2051.86 | BH25: 47.67 | BI25: ='[4]9.1 EDDVAR Cont Sch'!BQ7 -> 77.28 | BJ25: ='[4]9.1 EDDVAR Cont Sch'!BR7 -> 0 | BK25: ='[4]9.1 EDDVAR Cont Sch'!BS7 -> 0 | BL25: =BH25+BI25-BJ25+BK25 -> 124.95 | BM25: ='[4]9.1 EDDVAR Cont Sch'!BU7 -> 0 | BN25: ='[4]9.1 EDDVAR Cont Sch'!BV7 -> 0 | BO25: =BG25-BM25 -> 2051.86 | BP25: =BL25-BN25 -> 124.95 | BQ25: ='[4]9.1 EDDVAR Cont Sch'!BY7 -> 24.4684305 | BR25: ='[4]9.1 EDDVAR Cont Sch'!BZ7 -> 7.523486667 | BS25: =SUM(BO25:BR25) -> 2208.801917 | BT25: ='[4]9.1 EDDVAR Cont Sch'!CB7 -> 2176.81 | BU25: =BT25-SUM(BG25,BL25) -> 0
A26: 3 | C26: RSVA - Wholesale Market Service Charge | D26: 1580 | E26: ='[4]9.1 EDDVAR Cont Sch'!D8 -> -230870.75 | F26: ='[4]9.1 EDDVAR Cont Sch'!E8 -> -25276.53 | G26: ='[4]9.1 EDDVAR Cont Sch'!F8 -> 0 | H26: ='[4]9.1 EDDVAR Cont Sch'!G8 -> 0 | I26: =E26+F26-G26+H26 -> -256147.28 | J26: ='[4]9.1 EDDVAR Cont Sch'!I8 -> -6387 | K26: ='[4]9.1 EDDVAR Cont Sch'!J8 -> -2621.4 | L26: ='[4]9.1 EDDVAR Cont Sch'!K8 -> 0 | M26: ='[4]9.1 EDDVAR Cont Sch'!L8 -> 0 | N26: =J26+K26-L26+M26 -> -9008.4 | O26: =I26 -> -256147.28 | P26: ='[4]9.1 EDDVAR Cont Sch'!O8 -> -109739.32 | Q26: ='[4]9.1 EDDVAR Cont Sch'!P8 -> -230870.75 | R26: ='[4]9.1 EDDVAR Cont Sch'!Q8 -> 0 | S26: =O26+P26-Q26+SUM(R26:R26) -> -135015.85 | T26: =N26 -> -9008.4 | U26: ='[4]9.1 EDDVAR Cont Sch'!T8 -> -1002.93 | V26: ='[4]9.1 EDDVAR Cont Sch'!U8 -> -9414.64 | W26: ='[4]9.1 EDDVAR Cont Sch'!V8 -> 0 | X26: =T26+U26-V26+W26 -> -596.69 | Y26: -135015.85 | Z26: ='[4]9.1 EDDVAR Cont Sch'!Y8 -> -106274.79 | AA26: ='[4]9.1 EDDVAR Cont Sch'!Z8 -> 0 | AB26: ='[4]9.1 EDDVAR Cont Sch'!AA8 -> 0 | AC26: -241290.64 | AD26: -596.69 | AE26: ='[4]9.1 EDDVAR Cont Sch'!AD8 -> -2766.96 | AF26: ='[4]9.1 EDDVAR Cont Sch'!AE8 -> 0 | AG26: ='[4]9.1 EDDVAR Cont Sch'!AF8 -> 0 | AH26: =AD26+AE26-AF26+AG26 -> -3363.65 | AI26: -241290.64 | AJ26: ='[4]9.1 EDDVAR Cont Sch'!AI8 -> -145405 | AK26: ='[4]9.1 EDDVAR Cont Sch'!AJ8 -> -135016 | AL26: ='[4]9.1 EDDVAR Cont Sch'!AK8 -> 0 | AM26: -251679.64 | AN26: -3363.65 | AO26: ='[4]9.1 EDDVAR Cont Sch'!AQ8 -> -4029 | AP26: ='[4]9.1 EDDVAR Cont Sch'!AR8 -> -3244 | AQ26: ='[4]9.1 EDDVAR Cont Sch'!AS8 -> 0 | AR26: =AN26+AO26-AP26+AQ26 -> -4148.65 | AS26: -251679.64 | AT26: ='[4]9.1 EDDVAR Cont Sch'!AV8 -> -69935.32 | AU26: ='[4]9.1 EDDVAR Cont Sch'!AW8 -> 0 | AV26: ='[4]9.1 EDDVAR Cont Sch'!AX8 -> 0 | AW26: -321614.96 | AX26: -4148.65 | AY26: ='[4]9.1 EDDVAR Cont Sch'!BD8 -> -4488.16 | AZ26: ='[4]9.1 EDDVAR Cont Sch'!BE8 -> 0 | BA26: ='[4]9.1 EDDVAR Cont Sch'!BF8 -> 133.95 | BB26: =AX26+AY26-AZ26+BA26 -> -8502.86 | BC26: -321614.96 | BD26: ='[4]9.1 EDDVAR Cont Sch'!BI8 -> -10483.92 | BE26: ='[4]9.1 EDDVAR Cont Sch'!BJ8 -> -251680 | BF26: ='[4]9.1 EDDVAR Cont Sch'!BK8 -> 0 | BG26: -80418.88 | BH26: -8502.86 | BI26: ='[4]9.1 EDDVAR Cont Sch'!BQ8 -> -2028.16 | BJ26: ='[4]9.1 EDDVAR Cont Sch'!BR8 -> -9082 | BK26: ='[4]9.1 EDDVAR Cont Sch'!BS8 -> 0 | BL26: =BH26+BI26-BJ26+BK26 -> -1449.02 | BM26: ='[4]9.1 EDDVAR Cont Sch'!BU8 -> 0 | BN26: ='[4]9.1 EDDVAR Cont Sch'!BV8 -> 0 | BO26: -80418.88 | BP26: -1449.02 | BQ26: ='[4]9.1 EDDVAR Cont Sch'!BY8 -> -958.995144 | BR26: ='[4]9.1 EDDVAR Cont Sch'!BZ8 -> -294.8692267 | BS26: =SUM(BO26:BR26) -> -83121.76437 | BT26: ='[4]9.1 EDDVAR Cont Sch'!CB8 -> -81867.05 | BU26: 0.85
A27: 4 | C27: RSVA - Retail Transmission Network Charge | D27: 1584 | E27: ='[4]9.1 EDDVAR Cont Sch'!D9 -> 10133.88 | F27: ='[4]9.1 EDDVAR Cont Sch'!E9 -> 5322.58 | G27: ='[4]9.1 EDDVAR Cont Sch'!F9 -> 0 | H27: ='[4]9.1 EDDVAR Cont Sch'!G9 -> 0 | I27: 15456.46 | J27: ='[4]9.1 EDDVAR Cont Sch'!I9 -> -6638.41 | K27: ='[4]9.1 EDDVAR Cont Sch'!J9 -> 157.79 | L27: ='[4]9.1 EDDVAR Cont Sch'!K9 -> 0 | M27: ='[4]9.1 EDDVAR Cont Sch'!L9 -> 0 | N27: -6480.62 | O27: 15456.46 | P27: ='[4]9.1 EDDVAR Cont Sch'!O9 -> 35194.46 | Q27: ='[4]9.1 EDDVAR Cont Sch'!P9 -> 10133.88 | R27: ='[4]9.1 EDDVAR Cont Sch'!Q9 -> 0 | S27: 40517.04 | T27: -6480.62 | U27: ='[4]9.1 EDDVAR Cont Sch'!T9 -> 110.46 | V27: ='[4]9.1 EDDVAR Cont Sch'!U9 -> -6505.32 | W27: ='[4]9.1 EDDVAR Cont Sch'!V9 -> 0 | X27: 135.16 | Y27: 40517.04 | Z27: ='[4]9.1 EDDVAR Cont Sch'!Y9 -> 17323.26 | AA27: ='[4]9.1 EDDVAR Cont Sch'!Z9 -> 0 | AB27: ='[4]9.1 EDDVAR Cont Sch'!AA9 -> 0 | AC27: 57840.3 | AD27: 135.16 | AE27: ='[4]9.1 EDDVAR Cont Sch'!AD9 -> 390.9 | AF27: ='[4]9.1 EDDVAR Cont Sch'!AE9 -> 0 | AG27: ='[4]9.1 EDDVAR Cont Sch'!AF9 -> 0 | AH27: 526.06 | AI27: 57840.3 | AJ27: ='[4]9.1 EDDVAR Cont Sch'!AI9 -> -5265 | AK27: ='[4]9.1 EDDVAR Cont Sch'!AJ9 -> 40517 | AL27: ='[4]9.1 EDDVAR Cont Sch'!AK9 -> 0 | AM27: 12058.3 | AN27: 526.06 | AO27: ='[4]9.1 EDDVAR Cont Sch'!AQ9 -> 277 | AP27: ='[4]9.1 EDDVAR Cont Sch'!AR9 -> 929 | AQ27: ='[4]9.1 EDDVAR Cont Sch'!AS9 -> 0 | AR27: -125.94 | AS27: 12058.3 | AT27: ='[4]9.1 EDDVAR Cont Sch'!AV9 -> -14813.35 | AU27: ='[4]9.1 EDDVAR Cont Sch'!AW9 -> 0 | AV27: ='[4]9.1 EDDVAR Cont Sch'!AX9 -> 0 | AW27: -2755.05 | AX27: -125.94 | AY27: ='[4]9.1 EDDVAR Cont Sch'!BD9 -> -81.81 | AZ27: ='[4]9.1 EDDVAR Cont Sch'!BE9 -> 0 | BA27: ='[4]9.1 EDDVAR Cont Sch'!BF9 -> 0 | BB27: -207.75 | BC27: -2755.05 | BD27: ='[4]9.1 EDDVAR Cont Sch'!BI9 -> -37924.42 | BE27: ='[4]9.1 EDDVAR Cont Sch'!BJ9 -> 12058 | BF27: ='[4]9.1 EDDVAR Cont Sch'!BK9 -> 0 | BG27: -52737.47 | BH27: -207.75 | BI27: ='[4]9.1 EDDVAR Cont Sch'!BQ9 -> -729.54 | BJ27: ='[4]9.1 EDDVAR Cont Sch'!BR9 -> 110 | BK27: ='[4]9.1 EDDVAR Cont Sch'!BS9 -> 0 | BL27: -1047.29 | BM27: ='[4]9.1 EDDVAR Cont Sch'!BU9 -> 0 | BN27: ='[4]9.1 EDDVAR Cont Sch'!BV9 -> 0 | BO27: -52737.47 | BP27: -1047.29 | BQ27: ='[4]9.1 EDDVAR Cont Sch'!BY9 -> -628.8943297 | BR27: ='[4]9.1 EDDVAR Cont Sch'!BZ9 -> -193.3707233 | BS27: -54607.02505 | BT27: ='[4]9.1 EDDVAR Cont Sch'!CB9 -> -53785.2 | BU27: -0.44
A28: 5 | C28: RSVA - Retail Transmission Connection Charge | D28: 1586 | E28: ='[4]9.1 EDDVAR Cont Sch'!D10 -> -614076.68 | F28: ='[4]9.1 EDDVAR Cont Sch'!E10 -> -176434.75 | G28: ='[4]9.1 EDDVAR Cont Sch'!F10 -> 0 | H28: ='[4]9.1 EDDVAR Cont Sch'!G10 -> 0 | I28: -790511.43 | J28: ='[4]9.1 EDDVAR Cont Sch'!I10 -> -123701 | K28: ='[4]9.1 EDDVAR Cont Sch'!J10 -> -9447.75 | L28: ='[4]9.1 EDDVAR Cont Sch'!K10 -> 0 | M28: ='[4]9.1 EDDVAR Cont Sch'!L10 -> 0 | N28: -133148.75 | O28: -790511.43 | P28: ='[4]9.1 EDDVAR Cont Sch'!O10 -> -181179.76 | Q28: ='[4]9.1 EDDVAR Cont Sch'!P10 -> -614076.68 | R28: ='[4]9.1 EDDVAR Cont Sch'!Q10 -> 0 | S28: -357614.51 | T28: -133148.75 | U28: ='[4]9.1 EDDVAR Cont Sch'!T10 -> -3841.7 | V28: ='[4]9.1 EDDVAR Cont Sch'!U10 -> -131754.69 | W28: ='[4]9.1 EDDVAR Cont Sch'!V10 -> 0 | X28: -5235.76 | Y28: -357614.51 | Z28: ='[4]9.1 EDDVAR Cont Sch'!Y10 -> -65591.85 | AA28: ='[4]9.1 EDDVAR Cont Sch'!Z10 -> 0 | AB28: ='[4]9.1 EDDVAR Cont Sch'!AA10 -> 0 | AC28: -423206.36 | AD28: -5235.76 | AE28: ='[4]9.1 EDDVAR Cont Sch'!AD10 -> -6355.74 | AF28: ='[4]9.1 EDDVAR Cont Sch'!AE10 -> 0 | AG28: ='[4]9.1 EDDVAR Cont Sch'!AF10 -> 0 | AH28: -11591.5 | AI28: -423206.36 | AJ28: ='[4]9.1 EDDVAR Cont Sch'!AI10 -> 5389 | AK28: ='[4]9.1 EDDVAR Cont Sch'!AJ10 -> -357615 | AL28: ='[4]9.1 EDDVAR Cont Sch'!AK10 -> 0 | AM28: -60202.36 | AN28: -11591.5 | AO28: ='[4]9.1 EDDVAR Cont Sch'!AQ10 -> -5226 | AP28: ='[4]9.1 EDDVAR Cont Sch'!AR10 -> -12245 | AQ28: ='[4]9.1 EDDVAR Cont Sch'!AS10 -> 0 | AR28: -4572.5 | AS28: -60202.36 | AT28: ='[4]9.1 EDDVAR Cont Sch'!AV10 -> -17712.62 | AU28: ='[4]9.1 EDDVAR Cont Sch'!AW10 -> 0 | AV28: ='[4]9.1 EDDVAR Cont Sch'!AX10 -> 0 | AW28: -77914.98 | AX28: -4572.5 | AY28: ='[4]9.1 EDDVAR Cont Sch'!BD10 -> -1143.84 | AZ28: ='[4]9.1 EDDVAR Cont Sch'!BE10 -> 0 | BA28: ='[4]9.1 EDDVAR Cont Sch'!BF10 -> 38.35 | BB28: -5677.99 | BC28: -77914.98 | BD28: ='[4]9.1 EDDVAR Cont Sch'!BI10 -> -20387.67 | BE28: ='[4]9.1 EDDVAR Cont Sch'!BJ10 -> -60203 | BF28: ='[4]9.1 EDDVAR Cont Sch'!BK10 -> 0 | BG28: -38099.65 | BH28: -5677.99 | BI28: ='[4]9.1 EDDVAR Cont Sch'!BQ10 -> -1043.99 | BJ28: ='[4]9.1 EDDVAR Cont Sch'!BR10 -> -5753 | BK28: ='[4]9.1 EDDVAR Cont Sch'!BS10 -> 0 | BL28: -968.98 | BM28: ='[4]9.1 EDDVAR Cont Sch'!BU10 -> 0 | BN28: ='[4]9.1 EDDVAR Cont Sch'!BV10 -> 0 | BO28: -38099.65 | BP28: -968.98 | BQ28: ='[4]9.1 EDDVAR Cont Sch'!BY10 -> -454.3383262 | BR28: ='[4]9.1 EDDVAR Cont Sch'!BZ10 -> -139.6987167 | BS28: -39662.66704 | BT28: ='[4]9.1 EDDVAR Cont Sch'!CB10 -> -39068.06 | BU28: 0.57
A29: 6 | C29: RSVA - Power (excluding Global Adjustment) | D29: 1588 | E29: ='[4]9.1 EDDVAR Cont Sch'!D11 -> -922688 | F29: ='[4]9.1 EDDVAR Cont Sch'!E11 -> 943077.27 | G29: ='[4]9.1 EDDVAR Cont Sch'!F11 -> 0 | H29: ='[4]9.1 EDDVAR Cont Sch'!G11 -> 0 | I29: 20389.27 | J29: ='[4]9.1 EDDVAR Cont Sch'!I11 -> -48921 | K29: ='[4]9.1 EDDVAR Cont Sch'!J11 -> 2422.15 | L29: ='[4]9.1 EDDVAR Cont Sch'!K11 -> 0 | M29: ='[4]9.1 EDDVAR Cont Sch'!L11 -> 0 | N29: -46498.85 | O29: 20389.27 | P29: ='[4]9.1 EDDVAR Cont Sch'!O11 -> 695542 | Q29: ='[4]9.1 EDDVAR Cont Sch'!P11 -> -922688.07 | R29: ='[4]9.1 EDDVAR Cont Sch'!Q11 -> -2043662 | S29: -405042.66 | T29: -46498.85 | U29: ='[4]9.1 EDDVAR Cont Sch'!T11 -> 6860.88 | V29: ='[4]9.1 EDDVAR Cont Sch'!U11 -> -61022.76 | W29: ='[4]9.1 EDDVAR Cont Sch'!V11 -> -47307.33 | X29: -25922.54 | Y29: -405042.66 | Z29: ='[4]9.1 EDDVAR Cont Sch'!Y11 -> 145397.07 | AA29: ='[4]9.1 EDDVAR Cont Sch'!Z11 -> 0 | AB29: ='[4]9.1 EDDVAR Cont Sch'!AA11 -> 0 | AC29: -259645.59 | AD29: -25922.54 | AE29: ='[4]9.1 EDDVAR Cont Sch'!AD11 -> -2390.1 | AF29: ='[4]9.1 EDDVAR Cont Sch'!AE11 -> 0 | AG29: ='[4]9.1 EDDVAR Cont Sch'!AF11 -> 0 | AH29: -28312.64 | AI29: -259645.59 | AJ29: ='[4]9.1 EDDVAR Cont Sch'!AI11 -> 246689.81 | AK29: ='[4]9.1 EDDVAR Cont Sch'!AJ11 -> -405043 | AL29: ='[4]9.1 EDDVAR Cont Sch'!AK11 -> 0 | AM29: 392087.22 | AN29: -28312.64 | AO29: ='[4]9.1 EDDVAR Cont Sch'!AQ11 -> -1042.04 | AP29: ='[4]9.1 EDDVAR Cont Sch'!AR11 -> -33862 | AQ29: ='[4]9.1 EDDVAR Cont Sch'!AS11 -> 0 | AR29: 4507.32 | AS29: 392087.22 | AT29: ='[4]9.1 EDDVAR Cont Sch'!AV11 -> -46423.32 | AU29: ='[4]9.1 EDDVAR Cont Sch'!AW11 -> 0 | AV29: ='[4]9.1 EDDVAR Cont Sch'!AX11 -> 0 | AW29: 345663.9 | AX29: 4507.32 | AY29: ='[4]9.1 EDDVAR Cont Sch'!BD11 -> 6903.98 | AZ29: ='[4]9.1 EDDVAR Cont Sch'!BE11 -> 0 | BA29: ='[4]9.1 EDDVAR Cont Sch'!BF11 -> 0 | BB29: 11411.3 | BC29: 345663.9 | BD29: ='[4]9.1 EDDVAR Cont Sch'!BI11 -> 89639.25 | BE29: ='[4]9.1 EDDVAR Cont Sch'!BJ11 -> 358726 | BF29: ='[4]9.1 EDDVAR Cont Sch'!BK11 -> 0 | BG29: 76577.15 | BH29: 11411.3 | BI29: ='[4]9.1 EDDVAR Cont Sch'!BQ11 -> 3598.57 | BJ29: ='[4]9.1 EDDVAR Cont Sch'!BR11 -> 16903 | BK29: ='[4]9.1 EDDVAR Cont Sch'!BS11 -> 0 | BL29: -1893.13 | BM29: ='[4]9.1 EDDVAR Cont Sch'!BU11 -> 0 | BN29: ='[4]9.1 EDDVAR Cont Sch'!BV11 -> 0 | BO29: 76577.15 | BP29: -1893.13 | BQ29: ='[4]9.1 EDDVAR Cont Sch'!BY11 -> 913.1825137 | BR29: ='[4]9.1 EDDVAR Cont Sch'!BZ11 -> 280.7828833 | BS29: 75877.9854 | BT29: ='[4]9.1 EDDVAR Cont Sch'!CB11 -> 74681.4 | BU29: -2.62
A30: 7 | C30: RSVA - Global Adjustment | D30: 1589 | E30: ='[4]9.1 EDDVAR Cont Sch'!D12 -> 1228772 | F30: ='[4]9.1 EDDVAR Cont Sch'!E12 -> -630878.74 | G30: ='[4]9.1 EDDVAR Cont Sch'!F12 -> 0 | H30: ='[4]9.1 EDDVAR Cont Sch'!G12 -> 0 | I30: 597893.26 | J30: ='[4]9.1 EDDVAR Cont Sch'!I12 -> 0 | K30: ='[4]9.1 EDDVAR Cont Sch'!J12 -> -2010.48 | L30: ='[4]9.1 EDDVAR Cont Sch'!K12 -> 0 | M30: ='[4]9.1 EDDVAR Cont Sch'!L12 -> 0 | N30: -2010.48 | O30: 597893.26 | P30: ='[4]9.1 EDDVAR Cont Sch'!O12 -> -961155.27 | Q30: ='[4]9.1 EDDVAR Cont Sch'!P12 -> 1228772.2 | R30: ='[4]9.1 EDDVAR Cont Sch'!Q12 -> 2043662.23 | S30: 451628.02 | T30: -2010.48 | U30: ='[4]9.1 EDDVAR Cont Sch'!T12 -> -5183.68 | V30: ='[4]9.1 EDDVAR Cont Sch'!U12 -> 16115.43 | W30: ='[4]9.1 EDDVAR Cont Sch'!V12 -> 47307.33 | X30: 23997.74 | Y30: 451628.02 | Z30: ='[4]9.1 EDDVAR Cont Sch'!Y12 -> -60824.32 | AA30: ='[4]9.1 EDDVAR Cont Sch'!Z12 -> 0 | AB30: ='[4]9.1 EDDVAR Cont Sch'!AA12 -> 0 | AC30: 390803.7 | AD30: 23997.74 | AE30: ='[4]9.1 EDDVAR Cont Sch'!AD12 -> 5810 | AF30: ='[4]9.1 EDDVAR Cont Sch'!AE12 -> 0 | AG30: ='[4]9.1 EDDVAR Cont Sch'!AF12 -> 0 | AH30: 29807.74 | AI30: 390803.7 | AJ30: ='[4]9.1 EDDVAR Cont Sch'!AI12 -> -237400.23 | AK30: ='[4]9.1 EDDVAR Cont Sch'!AJ12 -> 451628 | AL30: ='[4]9.1 EDDVAR Cont Sch'!AK12 -> 0 | AM30: -298224.53 | AN30: 29807.74 | AO30: ='[4]9.1 EDDVAR Cont Sch'!AQ12 -> 2828.45 | AP30: ='[4]9.1 EDDVAR Cont Sch'!AR12 -> 32850 | AQ30: ='[4]9.1 EDDVAR Cont Sch'!AS12 -> 0 | AR30: -213.81 | AS30: -298224.53 | AT30: ='[4]9.1 EDDVAR Cont Sch'!AV12 -> 85456.34 | AU30: ='[4]9.1 EDDVAR Cont Sch'!AW12 -> 0 | AV30: ='[4]9.1 EDDVAR Cont Sch'!AX12 -> 0 | AW30: -212768.19 | AX30: -213.81 | AY30: ='[4]9.1 EDDVAR Cont Sch'!BD12 -> -3030.75 | AZ30: ='[4]9.1 EDDVAR Cont Sch'!BE12 -> 0 | BA30: ='[4]9.1 EDDVAR Cont Sch'!BF12 -> 0 | BB30: -3244.56 | BC30: -212768.19 | BD30: ='[4]9.1 EDDVAR Cont Sch'!BI12 -> 95326.87 | BE30: ='[4]9.1 EDDVAR Cont Sch'!BJ12 -> -264863 | BF30: ='[4]9.1 EDDVAR Cont Sch'!BK12 -> 0 | BG30: 147421.68 | BH30: -3244.56 | BI30: ='[4]9.1 EDDVAR Cont Sch'!BQ12 -> -2293.71 | BJ30: ='[4]9.1 EDDVAR Cont Sch'!BR12 -> -9146 | BK30: ='[4]9.1 EDDVAR Cont Sch'!BS12 -> 0 | BL30: 3607.73 | BM30: ='[4]9.1 EDDVAR Cont Sch'!BU12 -> 0 | BN30: ='[4]9.1 EDDVAR Cont Sch'!BV12 -> 0 | BO30: 147421.68 | BP30: 3607.73 | BQ30: ='[4]9.1 EDDVAR Cont Sch'!BY12 -> 1758.003534 | BR30: ='[4]9.1 EDDVAR Cont Sch'!BZ12 -> 540.54616 | BS30: 153327.9597 | BT30: ='[4]9.1 EDDVAR Cont Sch'!CB12 -> 151029.59 | BU30: 0.18
A31: 8 | C31: Disposition and Recovery/Refund of Regulatory Balances (2008) | D31: 1595 | E31: ='[4]9.1 EDDVAR Cont Sch'!D14 -> 57005 | F31: ='[4]9.1 EDDVAR Cont Sch'!E14 -> 0 | G31: ='[4]9.1 EDDVAR Cont Sch'!F14 -> 0 | H31: ='[4]9.1 EDDVAR Cont Sch'!G14 -> 0 | I31: 57005 | J31: ='[4]9.1 EDDVAR Cont Sch'!I14 -> 3905 | K31: ='[4]9.1 EDDVAR Cont Sch'!J14 -> 0 | L31: ='[4]9.1 EDDVAR Cont Sch'!K14 -> 0 | M31: ='[4]9.1 EDDVAR Cont Sch'!L14 -> 0 | N31: 3905 | O31: =I31 -> 57005 | P31: ='[4]9.1 EDDVAR Cont Sch'!O14 -> 0 | Q31: ='[4]9.1 EDDVAR Cont Sch'!P14 -> 0 | R31: ='[4]9.1 EDDVAR Cont Sch'!Q14 -> 0 | S31: 57005 | T31: =N31 -> 3905 | U31: ='[4]9.1 EDDVAR Cont Sch'!T14 -> -11.25 | V31: ='[4]9.1 EDDVAR Cont Sch'!U14 -> 0 | W31: ='[4]9.1 EDDVAR Cont Sch'!V14 -> -4761 | X31: -867.25 | Y31: =S31 -> 57005 | Z31: ='[4]9.1 EDDVAR Cont Sch'!Y14 -> 0 | AA31: ='[4]9.1 EDDVAR Cont Sch'!Z14 -> 0 | AB31: ='[4]9.1 EDDVAR Cont Sch'!AA14 -> -60069 | AC31: -3064 | AD31: -867.25 | AE31: ='[4]9.1 EDDVAR Cont Sch'!AD14 -> -45 | AF31: ='[4]9.1 EDDVAR Cont Sch'!AE14 -> 0 | AG31: ='[4]9.1 EDDVAR Cont Sch'!AF14 -> 0 | AH31: -912.25 | AI31: -3064 | AJ31: ='[4]9.1 EDDVAR Cont Sch'!AI14 -> 0 | AK31: ='[4]9.1 EDDVAR Cont Sch'!AJ14 -> -7835.97 | AL31: ='[4]9.1 EDDVAR Cont Sch'!AK14 -> 0 | AM31: 4771.97 | AN31: -912.25 | AO31: ='[4]9.1 EDDVAR Cont Sch'!AQ14 -> -16 | AP31: ='[4]9.1 EDDVAR Cont Sch'!AR14 -> 3740.05 | AQ31: ='[4]9.1 EDDVAR Cont Sch'!AS14 -> 0 | AR31: -4668.3 | AS31: =AM31 -> 4771.97 | AT31: ='[4]9.1 EDDVAR Cont Sch'!AV14 -> 0 | AU31: ='[4]9.1 EDDVAR Cont Sch'!AW13 -> 0 | AV31: ='[4]9.1 EDDVAR Cont Sch'!AX13 -> 0 | AW31: 4771.97 | AX31: -4668.3 | AY31: ='[4]9.1 EDDVAR Cont Sch'!BD14 -> 70 | AZ31: ='[4]9.1 EDDVAR Cont Sch'!BE14 -> 0 | BA31: ='[4]9.1 EDDVAR Cont Sch'!BF14 -> 0 | BB31: -4598.3 | BC31: =AW31 -> 4771.97 | BD31: ='[4]9.1 EDDVAR Cont Sch'!BI14 -> 0 | BE31: ='[4]9.1 EDDVAR Cont Sch'!BJ14 -> 4772 | BF31: ='[4]9.1 EDDVAR Cont Sch'!BK14+'[4]9.1 EDDVAR Cont Sch'!BM$14 -> 0 | BG31: -0.03 | BH31: -4598.3 | BI31: ='[4]9.1 EDDVAR Cont Sch'!BQ14 -> 0 | BJ31: ='[4]9.1 EDDVAR Cont Sch'!BR14 -> -4575 | BK31: ='[4]9.1 EDDVAR Cont Sch'!BS14 -> 24 | BL31: 0.7 | BM31: ='[4]9.1 EDDVAR Cont Sch'!BU14 -> 0 | BN31: ='[4]9.1 EDDVAR Cont Sch'!BV14 -> 0 | BO31: -0.03 | BP31: 0.7 | BQ31: ='[4]9.1 EDDVAR Cont Sch'!BY14 -> -0.00035775 | BR31: ='[4]9.1 EDDVAR Cont Sch'!BZ14 -> -0.00011 | BS31: 0.66953225 | BT31: ='[4]9.1 EDDVAR Cont Sch'!CB14 -> 0 | BU31: -0.67
A32: 9 | C32: Disposition and Recovery/Refund of Regulatory Balances (2009) | D32: 1595 | E32: ='[4]9.1 EDDVAR Cont Sch'!D15 -> 0 | F32: ='[4]9.1 EDDVAR Cont Sch'!E15 -> 0 | G32: ='[4]9.1 EDDVAR Cont Sch'!F15 -> 0 | H32: ='[4]9.1 EDDVAR Cont Sch'!G15 -> 0 | I32: 0 | J32: ='[4]9.1 EDDVAR Cont Sch'!I15 -> 0 | K32: ='[4]9.1 EDDVAR Cont Sch'!J15 -> 0 | L32: ='[4]9.1 EDDVAR Cont Sch'!K15 -> 0 | M32: ='[4]9.1 EDDVAR Cont Sch'!L15 -> 0 | N32: 0 | O32: 0 | P32: ='[4]9.1 EDDVAR Cont Sch'!O15 -> 0 | Q32: ='[4]9.1 EDDVAR Cont Sch'!P15 -> 0 | R32: ='[4]9.1 EDDVAR Cont Sch'!Q15 -> 0 | S32: 0 | T32: 0 | U32: ='[4]9.1 EDDVAR Cont Sch'!T15 -> 0 | V32: ='[4]9.1 EDDVAR Cont Sch'!U15 -> 0 | W32: ='[4]9.1 EDDVAR Cont Sch'!V15 -> 0 | X32: 0 | Y32: 0 | Z32: ='[4]9.1 EDDVAR Cont Sch'!Y15 -> 0 | AA32: ='[4]9.1 EDDVAR Cont Sch'!Z15 -> 0 | AB32: ='[4]9.1 EDDVAR Cont Sch'!AA15 -> 0 | AC32: 0 | AD32: 0 | AE32: ='[4]9.1 EDDVAR Cont Sch'!AD15 -> 0 | AF32: ='[4]9.1 EDDVAR Cont Sch'!AE15 -> 0 | AG32: ='[4]9.1 EDDVAR Cont Sch'!AF15 -> 0 | AH32: 0 | AI32: 0 | AJ32: ='[4]9.1 EDDVAR Cont Sch'!AI15 -> 0 | AK32: ='[4]9.1 EDDVAR Cont Sch'!AJ15 -> 0 | AL32: ='[4]9.1 EDDVAR Cont Sch'!AK15 -> 0 | AM32: 0 | AN32: 0 | AO32: ='[4]9.1 EDDVAR Cont Sch'!AQ15 -> 0 | AP32: ='[4]9.1 EDDVAR Cont Sch'!AR15 -> 0 | AQ32: ='[4]9.1 EDDVAR Cont Sch'!AS15 -> 0 | AR32: 0 | AS32: 0 | AT32: ='[4]9.1 EDDVAR Cont Sch'!AV15 -> 0 | AU32: ='[4]9.1 EDDVAR Cont Sch'!AW14 -> 0 | AV32: ='[4]9.1 EDDVAR Cont Sch'!AX14 -> 0 | AW32: 0 | AX32: 0 | AY32: ='[4]9.1 EDDVAR Cont Sch'!BD15 -> 0 | AZ32: ='[4]9.1 EDDVAR Cont Sch'!BE15 -> 0 | BA32: ='[4]9.1 EDDVAR Cont Sch'!BF15 -> 0 | BB32: 0 | BC32: 0 | BD32: ='[4]9.1 EDDVAR Cont Sch'!BI15 -> 0 | BE32: ='[4]9.1 EDDVAR Cont Sch'!BJ15 -> 0 | BF32: ='[4]9.1 EDDVAR Cont Sch'!BK15 -> 0 | BG32: 0 | BH32: 0 | BI32: ='[4]9.1 EDDVAR Cont Sch'!BQ15 -> 0 | BJ32: ='[4]9.1 EDDVAR Cont Sch'!BR15 -> 0 | BK32: ='[4]9.1 EDDVAR Cont Sch'!BS15 -> 0 | BL32: 0 | BM32: ='[4]9.1 EDDVAR Cont Sch'!BU15 -> 0 | BN32: ='[4]9.1 EDDVAR Cont Sch'!BV15 -> 0 | BO32: 0 | BP32: 0 | BQ32: ='[4]9.1 EDDVAR Cont Sch'!BY15 -> 0 | BR32: ='[4]9.1 EDDVAR Cont Sch'!BZ15 -> 0 | BS32: 0 | BT32: ='[4]9.1 EDDVAR Cont Sch'!CB15 -> 0 | BU32: 0
A33: 10 | C33: Disposition and Recovery/Refund of Regulatory Balances (2010) | D33: 1595 | E33: ='[4]9.1 EDDVAR Cont Sch'!D16 -> 0 | F33: ='[4]9.1 EDDVAR Cont Sch'!E16 -> 0 | G33: ='[4]9.1 EDDVAR Cont Sch'!F16 -> 0 | H33: ='[4]9.1 EDDVAR Cont Sch'!G16 -> 0 | I33: =E33+F33-G33+H33 -> 0 | J33: ='[4]9.1 EDDVAR Cont Sch'!I16 -> 0 | K33: ='[4]9.1 EDDVAR Cont Sch'!J16 -> 0 | L33: ='[4]9.1 EDDVAR Cont Sch'!K16 -> 0 | M33: ='[4]9.1 EDDVAR Cont Sch'!L16 -> 0 | N33: =J33+K33-L33+M33 -> 0 | O33: =I33 -> 0 | P33: ='[4]9.1 EDDVAR Cont Sch'!O16 -> 159699.08 | Q33: ='[4]9.1 EDDVAR Cont Sch'!P16 -> 585953 | R33: ='[4]9.1 EDDVAR Cont Sch'!Q16 -> 0 | S33: -426253.92 | T33: =N33 -> 0 | U33: ='[4]9.1 EDDVAR Cont Sch'!T16 -> -2975.67 | V33: ='[4]9.1 EDDVAR Cont Sch'!U16 -> 167407 | W33: ='[4]9.1 EDDVAR Cont Sch'!V16 -> 0 | X33: =T33+U33-V33+W33 -> -170382.67 | Y33: -426253.92 | Z33: ='[4]9.1 EDDVAR Cont Sch'!Y16 -> 184842.91 | AA33: ='[4]9.1 EDDVAR Cont Sch'!Z16 -> 0 | AB33: ='[4]9.1 EDDVAR Cont Sch'!AA16 -> 0 | AC33: -241411.01 | AD33: -170382.67 | AE33: ='[4]9.1 EDDVAR Cont Sch'!AD16 -> -4904.46 | AF33: ='[4]9.1 EDDVAR Cont Sch'!AE16 -> 0 | AG33: ='[4]9.1 EDDVAR Cont Sch'!AF16 -> 0 | AH33: =AD33+AE33-AF33+AG33 -> -175287.13 | AI33: -241411.01 | AJ33: ='[4]9.1 EDDVAR Cont Sch'!AI16 -> 177844.33 | AK33: ='[4]9.1 EDDVAR Cont Sch'!AJ16 -> 0 | AL33: ='[4]9.1 EDDVAR Cont Sch'!AK16 -> 0 | AM33: -63566.68 | AN33: -175287.13 | AO33: ='[4]9.1 EDDVAR Cont Sch'!AQ16 -> -2282.65 | AP33: ='[4]9.1 EDDVAR Cont Sch'!AR16 -> 0 | AQ33: ='[4]9.1 EDDVAR Cont Sch'!AS16 -> 0 | AR33: =AN33+AO33-AP33+AQ33 -> -177569.78 | AS33: -63566.68 | AT33: ='[4]9.1 EDDVAR Cont Sch'!AV16 -> 63566.68 | AU33: ='[4]9.1 EDDVAR Cont Sch'!AW15 -> 0 | AV33: ='[4]9.1 EDDVAR Cont Sch'!AX15 -> 0 | AW33: -5.09317033e-11 | AX33: -177569.78 | AY33: ='[4]9.1 EDDVAR Cont Sch'!BD16 -> 113886.69 | AZ33: ='[4]9.1 EDDVAR Cont Sch'!BE16 -> 0 | BA33: ='[4]9.1 EDDVAR Cont Sch'!BF16 -> 0 | BB33: =AX33+AY33-AZ33+BA33 -> -63683.09 | BC33: -5.09317033e-11 | BD33: ='[4]9.1 EDDVAR Cont Sch'!BI16 -> 14955.26 | BE33: ='[4]9.1 EDDVAR Cont Sch'!BJ16 -> 0 | BF33: ='[4]9.1 EDDVAR Cont Sch'!BK16 -> 0 | BG33: 14955.26 | BH33: -63683.09 | BI33: ='[4]9.1 EDDVAR Cont Sch'!BQ16 -> 52261.79 | BJ33: ='[4]9.1 EDDVAR Cont Sch'!BR16 -> 0 | BK33: ='[4]9.1 EDDVAR Cont Sch'!BS16 -> 0 | BL33: =BH33+BI33-BJ33+BK33 -> -11421.3 | BM33: ='[4]9.1 EDDVAR Cont Sch'!BU16 -> 0 | BN33: ='[4]9.1 EDDVAR Cont Sch'!BV16 -> 0 | BO33: 14955.26 | BP33: -11421.3 | BQ33: ='[4]9.1 EDDVAR Cont Sch'!BY16 -> 178.3414755 | BR33: ='[4]9.1 EDDVAR Cont Sch'!BZ16 -> 54.83595333 | BS33: 3767.137429 | BT33: ='[4]9.1 EDDVAR Cont Sch'!CB16 -> 3532.39 | BU33: -1.57
A34: 11 | C34: Disposition and Recovery/Refund of Regulatory Balances (2011) | D34: 1595 | E34: ='[4]9.1 EDDVAR Cont Sch'!D17 -> 0 | F34: ='[4]9.1 EDDVAR Cont Sch'!E17 -> 0 | G34: ='[4]9.1 EDDVAR Cont Sch'!F17 -> 0 | H34: ='[4]9.1 EDDVAR Cont Sch'!G17 -> 0 | I34: =E34+F34-G34+H34 -> 0 | J34: ='[4]9.1 EDDVAR Cont Sch'!I17 -> 0 | K34: ='[4]9.1 EDDVAR Cont Sch'!J17 -> 0 | L34: ='[4]9.1 EDDVAR Cont Sch'!K17 -> 0 | M34: ='[4]9.1 EDDVAR Cont Sch'!L17 -> 0 | N34: =J34+K34-L34+M34 -> 0 | O34: =I34 -> 0 | P34: ='[4]9.1 EDDVAR Cont Sch'!O17 -> 0 | Q34: ='[4]9.1 EDDVAR Cont Sch'!P17 -> 0 | R34: ='[4]9.1 EDDVAR Cont Sch'!Q17 -> 0 | S34: =O34+P34-Q34+SUM(R34:R34) -> 0 | T34: =N34 -> 0 | U34: ='[4]9.1 EDDVAR Cont Sch'!T17 -> 0 | V34: ='[4]9.1 EDDVAR Cont Sch'!U17 -> 0 | W34: ='[4]9.1 EDDVAR Cont Sch'!V17 -> 0 | X34: =T34+U34-V34+W34 -> 0 | Y34: 0 | Z34: ='[4]9.1 EDDVAR Cont Sch'!Y17 -> 0 | AA34: ='[4]9.1 EDDVAR Cont Sch'!Z17 -> 0 | AB34: ='[4]9.1 EDDVAR Cont Sch'!AA17 -> 0 | AC34: =Y34+Z34-AA34+SUM(AB34:AB34) -> 0 | AD34: =X34 -> 0 | AE34: ='[4]9.1 EDDVAR Cont Sch'!AD17 -> 0 | AF34: ='[4]9.1 EDDVAR Cont Sch'!AE17 -> 0 | AG34: ='[4]9.1 EDDVAR Cont Sch'!AF17 -> 0 | AH34: =AD34+AE34-AF34+AG34 -> 0 | AI34: 0 | AJ34: ='[4]9.1 EDDVAR Cont Sch'!AI17 -> 0 | AK34: ='[4]9.1 EDDVAR Cont Sch'!AJ17 -> 0 | AL34: ='[4]9.1 EDDVAR Cont Sch'!AK17 -> 0 | AM34: 0 | AN34: 0 | AO34: ='[4]9.1 EDDVAR Cont Sch'!AQ17 -> 0 | AP34: ='[4]9.1 EDDVAR Cont Sch'!AR17 -> 0 | AQ34: ='[4]9.1 EDDVAR Cont Sch'!AS17 -> 0 | AR34: =AN34+AO34-AP34+AQ34 -> 0 | AS34: 0 | AT34: ='[4]9.1 EDDVAR Cont Sch'!AV17 -> 0 | AU34: ='[4]9.1 EDDVAR Cont Sch'!AW16 -> 0 | AV34: ='[4]9.1 EDDVAR Cont Sch'!AX16 -> 0 | AW34: 0 | AX34: 0 | AY34: ='[4]9.1 EDDVAR Cont Sch'!BD17 -> 0 | AZ34: ='[4]9.1 EDDVAR Cont Sch'!BE17 -> 0 | BA34: ='[4]9.1 EDDVAR Cont Sch'!BF17 -> 0 | BB34: =AX34+AY34-AZ34+BA34 -> 0 | BC34: 0 | BD34: ='[4]9.1 EDDVAR Cont Sch'!BI17 -> 0 | BE34: ='[4]9.1 EDDVAR Cont Sch'!BJ17 -> 0 | BF34: ='[4]9.1 EDDVAR Cont Sch'!BK17 -> 0 | BG34: 0 | BH34: 0 | BI34: ='[4]9.1 EDDVAR Cont Sch'!BQ17 -> 0 | BJ34: ='[4]9.1 EDDVAR Cont Sch'!BR17 -> 0 | BK34: ='[4]9.1 EDDVAR Cont Sch'!BS17 -> 0 | BL34: =BH34+BI34-BJ34+BK34 -> 0 | BM34: ='[4]9.1 EDDVAR Cont Sch'!BU17 -> 0 | BN34: ='[4]9.1 EDDVAR Cont Sch'!BV17 -> 0 | BO34: 0 | BP34: 0 | BQ34: ='[4]9.1 EDDVAR Cont Sch'!BY17 -> 0 | BR34: ='[4]9.1 EDDVAR Cont Sch'!BZ17 -> 0 | BS34: 0 | BT34: ='[4]9.1 EDDVAR Cont Sch'!CB17 -> 0 | BU34: 0
A35: 12 | C35: Disposition and Recovery/Refund of Regulatory Balances (2012) | D35: 1595 | E35: ='[4]9.1 EDDVAR Cont Sch'!D18 -> 0 | F35: ='[4]9.1 EDDVAR Cont Sch'!E18 -> 0 | G35: ='[4]9.1 EDDVAR Cont Sch'!F18 -> 0 | H35: ='[4]9.1 EDDVAR Cont Sch'!G18 -> 0 | I35: =E35+F35-G35+H35 -> 0 | J35: ='[4]9.1 EDDVAR Cont Sch'!I18 -> 0 | K35: ='[4]9.1 EDDVAR Cont Sch'!J18 -> 0 | L35: ='[4]9.1 EDDVAR Cont Sch'!K18 -> 0 | M35: ='[4]9.1 EDDVAR Cont Sch'!L18 -> 0 | N35: =J35+K35-L35+M35 -> 0 | O35: =I35 -> 0 | P35: ='[4]9.1 EDDVAR Cont Sch'!O18 -> 0 | Q35: ='[4]9.1 EDDVAR Cont Sch'!P18 -> 0 | R35: ='[4]9.1 EDDVAR Cont Sch'!Q18 -> 0 | S35: =O35+P35-Q35+SUM(R35:R35) -> 0 | T35: =N35 -> 0 | U35: ='[4]9.1 EDDVAR Cont Sch'!T18 -> 0 | V35: ='[4]9.1 EDDVAR Cont Sch'!U18 -> 0 | W35: ='[4]9.1 EDDVAR Cont Sch'!V18 -> 0 | X35: =T35+U35-V35+W35 -> 0 | Y35: 0 | Z35: ='[4]9.1 EDDVAR Cont Sch'!Y18 -> 0 | AA35: ='[4]9.1 EDDVAR Cont Sch'!Z18 -> 0 | AB35: ='[4]9.1 EDDVAR Cont Sch'!AA18 -> 0 | AC35: =Y35+Z35-AA35+SUM(AB35:AB35) -> 0 | AD35: =X35 -> 0 | AE35: ='[4]9.1 EDDVAR Cont Sch'!AD18 -> 0 | AF35: ='[4]9.1 EDDVAR Cont Sch'!AE18 -> 0 | AG35: ='[4]9.1 EDDVAR Cont Sch'!AF18 -> 0 | AH35: =AD35+AE35-AF35+AG35 -> 0 | AI35: 0 | AJ35: ='[4]9.1 EDDVAR Cont Sch'!AI18 -> 40549.86 | AK35: ='[4]9.1 EDDVAR Cont Sch'!AJ18 -> 360418.52 | AL35: ='[4]9.1 EDDVAR Cont Sch'!AK18 -> 0 | AM35: -319868.66 | AN35: 0 | AO35: ='[4]9.1 EDDVAR Cont Sch'!AQ18 -> -1300.25 | AP35: ='[4]9.1 EDDVAR Cont Sch'!AR18 -> 6259 | AQ35: ='[4]9.1 EDDVAR Cont Sch'!AS18 -> 0 | AR35: =AN35+AO35-AP35+AQ35 -> -7559.25 | AS35: -319868.66 | AT35: ='[4]9.1 EDDVAR Cont Sch'!AV18 -> 232338.81 | AU35: ='[4]9.1 EDDVAR Cont Sch'!AW17 -> 0 | AV35: ='[4]9.1 EDDVAR Cont Sch'!AX17 -> 0 | AW35: -87529.85 | AX35: -7559.25 | AY35: ='[4]9.1 EDDVAR Cont Sch'!BD18 -> -2986.47 | AZ35: ='[4]9.1 EDDVAR Cont Sch'!BE18 -> 0 | BA35: ='[4]9.1 EDDVAR Cont Sch'!BF18 -> 0 | BB35: =AX35+AY35-AZ35+BA35 -> -10545.72 | BC35: -87529.85 | BD35: ='[4]9.1 EDDVAR Cont Sch'!BI18 -> 133099.48 | BE35: ='[4]9.1 EDDVAR Cont Sch'!BJ18 -> 0 | BF35: ='[4]9.1 EDDVAR Cont Sch'!BK18 -> 0 | BG35: 45569.63 | BH35: -10545.72 | BI35: ='[4]9.1 EDDVAR Cont Sch'!BQ18 -> 171.89 | BJ35: ='[4]9.1 EDDVAR Cont Sch'!BR18 -> 0 | BK35: ='[4]9.1 EDDVAR Cont Sch'!BS18 -> 0 | BL35: =BH35+BI35-BJ35+BK35 -> -10373.83 | BM35: ='[4]9.1 EDDVAR Cont Sch'!BU18 -> 0 | BN35: ='[4]9.1 EDDVAR Cont Sch'!BV18 -> 0 | BO35: 45569.63 | BP35: -10373.83 | BQ35: ='[4]9.1 EDDVAR Cont Sch'!BY18 -> 543.4178377 | BR35: ='[4]9.1 EDDVAR Cont Sch'!BZ18 -> 167.0886433 | BS35: 35906.30648 | BT35: ='[4]9.1 EDDVAR Cont Sch'!CB18 -> 35195.8 | BU35: 0
A36: 13 | C36: Disposition and Recovery/Refund of Regulatory Balances (2013) | D36: 1595 | E36: ='[4]9.1 EDDVAR Cont Sch'!D19 -> 0 | F36: ='[4]9.1 EDDVAR Cont Sch'!E19 -> 0 | G36: ='[4]9.1 EDDVAR Cont Sch'!F19 -> 0 | H36: ='[4]9.1 EDDVAR Cont Sch'!G19 -> 0 | I36: =E36+F36-G36+H36 -> 0 | J36: ='[4]9.1 EDDVAR Cont Sch'!I19 -> 0 | K36: ='[4]9.1 EDDVAR Cont Sch'!J19 -> 0 | L36: ='[4]9.1 EDDVAR Cont Sch'!K19 -> 0 | M36: ='[4]9.1 EDDVAR Cont Sch'!L19 -> 0 | N36: =J36+K36-L36+M36 -> 0 | O36: =I36 -> 0 | P36: ='[4]9.1 EDDVAR Cont Sch'!O19 -> 0 | Q36: ='[4]9.1 EDDVAR Cont Sch'!P19 -> 0 | R36: ='[4]9.1 EDDVAR Cont Sch'!Q19 -> 0 | S36: =O36+P36-Q36+SUM(R36:R36) -> 0 | T36: =N36 -> 0 | U36: ='[4]9.1 EDDVAR Cont Sch'!T19 -> 0 | V36: ='[4]9.1 EDDVAR Cont Sch'!U19 -> 0 | W36: ='[4]9.1 EDDVAR Cont Sch'!V19 -> 0 | X36: =T36+U36-V36+W36 -> 0 | Y36: 0 | Z36: ='[4]9.1 EDDVAR Cont Sch'!Y19 -> 0 | AA36: ='[4]9.1 EDDVAR Cont Sch'!Z19 -> 0 | AB36: ='[4]9.1 EDDVAR Cont Sch'!AA19 -> 0 | AC36: =Y36+Z36-AA36+SUM(AB36:AB36) -> 0 | AD36: =X36 -> 0 | AE36: ='[4]9.1 EDDVAR Cont Sch'!AD19 -> 0 | AF36: ='[4]9.1 EDDVAR Cont Sch'!AE19 -> 0 | AG36: ='[4]9.1 EDDVAR Cont Sch'!AF19 -> 0 | AH36: =AD36+AE36-AF36+AG36 -> 0 | AI36: 0 | AJ36: ='[4]9.1 EDDVAR Cont Sch'!AI19 -> 0 | AK36: ='[4]9.1 EDDVAR Cont Sch'!AJ19 -> 0 | AL36: ='[4]9.1 EDDVAR Cont Sch'!AK19 -> 0 | AM36: 0 | AN36: 0 | AO36: ='[4]9.1 EDDVAR Cont Sch'!AQ19 -> 0 | AP36: ='[4]9.1 EDDVAR Cont Sch'!AR19 -> 0 | AQ36: ='[4]9.1 EDDVAR Cont Sch'!AS19 -> 0 | AR36: =AN36+AO36-AP36+AQ36 -> 0 | AS36: 0 | AT36: ='[4]9.1 EDDVAR Cont Sch'!AV19 -> 0 | AU36: ='[4]9.1 EDDVAR Cont Sch'!AW18 -> 0 | AV36: ='[4]9.1 EDDVAR Cont Sch'!AX18 -> 0 | AW36: 0 | AX36: 0 | AY36: ='[4]9.1 EDDVAR Cont Sch'!BD19 -> 0 | AZ36: ='[4]9.1 EDDVAR Cont Sch'!BE19 -> 0 | BA36: ='[4]9.1 EDDVAR Cont Sch'!BF19 -> 0 | BB36: =AX36+AY36-AZ36+BA36 -> 0 | BC36: 0 | BG36: 0 | BH36: 0 | BL36: =BH36+BI36-BJ36+BK36 -> 0 | BO36: 0 | BP36: 0 | BS36: =SUM(BO36:BR36) -> 0 | BT36: 0 | BU36: 0
A37: 14 | C37: Disposition and Recovery/Refund of Regulatory Balances (2014) | D37: 1595 | E37: ='[4]9.1 EDDVAR Cont Sch'!D20 -> 0 | F37: ='[4]9.1 EDDVAR Cont Sch'!E20 -> 0 | G37: ='[4]9.1 EDDVAR Cont Sch'!F20 -> 0 | H37: ='[4]9.1 EDDVAR Cont Sch'!G20 -> 0 | I37: =E37+F37-G37+H37 -> 0 | J37: ='[4]9.1 EDDVAR Cont Sch'!I20 -> 0 | K37: ='[4]9.1 EDDVAR Cont Sch'!J20 -> 0 | L37: ='[4]9.1 EDDVAR Cont Sch'!K20 -> 0 | M37: ='[4]9.1 EDDVAR Cont Sch'!L20 -> 0 | N37: =J37+K37-L37+M37 -> 0 | O37: =I37 -> 0 | P37: ='[4]9.1 EDDVAR Cont Sch'!O20 -> 0 | Q37: ='[4]9.1 EDDVAR Cont Sch'!P20 -> 0 | R37: ='[4]9.1 EDDVAR Cont Sch'!Q20 -> 0 | S37: =O37+P37-Q37+SUM(R37:R37) -> 0 | T37: =N37 -> 0 | U37: ='[4]9.1 EDDVAR Cont Sch'!T20 -> 0 | V37: ='[4]9.1 EDDVAR Cont Sch'!U20 -> 0 | W37: ='[4]9.1 EDDVAR Cont Sch'!V20 -> 0 | X37: =T37+U37-V37+W37 -> 0 | Y37: 0 | Z37: ='[4]9.1 EDDVAR Cont Sch'!Y20 -> 0 | AA37: ='[4]9.1 EDDVAR Cont Sch'!Z20 -> 0 | AB37: ='[4]9.1 EDDVAR Cont Sch'!AA20 -> 0 | AC37: =Y37+Z37-AA37+SUM(AB37:AB37) -> 0 | AD37: =X37 -> 0 | AE37: ='[4]9.1 EDDVAR Cont Sch'!AD20 -> 0 | AF37: ='[4]9.1 EDDVAR Cont Sch'!AE20 -> 0 | AG37: ='[4]9.1 EDDVAR Cont Sch'!AF20 -> 0 | AH37: =AD37+AE37-AF37+AG37 -> 0 | AI37: 0 | AJ37: ='[4]9.1 EDDVAR Cont Sch'!AI20 -> 0 | AK37: ='[4]9.1 EDDVAR Cont Sch'!AJ20 -> 0 | AL37: ='[4]9.1 EDDVAR Cont Sch'!AK20 -> 0 | AM37: 0 | AN37: 0 | AO37: ='[4]9.1 EDDVAR Cont Sch'!AQ20 -> 0 | AP37: ='[4]9.1 EDDVAR Cont Sch'!AR20 -> 0 | AQ37: ='[4]9.1 EDDVAR Cont Sch'!AS20 -> 0 | AR37: =AN37+AO37-AP37+AQ37 -> 0 | AS37: 0 | AT37: ='[4]9.1 EDDVAR Cont Sch'!AV20 -> 0 | AU37: ='[4]9.1 EDDVAR Cont Sch'!AW19 -> 0 | AV37: ='[4]9.1 EDDVAR Cont Sch'!AX19 -> 0 | AW37: 0 | AX37: 0 | AY37: ='[4]9.1 EDDVAR Cont Sch'!BD20 -> 0 | AZ37: ='[4]9.1 EDDVAR Cont Sch'!BE20 -> 0 | BA37: ='[4]9.1 EDDVAR Cont Sch'!BF20 -> 0 | BB37: =AX37+AY37-AZ37+BA37 -> 0 | BC37: 0 | BG37: 0 | BH37: 0 | BL37: =BH37+BI37-BJ37+BK37 -> 0 | BO37: 0 | BP37: 0 | BS37: =SUM(BO37:BR37) -> 0 | BT37: ='[4]9.1 EDDVAR Cont Sch'!CB19 -> -58040.1 | BU37: -58040.1
C39: Group 1 Sub-Total (including Account 1589 - Global Adjustment) | E39: =SUM(E24:E37) -> -457389.22 | F39: 38025.04 | G39: 0 | H39: 0 | I39: -419364.18 | J39: -181710.41 | K39: -11712.1 | L39: 0 | M39: 0 | N39: -193422.51 | O39: -419364.18 | P39: -411943.75 | Q39: 71558.95 | R39: 0.23 | S39: -902866.65 | T39: -193422.51 | U39: -6985.99 | V39: -24954.98 | W39: -4761 | X39: -180214.52 | Y39: -902866.65 | Z39: 88984.7 | AA39: 0 | AB39: -60069 | AC39: -873950.95 | AD39: -180214.52 | AE39: -12462.83 | AF39: 0 | AG39: 0 | AH39: -192677.35 | AI39: -873950.95 | AJ39: 69519.77 | AK39: =SUM(AK24:AK37) -> -179591.45 | AL39: 0 | AM39: -624839.73 | AN39: -192677.35 | AO39: -12746.49 | AP39: -10841.95 | AQ39: 0 | AR39: -194581.89 | AS39: -624839.73 | AT39: 275220.53 | AU39: 0 | AV39: 0 | AW39: -349619.2 | AX39: -194581.89 | AY39: 108671.09 | AZ39: 0 | BA39: 180.91 | BB39: -85729.89 | BC39: -349619.2 | BD39: 303584.7 | BE39: -241406 | BF39: 0 | BG39: 195371.5 | BH39: -85729.89 | BI39: 50499.76 | BJ39: -12561 | BK39: 24 | BL39: -22645.13 | BM39: 0 | BN39: 0 | BO39: 195371.5 | BP39: -22645.13 | BQ39: 2329.805137 | BR39: 716.3621667 | BS39: 175772.5373 | BT39: 114684.03 | BU39: -58042.34
C40: Group 1 Sub-Total (excluding Account 1589 - Global Adjustment) | E40: =E39-E41 -> -1686161.22 | F40: 668903.78 | G40: 0 | H40: 0 | I40: -1017257.44 | J40: -181710.41 | K40: -9701.62 | L40: 0 | M40: 0 | N40: -191412.03 | O40: -1017257.44 | P40: 549211.52 | Q40: -1157213.25 | R40: -2043662 | S40: -1354494.67 | T40: -191412.03 | U40: -1802.31 | V40: -41070.41 | W40: -52068.33 | X40: -204212.26 | Y40: -1354494.67 | Z40: 149809.02 | AA40: 0 | AB40: -60069 | AC40: -1264754.65 | AD40: -204212.26 | AE40: -18272.83 | AF40: 0 | AG40: 0 | AH40: -222485.09 | AI40: =AI39-AI41 -> -1264754.65 | AJ40: 306920 | AK40: -631219.45 | AL40: 0 | AM40: -326615.2 | AN40: -222485.09 | AO40: -15574.94 | AP40: -43691.95 | AQ40: 0 | AR40: -194368.08 | AS40: =AS39-AS41 -> -326615.2 | AT40: 189764.19 | AU40: 0 | AV40: 0 | AW40: -136851.01 | AX40: -194368.08 | AY40: 111701.84 | AZ40: 0 | BA40: 180.91 | BB40: -82485.33 | BC40: =BC39-BC41 -> -136851.01 | BD40: 208257.83 | BE40: 23457 | BF40: 0 | BG40: 47949.82 | BH40: -82485.33 | BI40: 52793.47 | BJ40: -3415 | BK40: 24 | BL40: -26252.86 | BM40: =BM39-BM41 -> 0 | BN40: 0 | BO40: 47949.82 | BP40: -26252.86 | BQ40: 571.8016035 | BR40: 175.8160067 | BS40: 22444.57761 | BT40: =BT39-BT41 -> -36345.56 | BU40: -58042.52
C41: =C30 -> RSVA - Global Adjustment | D41: 1589 | E41: =E30 -> 1228772 | F41: -630878.74 | G41: 0 | H41: 0 | I41: 597893.26 | J41: 0 | K41: -2010.48 | L41: 0 | M41: 0 | N41: -2010.48 | O41: 597893.26 | P41: -961155.27 | Q41: 1228772.2 | R41: 2043662.23 | S41: 451628.02 | T41: -2010.48 | U41: -5183.68 | V41: 16115.43 | W41: 47307.33 | X41: 23997.74 | Y41: 451628.02 | Z41: -60824.32 | AA41: 0 | AB41: 0 | AC41: 390803.7 | AD41: 23997.74 | AE41: 5810 | AF41: 0 | AG41: 0 | AH41: 29807.74 | AI41: 390803.7 | AJ41: -237400.23 | AK41: =AK30 -> 451628 | AL41: 0 | AM41: -298224.53 | AN41: 29807.74 | AO41: 2828.45 | AP41: 32850 | AQ41: 0 | AR41: -213.81 | AS41: -298224.53 | AT41: 85456.34 | AU41: 0 | AV41: 0 | AW41: -212768.19 | AX41: -213.81 | AY41: -3030.75 | AZ41: 0 | BA41: 0 | BB41: -3244.56 | BC41: =BC30 -> -212768.19 | BD41: 95326.87 | BE41: -264863 | BF41: 0 | BG41: 147421.68 | BH41: -3244.56 | BI41: -2293.71 | BJ41: -9146 | BK41: 0 | BL41: 3607.73 | BM41: 0 | BN41: 0 | BO41: 147421.68 | BP41: 3607.73 | BQ41: 1758.003534 | BR41: 540.54616 | BS41: 153327.9597 | BT41: =BT30 -> 151029.59 | BU41: 0.18
C43: Group 2 Accounts
A44: 15 | C44: Other Regulatory Assets - Sub-Account - Deferred IFRS Transition Costs | D44: 1508 | E44: ='[4]9.1 EDDVAR Cont Sch'!D26 -> 0 | F44: ='[4]9.1 EDDVAR Cont Sch'!E26 -> 8431.95 | G44: ='[4]9.1 EDDVAR Cont Sch'!F26 -> 0 | H44: ='[4]9.1 EDDVAR Cont Sch'!G26 -> 0 | I44: =E44+F44-G44+H44 -> 8431.95 | J44: ='[4]9.1 EDDVAR Cont Sch'!I26 -> 0 | K44: ='[4]9.1 EDDVAR Cont Sch'!J26 -> 0 | L44: ='[4]9.1 EDDVAR Cont Sch'!K26 -> 0 | M44: ='[4]9.1 EDDVAR Cont Sch'!L26 -> 0 | N44: =J44+K44-L44+M44 -> 0 | O44: =I44 -> 8431.95 | P44: ='[4]9.1 EDDVAR Cont Sch'!O26 -> 1128.41 | Q44: ='[4]9.1 EDDVAR Cont Sch'!P26 -> 0 | R44: ='[4]9.1 EDDVAR Cont Sch'!Q26 -> 0 | S44: =O44+P44-Q44+SUM(R44:R44) -> 9560.36 | T44: =N44 -> 0 | U44: ='[4]9.1 EDDVAR Cont Sch'!T26 -> 75 | V44: ='[4]9.1 EDDVAR Cont Sch'!U26 -> 0 | W44: ='[4]9.1 EDDVAR Cont Sch'!V26 -> 0 | X44: =T44+U44-V44+W44 -> 75 | Y44: =S44 -> 9560.36 | Z44: ='[4]9.1 EDDVAR Cont Sch'!Y26 -> 40724.76 | AA44: ='[4]9.1 EDDVAR Cont Sch'!Z26 -> 0 | AB44: ='[4]9.1 EDDVAR Cont Sch'!AA26 -> 0 | AC44: =Y44+Z44-AA44+SUM(AB44:AB44) -> 50285.12 | AD44: =X44 -> 75 | AE44: ='[4]9.1 EDDVAR Cont Sch'!AD26 -> 445.91 | AF44: ='[4]9.1 EDDVAR Cont Sch'!AE26 -> 0 | AG44: ='[4]9.1 EDDVAR Cont Sch'!AF26 -> 0 | AH44: =AD44+AE44-AF44+AG44 -> 520.91 | AI44: =AC44 -> 50285.12 | AJ44: ='[4]9.1 EDDVAR Cont Sch'!AI26 -> 5188.06 | AK44: ='[4]9.1 EDDVAR Cont Sch'!AJ26 -> 9560.41 | AL44: ='[4]9.1 EDDVAR Cont Sch'!AK26 -> 0 | AM44: =AI44+AJ44-AK44+SUM(AL44:AL44) -> 45912.77 | AN44: =AH44 -> 520.91 | AO44: ='[4]9.1 EDDVAR Cont Sch'!AQ26 -> 806.12 | AP44: ='[4]9.1 EDDVAR Cont Sch'!AR26 -> 294 | AQ44: ='[4]9.1 EDDVAR Cont Sch'!AS26 -> 0 | AR44: =AN44+AO44-AP44+AQ44 -> 1033.03 | AS44: =AM44 -> 45912.77 | AT44: ='[4]9.1 EDDVAR Cont Sch'!AV26 -> 0 | AU44: ='[4]9.1 EDDVAR Cont Sch'!AW26 -> 0 | AV44: ='[4]9.1 EDDVAR Cont Sch'!AX26 -> 0 | AW44: =AS44+AT44-AU44+SUM(AV44:AV44) -> 45912.77 | AX44: =AR44 -> 1033.03 | AY44: ='[4]9.1 EDDVAR Cont Sch'!BD26 -> 674.88 | AZ44: ='[4]9.1 EDDVAR Cont Sch'!BE26 -> 0 | BA44: ='[4]9.1 EDDVAR Cont Sch'!BF26 -> 0 | BB44: =AX44+AY44-AZ44+BA44 -> 1707.91 | BC44: =AW44 -> 45912.77 | BD44: ='[4]9.1 EDDVAR Cont Sch'!BI26 -> 0 | BE44: ='[4]9.1 EDDVAR Cont Sch'!BJ26 -> 0 | BF44: ='[4]9.1 EDDVAR Cont Sch'!BK26 -> 0 | BG44: =BC44+BD44-BE44+SUM(BF44:BF44) -> 45912.77 | BH44: =BB44 -> 1707.91 | BI44: ='[4]9.1 EDDVAR Cont Sch'!BQ26 -> 674.88 | BJ44: ='[4]9.1 EDDVAR Cont Sch'!BR26 -> 0 | BK44: ='[4]9.1 EDDVAR Cont Sch'!BS26 -> 0 | BL44: =BH44+BI44-BJ44+BK44 -> 2382.79 | BM44: ='[4]9.1 EDDVAR Cont Sch'!BU26 -> 0 | BN44: ='[4]9.1 EDDVAR Cont Sch'!BV26 -> 0 | BO44: =BG44-BM44 -> 45912.77 | BP44: =BL44-BN44 -> 2382.79 | BQ44: ='[4]9.1 EDDVAR Cont Sch'!BY26 -> 547.5097822 | BR44: ='[4]9.1 EDDVAR Cont Sch'!BZ26 -> 168.3468233 | BS44: 49011.41661 | BT44: ='[4]9.1 EDDVAR Cont Sch'!CB27 -> 1408711.06 | BU44: =BT44-SUM(BG44,BL44) -> 1360415.5
A45: 16 | C45: Other Regulatory Assets - Sub-Account - Incremental Capital Charges | D45: 1508 | E45: ='[4]9.1 EDDVAR Cont Sch'!D27 -> 0 | F45: ='[4]9.1 EDDVAR Cont Sch'!E27 -> 0 | G45: ='[4]9.1 EDDVAR Cont Sch'!F27 -> 0 | H45: ='[4]9.1 EDDVAR Cont Sch'!G27 -> 0 | I45: =E45+F45-G45+H45 -> 0 | J45: ='[4]9.1 EDDVAR Cont Sch'!I27 -> 0 | K45: ='[4]9.1 EDDVAR Cont Sch'!J27 -> 0 | L45: ='[4]9.1 EDDVAR Cont Sch'!K27 -> 0 | M45: ='[4]9.1 EDDVAR Cont Sch'!L27 -> 0 | N45: =J45+K45-L45+M45 -> 0 | O45: =I45 -> 0 | P45: ='[4]9.1 EDDVAR Cont Sch'!O27 -> 0 | Q45: ='[4]9.1 EDDVAR Cont Sch'!P27 -> 0 | R45: ='[4]9.1 EDDVAR Cont Sch'!Q27 -> 0 | S45: 0 | T45: 0 | U45: ='[4]9.1 EDDVAR Cont Sch'!T27 -> 0 | V45: ='[4]9.1 EDDVAR Cont Sch'!U27 -> 0 | W45: ='[4]9.1 EDDVAR Cont Sch'!V27 -> 0 | X45: =T45+U45-V45+W45 -> 0 | Y45: 0 | Z45: ='[4]9.1 EDDVAR Cont Sch'!Y27 -> 0 | AA45: ='[4]9.1 EDDVAR Cont Sch'!Z27 -> 0 | AB45: ='[4]9.1 EDDVAR Cont Sch'!AA27 -> 0 | AC45: 0 | AD45: 0 | AE45: ='[4]9.1 EDDVAR Cont Sch'!AD27 -> 0 | AF45: ='[4]9.1 EDDVAR Cont Sch'!AE27 -> 0 | AG45: ='[4]9.1 EDDVAR Cont Sch'!AF27 -> 0 | AH45: 0 | AI45: 0 | AJ45: ='[4]9.1 EDDVAR Cont Sch'!AI27 -> 0 | AK45: ='[4]9.1 EDDVAR Cont Sch'!AJ27 -> 0 | AL45: ='[4]9.1 EDDVAR Cont Sch'!AK27 -> 0 | AM45: 0 | AN45: 0 | AO45: ='[4]9.1 EDDVAR Cont Sch'!AQ27 -> 0 | AP45: ='[4]9.1 EDDVAR Cont Sch'!AR27 -> 0 | AQ45: ='[4]9.1 EDDVAR Cont Sch'!AS27 -> 0 | AR45: 0 | AS45: 0 | AT45: ='[4]9.1 EDDVAR Cont Sch'!AV27 -> 0 | AU45: ='[4]9.1 EDDVAR Cont Sch'!AW27 -> 0 | AV45: ='[4]9.1 EDDVAR Cont Sch'!AX27 -> 0 | AW45: 0 | AX45: 0 | AY45: ='[4]9.1 EDDVAR Cont Sch'!BD27 -> 0 | AZ45: ='[4]9.1 EDDVAR Cont Sch'!BE27 -> 0 | BA45: ='[4]9.1 EDDVAR Cont Sch'!BF27 -> 0 | BB45: 0 | BC45: 0 | BD45: ='[4]9.1 EDDVAR Cont Sch'!BI27 -> 0 | BE45: ='[4]9.1 EDDVAR Cont Sch'!BJ27 -> 0 | BF45: ='[4]9.1 EDDVAR Cont Sch'!BK27 -> 0 | BG45: 0 | BH45: 0 | BI45: ='[4]9.1 EDDVAR Cont Sch'!BQ27 -> 0 | BJ45: ='[4]9.1 EDDVAR Cont Sch'!BR27 -> 0 | BK45: ='[4]9.1 EDDVAR Cont Sch'!BS27 -> 0 | BL45: 0 | BM45: ='[4]9.1 EDDVAR Cont Sch'!BU27 -> 0 | BN45: ='[4]9.1 EDDVAR Cont Sch'!BV27 -> 0 | BO45: =BG45-BM45 -> 0 | BP45: =BL45-BN45 -> 0 | BS45: 0 | BU45: 0
A46: 17 | C46: Other Regulatory Assets - Sub-Account - Financial Assistance Payment and Recovery Variance - Ontario Clean Energy Benefit Act8 | D46: 1508 | Y46: 0 | AC46: 0 | AD46: 0 | AH46: 0 | AI46: 0 | AM46: 0 | AN46: 0 | AR46: 0 | AS46: 0 | AW46: 0 | AX46: 0 | BB46: 0 | BC46: 0 | BG46: 0 | BH46: 0 | BL46: 0 | BO46: 0 | BP46: 0 | BS46: 0 | BU46: 0
A47: 18 | C47: Other Regulatory Assets - Sub-Account - Financial Assistance Payment and Recovery Carrying Charges | D47: 1508 | Y47: 0 | AC47: 0 | AD47: 0 | AH47: 0 | AI47: 0 | AM47: 0 | AN47: 0 | AR47: 0 | AS47: 0 | AW47: 0 | AX47: 0 | BB47: 0 | BC47: 0 | BE47: ='[4]9.1 EDDVAR Cont Sch'!BJ29 -> 0 | BF47: 7828 | BG47: 7828 | BH47: 0 | BL47: 0 | BO47: 7828 | BP47: 0 | BS47: 7828 | BT47: ='[4]9.1 EDDVAR Cont Sch'!CB29 -> 0 | BU47: -7828
A48: 19 | C48: Other Regulatory Assets - Sub-Account - Other 4 | D48: 1508 | E48: ='[4]9.1 EDDVAR Cont Sch'!D30 -> 0 | F48: ='[4]9.1 EDDVAR Cont Sch'!E30 -> 2175.29 | G48: ='[4]9.1 EDDVAR Cont Sch'!F30 -> 0 | H48: ='[4]9.1 EDDVAR Cont Sch'!G30 -> 0 | I48: 2175.29 | J48: ='[4]9.1 EDDVAR Cont Sch'!I30 -> -611 | K48: ='[4]9.1 EDDVAR Cont Sch'!J30 -> 615.51 | L48: ='[4]9.1 EDDVAR Cont Sch'!K30 -> 0 | M48: ='[4]9.1 EDDVAR Cont Sch'!L30 -> 0 | N48: 4.51 | O48: 2175.29 | P48: ='[4]9.1 EDDVAR Cont Sch'!O30 -> 2003.76 | Q48: ='[4]9.1 EDDVAR Cont Sch'!P30 -> 0 | R48: ='[4]9.1 EDDVAR Cont Sch'!Q30 -> 0 | S48: 4179.05 | T48: 4.51 | U48: ='[4]9.1 EDDVAR Cont Sch'!T30 -> 29 | V48: ='[4]9.1 EDDVAR Cont Sch'!U30 -> 0 | W48: ='[4]9.1 EDDVAR Cont Sch'!V30 -> 0 | X48: 33.51 | Y48: 4179.05 | Z48: ='[4]9.1 EDDVAR Cont Sch'!Y30 -> 3286.57 | AA48: ='[4]9.1 EDDVAR Cont Sch'!Z30 -> 0 | AB48: ='[4]9.1 EDDVAR Cont Sch'!AA30 -> 0 | AC48: 7465.62 | AD48: 33.51 | AE48: ='[4]9.1 EDDVAR Cont Sch'!AD30 -> 50.7 | AF48: ='[4]9.1 EDDVAR Cont Sch'!AE30 -> 0 | AG48: ='[4]9.1 EDDVAR Cont Sch'!AF30 -> 0 | AH48: 84.21 | AI48: 7465.62 | AJ48: ='[4]9.1 EDDVAR Cont Sch'!AI30 -> -3286.62 | AK48: ='[4]9.1 EDDVAR Cont Sch'!AJ30 -> 4179 | AL48: ='[4]9.1 EDDVAR Cont Sch'!AK30 -> 0 | AM48: 0 | AN48: 84.21 | AO48: ='[4]9.1 EDDVAR Cont Sch'!AQ30 -> 0 | AP48: ='[4]9.1 EDDVAR Cont Sch'!AR30 -> 84 | AQ48: ='[4]9.1 EDDVAR Cont Sch'!AS30 -> 0 | AR48: 0.21 | AS48: 0 | AT48: ='[4]9.1 EDDVAR Cont Sch'!AV30 -> 0 | AU48: ='[4]9.1 EDDVAR Cont Sch'!AW30 -> 0 | AV48: ='[4]9.1 EDDVAR Cont Sch'!AX30 -> 0 | AW48: 0 | AX48: 0.21 | AY48: ='[4]9.1 EDDVAR Cont Sch'!BD30 -> 0 | AZ48: ='[4]9.1 EDDVAR Cont Sch'!BE30 -> 0 | BA48: ='[4]9.1 EDDVAR Cont Sch'!BF30 -> 0 | BB48: 0.21 | BC48: 0 | BD48: ='[4]9.1 EDDVAR Cont Sch'!BI30 -> 0 | BE48: ='[4]9.1 EDDVAR Cont Sch'!BJ30 -> 0 | BF48: ='[4]9.1 EDDVAR Cont Sch'!BK30 -> 0 | BG48: 0 | BH48: 0.21 | BI48: ='[4]9.1 EDDVAR Cont Sch'!BQ30 -> 0 | BJ48: ='[4]9.1 EDDVAR Cont Sch'!BR30 -> 0 | BK48: ='[4]9.1 EDDVAR Cont Sch'!BS30 -> 0 | BL48: 0.21 | BM48: ='[4]9.1 EDDVAR Cont Sch'!BU30 -> 0 | BN48: ='[4]9.1 EDDVAR Cont Sch'!BV30 -> 0 | BO48: 0 | BP48: 0.21 | BQ48: ='[4]9.1 EDDVAR Cont Sch'!BY30 -> 0 | BR48: ='[4]9.1 EDDVAR Cont Sch'!BZ30 -> 0 | BS48: 0.21 | BT48: ='[4]9.1 EDDVAR Cont Sch'!CB30 -> 0 | BU48: -0.21
A49: 20 | C49: Retail Cost Variance Account - Retail | D49: 1518 | E49: ='[4]9.1 EDDVAR Cont Sch'!D31 -> 99880.4 | F49: ='[4]9.1 EDDVAR Cont Sch'!E31 -> 32646.24 | G49: ='[4]9.1 EDDVAR Cont Sch'!F31 -> 0 | H49: ='[4]9.1 EDDVAR Cont Sch'!G31 -> 0 | I49: 132526.64 | J49: ='[4]9.1 EDDVAR Cont Sch'!I31 -> 2381 | K49: ='[4]9.1 EDDVAR Cont Sch'!J31 -> 335.25 | L49: ='[4]9.1 EDDVAR Cont Sch'!K31 -> 0 | M49: ='[4]9.1 EDDVAR Cont Sch'!L31 -> 0 | N49: 2716.25 | O49: 132526.64 | P49: ='[4]9.1 EDDVAR Cont Sch'!O31 -> 28254.02 | Q49: ='[4]9.1 EDDVAR Cont Sch'!P31 -> 0 | R49: ='[4]9.1 EDDVAR Cont Sch'!Q31 -> 0 | S49: 160780.66 | T49: 2716.25 | U49: ='[4]9.1 EDDVAR Cont Sch'!T31 -> 1028.06 | V49: ='[4]9.1 EDDVAR Cont Sch'!U31 -> 0 | W49: ='[4]9.1 EDDVAR Cont Sch'!V31 -> 0 | X49: 3744.31 | Y49: 160780.66 | Z49: ='[4]9.1 EDDVAR Cont Sch'!Y31 -> -42560.11 | AA49: ='[4]9.1 EDDVAR Cont Sch'!Z31 -> 0 | AB49: ='[4]9.1 EDDVAR Cont Sch'!AA31 -> 0 | AC49: 118220.55 | AD49: 3744.31 | AE49: ='[4]9.1 EDDVAR Cont Sch'!AD31 -> -124.47 | AF49: ='[4]9.1 EDDVAR Cont Sch'!AE31 -> 0 | AG49: ='[4]9.1 EDDVAR Cont Sch'!AF31 -> 0 | AH49: 3619.84 | AI49: 118220.55 | AJ49: ='[4]9.1 EDDVAR Cont Sch'!AI31 -> 12617.03 | AK49: ='[4]9.1 EDDVAR Cont Sch'!AJ31 -> 160780.66 | AL49: =SUM('[4]9.1 EDDVAR Cont Sch'!AK31:AN31) -> -18.17 | AM49: -29961.25 | AN49: 3619.84 | AO49: ='[4]9.1 EDDVAR Cont Sch'!AQ31 -> 1225.98 | AP49: ='[4]9.1 EDDVAR Cont Sch'!AR31 -> 6895.39 | AQ49: ='[4]9.1 EDDVAR Cont Sch'!AS31 -> 0 | AR49: -2049.57 | AS49: -29961.25 | AT49: ='[4]9.1 EDDVAR Cont Sch'!AV31 -> 15520.44 | AU49: ='[4]9.1 EDDVAR Cont Sch'!AW31 -> 0 | AV49: ='[4]9.1 EDDVAR Cont Sch'!AX31 -> 0 | AW49: -14440.81 | AX49: -2049.57 | AY49: ='[4]9.1 EDDVAR Cont Sch'!BD31 -> -333.83 | AZ49: ='[4]9.1 EDDVAR Cont Sch'!BE31 -> 0 | BA49: ='[4]9.1 EDDVAR Cont Sch'!BF31 -> 0 | BB49: -2383.4 | BC49: -14440.81 | BD49: ='[4]9.1 EDDVAR Cont Sch'!BI31 -> 20020.42 | BE49: ='[4]9.1 EDDVAR Cont Sch'!BJ31 -> 0 | BF49: ='[4]9.1 EDDVAR Cont Sch'!BK31 -> 0 | BG49: 5579.61 | BH49: -2383.4 | BI49: ='[4]9.1 EDDVAR Cont Sch'!BQ31 -> -55.95 | BJ49: ='[4]9.1 EDDVAR Cont Sch'!BR31 -> 0 | BK49: ='[4]9.1 EDDVAR Cont Sch'!BS31 -> 0 | BL49: -2439.35 | BM49: ='[4]9.1 EDDVAR Cont Sch'!BU31 -> 0 | BN49: ='[4]9.1 EDDVAR Cont Sch'!BV31 -> 0 | BO49: 5579.61 | BP49: -2439.35 | BQ49: ='[4]9.1 EDDVAR Cont Sch'!BY31 -> 66.53684925 | BR49: ='[4]9.1 EDDVAR Cont Sch'!BZ31 -> 20.45857 | BS49: 3227.255419 | BT49: ='[4]9.1 EDDVAR Cont Sch'!CB31 -> 3140.84 | BU49: 0.58
A50: 21 | C50: Misc. Deferred Debits | D50: 1525 | E50: =SUM('[4]9.1 EDDVAR Cont Sch'!D33:D33) -> 275.26 | F50: =SUM('[4]9.1 EDDVAR Cont Sch'!E33:E33) -> 0 | G50: =SUM('[4]9.1 EDDVAR Cont Sch'!F33:F33) -> 0 | H50: =SUM('[4]9.1 EDDVAR Cont Sch'!G33:G33) -> 0 | I50: 275.26 | J50: =SUM('[4]9.1 EDDVAR Cont Sch'!I33:I33) -> -275 | K50: ='[4]9.1 EDDVAR Cont Sch'!J32 -> 0 | L50: ='[4]9.1 EDDVAR Cont Sch'!K32 -> 0 | M50: ='[4]9.1 EDDVAR Cont Sch'!L32 -> 0 | N50: -275 | O50: 275.26 | P50: =SUM('[4]9.1 EDDVAR Cont Sch'!O33:O33) -> 0 | Q50: =SUM('[4]9.1 EDDVAR Cont Sch'!P33:P33) -> 0 | R50: =SUM('[4]9.1 EDDVAR Cont Sch'!Q33:Q33) -> 0 | S50: 275.26 | T50: -275 | U50: =SUM('[4]9.1 EDDVAR Cont Sch'!T33:T33) -> 0 | V50: =SUM('[4]9.1 EDDVAR Cont Sch'!U33:U33) -> 0 | W50: =SUM('[4]9.1 EDDVAR Cont Sch'!V33:V33) -> 0 | X50: -275 | Y50: 275.26 | Z50: =SUM('[4]9.1 EDDVAR Cont Sch'!Y33:Y33) -> 0 | AA50: =SUM('[4]9.1 EDDVAR Cont Sch'!Z33:Z33) -> 0 | AB50: =SUM('[4]9.1 EDDVAR Cont Sch'!AA33:AA33) -> 0 | AC50: 275.26 | AD50: -275 | AE50: =SUM('[4]9.1 EDDVAR Cont Sch'!AD33:AD33) -> 0 | AF50: =SUM('[4]9.1 EDDVAR Cont Sch'!AE33:AE33) -> 0 | AG50: =SUM('[4]9.1 EDDVAR Cont Sch'!AF33:AF33) -> 0 | AH50: -275 | AI50: 275.26 | AJ50: =SUM('[4]9.1 EDDVAR Cont Sch'!AI33:AI33) -> 0 | AK50: =SUM('[4]9.1 EDDVAR Cont Sch'!AJ33:AJ33) -> 275.26 | AL50: =SUM('[4]9.1 EDDVAR Cont Sch'!AK33:AK33) -> 0 | AM50: -2.273736754e-13 | AN50: -275 | AO50: =SUM('[4]9.1 EDDVAR Cont Sch'!AQ33:AQ33) -> 0 | AP50: =SUM('[4]9.1 EDDVAR Cont Sch'!AR33:AR33) -> -269.86 | AQ50: =SUM('[4]9.1 EDDVAR Cont Sch'!AS33:AS33) -> 0 | AR50: -5.14 | AS50: -2.273736754e-13 | AT50: =SUM('[4]9.1 EDDVAR Cont Sch'!AV33:AV33) -> 0 | AU50: =SUM('[4]9.1 EDDVAR Cont Sch'!AW33:AW33) -> 0 | AV50: =SUM('[4]9.1 EDDVAR Cont Sch'!AX33:AX33) -> 0 | AW50: -2.273736754e-13 | AX50: -5.14 | AY50: =SUM('[4]9.1 EDDVAR Cont Sch'!BD33:BD33) -> 0 | AZ50: =SUM('[4]9.1 EDDVAR Cont Sch'!BE33:BE33) -> 0 | BA50: =SUM('[4]9.1 EDDVAR Cont Sch'!BF33:BF33) -> 0 | BB50: -5.14 | BC50: -2.273736754e-13 | BD50: =SUM('[4]9.1 EDDVAR Cont Sch'!BI33:BI33) -> 0 | BE50: =SUM('[4]9.1 EDDVAR Cont Sch'!BJ33:BJ33) -> 0 | BF50: =SUM('[4]9.1 EDDVAR Cont Sch'!BK33:BK33) -> 0 | BG50: -2.273736754e-13 | BH50: -5.14 | BI50: =SUM('[4]9.1 EDDVAR Cont Sch'!BQ33:BQ33) -> 0 | BJ50: =SUM('[4]9.1 EDDVAR Cont Sch'!BR33:BR33) -> 0 | BK50: =SUM('[4]9.1 EDDVAR Cont Sch'!BS33:BS33) -> 0 | BL50: -5.14 | BM50: =SUM('[4]9.1 EDDVAR Cont Sch'!BU33:BU33) -> 0 | BN50: =SUM('[4]9.1 EDDVAR Cont Sch'!BV33:BV33) -> 0 | BO50: -2.273736754e-13 | BP50: -5.14 | BQ50: =SUM('[4]9.1 EDDVAR Cont Sch'!BY33:BY33) -> -2.71143108e-15 | BR50: =SUM('[4]9.1 EDDVAR Cont Sch'!BZ33:BZ33) -> -8.337034766e-16 | BS50: -5.14 | BT50: ='[4]9.1 EDDVAR Cont Sch'!CB33 -> -5 | BU50: 0.14
A51: 22 | C51: Board-Approved CDM Variance Account | D51: 1567 | N51: 0 | S51: 0 | T51: 0 | X51: =T51+U51-V51+W51 -> 0 | Y51: 0 | AC51: 0 | AD51: 0 | AH51: 0 | AI51: 0 | AM51: 0 | AN51: 0 | AR51: =AN51+AO51-AP51+AQ51 -> 0 | AS51: 0 | AW51: 0 | AX51: 0 | BB51: =AX51+AY51-AZ51+BA51 -> 0 | BC51: 0 | BG51: 0 | BH51: 0 | BL51: =BH51+BI51-BJ51+BK51 -> 0 | BO51: 0 | BP51: 0 | BS51: 0 | BU51: 0
A52: 23 | C52: Extra-Ordinary Event Costs | D52: 1572 | E52: ='[4]9.1 EDDVAR Cont Sch'!D42 -> 0 | F52: ='[4]9.1 EDDVAR Cont Sch'!E42 -> 0 | G52: ='[4]9.1 EDDVAR Cont Sch'!F42 -> 0 | H52: ='[4]9.1 EDDVAR Cont Sch'!G42 -> 0 | I52: 0 | J52: ='[4]9.1 EDDVAR Cont Sch'!I42 -> 0 | K52: ='[4]9.1 EDDVAR Cont Sch'!J42 -> 0 | L52: ='[4]9.1 EDDVAR Cont Sch'!K42 -> 0 | M52: ='[4]9.1 EDDVAR Cont Sch'!L42 -> 0 | N52: 0 | O52: =I52 -> 0 | P52: ='[4]9.1 EDDVAR Cont Sch'!O42 -> 0 | Q52: ='[4]9.1 EDDVAR Cont Sch'!P42 -> 0 | R52: ='[4]9.1 EDDVAR Cont Sch'!Q42 -> 0 | S52: 0 | T52: 0 | U52: ='[4]9.1 EDDVAR Cont Sch'!T42 -> 0 | V52: ='[4]9.1 EDDVAR Cont Sch'!U42 -> 0 | W52: ='[4]9.1 EDDVAR Cont Sch'!V42 -> 0 | X52: 0 | Y52: 0 | Z52: ='[4]9.1 EDDVAR Cont Sch'!Y42 -> 0 | AA52: ='[4]9.1 EDDVAR Cont Sch'!Z42 -> 0 | AB52: ='[4]9.1 EDDVAR Cont Sch'!AA42 -> 0 | AC52: 0 | AD52: 0 | AE52: ='[4]9.1 EDDVAR Cont Sch'!AD42 -> 0 | AF52: ='[4]9.1 EDDVAR Cont Sch'!AE42 -> 0 | AG52: ='[4]9.1 EDDVAR Cont Sch'!AF42 -> 0 | AH52: 0 | AI52: =AC52 -> 0 | AJ52: ='[4]9.1 EDDVAR Cont Sch'!AI42 -> 0 | AK52: ='[4]9.1 EDDVAR Cont Sch'!AJ42 -> 0 | AL52: ='[4]9.1 EDDVAR Cont Sch'!AK42 -> 0 | AM52: 0 | AN52: 0 | AO52: ='[4]9.1 EDDVAR Cont Sch'!AQ42 -> 0 | AP52: ='[4]9.1 EDDVAR Cont Sch'!AR42 -> 0 | AQ52: ='[4]9.1 EDDVAR Cont Sch'!AS42 -> 0 | AR52: =AN52+AO52-AP52+AQ52 -> 0 | AS52: =AM52 -> 0 | AT52: ='[4]9.1 EDDVAR Cont Sch'!AV42 -> 0 | AU52: ='[4]9.1 EDDVAR Cont Sch'!AW42 -> 0 | AV52: ='[4]9.1 EDDVAR Cont Sch'!AX42 -> 0 | AW52: 0 | AX52: 0 | AY52: ='[4]9.1 EDDVAR Cont Sch'!BD42 -> 0 | AZ52: ='[4]9.1 EDDVAR Cont Sch'!BE42 -> 0 | BA52: ='[4]9.1 EDDVAR Cont Sch'!BF42 -> 0 | BB52: =AX52+AY52-AZ52+BA52 -> 0 | BC52: =AW52 -> 0 | BD52: ='[4]9.1 EDDVAR Cont Sch'!BI42 -> 0 | BE52: ='[4]9.1 EDDVAR Cont Sch'!BJ42 -> 0 | BF52: ='[4]9.1 EDDVAR Cont Sch'!BK42 -> 0 | BG52: 0 | BH52: 0 | BI52: ='[4]9.1 EDDVAR Cont Sch'!BQ42 -> 0 | BJ52: ='[4]9.1 EDDVAR Cont Sch'!BR42 -> 0 | BK52: ='[4]9.1 EDDVAR Cont Sch'!BS42 -> 0 | BL52: =BH52+BI52-BJ52+BK52 -> 0 | BM52: ='[4]9.1 EDDVAR Cont Sch'!BU42 -> 0 | BN52: ='[4]9.1 EDDVAR Cont Sch'!BV42 -> 0 | BO52: 0 | BP52: 0 | BQ52: ='[4]9.1 EDDVAR Cont Sch'!BY42 -> 0 | BR52: ='[4]9.1 EDDVAR Cont Sch'!BZ42 -> 0 | BS52: 0 | BT52: ='[4]9.1 EDDVAR Cont Sch'!CB35 -> 0 | BU52: 0
A53: 24 | C53: Deferred Rate Impact Amounts | D53: 1574 | E53: ='[4]9.1 EDDVAR Cont Sch'!D43 -> 0 | F53: ='[4]9.1 EDDVAR Cont Sch'!E43 -> 0 | G53: ='[4]9.1 EDDVAR Cont Sch'!F43 -> 0 | H53: ='[4]9.1 EDDVAR Cont Sch'!G43 -> 0 | I53: 0 | J53: ='[4]9.1 EDDVAR Cont Sch'!I43 -> 0 | K53: ='[4]9.1 EDDVAR Cont Sch'!J43 -> 0 | L53: ='[4]9.1 EDDVAR Cont Sch'!K43 -> 0 | M53: ='[4]9.1 EDDVAR Cont Sch'!L43 -> 0 | N53: 0 | O53: =I53 -> 0 | P53: ='[4]9.1 EDDVAR Cont Sch'!O43 -> 0 | Q53: ='[4]9.1 EDDVAR Cont Sch'!P43 -> 0 | R53: ='[4]9.1 EDDVAR Cont Sch'!Q43 -> 0 | S53: 0 | T53: 0 | U53: ='[4]9.1 EDDVAR Cont Sch'!T43 -> 0 | V53: ='[4]9.1 EDDVAR Cont Sch'!U43 -> 0 | W53: ='[4]9.1 EDDVAR Cont Sch'!V43 -> 0 | X53: 0 | Y53: 0 | Z53: ='[4]9.1 EDDVAR Cont Sch'!Y43 -> 0 | AA53: ='[4]9.1 EDDVAR Cont Sch'!Z43 -> 0 | AB53: ='[4]9.1 EDDVAR Cont Sch'!AA43 -> 0 | AC53: 0 | AD53: 0 | AE53: ='[4]9.1 EDDVAR Cont Sch'!AD43 -> 0 | AF53: ='[4]9.1 EDDVAR Cont Sch'!AE43 -> 0 | AG53: ='[4]9.1 EDDVAR Cont Sch'!AF43 -> 0 | AH53: 0 | AI53: =AC53 -> 0 | AJ53: ='[4]9.1 EDDVAR Cont Sch'!AI43 -> 0 | AK53: ='[4]9.1 EDDVAR Cont Sch'!AJ43 -> 0 | AL53: ='[4]9.1 EDDVAR Cont Sch'!AK43 -> 0 | AM53: 0 | AN53: 0 | AO53: ='[4]9.1 EDDVAR Cont Sch'!AQ43 -> 0 | AP53: ='[4]9.1 EDDVAR Cont Sch'!AR43 -> 0 | AQ53: ='[4]9.1 EDDVAR Cont Sch'!AS43 -> 0 | AR53: =AN53+AO53-AP53+AQ53 -> 0 | AS53: =AM53 -> 0 | AT53: ='[4]9.1 EDDVAR Cont Sch'!AV43 -> 0 | AU53: ='[4]9.1 EDDVAR Cont Sch'!AW43 -> 0 | AV53: ='[4]9.1 EDDVAR Cont Sch'!AX43 -> 0 | AW53: 0 | AX53: 0 | AY53: ='[4]9.1 EDDVAR Cont Sch'!BD43 -> 0 | AZ53: ='[4]9.1 EDDVAR Cont Sch'!BE43 -> 0 | BA53: ='[4]9.1 EDDVAR Cont Sch'!BF43 -> 0 | BB53: =AX53+AY53-AZ53+BA53 -> 0 | BC53: =AW53 -> 0 | BD53: ='[4]9.1 EDDVAR Cont Sch'!BI43 -> 0 | BE53: ='[4]9.1 EDDVAR Cont Sch'!BJ43 -> 0 | BF53: ='[4]9.1 EDDVAR Cont Sch'!BK43 -> 0 | BG53: 0 | BH53: 0 | BI53: ='[4]9.1 EDDVAR Cont Sch'!BQ43 -> 0 | BJ53: ='[4]9.1 EDDVAR Cont Sch'!BR43 -> 0 | BK53: ='[4]9.1 EDDVAR Cont Sch'!BS43 -> 0 | BL53: =BH53+BI53-BJ53+BK53 -> 0 | BM53: ='[4]9.1 EDDVAR Cont Sch'!BU43 -> 0 | BN53: ='[4]9.1 EDDVAR Cont Sch'!BV43 -> 0 | BO53: 0 | BP53: 0 | BQ53: ='[4]9.1 EDDVAR Cont Sch'!BY43 -> 0 | BR53: ='[4]9.1 EDDVAR Cont Sch'!BZ43 -> 0 | BS53: 0 | BT53: ='[4]9.1 EDDVAR Cont Sch'!CB36 -> 0 | BU53: 0
A54: 25 | C54: RSVA - One-time | D54: 1582 | E54: ='[4]9.1 EDDVAR Cont Sch'!D44 -> 0 | F54: ='[4]9.1 EDDVAR Cont Sch'!E44 -> 0 | G54: ='[4]9.1 EDDVAR Cont Sch'!F44 -> 0 | H54: ='[4]9.1 EDDVAR Cont Sch'!G44 -> 0 | I54: 0 | J54: ='[4]9.1 EDDVAR Cont Sch'!I44 -> 0 | K54: ='[4]9.1 EDDVAR Cont Sch'!J44 -> 0 | L54: ='[4]9.1 EDDVAR Cont Sch'!K44 -> 0 | M54: ='[4]9.1 EDDVAR Cont Sch'!L44 -> 0 | N54: 0 | O54: =I54 -> 0 | P54: ='[4]9.1 EDDVAR Cont Sch'!O44 -> 0 | Q54: ='[4]9.1 EDDVAR Cont Sch'!P44 -> 0 | R54: ='[4]9.1 EDDVAR Cont Sch'!Q44 -> 0 | S54: 0 | T54: 0 | U54: ='[4]9.1 EDDVAR Cont Sch'!T44 -> 0 | V54: ='[4]9.1 EDDVAR Cont Sch'!U44 -> 0 | W54: ='[4]9.1 EDDVAR Cont Sch'!V44 -> 0 | X54: 0 | Y54: 0 | Z54: ='[4]9.1 EDDVAR Cont Sch'!Y44 -> 0 | AA54: ='[4]9.1 EDDVAR Cont Sch'!Z44 -> 0 | AB54: ='[4]9.1 EDDVAR Cont Sch'!AA44 -> 0 | AC54: 0 | AD54: 0 | AE54: ='[4]9.1 EDDVAR Cont Sch'!AD44 -> 0 | AF54: ='[4]9.1 EDDVAR Cont Sch'!AE44 -> 0 | AG54: ='[4]9.1 EDDVAR Cont Sch'!AF44 -> 0 | AH54: 0 | AI54: =AC54 -> 0 | AJ54: ='[4]9.1 EDDVAR Cont Sch'!AI44 -> 0 | AK54: ='[4]9.1 EDDVAR Cont Sch'!AJ44 -> 0 | AL54: ='[4]9.1 EDDVAR Cont Sch'!AK44 -> 0 | AM54: 0 | AN54: 0 | AO54: ='[4]9.1 EDDVAR Cont Sch'!AQ44 -> 0 | AP54: ='[4]9.1 EDDVAR Cont Sch'!AR44 -> 0 | AQ54: ='[4]9.1 EDDVAR Cont Sch'!AS44 -> 0 | AR54: =AN54+AO54-AP54+AQ54 -> 0 | AS54: =AM54 -> 0 | AT54: ='[4]9.1 EDDVAR Cont Sch'!AV44 -> 0 | AU54: ='[4]9.1 EDDVAR Cont Sch'!AW44 -> 0 | AV54: ='[4]9.1 EDDVAR Cont Sch'!AX44 -> 0 | AW54: 0 | AX54: 0 | AY54: ='[4]9.1 EDDVAR Cont Sch'!BD44 -> 0 | AZ54: ='[4]9.1 EDDVAR Cont Sch'!BE44 -> 0 | BA54: ='[4]9.1 EDDVAR Cont Sch'!BF44 -> 0 | BB54: =AX54+AY54-AZ54+BA54 -> 0 | BC54: =AW54 -> 0 | BD54: ='[4]9.1 EDDVAR Cont Sch'!BI44 -> 0 | BE54: ='[4]9.1 EDDVAR Cont Sch'!BJ44 -> 0 | BF54: ='[4]9.1 EDDVAR Cont Sch'!BK44 -> 0 | BG54: 0 | BH54: 0 | BI54: ='[4]9.1 EDDVAR Cont Sch'!BQ44 -> 0 | BJ54: ='[4]9.1 EDDVAR Cont Sch'!BR44 -> 0 | BK54: ='[4]9.1 EDDVAR Cont Sch'!BS44 -> 0 | BL54: =BH54+BI54-BJ54+BK54 -> 0 | BM54: ='[4]9.1 EDDVAR Cont Sch'!BU44 -> 0 | BN54: ='[4]9.1 EDDVAR Cont Sch'!BV44 -> 0 | BO54: 0 | BP54: 0 | BQ54: ='[4]9.1 EDDVAR Cont Sch'!BY44 -> 0 | BR54: ='[4]9.1 EDDVAR Cont Sch'!BZ44 -> 0 | BS54: 0 | BT54: ='[4]9.1 EDDVAR Cont Sch'!CB37 -> 0 | BU54: 0
A55: 26 | C55: Other Deferred Credits | D55: 2425 | E55: ='[4]9.1 EDDVAR Cont Sch'!D45 -> 0 | F55: ='[4]9.1 EDDVAR Cont Sch'!E45 -> 0 | G55: ='[4]9.1 EDDVAR Cont Sch'!F45 -> 0 | H55: ='[4]9.1 EDDVAR Cont Sch'!G45 -> 0 | I55: 0 | J55: ='[4]9.1 EDDVAR Cont Sch'!I45 -> 0 | K55: ='[4]9.1 EDDVAR Cont Sch'!J45 -> 0 | L55: ='[4]9.1 EDDVAR Cont Sch'!K45 -> 0 | M55: ='[4]9.1 EDDVAR Cont Sch'!L45 -> 0 | N55: 0 | O55: =I55 -> 0 | P55: ='[4]9.1 EDDVAR Cont Sch'!O45 -> 0 | Q55: ='[4]9.1 EDDVAR Cont Sch'!P45 -> 0 | R55: ='[4]9.1 EDDVAR Cont Sch'!Q45 -> 0 | S55: 0 | T55: 0 | U55: ='[4]9.1 EDDVAR Cont Sch'!T45 -> 0 | V55: ='[4]9.1 EDDVAR Cont Sch'!U45 -> 0 | W55: ='[4]9.1 EDDVAR Cont Sch'!V45 -> 0 | X55: 0 | Y55: 0 | Z55: ='[4]9.1 EDDVAR Cont Sch'!Y45 -> 0 | AA55: ='[4]9.1 EDDVAR Cont Sch'!Z45 -> 0 | AB55: ='[4]9.1 EDDVAR Cont Sch'!AA45 -> 0 | AC55: 0 | AD55: 0 | AE55: ='[4]9.1 EDDVAR Cont Sch'!AD45 -> 0 | AF55: ='[4]9.1 EDDVAR Cont Sch'!AE45 -> 0 | AG55: ='[4]9.1 EDDVAR Cont Sch'!AF45 -> 0 | AH55: 0 | AI55: =AC55 -> 0 | AJ55: ='[4]9.1 EDDVAR Cont Sch'!AI45 -> 0 | AK55: ='[4]9.1 EDDVAR Cont Sch'!AJ45 -> 0 | AL55: ='[4]9.1 EDDVAR Cont Sch'!AK45 -> 0 | AM55: 0 | AN55: 0 | AO55: ='[4]9.1 EDDVAR Cont Sch'!AQ45 -> 0 | AP55: ='[4]9.1 EDDVAR Cont Sch'!AR45 -> 0 | AQ55: ='[4]9.1 EDDVAR Cont Sch'!AS45 -> 0 | AR55: =AN55+AO55-AP55+AQ55 -> 0 | AS55: =AM55 -> 0 | AT55: ='[4]9.1 EDDVAR Cont Sch'!AV45 -> 0 | AU55: ='[4]9.1 EDDVAR Cont Sch'!AW45 -> 0 | AV55: ='[4]9.1 EDDVAR Cont Sch'!AX45 -> 0 | AW55: 0 | AX55: 0 | AY55: ='[4]9.1 EDDVAR Cont Sch'!BD45 -> 0 | AZ55: ='[4]9.1 EDDVAR Cont Sch'!BE45 -> 0 | BA55: ='[4]9.1 EDDVAR Cont Sch'!BF45 -> 0 | BB55: =AX55+AY55-AZ55+BA55 -> 0 | BC55: =AW55 -> 0 | BD55: ='[4]9.1 EDDVAR Cont Sch'!BI45 -> 0 | BE55: ='[4]9.1 EDDVAR Cont Sch'!BJ45 -> 0 | BF55: ='[4]9.1 EDDVAR Cont Sch'!BK45 -> 0 | BG55: 0 | BH55: 0 | BI55: ='[4]9.1 EDDVAR Cont Sch'!BQ45 -> 0 | BJ55: ='[4]9.1 EDDVAR Cont Sch'!BR45 -> 0 | BK55: ='[4]9.1 EDDVAR Cont Sch'!BS45 -> 0 | BL55: =BH55+BI55-BJ55+BK55 -> 0 | BM55: ='[4]9.1 EDDVAR Cont Sch'!BU45 -> 0 | BN55: ='[4]9.1 EDDVAR Cont Sch'!BV45 -> 0 | BO55: 0 | BP55: 0 | BQ55: ='[4]9.1 EDDVAR Cont Sch'!BY45 -> 0 | BR55: ='[4]9.1 EDDVAR Cont Sch'!BZ45 -> 0 | BS55: 0 | BT55: ='[4]9.1 EDDVAR Cont Sch'!CB38 -> 0 | BU55: 0
C57: Group 2 Sub-Total | E57: =SUM(E44:E55) -> 100155.66 | F57: 43253.48 | G57: 0 | H57: 0 | I57: 143409.14 | J57: 1495 | K57: 950.76 | L57: 0 | M57: 0 | N57: 2445.76 | O57: 143409.14 | P57: 31386.19 | Q57: 0 | R57: 0 | S57: 174795.33 | T57: 2445.76 | U57: 1132.06 | V57: 0 | W57: 0 | X57: 3577.82 | Y57: 174795.33 | Z57: 1451.22 | AA57: 0 | AB57: 0 | AC57: 176246.55 | AD57: 3577.82 | AE57: 372.14 | AF57: 0 | AG57: 0 | AH57: 3949.96 | AI57: 176246.55 | AJ57: 14518.47 | AK57: =SUM(AK44:AK55) -> 174795.33 | AL57: -18.17 | AM57: 15951.52 | AN57: 3949.96 | AO57: 2032.1 | AP57: 7003.53 | AQ57: 0 | AR57: -1021.47 | AS57: 15951.52 | AT57: 15520.44 | AU57: 0 | AV57: 0 | AW57: 31471.96 | AX57: -1021.47 | AY57: 341.05 | AZ57: 0 | BA57: 0 | BB57: -680.42 | BC57: 31471.96 | BD57: 20020.42 | BE57: 0 | BF57: 7828 | BG57: 59320.38 | BH57: -680.42 | BI57: 618.93 | BJ57: 0 | BK57: 0 | BL57: -61.49 | BM57: 0 | BN57: 0 | BO57: 59320.38 | BP57: -61.49 | BQ57: 614.0466315 | BR57: 188.8053933 | BS57: 60061.74202 | BT57: =SUM(BT44:BT55) -> 1411846.9 | BU57: =BT57-SUM(BG57,BL57) -> 1352588.01
A59: 27 | C59: PILs and Tax Variance for 2006 and Subsequent Years (excludes sub-account and contra account below) | D59: 1592 | E59: ='[4]9.1 EDDVAR Cont Sch'!D51 -> 0 | F59: ='[4]9.1 EDDVAR Cont Sch'!E51 -> 0 | G59: ='[4]9.1 EDDVAR Cont Sch'!F51 -> 0 | H59: ='[4]9.1 EDDVAR Cont Sch'!G51 -> 0 | I59: =E59+F59-G59+H59 -> 0 | J59: ='[4]9.1 EDDVAR Cont Sch'!I51 -> 0 | K59: ='[4]9.1 EDDVAR Cont Sch'!J51 -> 0 | L59: ='[4]9.1 EDDVAR Cont Sch'!K51 -> 0 | M59: ='[4]9.1 EDDVAR Cont Sch'!L51 -> 0 | N59: =J59+K59-L59+M59 -> 0 | O59: =I59 -> 0 | Q59: ='[4]9.1 EDDVAR Cont Sch'!P51 -> 0 | R59: ='[4]9.1 EDDVAR Cont Sch'!Q51 -> 0 | S59: =O59+P59-Q59+SUM(R59:R59) -> 0 | T59: =N59 -> 0 | V59: ='[4]9.1 EDDVAR Cont Sch'!U51 -> 0 | W59: ='[4]9.1 EDDVAR Cont Sch'!V51 -> 0 | X59: =T59+U59-V59+W59 -> 0 | Y59: =S59 -> 0 | AA59: ='[4]9.1 EDDVAR Cont Sch'!Z51 -> 0 | AB59: ='[4]9.1 EDDVAR Cont Sch'!AA51 -> 0 | AC59: =Y59+Z59-AA59+SUM(AB59:AB59) -> 0 | AD59: =X59 -> 0 | AF59: ='[4]9.1 EDDVAR Cont Sch'!AE51 -> 0 | AG59: ='[4]9.1 EDDVAR Cont Sch'!AF51 -> 0 | AH59: =AD59+AE59-AF59+AG59 -> 0 | AI59: =AC59 -> 0 | AK59: 0 | AL59: ='[4]9.1 EDDVAR Cont Sch'!AK51 -> 0 | AM59: =AI59+AJ59-AK59+SUM(AL59:AL59) -> 0 | AN59: =AH59 -> 0 | AP59: 0 | AQ59: ='[4]9.1 EDDVAR Cont Sch'!AS51 -> 0 | AR59: =AN59+AO59-AP59+AQ59 -> 0 | AS59: =AM59 -> 0 | AT59: ='[4]9.1 EDDVAR Cont Sch'!AV51 -> 0 | AU59: ='[4]9.1 EDDVAR Cont Sch'!AW51 -> 0 | AV59: ='[4]9.1 EDDVAR Cont Sch'!AX51 -> 0 | AW59: =AS59+AT59-AU59+SUM(AV59:AV59) -> 0 | AX59: =AR59 -> 0 | AZ59: ='[4]9.1 EDDVAR Cont Sch'!BE51 -> 0 | BA59: ='[4]9.1 EDDVAR Cont Sch'!BF51 -> 0 | BB59: =AX59+AY59-AZ59+BA59 -> 0 | BC59: =AW59 -> 0 | BD59: ='[4]9.1 EDDVAR Cont Sch'!BI51 -> 0 | BE59: ='[4]9.1 EDDVAR Cont Sch'!BJ51 -> 0 | BG59: =BC59+BD59-BE59+SUM(BF59:BF59) -> 0 | BH59: =BB59 -> 0 | BJ59: 0 | BK59: 0 | BL59: =BH59+BI59-BJ59+BK59 -> 0 | BM59: 0 | BN59: 0 | BO59: =BG59-BM59 -> 0 | BP59: =BL59-BN59 -> 0 | BS59: 0 | BT59: ='[4]9.1 EDDVAR Cont Sch'!CB51 -> 0 | BU59: =BT59-SUM(BG59,BL59) -> 0
A60: 28 | C60: PILs and Tax Variance for 2006 and Subsequent Years - Sub-Account HST/OVAT Input Tax Credits (ITCs) | D60: 1592 | E60: ='[4]9.1 EDDVAR Cont Sch'!D52 -> 0 | F60: ='[4]9.1 EDDVAR Cont Sch'!E52 -> 0 | G60: ='[4]9.1 EDDVAR Cont Sch'!F52 -> 0 | H60: ='[4]9.1 EDDVAR Cont Sch'!G52 -> 0 | I60: =E60+F60-G60+H60 -> 0 | J60: ='[4]9.1 EDDVAR Cont Sch'!I52 -> 0 | K60: ='[4]9.1 EDDVAR Cont Sch'!J52 -> 0 | L60: ='[4]9.1 EDDVAR Cont Sch'!K52 -> 0 | M60: ='[4]9.1 EDDVAR Cont Sch'!L52 -> 0 | N60: =J60+K60-L60+M60 -> 0 | O60: =I60 -> 0 | P60: ='[4]9.1 EDDVAR Cont Sch'!O51 -> -7161.36 | Q60: ='[4]9.1 EDDVAR Cont Sch'!P52 -> 0 | R60: ='[4]9.1 EDDVAR Cont Sch'!Q52 -> 0 | S60: =O60+P60-Q60+SUM(R60:R60) -> -7161.36 | T60: =N60 -> 0 | U60: ='[4]9.1 EDDVAR Cont Sch'!T51 -> -11.61 | V60: ='[4]9.1 EDDVAR Cont Sch'!U52 -> 0 | W60: ='[4]9.1 EDDVAR Cont Sch'!V52 -> 0 | X60: =T60+U60-V60+W60 -> -11.61 | Y60: =S60 -> -7161.36 | Z60: ='[4]9.1 EDDVAR Cont Sch'!Y51/2 -> -10621.745 | AA60: ='[4]9.1 EDDVAR Cont Sch'!Z52 -> 0 | AB60: ='[4]9.1 EDDVAR Cont Sch'!AA52 -> 0 | AC60: =Y60+Z60-AA60+SUM(AB60:AB60) -> -17783.105 | AD60: =X60 -> -11.61 | AE60: ='[4]9.1 EDDVAR Cont Sch'!AD51/2-94 -> -212.95 | AF60: ='[4]9.1 EDDVAR Cont Sch'!AE52 -> 0 | AG60: ='[4]9.1 EDDVAR Cont Sch'!AF52 -> 0 | AH60: =AD60+AE60-AF60+AG60 -> -224.56 | AI60: =AC60 -> -17783.105 | AJ60: ='[4]9.1 EDDVAR Cont Sch'!AI51/2 -> -7643.99 | AK60: ='[4]9.1 EDDVAR Cont Sch'!AJ51 -> -3581 | AL60: ='[4]9.1 EDDVAR Cont Sch'!AK52 -> 0 | AM60: =AI60+AJ60-AK60+SUM(AL60:AL60) -> -21846.095 | AN60: =AH60 -> -224.56 | AO60: ='[4]9.1 EDDVAR Cont Sch'!AQ51/2 -> -164.5 | AP60: ='[4]9.1 EDDVAR Cont Sch'!AR51 -> -200 | AQ60: ='[4]9.1 EDDVAR Cont Sch'!AS52 -> 0 | AR60: =AN60+AO60-AP60+AQ60 -> -189.06 | AS60: =AM60 -> -21846.095 | AT60: ='[4]9.1 EDDVAR Cont Sch'!AV52 -> 0 | AU60: ='[4]9.1 EDDVAR Cont Sch'!AW52 -> 0 | AV60: ='[4]9.1 EDDVAR Cont Sch'!AX52 -> 0 | AW60: =AS60+AT60-AU60+SUM(AV60:AV60) -> -21846.095 | AX60: =AR60 -> -189.06 | AY60: ='[4]9.1 EDDVAR Cont Sch'!BD51/2 -> -294.84 | AZ60: ='[4]9.1 EDDVAR Cont Sch'!BE52 -> 0 | BA60: ='[4]9.1 EDDVAR Cont Sch'!BF52 -> 0 | BB60: =AX60+AY60-AZ60+BA60 -> -483.9 | BC60: =AW60 -> -21846.095 | BD60: ='[4]9.1 EDDVAR Cont Sch'!BI52 -> 0 | BE60: ='[4]9.1 EDDVAR Cont Sch'!BJ52 -> 0 | BF60: =SUM('[4]9.1 EDDVAR Cont Sch'!BK51:BN51) -> 3581 | BG60: =BC60+BD60-BE60+SUM(BF60:BF60) -> -18265.095 | BH60: =BB60 -> -483.9 | BI60: ='[4]9.1 EDDVAR Cont Sch'!BQ51/2 -> -294.84 | BJ60: ='[4]9.1 EDDVAR Cont Sch'!BR51 -> 0 | BK60: ='[4]9.1 EDDVAR Cont Sch'!BS51 -> 0 | BL60: =BH60+BI60-BJ60+BK60 -> -778.74 | BM60: ='[4]9.1 EDDVAR Cont Sch'!BU51 -> 0 | BN60: ='[4]9.1 EDDVAR Cont Sch'!BV51 -> 0 | BO60: =BG60-BM60 -> -18265.095 | BP60: =BL60-BN60 -> -778.74 | BQ60: ='[4]9.1 EDDVAR Cont Sch'!BY51/2 -> -217.8150739 | BR60: ='[4]9.1 EDDVAR Cont Sch'!BZ51/2 -> -66.97318833 | BS60: -19328.62326 | BT60: ='[4]9.1 EDDVAR Cont Sch'!CB52 -> 3781 | BU60: 22824.835
C62: Total of Group 1 and Group 2 Accounts (including 1562 and 1592) | E62: =SUM(E59:E60,E57, E39) -> -357233.56 | F62: =SUM(F59:F60,F57, F39) -> 81278.52 | G62: =SUM(G59:G60,G57, G39) -> 0 | H62: 0 | I62: -275955.04 | J62: -180215.41 | K62: -10761.34 | L62: 0 | M62: 0 | N62: -190976.75 | O62: -275955.04 | P62: -387718.92 | Q62: 71558.95 | R62: 0.23 | S62: -735232.68 | T62: -190976.75 | U62: -5865.54 | V62: -24954.98 | W62: -4761 | X62: -176648.31 | Y62: -735232.68 | Z62: 79814.175 | AA62: 0 | AB62: -60069 | AC62: -715487.505 | AD62: -176648.31 | AE62: -12303.64 | AF62: 0 | AG62: 0 | AH62: -188951.95 | AI62: -715487.505 | AJ62: 76394.25 | AK62: -8377.12 | AL62: -18.17 | AM62: -630734.305 | AN62: -188951.95 | AO62: -10878.89 | AP62: -4038.42 | AQ62: 0 | AR62: -195792.42 | AS62: -630734.305 | AT62: 290740.97 | AU62: 0 | AV62: 0 | AW62: -339993.335 | AX62: -195792.42 | AY62: 108717.3 | AZ62: 0 | BA62: 180.91 | BB62: -86894.21 | BC62: -339993.335 | BD62: 323605.12 | BE62: -241406 | BF62: 11409 | BG62: 236426.785 | BH62: -86894.21 | BI62: 50823.85 | BJ62: -12561 | BK62: 24 | BL62: -23485.36 | BM62: 0 | BN62: 0 | BO62: 236426.785 | BP62: -23485.36 | BQ62: 2726.036695 | BR62: =SUM(BR59:BR60,BR57, BR39) -> 838.1943717 | BS62: =SUM(BS59:BS60,BS57, BS39) -> 216505.6561 | BT62: =SUM(BT59:BT60,BT57, BT39) -> 1530311.93 | BU62: =BT62-SUM(BG62,BL62) -> 1317370.505
A65: 29 | C65: LRAM Variance Account | D65: 1568 | S65: =O65+P65-Q65+SUM(R65:R65) -> 0 | X65: =T65+U65-V65+W65 -> 0 | Y65: =S65 -> 0 | AC65: =Y65+Z65-AA65+SUM(AB65:AB65) -> 0 | AD65: =X65 -> 0 | AH65: =AD65+AE65-AF65+AG65 -> 0 | AI65: =AC65 -> 0 | AM65: =AI65+AJ65-AK65+SUM(AL65:AL65) -> 0 | AN65: =AH65 -> 0 | AR65: =AN65+AO65-AP65+AQ65 -> 0 | AS65: =AM65 -> 0 | AT65: ='[4]9.1 EDDVAR Cont Sch'!AV57 -> -685.61 | AU65: ='[4]9.1 EDDVAR Cont Sch'!AW57 -> 0 | AV65: ='[4]9.1 EDDVAR Cont Sch'!AX57 -> 0 | AW65: =AS65+AT65-AU65+SUM(AV65:AV65) -> -685.61 | AX65: =AR65 -> 0 | AY65: ='[4]9.1 EDDVAR Cont Sch'!BD57 -> 26.1 | AZ65: ='[4]9.1 EDDVAR Cont Sch'!BE57 -> 0 | BA65: ='[4]9.1 EDDVAR Cont Sch'!BF57 -> 0 | BB65: =AX65+AY65-AZ65+BA65 -> 26.1 | BC65: =AW65 -> -685.61 | BD65: ='[4]9.1 EDDVAR Cont Sch'!BI57 -> -1816.04 | BE65: ='[4]9.1 EDDVAR Cont Sch'!BJ57 -> 0 | BF65: =SUM('[4]9.1 EDDVAR Cont Sch'!BK57:BN57) -> 14051.76 | BG65: =BC65+BD65-BE65+SUM(BF65:BF65) -> 11550.11 | BH65: =BB65 -> 26.1 | BI65: ='[4]9.1 EDDVAR Cont Sch'!BQ57 -> 20.47 | BJ65: ='[4]9.1 EDDVAR Cont Sch'!BR57 -> 0 | BK65: ='[4]9.1 EDDVAR Cont Sch'!BS57 -> 164 | BL65: =BH65+BI65-BJ65+BK65 -> 210.57 | BM65: ='[4]9.1 EDDVAR Cont Sch'!BU57 -> 0 | BN65: ='[4]9.1 EDDVAR Cont Sch'!BV57 -> 0 | BO65: =BG65-BM65 -> 11550.11 | BP65: =BL65-BN65 -> 210.57 | BQ65: ='[4]9.1 EDDVAR Cont Sch'!BY57 -> 0 | BR65: ='[4]9.1 EDDVAR Cont Sch'!BZ57 -> 0 | BS65: =SUM(BO65:BR65) -> 11760.68 | BT65: ='[4]9.1 EDDVAR Cont Sch'!CB57 -> -382.62 | BU65: =BT65-SUM(BG65,BL65) -> -12143.3
C68: Total including Account 1568 | E68: =E62+E65 -> -357233.56 | F68: 81278.52 | G68: 0 | H68: 0 | I68: -275955.04 | J68: -180215.41 | K68: -10761.34 | L68: 0 | M68: 0 | N68: -190976.75 | O68: -275955.04 | P68: -387718.92 | Q68: 71558.95 | R68: 0.23 | S68: -735232.68 | T68: -190976.75 | U68: -5865.54 | V68: -24954.98 | W68: -4761 | X68: -176648.31 | Y68: -735232.68 | Z68: 79814.175 | AA68: 0 | AB68: -60069 | AC68: =AC62+AC65 -> -715487.505 | AD68: -176648.31 | AE68: -12303.64 | AF68: 0 | AG68: 0 | AH68: -188951.95 | AI68: -715487.505 | AJ68: 76394.25 | AK68: -8377.12 | AL68: -18.17 | AM68: -630734.305 | AN68: -188951.95 | AO68: -10878.89 | AP68: -4038.42 | AQ68: 0 | AR68: -195792.42 | AS68: =AS62+AS65 -> -630734.305 | AT68: 290055.36 | AU68: 0 | AV68: 0 | AW68: -340678.945 | AX68: -195792.42 | AY68: 108743.4 | AZ68: 0 | BA68: 180.91 | BB68: -86868.11 | BC68: =BC62+BC65 -> -340678.945 | BD68: 321789.08 | BE68: -241406 | BF68: 25460.76 | BG68: 247976.895 | BH68: -86868.11 | BI68: 50844.32 | BJ68: -12561 | BK68: 188 | BL68: -23274.79 | BM68: 0 | BN68: 0 | BO68: 247976.895 | BP68: -23274.79 | BQ68: 2726.036695 | BR68: 838.1943717 | BS68: 228266.3361 | BT68: 1529929.31 | BU68: =BT68-SUM(BG68,BL68) -> 1305227.205
A70: 30 | C70: Renewable Generation Connection Capital Deferral Account | D70: 1531 | E70: ='[4]9.1 EDDVAR Cont Sch'!D34 -> 0 | F70: ='[4]9.1 EDDVAR Cont Sch'!E34 -> 0 | G70: ='[4]9.1 EDDVAR Cont Sch'!F34 -> 0 | H70: ='[4]9.1 EDDVAR Cont Sch'!G34 -> 0 | I70: =E70+F70-G70+H70 -> 0 | J70: ='[4]9.1 EDDVAR Cont Sch'!I34 -> 0 | K70: ='[4]9.1 EDDVAR Cont Sch'!J34 -> 0 | L70: ='[4]9.1 EDDVAR Cont Sch'!K34 -> 0 | M70: ='[4]9.1 EDDVAR Cont Sch'!L34 -> 0 | N70: =J70+K70-L70+M70 -> 0 | O70: =I70 -> 0 | P70: ='[4]9.1 EDDVAR Cont Sch'!O34 -> 0 | Q70: ='[4]9.1 EDDVAR Cont Sch'!P34 -> 0 | R70: ='[4]9.1 EDDVAR Cont Sch'!Q34 -> 0 | S70: =O70+P70-Q70+SUM(R70:R70) -> 0 | T70: =N70 -> 0 | U70: ='[4]9.1 EDDVAR Cont Sch'!T34 -> 0 | V70: ='[4]9.1 EDDVAR Cont Sch'!U34 -> 0 | W70: ='[4]9.1 EDDVAR Cont Sch'!V34 -> 0 | X70: =T70+U70-V70+W70 -> 0 | Y70: =S70 -> 0 | Z70: ='[4]9.1 EDDVAR Cont Sch'!Y34 -> 0 | AA70: ='[4]9.1 EDDVAR Cont Sch'!Z34 -> 0 | AB70: ='[4]9.1 EDDVAR Cont Sch'!AA34 -> 0 | AC70: =Y70+Z70-AA70+SUM(AB70:AB70) -> 0 | AD70: =X70 -> 0 | AE70: ='[4]9.1 EDDVAR Cont Sch'!AD34 -> 0 | AF70: ='[4]9.1 EDDVAR Cont Sch'!AE34 -> 0 | AG70: ='[4]9.1 EDDVAR Cont Sch'!AF34 -> 0 | AH70: =AD70+AE70-AF70+AG70 -> 0 | AI70: =AC70 -> 0 | AJ70: ='[4]9.1 EDDVAR Cont Sch'!AI34 -> 0 | AK70: ='[4]9.1 EDDVAR Cont Sch'!AJ34 -> 0 | AL70: =SUM('[4]9.1 EDDVAR Cont Sch'!AK34:AN34) -> 0 | AM70: =AI70+AJ70-AK70+SUM(AL70:AL70) -> 0 | AN70: =AH70 -> 0 | AO70: ='[4]9.1 EDDVAR Cont Sch'!AQ34 -> 0 | AP70: ='[4]9.1 EDDVAR Cont Sch'!AR34 -> 0 | AQ70: ='[4]9.1 EDDVAR Cont Sch'!AS34 -> 0 | AR70: =AN70+AO70-AP70+AQ70 -> 0 | AS70: =AM70 -> 0 | AT70: ='[4]9.1 EDDVAR Cont Sch'!AV34 -> 0 | AU70: ='[4]9.1 EDDVAR Cont Sch'!AW34 -> 0 | AV70: ='[4]9.1 EDDVAR Cont Sch'!AX34 -> 0 | AW70: =AS70+AT70-AU70+SUM(AV70:AV70) -> 0 | AX70: =AR70 -> 0 | AY70: ='[4]9.1 EDDVAR Cont Sch'!BD34 -> 0 | AZ70: ='[4]9.1 EDDVAR Cont Sch'!BE34 -> 0 | BA70: ='[4]9.1 EDDVAR Cont Sch'!BF34 -> 0 | BB70: =AX70+AY70-AZ70+BA70 -> 0 | BC70: =AW70 -> 0 | BD70: ='[4]9.1 EDDVAR Cont Sch'!BI34 -> 0 | BE70: ='[4]9.1 EDDVAR Cont Sch'!BJ34 -> 0 | BF70: =-BF79 -> 4427.49 | BG70: =BC70+BD70-BE70+SUM(BF70:BF70) -> 4427.49 | BH70: =BB70 -> 0 | BI70: ='[4]9.1 EDDVAR Cont Sch'!BQ34 -> 0 | BJ70: ='[4]9.1 EDDVAR Cont Sch'!BR34 -> 0 | BK70: =-BK79 -> 2070.49 | BL70: =BH70+BI70-BJ70+BK70 -> 2070.49 | BM70: ='[4]9.1 EDDVAR Cont Sch'!BU34 -> 0 | BN70: ='[4]9.1 EDDVAR Cont Sch'!BV34 -> 0 | BO70: =BG70-BM70 -> 4427.49 | BP70: =BL70-BN70 -> 2070.49 | BQ70: ='[4]9.1 EDDVAR Cont Sch'!BY64 -> 52.797222 | BR70: ='[4]9.1 EDDVAR Cont Sch'!BZ64 -> 16.23394667 | BS70: =SUM(BO70:BR70) -> 6567.011169 | BT70: ='[4]9.1 EDDVAR Cont Sch'!CB34 -> 0 | BU70: =BT70-SUM(BG70,BL70) -> -6497.98
A71: 31 | C71: Renewable Generation Connection OM&A Deferral Account | D71: 1532 | E71: ='[4]9.1 EDDVAR Cont Sch'!D35 -> 0 | F71: ='[4]9.1 EDDVAR Cont Sch'!E35 -> 0 | G71: ='[4]9.1 EDDVAR Cont Sch'!F35 -> 0 | H71: ='[4]9.1 EDDVAR Cont Sch'!G35 -> 0 | I71: 0 | J71: ='[4]9.1 EDDVAR Cont Sch'!I35 -> 0 | K71: ='[4]9.1 EDDVAR Cont Sch'!J35 -> 0 | L71: ='[4]9.1 EDDVAR Cont Sch'!K35 -> 0 | M71: ='[4]9.1 EDDVAR Cont Sch'!L35 -> 0 | N71: 0 | O71: 0 | P71: ='[4]9.1 EDDVAR Cont Sch'!O35 -> 0 | Q71: ='[4]9.1 EDDVAR Cont Sch'!P35 -> 0 | R71: ='[4]9.1 EDDVAR Cont Sch'!Q35 -> 0 | S71: 0 | T71: 0 | U71: ='[4]9.1 EDDVAR Cont Sch'!T35 -> 0 | V71: ='[4]9.1 EDDVAR Cont Sch'!U35 -> 0 | W71: ='[4]9.1 EDDVAR Cont Sch'!V35 -> 0 | X71: 0 | Y71: 0 | Z71: ='[4]9.1 EDDVAR Cont Sch'!Y35 -> 0 | AA71: ='[4]9.1 EDDVAR Cont Sch'!Z35 -> 0 | AB71: ='[4]9.1 EDDVAR Cont Sch'!AA35 -> 0 | AC71: 0 | AD71: 0 | AE71: ='[4]9.1 EDDVAR Cont Sch'!AD35 -> 0 | AF71: ='[4]9.1 EDDVAR Cont Sch'!AE35 -> 0 | AG71: ='[4]9.1 EDDVAR Cont Sch'!AF35 -> 0 | AH71: 0 | AI71: 0 | AJ71: ='[4]9.1 EDDVAR Cont Sch'!AI35 -> 0 | AK71: ='[4]9.1 EDDVAR Cont Sch'!AJ35 -> 0 | AL71: =SUM('[4]9.1 EDDVAR Cont Sch'!AK35:AN35) -> 0 | AM71: 0 | AN71: 0 | AO71: ='[4]9.1 EDDVAR Cont Sch'!AQ35 -> 0 | AP71: ='[4]9.1 EDDVAR Cont Sch'!AR35 -> 0 | AQ71: ='[4]9.1 EDDVAR Cont Sch'!AS35 -> 0 | AR71: 0 | AS71: 0 | AT71: ='[4]9.1 EDDVAR Cont Sch'!AV35 -> 0 | AU71: ='[4]9.1 EDDVAR Cont Sch'!AW35 -> 0 | AV71: ='[4]9.1 EDDVAR Cont Sch'!AX35 -> 0 | AW71: 0 | AX71: 0 | AY71: ='[4]9.1 EDDVAR Cont Sch'!BD35 -> 0 | AZ71: ='[4]9.1 EDDVAR Cont Sch'!BE35 -> 0 | BA71: ='[4]9.1 EDDVAR Cont Sch'!BF35 -> 0 | BB71: 0 | BC71: 0 | BD71: ='[4]9.1 EDDVAR Cont Sch'!BI35 -> 0 | BE71: ='[4]9.1 EDDVAR Cont Sch'!BJ35 -> 0 | BF71: ='[4]9.1 EDDVAR Cont Sch'!BK35 -> 0 | BG71: 0 | BH71: 0 | BI71: ='[4]9.1 EDDVAR Cont Sch'!BQ35 -> 0 | BJ71: ='[4]9.1 EDDVAR Cont Sch'!BR35 -> 0 | BK71: ='[4]9.1 EDDVAR Cont Sch'!BS35 -> 0 | BL71: 0 | BM71: ='[4]9.1 EDDVAR Cont Sch'!BU35 -> 0 | BN71: ='[4]9.1 EDDVAR Cont Sch'!BV35 -> 0 | BO71: 0 | BP71: 0 | BQ71: ='[4]9.1 EDDVAR Cont Sch'!BY35 -> 0 | BR71: ='[4]9.1 EDDVAR Cont Sch'!BZ35 -> 0 | BS71: 0 | BT71: ='[4]9.1 EDDVAR Cont Sch'!CB35 -> 0 | BU71: 0
A72: 32 | C72: Renewable Generation Connection Funding Adder Deferral Account | D72: 1533 | E72: ='[4]9.1 EDDVAR Cont Sch'!D36 -> 0 | F72: ='[4]9.1 EDDVAR Cont Sch'!E36 -> 0 | G72: ='[4]9.1 EDDVAR Cont Sch'!F36 -> 0 | H72: ='[4]9.1 EDDVAR Cont Sch'!G36 -> 0 | I72: 0 | J72: ='[4]9.1 EDDVAR Cont Sch'!I36 -> 0 | K72: ='[4]9.1 EDDVAR Cont Sch'!J36 -> 0 | L72: ='[4]9.1 EDDVAR Cont Sch'!K36 -> 0 | M72: ='[4]9.1 EDDVAR Cont Sch'!L36 -> 0 | N72: 0 | O72: 0 | P72: ='[4]9.1 EDDVAR Cont Sch'!O36 -> 0 | Q72: ='[4]9.1 EDDVAR Cont Sch'!P36 -> 0 | R72: ='[4]9.1 EDDVAR Cont Sch'!Q36 -> 0 | S72: 0 | T72: 0 | U72: ='[4]9.1 EDDVAR Cont Sch'!T36 -> 0 | V72: ='[4]9.1 EDDVAR Cont Sch'!U36 -> 0 | W72: ='[4]9.1 EDDVAR Cont Sch'!V36 -> 0 | X72: 0 | Y72: 0 | Z72: ='[4]9.1 EDDVAR Cont Sch'!Y36 -> 0 | AA72: ='[4]9.1 EDDVAR Cont Sch'!Z36 -> 0 | AB72: ='[4]9.1 EDDVAR Cont Sch'!AA36 -> 0 | AC72: 0 | AD72: 0 | AE72: ='[4]9.1 EDDVAR Cont Sch'!AD36 -> 0 | AF72: ='[4]9.1 EDDVAR Cont Sch'!AE36 -> 0 | AG72: ='[4]9.1 EDDVAR Cont Sch'!AF36 -> 0 | AH72: 0 | AI72: 0 | AJ72: ='[4]9.1 EDDVAR Cont Sch'!AI36 -> 0 | AK72: ='[4]9.1 EDDVAR Cont Sch'!AJ36 -> 0 | AL72: =SUM('[4]9.1 EDDVAR Cont Sch'!AK36:AN36) -> 0 | AM72: 0 | AN72: 0 | AO72: ='[4]9.1 EDDVAR Cont Sch'!AQ36 -> 0 | AP72: ='[4]9.1 EDDVAR Cont Sch'!AR36 -> 0 | AQ72: ='[4]9.1 EDDVAR Cont Sch'!AS36 -> 0 | AR72: 0 | AS72: 0 | AT72: ='[4]9.1 EDDVAR Cont Sch'!AV36 -> 0 | AU72: ='[4]9.1 EDDVAR Cont Sch'!AW36 -> 0 | AV72: ='[4]9.1 EDDVAR Cont Sch'!AX36 -> 0 | AW72: 0 | AX72: 0 | AY72: ='[4]9.1 EDDVAR Cont Sch'!BD36 -> 0 | AZ72: ='[4]9.1 EDDVAR Cont Sch'!BE36 -> 0 | BA72: ='[4]9.1 EDDVAR Cont Sch'!BF36 -> 0 | BB72: 0 | BC72: 0 | BD72: ='[4]9.1 EDDVAR Cont Sch'!BI36 -> 0 | BE72: ='[4]9.1 EDDVAR Cont Sch'!BJ36 -> 0 | BF72: ='[4]9.1 EDDVAR Cont Sch'!BK36 -> 0 | BG72: 0 | BH72: 0 | BI72: ='[4]9.1 EDDVAR Cont Sch'!BQ36 -> 0 | BJ72: ='[4]9.1 EDDVAR Cont Sch'!BR36 -> 0 | BK72: ='[4]9.1 EDDVAR Cont Sch'!BS36 -> 0 | BL72: 0 | BM72: ='[4]9.1 EDDVAR Cont Sch'!BU36 -> 0 | BN72: ='[4]9.1 EDDVAR Cont Sch'!BV36 -> 0 | BO72: 0 | BP72: 0 | BQ72: ='[4]9.1 EDDVAR Cont Sch'!BY36 -> 0 | BR72: ='[4]9.1 EDDVAR Cont Sch'!BZ36 -> 0 | BS72: 0 | BT72: ='[4]9.1 EDDVAR Cont Sch'!CB36 -> 0 | BU72: 0
A73: 33 | C73: Smart Grid Capital Deferral Account | D73: 1534 | E73: ='[4]9.1 EDDVAR Cont Sch'!D37 -> 0 | F73: ='[4]9.1 EDDVAR Cont Sch'!E37 -> 0 | G73: ='[4]9.1 EDDVAR Cont Sch'!F37 -> 0 | H73: ='[4]9.1 EDDVAR Cont Sch'!G37 -> 0 | I73: 0 | J73: ='[4]9.1 EDDVAR Cont Sch'!I37 -> 0 | K73: ='[4]9.1 EDDVAR Cont Sch'!J37 -> 0 | L73: ='[4]9.1 EDDVAR Cont Sch'!K37 -> 0 | M73: ='[4]9.1 EDDVAR Cont Sch'!L37 -> 0 | N73: 0 | O73: 0 | P73: ='[4]9.1 EDDVAR Cont Sch'!O37 -> 0 | Q73: ='[4]9.1 EDDVAR Cont Sch'!P37 -> 0 | R73: ='[4]9.1 EDDVAR Cont Sch'!Q37 -> 0 | S73: 0 | T73: 0 | U73: ='[4]9.1 EDDVAR Cont Sch'!T37 -> 0 | V73: ='[4]9.1 EDDVAR Cont Sch'!U37 -> 0 | W73: ='[4]9.1 EDDVAR Cont Sch'!V37 -> 0 | X73: 0 | Y73: 0 | Z73: ='[4]9.1 EDDVAR Cont Sch'!Y37 -> 0 | AA73: ='[4]9.1 EDDVAR Cont Sch'!Z37 -> 0 | AB73: ='[4]9.1 EDDVAR Cont Sch'!AA37 -> 0 | AC73: 0 | AD73: 0 | AE73: ='[4]9.1 EDDVAR Cont Sch'!AD37 -> 0 | AF73: ='[4]9.1 EDDVAR Cont Sch'!AE37 -> 0 | AG73: ='[4]9.1 EDDVAR Cont Sch'!AF37 -> 0 | AH73: 0 | AI73: 0 | AJ73: ='[4]9.1 EDDVAR Cont Sch'!AI37 -> 0 | AK73: ='[4]9.1 EDDVAR Cont Sch'!AJ37 -> 0 | AL73: =SUM('[4]9.1 EDDVAR Cont Sch'!AK37:AN37) -> 0 | AM73: 0 | AN73: 0 | AO73: ='[4]9.1 EDDVAR Cont Sch'!AQ37 -> 0 | AP73: ='[4]9.1 EDDVAR Cont Sch'!AR37 -> 0 | AQ73: ='[4]9.1 EDDVAR Cont Sch'!AS37 -> 0 | AR73: 0 | AS73: 0 | AT73: ='[4]9.1 EDDVAR Cont Sch'!AV37 -> 0 | AU73: ='[4]9.1 EDDVAR Cont Sch'!AW37 -> 0 | AV73: ='[4]9.1 EDDVAR Cont Sch'!AX37 -> 0 | AW73: 0 | AX73: 0 | AY73: ='[4]9.1 EDDVAR Cont Sch'!BD37 -> 0 | AZ73: ='[4]9.1 EDDVAR Cont Sch'!BE37 -> 0 | BA73: ='[4]9.1 EDDVAR Cont Sch'!BF37 -> 0 | BB73: 0 | BC73: 0 | BD73: ='[4]9.1 EDDVAR Cont Sch'!BI37 -> 0 | BE73: ='[4]9.1 EDDVAR Cont Sch'!BJ37 -> 0 | BF73: ='[4]9.1 EDDVAR Cont Sch'!BK37 -> 0 | BG73: 0 | BH73: 0 | BI73: ='[4]9.1 EDDVAR Cont Sch'!BQ37 -> 0 | BJ73: ='[4]9.1 EDDVAR Cont Sch'!BR37 -> 0 | BK73: ='[4]9.1 EDDVAR Cont Sch'!BS37 -> 0 | BL73: 0 | BM73: ='[4]9.1 EDDVAR Cont Sch'!BU37 -> 0 | BN73: ='[4]9.1 EDDVAR Cont Sch'!BV37 -> 0 | BO73: 0 | BP73: 0 | BQ73: ='[4]9.1 EDDVAR Cont Sch'!BY37 -> 0 | BR73: ='[4]9.1 EDDVAR Cont Sch'!BZ37 -> 0 | BS73: 0 | BT73: ='[4]9.1 EDDVAR Cont Sch'!CB37 -> 0 | BU73: 0
A74: 34 | C74: Smart Grid OM&A Deferral Account | D74: 1535 | E74: ='[4]9.1 EDDVAR Cont Sch'!D38 -> 0 | F74: ='[4]9.1 EDDVAR Cont Sch'!E38 -> 0 | G74: ='[4]9.1 EDDVAR Cont Sch'!F38 -> 0 | H74: ='[4]9.1 EDDVAR Cont Sch'!G38 -> 0 | I74: 0 | J74: ='[4]9.1 EDDVAR Cont Sch'!I38 -> 0 | K74: ='[4]9.1 EDDVAR Cont Sch'!J38 -> 0 | L74: ='[4]9.1 EDDVAR Cont Sch'!K38 -> 0 | M74: ='[4]9.1 EDDVAR Cont Sch'!L38 -> 0 | N74: 0 | O74: 0 | P74: ='[4]9.1 EDDVAR Cont Sch'!O38 -> 0 | Q74: ='[4]9.1 EDDVAR Cont Sch'!P38 -> 0 | R74: ='[4]9.1 EDDVAR Cont Sch'!Q38 -> 0 | S74: 0 | T74: 0 | U74: ='[4]9.1 EDDVAR Cont Sch'!T38 -> 0 | V74: ='[4]9.1 EDDVAR Cont Sch'!U38 -> 0 | W74: ='[4]9.1 EDDVAR Cont Sch'!V38 -> 0 | X74: 0 | Y74: 0 | Z74: ='[4]9.1 EDDVAR Cont Sch'!Y38 -> 0 | AA74: ='[4]9.1 EDDVAR Cont Sch'!Z38 -> 0 | AB74: ='[4]9.1 EDDVAR Cont Sch'!AA38 -> 0 | AC74: 0 | AD74: 0 | AE74: ='[4]9.1 EDDVAR Cont Sch'!AD38 -> 0 | AF74: ='[4]9.1 EDDVAR Cont Sch'!AE38 -> 0 | AG74: ='[4]9.1 EDDVAR Cont Sch'!AF38 -> 0 | AH74: 0 | AI74: 0 | AJ74: ='[4]9.1 EDDVAR Cont Sch'!AI38 -> 0 | AK74: ='[4]9.1 EDDVAR Cont Sch'!AJ38 -> 0 | AL74: =SUM('[4]9.1 EDDVAR Cont Sch'!AK38:AN38) -> 0 | AM74: 0 | AN74: 0 | AO74: ='[4]9.1 EDDVAR Cont Sch'!AQ38 -> 0 | AP74: ='[4]9.1 EDDVAR Cont Sch'!AR38 -> 0 | AQ74: ='[4]9.1 EDDVAR Cont Sch'!AS38 -> 0 | AR74: 0 | AS74: 0 | AT74: ='[4]9.1 EDDVAR Cont Sch'!AV38 -> 0 | AU74: ='[4]9.1 EDDVAR Cont Sch'!AW38 -> 0 | AV74: ='[4]9.1 EDDVAR Cont Sch'!AX38 -> 0 | AW74: 0 | AX74: 0 | AY74: ='[4]9.1 EDDVAR Cont Sch'!BD38 -> 0 | AZ74: ='[4]9.1 EDDVAR Cont Sch'!BE38 -> 0 | BA74: ='[4]9.1 EDDVAR Cont Sch'!BF38 -> 0 | BB74: 0 | BC74: 0 | BD74: ='[4]9.1 EDDVAR Cont Sch'!BI38 -> 0 | BE74: ='[4]9.1 EDDVAR Cont Sch'!BJ38 -> 0 | BF74: ='[4]9.1 EDDVAR Cont Sch'!BK38 -> 0 | BG74: 0 | BH74: 0 | BI74: ='[4]9.1 EDDVAR Cont Sch'!BQ38 -> 0 | BJ74: ='[4]9.1 EDDVAR Cont Sch'!BR38 -> 0 | BK74: ='[4]9.1 EDDVAR Cont Sch'!BS38 -> 0 | BL74: 0 | BM74: ='[4]9.1 EDDVAR Cont Sch'!BU38 -> 0 | BN74: ='[4]9.1 EDDVAR Cont Sch'!BV38 -> 0 | BO74: 0 | BP74: 0 | BQ74: ='[4]9.1 EDDVAR Cont Sch'!BY38 -> 0 | BR74: ='[4]9.1 EDDVAR Cont Sch'!BZ38 -> 0 | BS74: 0 | BT74: ='[4]9.1 EDDVAR Cont Sch'!CB38 -> 0 | BU74: 0
A75: 35 | C75: Smart Grid Funding Adder Deferral Account | D75: 1536 | E75: ='[4]9.1 EDDVAR Cont Sch'!D39 -> 0 | F75: ='[4]9.1 EDDVAR Cont Sch'!E39 -> 0 | G75: ='[4]9.1 EDDVAR Cont Sch'!F39 -> 0 | H75: ='[4]9.1 EDDVAR Cont Sch'!G39 -> 0 | I75: 0 | J75: ='[4]9.1 EDDVAR Cont Sch'!I39 -> 0 | K75: ='[4]9.1 EDDVAR Cont Sch'!J39 -> 0 | L75: ='[4]9.1 EDDVAR Cont Sch'!K39 -> 0 | M75: ='[4]9.1 EDDVAR Cont Sch'!L39 -> 0 | N75: 0 | O75: 0 | P75: ='[4]9.1 EDDVAR Cont Sch'!O39 -> 0 | Q75: ='[4]9.1 EDDVAR Cont Sch'!P39 -> 0 | R75: ='[4]9.1 EDDVAR Cont Sch'!Q39 -> 0 | S75: 0 | T75: 0 | U75: ='[4]9.1 EDDVAR Cont Sch'!T39 -> 0 | V75: ='[4]9.1 EDDVAR Cont Sch'!U39 -> 0 | W75: ='[4]9.1 EDDVAR Cont Sch'!V39 -> 0 | X75: 0 | Y75: 0 | Z75: ='[4]9.1 EDDVAR Cont Sch'!Y39 -> 0 | AA75: ='[4]9.1 EDDVAR Cont Sch'!Z39 -> 0 | AB75: ='[4]9.1 EDDVAR Cont Sch'!AA39 -> 0 | AC75: 0 | AD75: 0 | AE75: ='[4]9.1 EDDVAR Cont Sch'!AD39 -> 0 | AF75: ='[4]9.1 EDDVAR Cont Sch'!AE39 -> 0 | AG75: ='[4]9.1 EDDVAR Cont Sch'!AF39 -> 0 | AH75: 0 | AI75: 0 | AJ75: ='[4]9.1 EDDVAR Cont Sch'!AI39 -> 0 | AK75: ='[4]9.1 EDDVAR Cont Sch'!AJ39 -> 0 | AL75: =SUM('[4]9.1 EDDVAR Cont Sch'!AK39:AN39) -> 0 | AM75: 0 | AN75: 0 | AO75: ='[4]9.1 EDDVAR Cont Sch'!AQ39 -> 0 | AP75: ='[4]9.1 EDDVAR Cont Sch'!AR39 -> 0 | AQ75: ='[4]9.1 EDDVAR Cont Sch'!AS39 -> 0 | AR75: 0 | AS75: 0 | AT75: ='[4]9.1 EDDVAR Cont Sch'!AV39 -> 0 | AU75: ='[4]9.1 EDDVAR Cont Sch'!AW39 -> 0 | AV75: ='[4]9.1 EDDVAR Cont Sch'!AX39 -> 0 | AW75: 0 | AX75: 0 | AY75: ='[4]9.1 EDDVAR Cont Sch'!BD39 -> 0 | AZ75: ='[4]9.1 EDDVAR Cont Sch'!BE39 -> 0 | BA75: ='[4]9.1 EDDVAR Cont Sch'!BF39 -> 0 | BB75: 0 | BC75: 0 | BD75: ='[4]9.1 EDDVAR Cont Sch'!BI39 -> 0 | BE75: ='[4]9.1 EDDVAR Cont Sch'!BJ39 -> 0 | BF75: ='[4]9.1 EDDVAR Cont Sch'!BK39 -> 0 | BG75: 0 | BH75: 0 | BI75: ='[4]9.1 EDDVAR Cont Sch'!BQ39 -> 0 | BJ75: ='[4]9.1 EDDVAR Cont Sch'!BR39 -> 0 | BK75: ='[4]9.1 EDDVAR Cont Sch'!BS39 -> 0 | BL75: 0 | BM75: ='[4]9.1 EDDVAR Cont Sch'!BU39 -> 0 | BN75: ='[4]9.1 EDDVAR Cont Sch'!BV39 -> 0 | BO75: 0 | BP75: 0 | BQ75: ='[4]9.1 EDDVAR Cont Sch'!BY39 -> 0 | BR75: ='[4]9.1 EDDVAR Cont Sch'!BZ39 -> 0 | BS75: 0 | BT75: ='[4]9.1 EDDVAR Cont Sch'!CB39 -> 0 | BU75: 0
A76: 36 | C76: Retail Cost Variance Account - STR | D76: 1548 | E76: ='[4]9.1 EDDVAR Cont Sch'!D40 -> 3956.62 | F76: ='[4]9.1 EDDVAR Cont Sch'!E40 -> 1174.12 | G76: ='[4]9.1 EDDVAR Cont Sch'!F40 -> 0 | H76: ='[4]9.1 EDDVAR Cont Sch'!G40 -> 0 | I76: 5130.74 | J76: ='[4]9.1 EDDVAR Cont Sch'!I40 -> -129 | K76: ='[4]9.1 EDDVAR Cont Sch'!J40 -> 3.07 | L76: ='[4]9.1 EDDVAR Cont Sch'!K40 -> 0 | M76: ='[4]9.1 EDDVAR Cont Sch'!L40 -> 0 | N76: -125.93 | O76: 5130.74 | P76: ='[4]9.1 EDDVAR Cont Sch'!O40 -> 243.71 | Q76: ='[4]9.1 EDDVAR Cont Sch'!P40 -> 0 | R76: ='[4]9.1 EDDVAR Cont Sch'!Q40 -> 0 | S76: 5374.45 | T76: -125.93 | U76: ='[4]9.1 EDDVAR Cont Sch'!T40 -> 34.03 | V76: ='[4]9.1 EDDVAR Cont Sch'!U40 -> 0 | W76: ='[4]9.1 EDDVAR Cont Sch'!V40 -> 0 | X76: -91.9 | Y76: 5374.45 | Z76: ='[4]9.1 EDDVAR Cont Sch'!Y40 -> 922.93 | AA76: ='[4]9.1 EDDVAR Cont Sch'!Z40 -> 0 | AB76: ='[4]9.1 EDDVAR Cont Sch'!AA40 -> 0 | AC76: 6297.38 | AD76: -91.9 | AE76: ='[4]9.1 EDDVAR Cont Sch'!AD40 -> 83.26 | AF76: ='[4]9.1 EDDVAR Cont Sch'!AE40 -> 0 | AG76: ='[4]9.1 EDDVAR Cont Sch'!AF40 -> 0 | AH76: -8.64 | AI76: 6297.38 | AJ76: ='[4]9.1 EDDVAR Cont Sch'!AI40 -> 996.22 | AK76: ='[4]9.1 EDDVAR Cont Sch'!AJ40 -> 5374.55 | AL76: =SUM('[4]9.1 EDDVAR Cont Sch'!AK40:AN40) -> -0.05 | AM76: 1919 | AN76: -8.64 | AO76: ='[4]9.1 EDDVAR Cont Sch'!AQ40 -> 78.38 | AP76: ='[4]9.1 EDDVAR Cont Sch'!AR40 -> 13.86 | AQ76: ='[4]9.1 EDDVAR Cont Sch'!AS40 -> 0 | AR76: 55.88 | AS76: 1919 | AT76: ='[4]9.1 EDDVAR Cont Sch'!AV40 -> 867.91 | AU76: ='[4]9.1 EDDVAR Cont Sch'!AW40 -> 0 | AV76: ='[4]9.1 EDDVAR Cont Sch'!AX40 -> 0 | AW76: 2786.91 | AX76: 55.88 | AY76: ='[4]9.1 EDDVAR Cont Sch'!BD40 -> 33.65 | AZ76: ='[4]9.1 EDDVAR Cont Sch'!BE40 -> 0 | BA76: ='[4]9.1 EDDVAR Cont Sch'!BF40 -> 0 | BB76: 89.53 | BC76: 2786.91 | BD76: ='[4]9.1 EDDVAR Cont Sch'!BI40 -> 937.35 | BE76: ='[4]9.1 EDDVAR Cont Sch'!BJ40 -> 0 | BF76: ='[4]9.1 EDDVAR Cont Sch'!BK40 -> 0 | BG76: 3724.26 | BH76: 89.53 | BI76: ='[4]9.1 EDDVAR Cont Sch'!BQ40 -> 46.02 | BJ76: ='[4]9.1 EDDVAR Cont Sch'!BR40 -> 0 | BK76: ='[4]9.1 EDDVAR Cont Sch'!BS40 -> 0 | BL76: 135.55 | BM76: ='[4]9.1 EDDVAR Cont Sch'!BU40 -> 0 | BN76: ='[4]9.1 EDDVAR Cont Sch'!BV40 -> 0 | BO76: 3724.26 | BP76: 135.55 | BQ76: ='[4]9.1 EDDVAR Cont Sch'!BY40 -> 44.4118005 | BR76: ='[4]9.1 EDDVAR Cont Sch'!BZ40 -> 13.65562 | BS76: 3917.87742 | BT76: ='[4]9.1 EDDVAR Cont Sch'!CB40 -> 3860.38 | BU76: 0.57
A77: 37 | C77: Smart Meter Capital and Recovery Offset Variance - Sub-Account - Capital5 | D77: 1555 | E77: ='[4]9.1 EDDVAR Cont Sch'!D62 -> 117842 | F77: ='[4]9.1 EDDVAR Cont Sch'!E62 -> 69325.97 | G77: ='[4]9.1 EDDVAR Cont Sch'!F62 -> 0 | H77: ='[4]9.1 EDDVAR Cont Sch'!G62 -> 0 | I77: 187167.97 | J77: ='[4]9.1 EDDVAR Cont Sch'!I62 -> -1513 | K77: ='[4]9.1 EDDVAR Cont Sch'!J62 -> 739.58 | L77: ='[4]9.1 EDDVAR Cont Sch'!K62 -> 0 | M77: ='[4]9.1 EDDVAR Cont Sch'!L62 -> 0 | N77: -773.42 | O77: 187167.97 | P77: ='[4]9.1 EDDVAR Cont Sch'!O62 -> 891312.61 | Q77: ='[4]9.1 EDDVAR Cont Sch'!P62 -> 0 | R77: ='[4]9.1 EDDVAR Cont Sch'!Q62 -> 0 | S77: 1078480.58 | T77: -773.42 | U77: ='[4]9.1 EDDVAR Cont Sch'!T62 -> 4024.14 | V77: ='[4]9.1 EDDVAR Cont Sch'!U62 -> 0 | W77: ='[4]9.1 EDDVAR Cont Sch'!V62 -> 0 | X77: 3250.72 | Y77: 1078480.58 | Z77: ='[4]9.1 EDDVAR Cont Sch'!Y62 -> -49987.88 | AA77: ='[4]9.1 EDDVAR Cont Sch'!Z62 -> 0 | AB77: ='[4]9.1 EDDVAR Cont Sch'!AA62 -> -197155.98 | AC77: 831336.72 | AD77: 3250.72 | AE77: ='[4]9.1 EDDVAR Cont Sch'!AD62 -> 10636.21 | AF77: ='[4]9.1 EDDVAR Cont Sch'!AE62 -> 0 | AG77: ='[4]9.1 EDDVAR Cont Sch'!AF62 -> 0 | AH77: 13886.93 | AI77: 831336.72 | AJ77: ='[4]9.1 EDDVAR Cont Sch'!AI62 -> -654818.88 | AK77: ='[4]9.1 EDDVAR Cont Sch'!AJ62 -> 0 | AL77: =SUM('[4]9.1 EDDVAR Cont Sch'!AK62:AN62) -> -176517.72 | AM77: 0.1200000001 | AN77: 13886.93 | AO77: ='[4]9.1 EDDVAR Cont Sch'!AQ62 -> -2745.82 | AP77: ='[4]9.1 EDDVAR Cont Sch'!AR62 -> 0 | AQ77: ='[4]9.1 EDDVAR Cont Sch'!AS62 -> -11141.11 | AR77: 0 | AS77: 0.1200000001 | AT77: ='[4]9.1 EDDVAR Cont Sch'!AV62 -> 0 | AU77: ='[4]9.1 EDDVAR Cont Sch'!AW62 -> 0 | AV77: ='[4]9.1 EDDVAR Cont Sch'!AX62 -> 0 | AW77: 0.1200000001 | AX77: 0 | AY77: ='[4]9.1 EDDVAR Cont Sch'!BD62 -> 0 | AZ77: ='[4]9.1 EDDVAR Cont Sch'!BE62 -> 0 | BA77: ='[4]9.1 EDDVAR Cont Sch'!BF62 -> 0 | BB77: 0 | BC77: 0.1200000001 | BD77: ='[4]9.1 EDDVAR Cont Sch'!BI62 -> 0 | BE77: ='[4]9.1 EDDVAR Cont Sch'!BJ62 -> 0 | BF77: ='[4]9.1 EDDVAR Cont Sch'!BK62 -> 0 | BG77: 0.1200000001 | BH77: 0 | BI77: ='[4]9.1 EDDVAR Cont Sch'!BQ62 -> 0 | BJ77: ='[4]9.1 EDDVAR Cont Sch'!BR62 -> 0 | BK77: ='[4]9.1 EDDVAR Cont Sch'!BS62 -> 0 | BL77: 0 | BM77: ='[4]9.1 EDDVAR Cont Sch'!BU62 -> 0 | BN77: ='[4]9.1 EDDVAR Cont Sch'!BV62 -> 0 | BO77: 0.1200000001 | BP77: 0 | BQ77: ='[4]9.1 EDDVAR Cont Sch'!BY62 -> 0.001431000001 | BR77: ='[4]9.1 EDDVAR Cont Sch'!BZ62 -> 0.0004400000004 | BS77: 0.1218710001 | BT77: ='[4]9.1 EDDVAR Cont Sch'!CB62 -> 0 | BU77: -0.1200000001
A78: 38 | C78: Smart Meter Capital and Recovery Offset Variance - Sub-Account - Recoveries5 | D78: 1555 | E78: ='[4]9.1 EDDVAR Cont Sch'!D63 -> -55958 | F78: ='[4]9.1 EDDVAR Cont Sch'!E63 -> -45993.81 | G78: ='[4]9.1 EDDVAR Cont Sch'!F63 -> 0 | H78: ='[4]9.1 EDDVAR Cont Sch'!G63 -> 0 | I78: -101951.81 | J78: ='[4]9.1 EDDVAR Cont Sch'!I63 -> 0 | K78: ='[4]9.1 EDDVAR Cont Sch'!J63 -> 0 | L78: ='[4]9.1 EDDVAR Cont Sch'!K63 -> 0 | M78: ='[4]9.1 EDDVAR Cont Sch'!L63 -> 0 | N78: 0 | O78: -101951.81 | P78: ='[4]9.1 EDDVAR Cont Sch'!O63 -> -43275.38 | Q78: ='[4]9.1 EDDVAR Cont Sch'!P63 -> 0 | R78: ='[4]9.1 EDDVAR Cont Sch'!Q63 -> 0 | S78: -145227.19 | T78: 0 | U78: ='[4]9.1 EDDVAR Cont Sch'!T63 -> 0 | V78: ='[4]9.1 EDDVAR Cont Sch'!U63 -> 0 | W78: ='[4]9.1 EDDVAR Cont Sch'!V63 -> 0 | X78: 0 | Y78: -145227.19 | Z78: ='[4]9.1 EDDVAR Cont Sch'!Y63 -> -81629.69 | AA78: ='[4]9.1 EDDVAR Cont Sch'!Z63 -> 0 | AB78: ='[4]9.1 EDDVAR Cont Sch'!AA63 -> 0 | AC78: -226856.88 | AD78: 0 | AE78: ='[4]9.1 EDDVAR Cont Sch'!AD63 -> 0 | AF78: ='[4]9.1 EDDVAR Cont Sch'!AE63 -> 0 | AG78: ='[4]9.1 EDDVAR Cont Sch'!AF63 -> 0 | AH78: 0 | AI78: -226856.88 | AJ78: ='[4]9.1 EDDVAR Cont Sch'!AI63 -> 226856.88 | AK78: ='[4]9.1 EDDVAR Cont Sch'!AJ63 -> 0 | AL78: =SUM('[4]9.1 EDDVAR Cont Sch'!AK63:AN63) -> 0 | AM78: 0 | AN78: 0 | AO78: ='[4]9.1 EDDVAR Cont Sch'!AQ63 -> 0 | AP78: ='[4]9.1 EDDVAR Cont Sch'!AR63 -> 0 | AQ78: ='[4]9.1 EDDVAR Cont Sch'!AS63 -> 0 | AR78: 0 | AS78: 0 | AT78: ='[4]9.1 EDDVAR Cont Sch'!AV63 -> 0 | AU78: ='[4]9.1 EDDVAR Cont Sch'!AW63 -> 0 | AV78: ='[4]9.1 EDDVAR Cont Sch'!AX63 -> 0 | AW78: 0 | AX78: 0 | AY78: ='[4]9.1 EDDVAR Cont Sch'!BD63 -> 0 | AZ78: ='[4]9.1 EDDVAR Cont Sch'!BE63 -> 0 | BA78: ='[4]9.1 EDDVAR Cont Sch'!BF63 -> 0 | BB78: 0 | BC78: 0 | BD78: ='[4]9.1 EDDVAR Cont Sch'!BI63 -> 0 | BE78: ='[4]9.1 EDDVAR Cont Sch'!BJ63 -> 0 | BF78: ='[4]9.1 EDDVAR Cont Sch'!BK63 -> 0 | BG78: 0 | BH78: 0 | BI78: ='[4]9.1 EDDVAR Cont Sch'!BQ63 -> 0 | BJ78: ='[4]9.1 EDDVAR Cont Sch'!BR63 -> 0 | BK78: ='[4]9.1 EDDVAR Cont Sch'!BS63 -> 0 | BL78: 0 | BM78: ='[4]9.1 EDDVAR Cont Sch'!BU63 -> 0 | BN78: ='[4]9.1 EDDVAR Cont Sch'!BV63 -> 0 | BO78: 0 | BP78: 0 | BQ78: ='[4]9.1 EDDVAR Cont Sch'!BY63 -> 0 | BR78: ='[4]9.1 EDDVAR Cont Sch'!BZ63 -> 0 | BS78: 0 | BT78: ='[4]9.1 EDDVAR Cont Sch'!CB63 -> 0 | BU78: 0
A79: 39 | C79: Smart Meter Capital and Recovery Offset Variance - Sub-Account - Stranded Meter Costs5 | D79: 1555 | E79: ='[4]9.1 EDDVAR Cont Sch'!D64 -> 0 | F79: ='[4]9.1 EDDVAR Cont Sch'!E64 -> 0 | G79: ='[4]9.1 EDDVAR Cont Sch'!F64 -> 0 | H79: ='[4]9.1 EDDVAR Cont Sch'!G64 -> 0 | I79: 0 | J79: ='[4]9.1 EDDVAR Cont Sch'!I64 -> 0 | K79: ='[4]9.1 EDDVAR Cont Sch'!J64 -> 0 | L79: ='[4]9.1 EDDVAR Cont Sch'!K64 -> 0 | M79: ='[4]9.1 EDDVAR Cont Sch'!L64 -> 0 | N79: 0 | O79: 0 | P79: ='[4]9.1 EDDVAR Cont Sch'!O64 -> 0 | Q79: ='[4]9.1 EDDVAR Cont Sch'!P64 -> 0 | R79: ='[4]9.1 EDDVAR Cont Sch'!Q64 -> 0 | S79: 0 | T79: 0 | U79: ='[4]9.1 EDDVAR Cont Sch'!T64 -> 0 | V79: ='[4]9.1 EDDVAR Cont Sch'!U64 -> 0 | W79: ='[4]9.1 EDDVAR Cont Sch'!V64 -> 0 | X79: 0 | Y79: 0 | Z79: ='[4]9.1 EDDVAR Cont Sch'!Y64 -> 0 | AA79: ='[4]9.1 EDDVAR Cont Sch'!Z64 -> 0 | AB79: ='[4]9.1 EDDVAR Cont Sch'!AA64 -> 0 | AC79: 0 | AD79: 0 | AE79: ='[4]9.1 EDDVAR Cont Sch'!AD64 -> 0 | AF79: ='[4]9.1 EDDVAR Cont Sch'!AE64 -> 0 | AG79: ='[4]9.1 EDDVAR Cont Sch'!AF64 -> 0 | AH79: 0 | AI79: 0 | AJ79: ='[4]9.1 EDDVAR Cont Sch'!AI64 -> -20795.73 | AK79: ='[4]9.1 EDDVAR Cont Sch'!AJ64 -> -201233 | AL79: =SUM('[4]9.1 EDDVAR Cont Sch'!AK64:AN64) -> 0 | AM79: 180437.27 | AN79: 0 | AO79: ='[4]9.1 EDDVAR Cont Sch'!AQ64 -> 0 | AP79: ='[4]9.1 EDDVAR Cont Sch'!AR64 -> 0 | AQ79: ='[4]9.1 EDDVAR Cont Sch'!AS64 -> 0 | AR79: 0 | AS79: 180437.27 | AT79: ='[4]9.1 EDDVAR Cont Sch'!AV64 -> -124356.54 | AU79: ='[4]9.1 EDDVAR Cont Sch'!AW64 -> 0 | AV79: ='[4]9.1 EDDVAR Cont Sch'!AX64 -> 0 | AW79: 56080.73 | AX79: 0 | AY79: ='[4]9.1 EDDVAR Cont Sch'!BD64 -> 1815.14 | AZ79: ='[4]9.1 EDDVAR Cont Sch'!BE64 -> 0 | BA79: ='[4]9.1 EDDVAR Cont Sch'!BF64 -> 0 | BB79: 1815.14 | BC79: 56080.73 | BD79: ='[4]9.1 EDDVAR Cont Sch'!BI64 -> -51653.29 | BE79: ='[4]9.1 EDDVAR Cont Sch'!BJ64 -> 0 | BF79: -4427.49 | BG79: -0.05 | BH79: 1815.14 | BI79: ='[4]9.1 EDDVAR Cont Sch'!BQ64 -> 254.97 | BJ79: ='[4]9.1 EDDVAR Cont Sch'!BR64 -> 0 | BK79: -2070.49 | BL79: -0.38 | BM79: ='[4]9.1 EDDVAR Cont Sch'!BU64 -> 0 | BN79: ='[4]9.1 EDDVAR Cont Sch'!BV64 -> 0 | BO79: -0.05 | BP79: -0.38 | BQ79: 0 | BR79: 0 | BS79: -0.43 | BT79: ='[4]9.1 EDDVAR Cont Sch'!CB64 -> 6497.55 | BU79: 6497.98
A80: 40 | C80: Smart Meter OM&A Variance5 | D80: 1556 | E80: ='[4]9.1 EDDVAR Cont Sch'!D65 -> 674.41 | F80: ='[4]9.1 EDDVAR Cont Sch'!E65 -> 18394.31 | G80: ='[4]9.1 EDDVAR Cont Sch'!F65 -> 0 | H80: ='[4]9.1 EDDVAR Cont Sch'!G65 -> 0 | I80: 19068.72 | J80: ='[4]9.1 EDDVAR Cont Sch'!I65 -> 4 | K80: ='[4]9.1 EDDVAR Cont Sch'!J65 -> 8.37 | L80: ='[4]9.1 EDDVAR Cont Sch'!K65 -> 0 | M80: ='[4]9.1 EDDVAR Cont Sch'!L65 -> 0 | N80: 12.37 | O80: 19068.72 | P80: ='[4]9.1 EDDVAR Cont Sch'!O65 -> 94580.73 | Q80: ='[4]9.1 EDDVAR Cont Sch'!P65 -> 0 | R80: ='[4]9.1 EDDVAR Cont Sch'!Q65 -> 0 | S80: 113649.45 | T80: 12.37 | U80: ='[4]9.1 EDDVAR Cont Sch'!T65 -> 19.64 | V80: ='[4]9.1 EDDVAR Cont Sch'!U65 -> 0 | W80: ='[4]9.1 EDDVAR Cont Sch'!V65 -> 0 | X80: 32.01 | Y80: 113649.45 | Z80: ='[4]9.1 EDDVAR Cont Sch'!Y65 -> 128038.87 | AA80: ='[4]9.1 EDDVAR Cont Sch'!Z65 -> 0 | AB80: ='[4]9.1 EDDVAR Cont Sch'!AA65 -> -23011.36 | AC80: 218676.96 | AD80: 32.01 | AE80: ='[4]9.1 EDDVAR Cont Sch'!AD65 -> 1781.49 | AF80: ='[4]9.1 EDDVAR Cont Sch'!AE65 -> 0 | AG80: ='[4]9.1 EDDVAR Cont Sch'!AF65 -> 0 | AH80: 1813.5 | AI80: 218676.96 | AJ80: ='[4]9.1 EDDVAR Cont Sch'!AI65 -> -403333.52 | AK80: ='[4]9.1 EDDVAR Cont Sch'!AJ65 -> 0 | AL80: =SUM('[4]9.1 EDDVAR Cont Sch'!AK65:AN65) -> 184656.86 | AM80: 0.3 | AN80: 1813.5 | AO80: ='[4]9.1 EDDVAR Cont Sch'!AQ65 -> -4815.47 | AP80: ='[4]9.1 EDDVAR Cont Sch'!AR65 -> 0 | AQ80: ='[4]9.1 EDDVAR Cont Sch'!AS65 -> 3001.97 | AR80: 0 | AS80: 0.3 | AT80: ='[4]9.1 EDDVAR Cont Sch'!AV65 -> 0 | AU80: ='[4]9.1 EDDVAR Cont Sch'!AW65 -> 0 | AV80: ='[4]9.1 EDDVAR Cont Sch'!AX65 -> 0 | AW80: 0.3 | AX80: 0 | AY80: ='[4]9.1 EDDVAR Cont Sch'!BD65 -> 0 | AZ80: ='[4]9.1 EDDVAR Cont Sch'!BE65 -> 0 | BA80: ='[4]9.1 EDDVAR Cont Sch'!BF65 -> 0 | BB80: 0 | BC80: 0.3 | BD80: ='[4]9.1 EDDVAR Cont Sch'!BI65 -> 0 | BE80: ='[4]9.1 EDDVAR Cont Sch'!BJ65 -> 0 | BF80: ='[4]9.1 EDDVAR Cont Sch'!BK65 -> 0 | BG80: 0.3 | BH80: 0 | BI80: ='[4]9.1 EDDVAR Cont Sch'!BQ65 -> 0 | BJ80: ='[4]9.1 EDDVAR Cont Sch'!BR65 -> 0 | BK80: ='[4]9.1 EDDVAR Cont Sch'!BS65 -> 0 | BL80: 0 | BM80: ='[4]9.1 EDDVAR Cont Sch'!BU65 -> 0 | BN80: ='[4]9.1 EDDVAR Cont Sch'!BV65 -> 0 | BO80: 0.3 | BP80: 0 | BQ80: ='[4]9.1 EDDVAR Cont Sch'!BY65 -> 0.003577500001 | BR80: ='[4]9.1 EDDVAR Cont Sch'!BZ65 -> 0.0011 | BS80: 0.3046775 | BT80: ='[4]9.1 EDDVAR Cont Sch'!CB65 -> 0 | BU80: -0.3
A82: 41 | C82: IFRS-CGAAP Transition PP&E Amounts Balance + Return Component6 | D82: 1575 | AM82: =AI82+AJ82-AK82+SUM(AL82:AL82) -> 0 | AS82: =AM82 -> 0 | AW82: =AS82+AT82-AU82+SUM(AV82:AV82) -> 0 | BC82: =AW82 -> 0 | BG82: =BC82+BD82-BE82+SUM(BF82:BF82) -> 0 | BO82: =BG82-BM82 -> 0 | BS82: =BO82 -> 0 | BU82: =BT82-SUM(BG82,BL82) -> 0
A83: 42 | C83: Accounting Changes Under CGAAP Balance + Return Component6 | D83: 1576 | AM83: =AI83+AJ83-AK83+SUM(AL83:AL83) -> 0 | AS83: =AM83 -> 0 | AW83: =AS83+AT83-AU83+SUM(AV83:AV83) -> 0 | BC83: =AW83 -> 0 | BG83: =BC83+BD83-BE83+SUM(BF83:BF83) -> 0 | BO83: 0 | BS83: =BO83 -> 0 | BU83: 0
C87: For all Board-Approved dispositions, please ensure that the disposition amount has the same sign (e.g: debit balances are to have a positive figure and credit balance are to have a negative figure) as per the related Board decision.
B88: 1 | C88: Do not include interest, adjustments, or OEB approved dispositions in this column
B89: 2 | C89: Please provide explanations for the nature of the adjustments. If the adjustment relates to previously OEB Approved disposed balances, please provide amounts for adjustments and include supporting documentations.
B90: 3 | C90: As per the January 6, 2011 Letter from the Board, regarding the implementation of the Ontario Clean Energy Benefit:
C91: "By way of exception... The Board does acticipate that licensed distributors that cannot adapt their invoices as of January 1, 2011 will require a variance account for OCEB purposes... The Board expects that any principal
C92: balances in "Sub account Financial Assistance Payment and Recovery Variance - Ontario Clean Energy Benefit Act" will be addressed through the monthly settlement process with the IESO or the host distributor, as applicable.
B93: 4 | C93: Please describe "other" components of 1508 and add more component lines if necessary.
B94: 5 | C94: Deferral accounts related to Smart Meter deployment are not to be recovered/refunded through the Deferral and Variance Account rate rider. For details on how to dispose of balances in Smart Meter accounts see the Board's
C95: Guideline: Smart Meter Disposition and Cost Recovery (G-2011-0001)
B96: 6 | C96: The Board requires that disposition of Account 1575 and Account 1576 shall require the use of separate rate riders. In the "Adjustments during 2015" column of the continuity schedule, please enter the amounts to be included in the Account 1575 and 1576 rate rider calculation from the applicable Chapter 2 appendices. For Account 1575, please provide the value in cell F39 from the relevant Chapter 2 Appendix (i.e. 2-EA, 2-EB or 2-EC). For Account 1576, please provide the value in cell F39 from the relevant Chapter 2 Appendix (i.e. 2-ED or 2-EE).

Sheet 3. Appendix A
B16: Accounts that produced a variance on the 2014 continuity schedule are listed below. Please provide a detailed explanation for each variance below.
C20: Account Descriptions | D20: Account Number | E20: Variance RRR vs. 2014 Balance (Principal + Interest) | F20: Explanation
C23: Group 1 Accounts
A24: 1 | C24: =VLOOKUP(A24, '2. 2015 Continuity Schedule'!$A$24:$BU$84,3,FALSE) -> LV Variance Account | D24: =VLOOKUP(A24, '2. 2015 Continuity Schedule'!$A$24:$BU$84,4,FALSE) -> 1550 | E24: =IF(ISERROR(VLOOKUP($A24, '2. 2015 Continuity Schedule'!$A$20:$BU$86, MATCH('3. Appendix A'!$E$20, '2. 2015 Continuity Schedule'!$A$20:$BU$20,0),FALSE)), 0, VLOOKUP($A24, '2. 2015 Continuity Schedule'!$A$20:$BU$86, MATCH('3. Appendix A'!$E$20, '2. 2015 Continuity Schedule'!$A$20:$BU$20,0),FALSE)) -> 1.46 | F24: Rounding
A25: 2 | C25: =VLOOKUP(A25, '2. 2015 Continuity Schedule'!$A$24:$BU$84,3,FALSE) -> Smart Metering Entity Charge Variance Account | D25: =VLOOKUP(A25, '2. 2015 Continuity Schedule'!$A$24:$BU$84,4,FALSE) -> 1551 | E25: =IF(ISERROR(VLOOKUP($A25, '2. 2015 Continuity Schedule'!$A$20:$BU$86, MATCH('3. Appendix A'!$E$20, '2. 2015 Continuity Schedule'!$A$20:$BU$20,0),FALSE)), 0, VLOOKUP($A25, '2. 2015 Continuity Schedule'!$A$20:$BU$86, MATCH('3. Appendix A'!$E$20, '2. 2015 Continuity Schedule'!$A$20:$BU$20,0),FALSE)) -> 0
A26: 3 | C26: =VLOOKUP(A26, '2. 2015 Continuity Schedule'!$A$24:$BU$84,3,FALSE) -> RSVA - Wholesale Market Service Charge | D26: =VLOOKUP(A26, '2. 2015 Continuity Schedule'!$A$24:$BU$84,4,FALSE) -> 1580 | E26: =IF(ISERROR(VLOOKUP($A26, '2. 2015 Continuity Schedule'!$A$20:$BU$86, MATCH('3. Appendix A'!$E$20, '2. 2015 Continuity Schedule'!$A$20:$BU$20,0),FALSE)), 0, VLOOKUP($A26, '2. 2015 Continuity Schedule'!$A$20:$BU$86, MATCH('3. Appendix A'!$E$20, '2. 2015 Continuity Schedule'!$A$20:$BU$20,0),FALSE)) -> 0.85 | F26: Rounding
A27: 4 | C27: =VLOOKUP(A27, '2. 2015 Continuity Schedule'!$A$24:$BU$84,3,FALSE) -> RSVA - Retail Transmission Network Charge | D27: =VLOOKUP(A27, '2. 2015 Continuity Schedule'!$A$24:$BU$84,4,FALSE) -> 1584 | E27: =IF(ISERROR(VLOOKUP($A27, '2. 2015 Continuity Schedule'!$A$20:$BU$86, MATCH('3. Appendix A'!$E$20, '2. 2015 Continuity Schedule'!$A$20:$BU$20,0),FALSE)), 0, VLOOKUP($A27, '2. 2015 Continuity Schedule'!$A$20:$BU$86, MATCH('3. Appendix A'!$E$20, '2. 2015 Continuity Schedule'!$A$20:$BU$20,0),FALSE)) -> -0.44 | F27: Rounding
A28: 5 | C28: =VLOOKUP(A28, '2. 2015 Continuity Schedule'!$A$24:$BU$84,3,FALSE) -> RSVA - Retail Transmission Connection Charge | D28: =VLOOKUP(A28, '2. 2015 Continuity Schedule'!$A$24:$BU$84,4,FALSE) -> 1586 | E28: =IF(ISERROR(VLOOKUP($A28, '2. 2015 Continuity Schedule'!$A$20:$BU$86, MATCH('3. Appendix A'!$E$20, '2. 2015 Continuity Schedule'!$A$20:$BU$20,0),FALSE)), 0, VLOOKUP($A28, '2. 2015 Continuity Schedule'!$A$20:$BU$86, MATCH('3. Appendix A'!$E$20, '2. 2015 Continuity Schedule'!$A$20:$BU$20,0),FALSE)) -> 0.57 | F28: Rounding
A29: 6 | C29: =VLOOKUP(A29, '2. 2015 Continuity Schedule'!$A$24:$BU$84,3,FALSE) -> RSVA - Power (excluding Global Adjustment) | D29: =VLOOKUP(A29, '2. 2015 Continuity Schedule'!$A$24:$BU$84,4,FALSE) -> 1588 | E29: =IF(ISERROR(VLOOKUP($A29, '2. 2015 Continuity Schedule'!$A$20:$BU$86, MATCH('3. Appendix A'!$E$20, '2. 2015 Continuity Schedule'!$A$20:$BU$20,0),FALSE)), 0, VLOOKUP($A29, '2. 2015 Continuity Schedule'!$A$20:$BU$86, MATCH('3. Appendix A'!$E$20, '2. 2015 Continuity Schedule'!$A$20:$BU$20,0),FALSE)) -> -2.62 | F29: Rounding
A30: 7 | C30: =VLOOKUP(A30, '2. 2015 Continuity Schedule'!$A$24:$BU$84,3,FALSE) -> RSVA - Global Adjustment | D30: =VLOOKUP(A30, '2. 2015 Continuity Schedule'!$A$24:$BU$84,4,FALSE) -> 1589 | E30: =IF(ISERROR(VLOOKUP($A30, '2. 2015 Continuity Schedule'!$A$20:$BU$86, MATCH('3. Appendix A'!$E$20, '2. 2015 Continuity Schedule'!$A$20:$BU$20,0),FALSE)), 0, VLOOKUP($A30, '2. 2015 Continuity Schedule'!$A$20:$BU$86, MATCH('3. Appendix A'!$E$20, '2. 2015 Continuity Schedule'!$A$20:$BU$20,0),FALSE)) -> 0.18 | F30: Rounding
A31: 8 | C31: =VLOOKUP(A31, '2. 2015 Continuity Schedule'!$A$24:$BU$84,3,FALSE) -> Disposition and Recovery/Refund of Regulatory Balances (2008) | D31: =VLOOKUP(A31, '2. 2015 Continuity Schedule'!$A$24:$BU$84,4,FALSE) -> 1595 | E31: =IF(ISERROR(VLOOKUP($A31, '2. 2015 Continuity Schedule'!$A$20:$BU$86, MATCH('3. Appendix A'!$E$20, '2. 2015 Continuity Schedule'!$A$20:$BU$20,0),FALSE)), 0, VLOOKUP($A31, '2. 2015 Continuity Schedule'!$A$20:$BU$86, MATCH('3. Appendix A'!$E$20, '2. 2015 Continuity Schedule'!$A$20:$BU$20,0),FALSE)) -> -0.67 | F31: Rounding
A32: 9 | C32: =VLOOKUP(A32, '2. 2015 Continuity Schedule'!$A$24:$BU$84,3,FALSE) -> Disposition and Recovery/Refund of Regulatory Balances (2009) | D32: =VLOOKUP(A32, '2. 2015 Continuity Schedule'!$A$24:$BU$84,4,FALSE) -> 1595 | E32: =IF(ISERROR(VLOOKUP($A32, '2. 2015 Continuity Schedule'!$A$20:$BU$86, MATCH('3. Appendix A'!$E$20, '2. 2015 Continuity Schedule'!$A$20:$BU$20,0),FALSE)), 0, VLOOKUP($A32, '2. 2015 Continuity Schedule'!$A$20:$BU$86, MATCH('3. Appendix A'!$E$20, '2. 2015 Continuity Schedule'!$A$20:$BU$20,0),FALSE)) -> 0
A33: 10 | C33: =VLOOKUP(A33, '2. 2015 Continuity Schedule'!$A$24:$BU$84,3,FALSE) -> Disposition and Recovery/Refund of Regulatory Balances (2010) | D33: =VLOOKUP(A33, '2. 2015 Continuity Schedule'!$A$24:$BU$84,4,FALSE) -> 1595 | E33: =IF(ISERROR(VLOOKUP($A33, '2. 2015 Continuity Schedule'!$A$20:$BU$86, MATCH('3. Appendix A'!$E$20, '2. 2015 Continuity Schedule'!$A$20:$BU$20,0),FALSE)), 0, VLOOKUP($A33, '2. 2015 Continuity Schedule'!$A$20:$BU$86, MATCH('3. Appendix A'!$E$20, '2. 2015 Continuity Schedule'!$A$20:$BU$20,0),FALSE)) -> -1.57 | F33: Rounding
A34: 11 | C34: =VLOOKUP(A34, '2. 2015 Continuity Schedule'!$A$24:$BU$84,3,FALSE) -> Disposition and Recovery/Refund of Regulatory Balances (2011) | D34: =VLOOKUP(A34, '2. 2015 Continuity Schedule'!$A$24:$BU$84,4,FALSE) -> 1595 | E34: =IF(ISERROR(VLOOKUP($A34, '2. 2015 Continuity Schedule'!$A$20:$BU$86, MATCH('3. Appendix A'!$E$20, '2. 2015 Continuity Schedule'!$A$20:$BU$20,0),FALSE)), 0, VLOOKUP($A34, '2. 2015 Continuity Schedule'!$A$20:$BU$86, MATCH('3. Appendix A'!$E$20, '2. 2015 Continuity Schedule'!$A$20:$BU$20,0),FALSE)) -> 0
A35: 12 | C35: =VLOOKUP(A35, '2. 2015 Continuity Schedule'!$A$24:$BU$84,3,FALSE) -> Disposition and Recovery/Refund of Regulatory Balances (2012) | D35: =VLOOKUP(A35, '2. 2015 Continuity Schedule'!$A$24:$BU$84,4,FALSE) -> 1595 | E35: =IF(ISERROR(VLOOKUP($A35, '2. 2015 Continuity Schedule'!$A$20:$BU$86, MATCH('3. Appendix A'!$E$20, '2. 2015 Continuity Schedule'!$A$20:$BU$20,0),FALSE)), 0, VLOOKUP($A35, '2. 2015 Continuity Schedule'!$A$20:$BU$86, MATCH('3. Appendix A'!$E$20, '2. 2015 Continuity Schedule'!$A$20:$BU$20,0),FALSE)) -> 0
A36: 13 | C36: =VLOOKUP(A36, '2. 2015 Continuity Schedule'!$A$24:$BU$84,3,FALSE) -> Disposition and Recovery/Refund of Regulatory Balances (2013) | D36: =VLOOKUP(A36, '2. 2015 Continuity Schedule'!$A$24:$BU$84,4,FALSE) -> 1595 | E36: =IF(ISERROR(VLOOKUP($A36, '2. 2015 Continuity Schedule'!$A$20:$BU$86, MATCH('3. Appendix A'!$E$20, '2. 2015 Continuity Schedule'!$A$20:$BU$20,0),FALSE)), 0, VLOOKUP($A36, '2. 2015 Continuity Schedule'!$A$20:$BU$86, MATCH('3. Appendix A'!$E$20, '2. 2015 Continuity Schedule'!$A$20:$BU$20,0),FALSE)) -> 0
A37: 14 | C37: =VLOOKUP(A37, '2. 2015 Continuity Schedule'!$A$24:$BU$84,3,FALSE) -> Disposition and Recovery/Refund of Regulatory Balances (2014) | D37: =VLOOKUP(A37, '2. 2015 Continuity Schedule'!$A$24:$BU$84,4,FALSE) -> 1595 | E37: =IF(ISERROR(VLOOKUP($A37, '2. 2015 Continuity Schedule'!$A$20:$BU$86, MATCH('3. Appendix A'!$E$20, '2. 2015 Continuity Schedule'!$A$20:$BU$20,0),FALSE)), 0, VLOOKUP($A37, '2. 2015 Continuity Schedule'!$A$20:$BU$86, MATCH('3. Appendix A'!$E$20, '2. 2015 Continuity Schedule'!$A$20:$BU$20,0),FALSE)) -> -58040.1 | F37: This is the 2014 IRM(EB-2013-0178) Disposition Balance at Dec 31,2014 with a rate rider sunset date of Apr 30, 2015. No disposition is requested in this application. It is anticipated that disposition will be requested in WNP's 2016 IRM.
C39: Group 2 Accounts
A40: 15 | C40: =VLOOKUP(A40, '2. 2015 Continuity Schedule'!$A$24:$BU$84,3,FALSE) -> Other Regulatory Assets - Sub-Account - Deferred IFRS Transition Costs | D40: =VLOOKUP(A40, '2. 2015 Continuity Schedule'!$A$24:$BU$84,4,FALSE) -> 1508 | E40: =IF(ISERROR(VLOOKUP($A40, '2. 2015 Continuity Schedule'!$A$20:$BU$86, MATCH('3. Appendix A'!$E$20, '2. 2015 Continuity Schedule'!$A$20:$BU$20,0),FALSE)), 0, VLOOKUP($A40, '2. 2015 Continuity Schedule'!$A$20:$BU$86, MATCH('3. Appendix A'!$E$20, '2. 2015 Continuity Schedule'!$A$20:$BU$20,0),FALSE)) -> 1360415.5 | F40: The amounts in 1508 include Incremental Capital data that will be transferred to Assets instead of being disposed of in a rate rider as this model is intended for.
A41: 16 | C41: =VLOOKUP(A41, '2. 2015 Continuity Schedule'!$A$24:$BU$84,3,FALSE) -> Other Regulatory Assets - Sub-Account - Incremental Capital Charges | D41: =VLOOKUP(A41, '2. 2015 Continuity Schedule'!$A$24:$BU$84,4,FALSE) -> 1508 | E41: =IF(ISERROR(VLOOKUP($A41, '2. 2015 Continuity Schedule'!$A$20:$BU$86, MATCH('3. Appendix A'!$E$20, '2. 2015 Continuity Schedule'!$A$20:$BU$20,0),FALSE)), 0, VLOOKUP($A41, '2. 2015 Continuity Schedule'!$A$20:$BU$86, MATCH('3. Appendix A'!$E$20, '2. 2015 Continuity Schedule'!$A$20:$BU$20,0),FALSE)) -> 0 | F41: Combination of all 1508 accounts nets to Zero.
A42: 17 | C42: =VLOOKUP(A42, '2. 2015 Continuity Schedule'!$A$24:$BU$84,3,FALSE) -> Other Regulatory Assets - Sub-Account - Financial Assistance Payment and Recovery Variance - Ontario Clean Energy Benefit Act8 | D42: =VLOOKUP(A42, '2. 2015 Continuity Schedule'!$A$24:$BU$84,4,FALSE) -> 1508 | E42: =IF(ISERROR(VLOOKUP($A42, '2. 2015 Continuity Schedule'!$A$20:$BU$86, MATCH('3. Appendix A'!$E$20, '2. 2015 Continuity Schedule'!$A$20:$BU$20,0),FALSE)), 0, VLOOKUP($A42, '2. 2015 Continuity Schedule'!$A$20:$BU$86, MATCH('3. Appendix A'!$E$20, '2. 2015 Continuity Schedule'!$A$20:$BU$20,0),FALSE)) -> 0
A43: 18 | C43: =VLOOKUP(A43, '2. 2015 Continuity Schedule'!$A$24:$BU$84,3,FALSE) -> Other Regulatory Assets - Sub-Account - Financial Assistance Payment and Recovery Carrying Charges | D43: =VLOOKUP(A43, '2. 2015 Continuity Schedule'!$A$24:$BU$84,4,FALSE) -> 1508 | E43: =IF(ISERROR(VLOOKUP($A43, '2. 2015 Continuity Schedule'!$A$20:$BU$86, MATCH('3. Appendix A'!$E$20, '2. 2015 Continuity Schedule'!$A$20:$BU$20,0),FALSE)), 0, VLOOKUP($A43, '2. 2015 Continuity Schedule'!$A$20:$BU$86, MATCH('3. Appendix A'!$E$20, '2. 2015 Continuity Schedule'!$A$20:$BU$20,0),FALSE)) -> -7828 | F43: True-up amount for Incremental Capital Rate Rider.
A44: 19 | C44: =VLOOKUP(A44, '2. 2015 Continuity Schedule'!$A$24:$BU$84,3,FALSE) -> Other Regulatory Assets - Sub-Account - Other 4 | D44: =VLOOKUP(A44, '2. 2015 Continuity Schedule'!$A$24:$BU$84,4,FALSE) -> 1508 | E44: =IF(ISERROR(VLOOKUP($A44, '2. 2015 Continuity Schedule'!$A$20:$BU$86, MATCH('3. Appendix A'!$E$20, '2. 2015 Continuity Schedule'!$A$20:$BU$20,0),FALSE)), 0, VLOOKUP($A44, '2. 2015 Continuity Schedule'!$A$20:$BU$86, MATCH('3. Appendix A'!$E$20, '2. 2015 Continuity Schedule'!$A$20:$BU$20,0),FALSE)) -> -0.21 | F44: Rounding
A45: 20 | C45: =VLOOKUP(A45, '2. 2015 Continuity Schedule'!$A$24:$BU$84,3,FALSE) -> Retail Cost Variance Account - Retail | D45: =VLOOKUP(A45, '2. 2015 Continuity Schedule'!$A$24:$BU$84,4,FALSE) -> 1518 | E45: =IF(ISERROR(VLOOKUP($A45, '2. 2015 Continuity Schedule'!$A$20:$BU$86, MATCH('3. Appendix A'!$E$20, '2. 2015 Continuity Schedule'!$A$20:$BU$20,0),FALSE)), 0, VLOOKUP($A45, '2. 2015 Continuity Schedule'!$A$20:$BU$86, MATCH('3. Appendix A'!$E$20, '2. 2015 Continuity Schedule'!$A$20:$BU$20,0),FALSE)) -> 0.58 | F45: Rounding
A46: 21 | C46: =VLOOKUP(A46, '2. 2015 Continuity Schedule'!$A$24:$BU$84,3,FALSE) -> Misc. Deferred Debits | D46: =VLOOKUP(A46, '2. 2015 Continuity Schedule'!$A$24:$BU$84,4,FALSE) -> 1525 | E46: =IF(ISERROR(VLOOKUP($A46, '2. 2015 Continuity Schedule'!$A$20:$BU$86, MATCH('3. Appendix A'!$E$20, '2. 2015 Continuity Schedule'!$A$20:$BU$20,0),FALSE)), 0, VLOOKUP($A46, '2. 2015 Continuity Schedule'!$A$20:$BU$86, MATCH('3. Appendix A'!$E$20, '2. 2015 Continuity Schedule'!$A$20:$BU$20,0),FALSE)) -> 0.14 | F46: Rounding
A47: 22 | C47: =VLOOKUP(A47, '2. 2015 Continuity Schedule'!$A$24:$BU$84,3,FALSE) -> Board-Approved CDM Variance Account | D47: =VLOOKUP(A47, '2. 2015 Continuity Schedule'!$A$24:$BU$84,4,FALSE) -> 1567 | E47: =IF(ISERROR(VLOOKUP($A47, '2. 2015 Continuity Schedule'!$A$20:$BU$86, MATCH('3. Appendix A'!$E$20, '2. 2015 Continuity Schedule'!$A$20:$BU$20,0),FALSE)), 0, VLOOKUP($A47, '2. 2015 Continuity Schedule'!$A$20:$BU$86, MATCH('3. Appendix A'!$E$20, '2. 2015 Continuity Schedule'!$A$20:$BU$20,0),FALSE)) -> 0
A48: 23 | C48: =VLOOKUP(A48, '2. 2015 Continuity Schedule'!$A$24:$BU$84,3,FALSE) -> Extra-Ordinary Event Costs | D48: =VLOOKUP(A48, '2. 2015 Continuity Schedule'!$A$24:$BU$84,4,FALSE) -> 1572 | E48: =IF(ISERROR(VLOOKUP($A48, '2. 2015 Continuity Schedule'!$A$20:$BU$86, MATCH('3. Appendix A'!$E$20, '2. 2015 Continuity Schedule'!$A$20:$BU$20,0),FALSE)), 0, VLOOKUP($A48, '2. 2015 Continuity Schedule'!$A$20:$BU$86, MATCH('3. Appendix A'!$E$20, '2. 2015 Continuity Schedule'!$A$20:$BU$20,0),FALSE)) -> 0
A49: 24 | C49: =VLOOKUP(A49, '2. 2015 Continuity Schedule'!$A$24:$BU$84,3,FALSE) -> Deferred Rate Impact Amounts | D49: =VLOOKUP(A49, '2. 2015 Continuity Schedule'!$A$24:$BU$84,4,FALSE) -> 1574 | E49: =IF(ISERROR(VLOOKUP($A49, '2. 2015 Continuity Schedule'!$A$20:$BU$86, MATCH('3. Appendix A'!$E$20, '2. 2015 Continuity Schedule'!$A$20:$BU$20,0),FALSE)), 0, VLOOKUP($A49, '2. 2015 Continuity Schedule'!$A$20:$BU$86, MATCH('3. Appendix A'!$E$20, '2. 2015 Continuity Schedule'!$A$20:$BU$20,0),FALSE)) -> 0
A50: 25 | C50: =VLOOKUP(A50, '2. 2015 Continuity Schedule'!$A$24:$BU$84,3,FALSE) -> RSVA - One-time | D50: =VLOOKUP(A50, '2. 2015 Continuity Schedule'!$A$24:$BU$84,4,FALSE) -> 1582 | E50: =IF(ISERROR(VLOOKUP($A50, '2. 2015 Continuity Schedule'!$A$20:$BU$86, MATCH('3. Appendix A'!$E$20, '2. 2015 Continuity Schedule'!$A$20:$BU$20,0),FALSE)), 0, VLOOKUP($A50, '2. 2015 Continuity Schedule'!$A$20:$BU$86, MATCH('3. Appendix A'!$E$20, '2. 2015 Continuity Schedule'!$A$20:$BU$20,0),FALSE)) -> 0
A51: 26 | C51: =VLOOKUP(A51, '2. 2015 Continuity Schedule'!$A$24:$BU$84,3,FALSE) -> Other Deferred Credits | D51: =VLOOKUP(A51, '2. 2015 Continuity Schedule'!$A$24:$BU$84,4,FALSE) -> 2425 | E51: =IF(ISERROR(VLOOKUP($A51, '2. 2015 Continuity Schedule'!$A$20:$BU$86, MATCH('3. Appendix A'!$E$20, '2. 2015 Continuity Schedule'!$A$20:$BU$20,0),FALSE)), 0, VLOOKUP($A51, '2. 2015 Continuity Schedule'!$A$20:$BU$86, MATCH('3. Appendix A'!$E$20, '2. 2015 Continuity Schedule'!$A$20:$BU$20,0),FALSE)) -> 0
A52: 27 | C52: =VLOOKUP(A52, '2. 2015 Continuity Schedule'!$A$24:$BU$84,3,FALSE) -> PILs and Tax Variance for 2006 and Subsequent Years (excludes sub-account and contra account below) | D52: =VLOOKUP(A52, '2. 2015 Continuity Schedule'!$A$24:$BU$84,4,FALSE) -> 1592 | E52: =IF(ISERROR(VLOOKUP($A52, '2. 2015 Continuity Schedule'!$A$20:$BU$86, MATCH('3. Appendix A'!$E$20, '2. 2015 Continuity Schedule'!$A$20:$BU$20,0),FALSE)), 0, VLOOKUP($A52, '2. 2015 Continuity Schedule'!$A$20:$BU$86, MATCH('3. Appendix A'!$E$20, '2. 2015 Continuity Schedule'!$A$20:$BU$20,0),FALSE)) -> 0 | F52: For proper disposition of the amounts in this account the contra account information had to be removed and the totals of the amounts that had not been previously disposed of were divided by two to allocate 1/2 the HST savings to customers.
A53: 28 | C53: =VLOOKUP(A53, '2. 2015 Continuity Schedule'!$A$24:$BU$84,3,FALSE) -> PILs and Tax Variance for 2006 and Subsequent Years - Sub-Account HST/OVAT Input Tax Credits (ITCs) | D53: =VLOOKUP(A53, '2. 2015 Continuity Schedule'!$A$24:$BU$84,4,FALSE) -> 1592 | E53: =IF(ISERROR(VLOOKUP($A53, '2. 2015 Continuity Schedule'!$A$20:$BU$86, MATCH('3. Appendix A'!$E$20, '2. 2015 Continuity Schedule'!$A$20:$BU$20,0),FALSE)), 0, VLOOKUP($A53, '2. 2015 Continuity Schedule'!$A$20:$BU$86, MATCH('3. Appendix A'!$E$20, '2. 2015 Continuity Schedule'!$A$20:$BU$20,0),FALSE)) -> 22824.835 | F53: In order to supply this model with the correct amounts to be disposed of, the contra account information had to be deleted and the amounts that had not been disposed of previously had to be divided by two. This will assign 1/2 the HST cost savings to customers as intended. During the previous disposal of 1592 in the 2012 COS the contra account was not decreased by the amount of the disposition. The resulting variance will be corrected with the new disposition.
A54: 29 | C54: =VLOOKUP(A54, '2. 2015 Continuity Schedule'!$A$24:$BU$84,3,FALSE) -> LRAM Variance Account | D54: =VLOOKUP(A54, '2. 2015 Continuity Schedule'!$A$24:$BU$84,4,FALSE) -> 1568 | E54: =IF(ISERROR(VLOOKUP($A54, '2. 2015 Continuity Schedule'!$A$20:$BU$86, MATCH('3. Appendix A'!$E$20, '2. 2015 Continuity Schedule'!$A$20:$BU$20,0),FALSE)), 0, VLOOKUP($A54, '2. 2015 Continuity Schedule'!$A$20:$BU$86, MATCH('3. Appendix A'!$E$20, '2. 2015 Continuity Schedule'!$A$20:$BU$20,0),FALSE)) -> -12143.3 | F54: This variance occurred when the CDM adjustment to LRAM was corrected to be calculated on a fixed rather than incremental basis in the years 2012 - 2014.
A55: 30 | C55: =VLOOKUP(A55, '2. 2015 Continuity Schedule'!$A$24:$BU$84,3,FALSE) -> Renewable Generation Connection Capital Deferral Account | D55: =VLOOKUP(A55, '2. 2015 Continuity Schedule'!$A$24:$BU$84,4,FALSE) -> 1531 | E55: =IF(ISERROR(VLOOKUP($A55, '2. 2015 Continuity Schedule'!$A$20:$BU$86, MATCH('3. Appendix A'!$E$20, '2. 2015 Continuity Schedule'!$A$20:$BU$20,0),FALSE)), 0, VLOOKUP($A55, '2. 2015 Continuity Schedule'!$A$20:$BU$86, MATCH('3. Appendix A'!$E$20, '2. 2015 Continuity Schedule'!$A$20:$BU$20,0),FALSE)) -> -6497.98 | F55: Since the EDDVAR model does not incorporate the 1555 account into the rate rider calculations, this amount was transferred to 1531 In order to dispose of balances in 1555.
A56: 31 | C56: =VLOOKUP(A56, '2. 2015 Continuity Schedule'!$A$24:$BU$84,3,FALSE) -> Renewable Generation Connection OM&A Deferral Account | D56: =VLOOKUP(A56, '2. 2015 Continuity Schedule'!$A$24:$BU$84,4,FALSE) -> 1532 | E56: =IF(ISERROR(VLOOKUP($A56, '2. 2015 Continuity Schedule'!$A$20:$BU$86, MATCH('3. Appendix A'!$E$20, '2. 2015 Continuity Schedule'!$A$20:$BU$20,0),FALSE)), 0, VLOOKUP($A56, '2. 2015 Continuity Schedule'!$A$20:$BU$86, MATCH('3. Appendix A'!$E$20, '2. 2015 Continuity Schedule'!$A$20:$BU$20,0),FALSE)) -> 0
A57: 32 | C57: =VLOOKUP(A57, '2. 2015 Continuity Schedule'!$A$24:$BU$84,3,FALSE) -> Renewable Generation Connection Funding Adder Deferral Account | D57: =VLOOKUP(A57, '2. 2015 Continuity Schedule'!$A$24:$BU$84,4,FALSE) -> 1533 | E57: =IF(ISERROR(VLOOKUP($A57, '2. 2015 Continuity Schedule'!$A$20:$BU$86, MATCH('3. Appendix A'!$E$20, '2. 2015 Continuity Schedule'!$A$20:$BU$20,0),FALSE)), 0, VLOOKUP($A57, '2. 2015 Continuity Schedule'!$A$20:$BU$86, MATCH('3. Appendix A'!$E$20, '2. 2015 Continuity Schedule'!$A$20:$BU$20,0),FALSE)) -> 0
A58: 33 | C58: =VLOOKUP(A58, '2. 2015 Continuity Schedule'!$A$24:$BU$84,3,FALSE) -> Smart Grid Capital Deferral Account | D58: =VLOOKUP(A58, '2. 2015 Continuity Schedule'!$A$24:$BU$84,4,FALSE) -> 1534 | E58: =IF(ISERROR(VLOOKUP($A58, '2. 2015 Continuity Schedule'!$A$20:$BU$86, MATCH('3. Appendix A'!$E$20, '2. 2015 Continuity Schedule'!$A$20:$BU$20,0),FALSE)), 0, VLOOKUP($A58, '2. 2015 Continuity Schedule'!$A$20:$BU$86, MATCH('3. Appendix A'!$E$20, '2. 2015 Continuity Schedule'!$A$20:$BU$20,0),FALSE)) -> 0
A59: 34 | C59: =VLOOKUP(A59, '2. 2015 Continuity Schedule'!$A$24:$BU$84,3,FALSE) -> Smart Grid OM&A Deferral Account | D59: =VLOOKUP(A59, '2. 2015 Continuity Schedule'!$A$24:$BU$84,4,FALSE) -> 1535 | E59: =IF(ISERROR(VLOOKUP($A59, '2. 2015 Continuity Schedule'!$A$20:$BU$86, MATCH('3. Appendix A'!$E$20, '2. 2015 Continuity Schedule'!$A$20:$BU$20,0),FALSE)), 0, VLOOKUP($A59, '2. 2015 Continuity Schedule'!$A$20:$BU$86, MATCH('3. Appendix A'!$E$20, '2. 2015 Continuity Schedule'!$A$20:$BU$20,0),FALSE)) -> 0
A60: 35 | C60: =VLOOKUP(A60, '2. 2015 Continuity Schedule'!$A$24:$BU$84,3,FALSE) -> Smart Grid Funding Adder Deferral Account | D60: =VLOOKUP(A60, '2. 2015 Continuity Schedule'!$A$24:$BU$84,4,FALSE) -> 1536 | E60: =IF(ISERROR(VLOOKUP($A60, '2. 2015 Continuity Schedule'!$A$20:$BU$86, MATCH('3. Appendix A'!$E$20, '2. 2015 Continuity Schedule'!$A$20:$BU$20,0),FALSE)), 0, VLOOKUP($A60, '2. 2015 Continuity Schedule'!$A$20:$BU$86, MATCH('3. Appendix A'!$E$20, '2. 2015 Continuity Schedule'!$A$20:$BU$20,0),FALSE)) -> 0
A61: 36 | C61: =VLOOKUP(A61, '2. 2015 Continuity Schedule'!$A$24:$BU$84,3,FALSE) -> Retail Cost Variance Account - STR | D61: =VLOOKUP(A61, '2. 2015 Continuity Schedule'!$A$24:$BU$84,4,FALSE) -> 1548 | E61: =IF(ISERROR(VLOOKUP($A61, '2. 2015 Continuity Schedule'!$A$20:$BU$86, MATCH('3. Appendix A'!$E$20, '2. 2015 Continuity Schedule'!$A$20:$BU$20,0),FALSE)), 0, VLOOKUP($A61, '2. 2015 Continuity Schedule'!$A$20:$BU$86, MATCH('3. Appendix A'!$E$20, '2. 2015 Continuity Schedule'!$A$20:$BU$20,0),FALSE)) -> 0.57 | F61: Rounding
A62: 37 | C62: =VLOOKUP(A62, '2. 2015 Continuity Schedule'!$A$24:$BU$84,3,FALSE) -> Smart Meter Capital and Recovery Offset Variance - Sub-Account - Capital5 | D62: =VLOOKUP(A62, '2. 2015 Continuity Schedule'!$A$24:$BU$84,4,FALSE) -> 1555 | E62: =IF(ISERROR(VLOOKUP($A62, '2. 2015 Continuity Schedule'!$A$20:$BU$86, MATCH('3. Appendix A'!$E$20, '2. 2015 Continuity Schedule'!$A$20:$BU$20,0),FALSE)), 0, VLOOKUP($A62, '2. 2015 Continuity Schedule'!$A$20:$BU$86, MATCH('3. Appendix A'!$E$20, '2. 2015 Continuity Schedule'!$A$20:$BU$20,0),FALSE)) -> -0.1200000001 | F62: Rounding
A63: 38 | C63: =VLOOKUP(A63, '2. 2015 Continuity Schedule'!$A$24:$BU$84,3,FALSE) -> Smart Meter Capital and Recovery Offset Variance - Sub-Account - Recoveries5 | D63: =VLOOKUP(A63, '2. 2015 Continuity Schedule'!$A$24:$BU$84,4,FALSE) -> 1555 | E63: =IF(ISERROR(VLOOKUP($A63, '2. 2015 Continuity Schedule'!$A$20:$BU$86, MATCH('3. Appendix A'!$E$20, '2. 2015 Continuity Schedule'!$A$20:$BU$20,0),FALSE)), 0, VLOOKUP($A63, '2. 2015 Continuity Schedule'!$A$20:$BU$86, MATCH('3. Appendix A'!$E$20, '2. 2015 Continuity Schedule'!$A$20:$BU$20,0),FALSE)) -> 0
A64: 39 | C64: =VLOOKUP(A64, '2. 2015 Continuity Schedule'!$A$24:$BU$84,3,FALSE) -> Smart Meter Capital and Recovery Offset Variance - Sub-Account - Stranded Meter Costs5 | D64: =VLOOKUP(A64, '2. 2015 Continuity Schedule'!$A$24:$BU$84,4,FALSE) -> 1555 | E64: =IF(ISERROR(VLOOKUP($A64, '2. 2015 Continuity Schedule'!$A$20:$BU$86, MATCH('3. Appendix A'!$E$20, '2. 2015 Continuity Schedule'!$A$20:$BU$20,0),FALSE)), 0, VLOOKUP($A64, '2. 2015 Continuity Schedule'!$A$20:$BU$86, MATCH('3. Appendix A'!$E$20, '2. 2015 Continuity Schedule'!$A$20:$BU$20,0),FALSE)) -> 6497.98 | F64: Since the EDDVAR model does not incorporate the 1555 account into the rate rider calculations, this amount was transferred to 1531 In order to dispose of balances in 1555.
A65: 40 | C65: =VLOOKUP(A65, '2. 2015 Continuity Schedule'!$A$24:$BU$84,3,FALSE) -> Smart Meter OM&A Variance5 | D65: =VLOOKUP(A65, '2. 2015 Continuity Schedule'!$A$24:$BU$84,4,FALSE) -> 1556 | E65: =IF(ISERROR(VLOOKUP($A65, '2. 2015 Continuity Schedule'!$A$20:$BU$86, MATCH('3. Appendix A'!$E$20, '2. 2015 Continuity Schedule'!$A$20:$BU$20,0),FALSE)), 0, VLOOKUP($A65, '2. 2015 Continuity Schedule'!$A$20:$BU$86, MATCH('3. Appendix A'!$E$20, '2. 2015 Continuity Schedule'!$A$20:$BU$20,0),FALSE)) -> -0.3 | F65: Rounding
A66: 41 | C66: =VLOOKUP(A66, '2. 2015 Continuity Schedule'!$A$24:$BU$84,3,FALSE) -> IFRS-CGAAP Transition PP&E Amounts Balance + Return Component6 | D66: =VLOOKUP(A66, '2. 2015 Continuity Schedule'!$A$24:$BU$84,4,FALSE) -> 1575 | E66: =IF(ISERROR(VLOOKUP($A66, '2. 2015 Continuity Schedule'!$A$20:$BU$86, MATCH('3. Appendix A'!$E$20, '2. 2015 Continuity Schedule'!$A$20:$BU$20,0),FALSE)), 0, VLOOKUP($A66, '2. 2015 Continuity Schedule'!$A$20:$BU$86, MATCH('3. Appendix A'!$E$20, '2. 2015 Continuity Schedule'!$A$20:$BU$20,0),FALSE)) -> 0

Sheet 4. Billing Determinants
B16: In the green shaded cells, enter the data related to the proposed load forecast. Do not enter data for the MicroFit class.
B19: Rate Class (Enter Rate Classes in cells below as they appear on your current tariff of rates and charges) | C19: Units | D19: # of Customers | E19: Total Metered kWh | F19: Total Metered kW | G19: Billed kWh for Non-RPP Customers | H19: Billed kW for Non-RPP Customers | I19: Distribution Revenue 1 | J19: Billed kWh for Wholesale Market Participants (WMP) | K19: Billed kW for Wholesale Market Participants (WMP) | L19: Total Metered kWh less WMP consumption (if applicable) | M19: Total Metered kW less WMP Demand (if applicable) | N19: GA Allocator for Class A, Non-WMP Customers (if applicable)3 | O19: Billed kWh for Class A, Non-WMPs Customers (if applicable) | P19: Billed kW for Class A Non-WMP Customers (if applicable) | Q19: Billed kWh for Non-RPP Customers LESS Class A Consumption | R19: Billed kW for Non-RPP Customers LESS Class A Demand | S19: 1595 Recovery Share Proportion (2008) 2 | T19: 1595 Recovery Share Proportion (2009) 2 | U19: 1595 Recovery Share Proportion (2010) 2 | V19: 1595 Recovery Share Proportion (2011) 2 | W19: 1595 Recovery Share Proportion (2012) 2 | X19: 1595 Recovery Share Proportion (2013) 2 | Y19: 1595 Recovery Share Proportion (2014) 2 | Z19: 1568 LRAM Variance Account Class Allocation ($ amounts)
B21: RESIDENTIAL | C21: kWh | D21: ='[5]8. Summary'!$M$20 -> 3250.840911 | E21: ='[5]8. Summary'!$M$21 -> 27408199.54 | G21: ='[5]2016 COP Forecast'!$E$30 -> 1572379.26 | H21: =IF(ISERROR(F21/E21*G21), 0, F21/E21*G21) -> 0 | I21: 1352389.86 | L21: =E21-J21 -> 27408199.54 | M21: =F21-K21 -> 0 | Q21: =IF(OR(G21=0, ISBLANK(G21)), 0, G21-J21-O21) -> 1572379.26 | R21: =IF(OR(H21=0, ISBLANK(H21)), 0, H21-K21-P21) -> 0 | S21: 0.5185 | U21: 0.8073 | W21: 0.2206147945 | Y21: 0.03854437781 | Z21: ='[6]3.0 LRAMVA Register'!$B$30 -> 3804.039955
B22: GENERAL SERVICE LESS THAN 50 KW | C22: kWh | D22: ='[5]8. Summary'!$M$24 -> 475.5250124 | E22: ='[5]8. Summary'!$M$25 -> 12494682.45 | G22: ='[5]2016 COP Forecast'!$E$31 -> 2659314.51 | H22: =IF(ISERROR(F22/E22*G22), 0, F22/E22*G22) -> 0 | I22: 478405.193 | L22: =E22-J22 -> 12494682.45 | M22: =F22-K22 -> 0 | Q22: =IF(OR(G22=0, ISBLANK(G22)), 0, G22-J22-O22) -> 2659314.51 | R22: =IF(OR(H22=0, ISBLANK(H22)), 0, H22-K22-P22) -> 0 | S22: 0.2028 | U22: 0.2782 | W22: 0.2079477651 | Y22: 0.01457275945 | Z22: ='[6]3.0 LRAMVA Register'!$C$30 -> 7453.917939
B23: GENERAL SERVICE 50 TO 999 KW | C23: kW | D23: ='[5]8. Summary'!$M$28 -> 38.06096069 | E23: ='[5]8. Summary'!$M$29 -> 14065278.87 | F23: ='[5]8. Summary'!$M$30 -> 43361.72032 | G23: ='[5]2016 COP Forecast'!$E$32 -> 14273256.7 | H23: 44002.89328 | I23: 373334.7686 | L23: 14065278.87 | M23: 43361.72032 | Q23: 14273256.7 | R23: 44002.89328 | S23: 0.1608 | U23: 0.0266 | W23: 0.1960406526 | Y23: 0.2781660609 | Z23: ='[6]3.0 LRAMVA Register'!$D$30 -> 17.19212061
B24: GENERAL SERVICE 1,000 TO 4,999 KW | C24: kW | D24: ='[5]8. Summary'!$M$33 -> 5 | E24: ='[5]8. Summary'!$M$34 -> 50613209.42 | F24: ='[5]8. Summary'!$M$35 -> 108301.0352 | G24: ='[5]2016 COP Forecast'!$E$33 -> 53933540.56 | H24: 115405.8069 | I24: 353980.2236 | L24: 50613209.42 | M24: 108301.0352 | Q24: 53933540.56 | R24: 115405.8069 | S24: 0.0853 | U24: -0.1367 | W24: 0.3736253532 | Y24: 0.6573452456 | Z24: ='[6]3.0 LRAMVA Register'!$E$30 -> 941.4288973
B25: UNMETERED SCATTERED LOAD | C25: kWh | D25: ='[5]8. Summary'!$M$48 -> 0.6827801502 | E25: ='[5]8. Summary'!$M$49 -> 3024.450939 | G25: ='[5]2016 COP Forecast'!$E$36 -> 0 | H25: 0 | I25: 215.9988793 | L25: 3024.450939 | M25: 0 | Q25: 0 | R25: 0 | S25: 0.0015 | U25: 0.0035 | W25: -2.809375823e-05 | Y25: 3.937519442e-06 | Z25: ='[6]3.0 LRAMVA Register'!$H$30 -> -1.421511479
B26: SENTINEL LIGHTING | C26: kW | D26: ='[5]8. Summary'!$M$43 -> 29.25112133 | E26: ='[5]8. Summary'!$M$44 -> 23128.43102 | F26: ='[5]8. Summary'!$M$45 -> 65.02738324 | G26: ='[5]2016 COP Forecast'!$E$35 -> 3770.468635 | H26: 10.60096592 | I26: 3046.683792 | L26: 23128.43102 | M26: 65.02738324 | Q26: 3770.468635 | R26: 10.60096592 | S26: 0.0272 | U26: 0.0031 | W26: -0.001893093462 | Y26: 0.0004291896191 | Z26: ='[6]3.0 LRAMVA Register'!$F$30 -> -65.56240605
B27: STREET LIGHTING | C27: kW | D27: ='[5]8. Summary'!$M$38 -> 905 | E27: ='[5]8. Summary'!$M$39 -> 725392.461 | F27: ='[5]8. Summary'!$M$40 -> 1994.874739 | G27: ='[5]2016 COP Forecast'!$E$34 -> 772979.7056 | H27: 2125.742645 | I27: 105951.2612 | L27: 725392.461 | M27: 1994.874739 | Q27: 772979.7056 | R27: 2125.742645 | S27: 0.0039 | U27: 0.018 | W27: 0.003692621842 | Y27: 0.01093842901 | Z27: ='[6]3.0 LRAMVA Register'!$G$30 -> -388.3042893
H28: 0 | L28: 0 | M28: 0 | Q28: 0 | R28: 0
H29: 0 | L29: 0 | M29: 0 | Q29: 0 | R29: 0
H30: 0 | L30: 0 | M30: 0 | Q30: 0 | R30: 0
H31: 0 | L31: 0 | M31: 0 | Q31: 0 | R31: 0
H32: 0 | L32: 0 | M32: 0 | Q32: 0 | R32: 0
H33: 0 | L33: 0 | M33: 0 | Q33: 0 | R33: 0
H34: 0 | L34: 0 | M34: 0 | Q34: 0 | R34: 0
H35: 0 | L35: 0 | M35: 0 | Q35: 0 | R35: =IF(OR(H35=0, ISBLANK(H35)), 0, H35-K35-P35) -> 0
H36: 0 | L36: 0 | M36: 0 | Q36: 0 | R36: 0
H37: 0 | L37: 0 | M37: 0 | Q37: 0 | R37: 0
H38: 0 | L38: 0 | M38: 0 | Q38: 0 | R38: 0
H39: 0 | L39: 0 | M39: 0 | Q39: 0 | R39: 0
H40: 0 | L40: 0 | M40: 0 | Q40: 0 | R40: 0
B41: Total | D41: =SUM(D21:D40) -> 4704.360786 | E41: 105332915.6 | F41: 153722.6577 | G41: 73215241.21 | H41: 161545.0438 | I41: 2667323.989 | J41: 0 | K41: =SUM(K21:K40) -> 0 | L41: 105332915.6 | M41: 153722.6577 | N41: 0 | O41: 0 | P41: 0 | Q41: 73215241.21 | R41: 161545.0438 | S41: =SUM(S21:S40) -> 1 | T41: =SUM(T21:T40) -> 0 | U41: =SUM(U21:U40) -> 1 | V41: =SUM(V21:V40) -> 0 | W41: =SUM(W21:W40) -> 1 | Y41: =SUM(Y21:Y40) -> 1 | Z41: =SUM(Z21:Z40) -> 11761.2907
Y42: Balance as per Sheet 2 | Z42: ='2. 2015 Continuity Schedule'!BS65 -> 11760.68
Y43: Variance | Z43: =Z41-Z42 -> 0.6107045604
A45: 1 For Account 1562, the allocation to customer classes should be performed on the basis of the test year distribution revenue allocation to customer classes found in the Applicant’s Cost of Service application that was most recently approved at the time of disposition of the 1562 account balances
A47: 2 Residual Account balance to be allocated to rate classes in proportion to the recovery share as established when rate riders were implemented.
A48: 3 Enter the percentage of the balance in account 1589 allocated to Class A customers. Distributors typically settle GA costs with Class A customers on the basis of actual (i.e. non-estimated) costs. If this is the case, no amount of the balance in 1589 should be allocated to a distributor’s Class A customers.

Sheet 5. Allocation of Balances
AA1: 21
AA2: 22
D4: Amounts from Sheet 2 | E4: Allocator | F4: =IF(LEN(TRIM('4. Billing Determinants'!$B21))=0, "", UPPER('4. Billing Determinants'!$B21)) -> RESIDENTIAL | G4: =IF(LEN(TRIM('4. Billing Determinants'!$B22))=0, "", '4. Billing Determinants'!$B22) -> GENERAL SERVICE LESS THAN 50 KW | H4: =IF(LEN(TRIM('4. Billing Determinants'!$B23))=0, "", '4. Billing Determinants'!$B23) -> GENERAL SERVICE 50 TO 999 KW | I4: =IF(LEN(TRIM('4. Billing Determinants'!$B24))=0, "", '4. Billing Determinants'!$B24) -> GENERAL SERVICE 1,000 TO 4,999 KW | J4: =IF(LEN(TRIM('4. Billing Determinants'!$B25))=0, "", '4. Billing Determinants'!$B25) -> UNMETERED SCATTERED LOAD | K4: =IF(LEN(TRIM('4. Billing Determinants'!$B26))=0, "", '4. Billing Determinants'!$B26) -> SENTINEL LIGHTING | L4: =IF(LEN(TRIM('4. Billing Determinants'!$B27))=0, "", '4. Billing Determinants'!$B27) -> STREET LIGHTING | M4: =IF(LEN(TRIM('4. Billing Determinants'!$B28))=0, "", '4. Billing Determinants'!$B28) ->  | N4: =IF(LEN(TRIM('4. Billing Determinants'!$B29))=0, "", '4. Billing Determinants'!$B29) ->  | O4: =IF(LEN(TRIM('4. Billing Determinants'!$B30))=0, "", '4. Billing Determinants'!$B30) ->  | P4: =IF(LEN(TRIM('4. Billing Determinants'!$B31))=0, "", '4. Billing Determinants'!$B31) ->  | Q4: =IF(LEN(TRIM('4. Billing Determinants'!$B32))=0, "", '4. Billing Determinants'!$B32) ->  | R4: =IF(LEN(TRIM('4. Billing Determinants'!$B33))=0, "", '4. Billing Determinants'!$B33) ->  | S4: =IF(LEN(TRIM('4. Billing Determinants'!$B34))=0, "", '4. Billing Determinants'!$B34) ->  | T4: =IF(LEN(TRIM('4. Billing Determinants'!$B35))=0, "", '4. Billing Determinants'!$B35) ->  | U4: =IF(LEN(TRIM('4. Billing Determinants'!$B36))=0, "", '4. Billing Determinants'!$B36) ->  | V4: =IF(LEN(TRIM('4. Billing Determinants'!$B37))=0, "", '4. Billing Determinants'!$B37) ->  | W4: =IF(LEN(TRIM('4. Billing Determinants'!$B38))=0, "", '4. Billing Determinants'!$B38) ->  | X4: =IF(LEN(TRIM('4. Billing Determinants'!$B39))=0, "", '4. Billing Determinants'!$B39) ->  | Y4: =IF(LEN(TRIM('4. Billing Determinants'!$B40))=0, "", '4. Billing Determinants'!$B40) -> 
B5: LV Variance Account | C5: 1550 | D5: ='2. 2015 Continuity Schedule'!BS24 -> 82075.13332 | E5: kWh | F5: =IFERROR(IF(F$4="",0,IF($E5="kWh",VLOOKUP(F$4,'4. Billing Determinants'!$B$19:$Z$41,4,0)/'4. Billing Determinants'!$E$41*$D5,IF($E5="kW",VLOOKUP(F$4,'4. Billing Determinants'!$B$19:$Z$41,5,0)/'4. Billing Determinants'!$F$41*$D5,IF($E5="Non-RPP kWh",VLOOKUP(F$4,'4. Billing Determinants'!$B$19:$Z$41,6,0)/'4. Billing Determinants'!$G$41*$D5,IF($E5="Distribution Rev.",VLOOKUP(F$4,'4. Billing Determinants'!$B$19:$Z$41,8,0)/'4. Billing Determinants'!$I$41*$D5, VLOOKUP(F$4,'4. Billing Determinants'!$B$19:$Z$41,3,0)/'4. Billing Determinants'!$D$41*$D5))))),0) -> 21356.39765 | G5: =IFERROR(IF(G$4="",0,IF($E5="kWh",VLOOKUP(G$4,'4. Billing Determinants'!$B$19:$Z$41,4,0)/'4. Billing Determinants'!$E$41*$D5,IF($E5="kW",VLOOKUP(G$4,'4. Billing Determinants'!$B$19:$Z$41,5,0)/'4. Billing Determinants'!$F$41*$D5,IF($E5="Non-RPP kWh",VLOOKUP(G$4,'4. Billing Determinants'!$B$19:$Z$41,6,0)/'4. Billing Determinants'!$G$41*$D5,IF($E5="Distribution Rev.",VLOOKUP(G$4,'4. Billing Determinants'!$B$19:$Z$41,8,0)/'4. Billing Determinants'!$I$41*$D5, VLOOKUP(G$4,'4. Billing Determinants'!$B$19:$Z$41,3,0)/'4. Billing Determinants'!$D$41*$D5))))),0) -> 9735.824001 | H5: =IFERROR(IF(H$4="",0,IF($E5="kWh",VLOOKUP(H$4,'4. Billing Determinants'!$B$19:$Z$41,4,0)/'4. Billing Determinants'!$E$41*$D5,IF($E5="kW",VLOOKUP(H$4,'4. Billing Determinants'!$B$19:$Z$41,5,0)/'4. Billing Determinants'!$F$41*$D5,IF($E5="Non-RPP kWh",VLOOKUP(H$4,'4. Billing Determinants'!$B$19:$Z$41,6,0)/'4. Billing Determinants'!$G$41*$D5,IF($E5="Distribution Rev.",VLOOKUP(H$4,'4. Billing Determinants'!$B$19:$Z$41,8,0)/'4. Billing Determinants'!$I$41*$D5, VLOOKUP(H$4,'4. Billing Determinants'!$B$19:$Z$41,3,0)/'4. Billing Determinants'!$D$41*$D5))))),0) -> 10959.62864 | I5: =IFERROR(IF(I$4="",0,IF($E5="kWh",VLOOKUP(I$4,'4. Billing Determinants'!$B$19:$Z$41,4,0)/'4. Billing Determinants'!$E$41*$D5,IF($E5="kW",VLOOKUP(I$4,'4. Billing Determinants'!$B$19:$Z$41,5,0)/'4. Billing Determinants'!$F$41*$D5,IF($E5="Non-RPP kWh",VLOOKUP(I$4,'4. Billing Determinants'!$B$19:$Z$41,6,0)/'4. Billing Determinants'!$G$41*$D5,IF($E5="Distribution Rev.",VLOOKUP(I$4,'4. Billing Determinants'!$B$19:$Z$41,8,0)/'4. Billing Determinants'!$I$41*$D5, VLOOKUP(I$4,'4. Billing Determinants'!$B$19:$Z$41,3,0)/'4. Billing Determinants'!$D$41*$D5))))),0) -> 39437.68086 | J5: =IFERROR(IF(J$4="",0,IF($E5="kWh",VLOOKUP(J$4,'4. Billing Determinants'!$B$19:$Z$41,4,0)/'4. Billing Determinants'!$E$41*$D5,IF($E5="kW",VLOOKUP(J$4,'4. Billing Determinants'!$B$19:$Z$41,5,0)/'4. Billing Determinants'!$F$41*$D5,IF($E5="Non-RPP kWh",VLOOKUP(J$4,'4. Billing Determinants'!$B$19:$Z$41,6,0)/'4. Billing Determinants'!$G$41*$D5,IF($E5="Distribution Rev.",VLOOKUP(J$4,'4. Billing Determinants'!$B$19:$Z$41,8,0)/'4. Billing Determinants'!$I$41*$D5, VLOOKUP(J$4,'4. Billing Determinants'!$B$19:$Z$41,3,0)/'4. Billing Determinants'!$D$41*$D5))))),0) -> 2.356644289 | K5: =IFERROR(IF(K$4="",0,IF($E5="kWh",VLOOKUP(K$4,'4. Billing Determinants'!$B$19:$Z$41,4,0)/'4. Billing Determinants'!$E$41*$D5,IF($E5="kW",VLOOKUP(K$4,'4. Billing Determinants'!$B$19:$Z$41,5,0)/'4. Billing Determinants'!$F$41*$D5,IF($E5="Non-RPP kWh",VLOOKUP(K$4,'4. Billing Determinants'!$B$19:$Z$41,6,0)/'4. Billing Determinants'!$G$41*$D5,IF($E5="Distribution Rev.",VLOOKUP(K$4,'4. Billing Determinants'!$B$19:$Z$41,8,0)/'4. Billing Determinants'!$I$41*$D5, VLOOKUP(K$4,'4. Billing Determinants'!$B$19:$Z$41,3,0)/'4. Billing Determinants'!$D$41*$D5))))),0) -> 18.02161317 | L5: =IFERROR(IF(L$4="",0,IF($E5="kWh",VLOOKUP(L$4,'4. Billing Determinants'!$B$19:$Z$41,4,0)/'4. Billing Determinants'!$E$41*$D5,IF($E5="kW",VLOOKUP(L$4,'4. Billing Determinants'!$B$19:$Z$41,5,0)/'4. Billing Determinants'!$F$41*$D5,IF($E5="Non-RPP kWh",VLOOKUP(L$4,'4. Billing Determinants'!$B$19:$Z$41,6,0)/'4. Billing Determinants'!$G$41*$D5,IF($E5="Distribution Rev.",VLOOKUP(L$4,'4. Billing Determinants'!$B$19:$Z$41,8,0)/'4. Billing Determinants'!$I$41*$D5, VLOOKUP(L$4,'4. Billing Determinants'!$B$19:$Z$41,3,0)/'4. Billing Determinants'!$D$41*$D5))))),0) -> 565.2239149 | M5: =IFERROR(IF(M$4="",0,IF($E5="kWh",VLOOKUP(M$4,'4. Billing Determinants'!$B$19:$Z$41,4,0)/'4. Billing Determinants'!$E$41*$D5,IF($E5="kW",VLOOKUP(M$4,'4. Billing Determinants'!$B$19:$Z$41,5,0)/'4. Billing Determinants'!$F$41*$D5,IF($E5="Non-RPP kWh",VLOOKUP(M$4,'4. Billing Determinants'!$B$19:$Z$41,6,0)/'4. Billing Determinants'!$G$41*$D5,IF($E5="Distribution Rev.",VLOOKUP(M$4,'4. Billing Determinants'!$B$19:$Z$41,8,0)/'4. Billing Determinants'!$I$41*$D5, VLOOKUP(M$4,'4. Billing Determinants'!$B$19:$Z$41,3,0)/'4. Billing Determinants'!$D$41*$D5))))),0) -> 0 | N5: =IFERROR(IF(N$4="",0,IF($E5="kWh",VLOOKUP(N$4,'4. Billing Determinants'!$B$19:$Z$41,4,0)/'4. Billing Determinants'!$E$41*$D5,IF($E5="kW",VLOOKUP(N$4,'4. Billing Determinants'!$B$19:$Z$41,5,0)/'4. Billing Determinants'!$F$41*$D5,IF($E5="Non-RPP kWh",VLOOKUP(N$4,'4. Billing Determinants'!$B$19:$Z$41,6,0)/'4. Billing Determinants'!$G$41*$D5,IF($E5="Distribution Rev.",VLOOKUP(N$4,'4. Billing Determinants'!$B$19:$Z$41,8,0)/'4. Billing Determinants'!$I$41*$D5, VLOOKUP(N$4,'4. Billing Determinants'!$B$19:$Z$41,3,0)/'4. Billing Determinants'!$D$41*$D5))))),0) -> 0 | O5: =IFERROR(IF(O$4="",0,IF($E5="kWh",VLOOKUP(O$4,'4. Billing Determinants'!$B$19:$Z$41,4,0)/'4. Billing Determinants'!$E$41*$D5,IF($E5="kW",VLOOKUP(O$4,'4. Billing Determinants'!$B$19:$Z$41,5,0)/'4. Billing Determinants'!$F$41*$D5,IF($E5="Non-RPP kWh",VLOOKUP(O$4,'4. Billing Determinants'!$B$19:$Z$41,6,0)/'4. Billing Determinants'!$G$41*$D5,IF($E5="Distribution Rev.",VLOOKUP(O$4,'4. Billing Determinants'!$B$19:$Z$41,8,0)/'4. Billing Determinants'!$I$41*$D5, VLOOKUP(O$4,'4. Billing Determinants'!$B$19:$Z$41,3,0)/'4. Billing Determinants'!$D$41*$D5))))),0) -> 0 | P5: =IFERROR(IF(P$4="",0,IF($E5="kWh",VLOOKUP(P$4,'4. Billing Determinants'!$B$19:$Z$41,4,0)/'4. Billing Determinants'!$E$41*$D5,IF($E5="kW",VLOOKUP(P$4,'4. Billing Determinants'!$B$19:$Z$41,5,0)/'4. Billing Determinants'!$F$41*$D5,IF($E5="Non-RPP kWh",VLOOKUP(P$4,'4. Billing Determinants'!$B$19:$Z$41,6,0)/'4. Billing Determinants'!$G$41*$D5,IF($E5="Distribution Rev.",VLOOKUP(P$4,'4. Billing Determinants'!$B$19:$Z$41,8,0)/'4. Billing Determinants'!$I$41*$D5, VLOOKUP(P$4,'4. Billing Determinants'!$B$19:$Z$41,3,0)/'4. Billing Determinants'!$D$41*$D5))))),0) -> 0 | Q5: =IFERROR(IF(Q$4="",0,IF($E5="kWh",VLOOKUP(Q$4,'4. Billing Determinants'!$B$19:$Z$41,4,0)/'4. Billing Determinants'!$E$41*$D5,IF($E5="kW",VLOOKUP(Q$4,'4. Billing Determinants'!$B$19:$Z$41,5,0)/'4. Billing Determinants'!$F$41*$D5,IF($E5="Non-RPP kWh",VLOOKUP(Q$4,'4. Billing Determinants'!$B$19:$Z$41,6,0)/'4. Billing Determinants'!$G$41*$D5,IF($E5="Distribution Rev.",VLOOKUP(Q$4,'4. Billing Determinants'!$B$19:$Z$41,8,0)/'4. Billing Determinants'!$I$41*$D5, VLOOKUP(Q$4,'4. Billing Determinants'!$B$19:$Z$41,3,0)/'4. Billing Determinants'!$D$41*$D5))))),0) -> 0 | R5: =IFERROR(IF(R$4="",0,IF($E5="kWh",VLOOKUP(R$4,'4. Billing Determinants'!$B$19:$Z$41,4,0)/'4. Billing Determinants'!$E$41*$D5,IF($E5="kW",VLOOKUP(R$4,'4. Billing Determinants'!$B$19:$Z$41,5,0)/'4. Billing Determinants'!$F$41*$D5,IF($E5="Non-RPP kWh",VLOOKUP(R$4,'4. Billing Determinants'!$B$19:$Z$41,6,0)/'4. Billing Determinants'!$G$41*$D5,IF($E5="Distribution Rev.",VLOOKUP(R$4,'4. Billing Determinants'!$B$19:$Z$41,8,0)/'4. Billing Determinants'!$I$41*$D5, VLOOKUP(R$4,'4. Billing Determinants'!$B$19:$Z$41,3,0)/'4. Billing Determinants'!$D$41*$D5))))),0) -> 0 | S5: =IFERROR(IF(S$4="",0,IF($E5="kWh",VLOOKUP(S$4,'4. Billing Determinants'!$B$19:$Z$41,4,0)/'4. Billing Determinants'!$E$41*$D5,IF($E5="kW",VLOOKUP(S$4,'4. Billing Determinants'!$B$19:$Z$41,5,0)/'4. Billing Determinants'!$F$41*$D5,IF($E5="Non-RPP kWh",VLOOKUP(S$4,'4. Billing Determinants'!$B$19:$Z$41,6,0)/'4. Billing Determinants'!$G$41*$D5,IF($E5="Distribution Rev.",VLOOKUP(S$4,'4. Billing Determinants'!$B$19:$Z$41,8,0)/'4. Billing Determinants'!$I$41*$D5, VLOOKUP(S$4,'4. Billing Determinants'!$B$19:$Z$41,3,0)/'4. Billing Determinants'!$D$41*$D5))))),0) -> 0 | T5: =IFERROR(IF(T$4="",0,IF($E5="kWh",VLOOKUP(T$4,'4. Billing Determinants'!$B$19:$Z$41,4,0)/'4. Billing Determinants'!$E$41*$D5,IF($E5="kW",VLOOKUP(T$4,'4. Billing Determinants'!$B$19:$Z$41,5,0)/'4. Billing Determinants'!$F$41*$D5,IF($E5="Non-RPP kWh",VLOOKUP(T$4,'4. Billing Determinants'!$B$19:$Z$41,6,0)/'4. Billing Determinants'!$G$41*$D5,IF($E5="Distribution Rev.",VLOOKUP(T$4,'4. Billing Determinants'!$B$19:$Z$41,8,0)/'4. Billing Determinants'!$I$41*$D5, VLOOKUP(T$4,'4. Billing Determinants'!$B$19:$Z$41,3,0)/'4. Billing Determinants'!$D$41*$D5))))),0) -> 0 | U5: =IFERROR(IF(U$4="",0,IF($E5="kWh",VLOOKUP(U$4,'4. Billing Determinants'!$B$19:$Z$41,4,0)/'4. Billing Determinants'!$E$41*$D5,IF($E5="kW",VLOOKUP(U$4,'4. Billing Determinants'!$B$19:$Z$41,5,0)/'4. Billing Determinants'!$F$41*$D5,IF($E5="Non-RPP kWh",VLOOKUP(U$4,'4. Billing Determinants'!$B$19:$Z$41,6,0)/'4. Billing Determinants'!$G$41*$D5,IF($E5="Distribution Rev.",VLOOKUP(U$4,'4. Billing Determinants'!$B$19:$Z$41,8,0)/'4. Billing Determinants'!$I$41*$D5, VLOOKUP(U$4,'4. Billing Determinants'!$B$19:$Z$41,3,0)/'4. Billing Determinants'!$D$41*$D5))))),0) -> 0 | V5: =IFERROR(IF(V$4="",0,IF($E5="kWh",VLOOKUP(V$4,'4. Billing Determinants'!$B$19:$Z$41,4,0)/'4. Billing Determinants'!$E$41*$D5,IF($E5="kW",VLOOKUP(V$4,'4. Billing Determinants'!$B$19:$Z$41,5,0)/'4. Billing Determinants'!$F$41*$D5,IF($E5="Non-RPP kWh",VLOOKUP(V$4,'4. Billing Determinants'!$B$19:$Z$41,6,0)/'4. Billing Determinants'!$G$41*$D5,IF($E5="Distribution Rev.",VLOOKUP(V$4,'4. Billing Determinants'!$B$19:$Z$41,8,0)/'4. Billing Determinants'!$I$41*$D5, VLOOKUP(V$4,'4. Billing Determinants'!$B$19:$Z$41,3,0)/'4. Billing Determinants'!$D$41*$D5))))),0) -> 0 | W5: =IFERROR(IF(W$4="",0,IF($E5="kWh",VLOOKUP(W$4,'4. Billing Determinants'!$B$19:$Z$41,4,0)/'4. Billing Determinants'!$E$41*$D5,IF($E5="kW",VLOOKUP(W$4,'4. Billing Determinants'!$B$19:$Z$41,5,0)/'4. Billing Determinants'!$F$41*$D5,IF($E5="Non-RPP kWh",VLOOKUP(W$4,'4. Billing Determinants'!$B$19:$Z$41,6,0)/'4. Billing Determinants'!$G$41*$D5,IF($E5="Distribution Rev.",VLOOKUP(W$4,'4. Billing Determinants'!$B$19:$Z$41,8,0)/'4. Billing Determinants'!$I$41*$D5, VLOOKUP(W$4,'4. Billing Determinants'!$B$19:$Z$41,3,0)/'4. Billing Determinants'!$D$41*$D5))))),0) -> 0 | X5: =IFERROR(IF(X$4="",0,IF($E5="kWh",VLOOKUP(X$4,'4. Billing Determinants'!$B$19:$Z$41,4,0)/'4. Billing Determinants'!$E$41*$D5,IF($E5="kW",VLOOKUP(X$4,'4. Billing Determinants'!$B$19:$Z$41,5,0)/'4. Billing Determinants'!$F$41*$D5,IF($E5="Non-RPP kWh",VLOOKUP(X$4,'4. Billing Determinants'!$B$19:$Z$41,6,0)/'4. Billing Determinants'!$G$41*$D5,IF($E5="Distribution Rev.",VLOOKUP(X$4,'4. Billing Determinants'!$B$19:$Z$41,8,0)/'4. Billing Determinants'!$I$41*$D5, VLOOKUP(X$4,'4. Billing Determinants'!$B$19:$Z$41,3,0)/'4. Billing Determinants'!$D$41*$D5))))),0) -> 0 | Y5: =IFERROR(IF(Y$4="",0,IF($E5="kWh",VLOOKUP(Y$4,'4. Billing Determinants'!$B$19:$Z$41,4,0)/'4. Billing Determinants'!$E$41*$D5,IF($E5="kW",VLOOKUP(Y$4,'4. Billing Determinants'!$B$19:$Z$41,5,0)/'4. Billing Determinants'!$F$41*$D5,IF($E5="Non-RPP kWh",VLOOKUP(Y$4,'4. Billing Determinants'!$B$19:$Z$41,6,0)/'4. Billing Determinants'!$G$41*$D5,IF($E5="Distribution Rev.",VLOOKUP(Y$4,'4. Billing Determinants'!$B$19:$Z$41,8,0)/'4. Billing Determinants'!$I$41*$D5, VLOOKUP(Y$4,'4. Billing Determinants'!$B$19:$Z$41,3,0)/'4. Billing Determinants'!$D$41*$D5))))),0) -> 0
B6: Smart Metering Entity Charge Variance Account | C6: 1551 | D6: ='2. 2015 Continuity Schedule'!BS25 -> 2208.801917 | E6: # of Customers | F6: =(3250.84091103165/(3250.84091103165+475.525012423111))*D6 -> 1926.934655 | G6: =(475.525012423111/(3250.84091103165+475.525012423111))*D6 -> 281.8672617 | H6: 0 | I6: 0 | J6: 0 | K6: 0 | L6: 0 | M6: 0 | N6: 0 | O6: 0 | P6: 0 | Q6: 0 | R6: 0 | S6: 0 | T6: 0 | U6: 0 | V6: 0 | W6: 0 | X6: 0 | Y6: 0
B7: RSVA - Wholesale Market Service Charge | C7: 1580 | D7: ='2. 2015 Continuity Schedule'!BS26 -> -83121.76437 | E7: kWh | F7: =IFERROR(IF(F$4="",0,IF($E7="kWh",VLOOKUP(F$4,'4. Billing Determinants'!$B$19:$Z$41,11,0)/'4. Billing Determinants'!$L$41*$D7,IF($E7="kW",VLOOKUP(F$4,'4. Billing Determinants'!$B$19:$Z$41,12,0)/'4. Billing Determinants'!$M$41*$D7,))),0) -> -21628.73676 | G7: =IFERROR(IF(G$4="",0,IF($E7="kWh",VLOOKUP(G$4,'4. Billing Determinants'!$B$19:$Z$41,11,0)/'4. Billing Determinants'!$L$41*$D7,IF($E7="kW",VLOOKUP(G$4,'4. Billing Determinants'!$B$19:$Z$41,12,0)/'4. Billing Determinants'!$M$41*$D7,))),0) -> -9859.97629 | H7: =IFERROR(IF(H$4="",0,IF($E7="kWh",VLOOKUP(H$4,'4. Billing Determinants'!$B$19:$Z$41,11,0)/'4. Billing Determinants'!$L$41*$D7,IF($E7="kW",VLOOKUP(H$4,'4. Billing Determinants'!$B$19:$Z$41,12,0)/'4. Billing Determinants'!$M$41*$D7,))),0) -> -11099.38702 | I7: =IFERROR(IF(I$4="",0,IF($E7="kWh",VLOOKUP(I$4,'4. Billing Determinants'!$B$19:$Z$41,11,0)/'4. Billing Determinants'!$L$41*$D7,IF($E7="kW",VLOOKUP(I$4,'4. Billing Determinants'!$B$19:$Z$41,12,0)/'4. Billing Determinants'!$M$41*$D7,))),0) -> -39940.59447 | J7: =IFERROR(IF(J$4="",0,IF($E7="kWh",VLOOKUP(J$4,'4. Billing Determinants'!$B$19:$Z$41,11,0)/'4. Billing Determinants'!$L$41*$D7,IF($E7="kW",VLOOKUP(J$4,'4. Billing Determinants'!$B$19:$Z$41,12,0)/'4. Billing Determinants'!$M$41*$D7,))),0) -> -2.386696474 | K7: =IFERROR(IF(K$4="",0,IF($E7="kWh",VLOOKUP(K$4,'4. Billing Determinants'!$B$19:$Z$41,11,0)/'4. Billing Determinants'!$L$41*$D7,IF($E7="kW",VLOOKUP(K$4,'4. Billing Determinants'!$B$19:$Z$41,12,0)/'4. Billing Determinants'!$M$41*$D7,))),0) -> -18.25142674 | L7: =IFERROR(IF(L$4="",0,IF($E7="kWh",VLOOKUP(L$4,'4. Billing Determinants'!$B$19:$Z$41,11,0)/'4. Billing Determinants'!$L$41*$D7,IF($E7="kW",VLOOKUP(L$4,'4. Billing Determinants'!$B$19:$Z$41,12,0)/'4. Billing Determinants'!$M$41*$D7,))),0) -> -572.4317119 | M7: =IFERROR(IF(M$4="",0,IF($E7="kWh",VLOOKUP(M$4,'4. Billing Determinants'!$B$19:$Z$41,11,0)/'4. Billing Determinants'!$L$41*$D7,IF($E7="kW",VLOOKUP(M$4,'4. Billing Determinants'!$B$19:$Z$41,12,0)/'4. Billing Determinants'!$M$41*$D7,))),0) -> 0 | N7: =IFERROR(IF(N$4="",0,IF($E7="kWh",VLOOKUP(N$4,'4. Billing Determinants'!$B$19:$Z$41,11,0)/'4. Billing Determinants'!$L$41*$D7,IF($E7="kW",VLOOKUP(N$4,'4. Billing Determinants'!$B$19:$Z$41,12,0)/'4. Billing Determinants'!$M$41*$D7,))),0) -> 0 | O7: =IFERROR(IF(O$4="",0,IF($E7="kWh",VLOOKUP(O$4,'4. Billing Determinants'!$B$19:$Z$41,11,0)/'4. Billing Determinants'!$L$41*$D7,IF($E7="kW",VLOOKUP(O$4,'4. Billing Determinants'!$B$19:$Z$41,12,0)/'4. Billing Determinants'!$M$41*$D7,))),0) -> 0 | P7: =IFERROR(IF(P$4="",0,IF($E7="kWh",VLOOKUP(P$4,'4. Billing Determinants'!$B$19:$Z$41,11,0)/'4. Billing Determinants'!$L$41*$D7,IF($E7="kW",VLOOKUP(P$4,'4. Billing Determinants'!$B$19:$Z$41,12,0)/'4. Billing Determinants'!$M$41*$D7,))),0) -> 0 | Q7: =IFERROR(IF(Q$4="",0,IF($E7="kWh",VLOOKUP(Q$4,'4. Billing Determinants'!$B$19:$Z$41,11,0)/'4. Billing Determinants'!$L$41*$D7,IF($E7="kW",VLOOKUP(Q$4,'4. Billing Determinants'!$B$19:$Z$41,12,0)/'4. Billing Determinants'!$M$41*$D7,))),0) -> 0 | R7: =IFERROR(IF(R$4="",0,IF($E7="kWh",VLOOKUP(R$4,'4. Billing Determinants'!$B$19:$Z$41,11,0)/'4. Billing Determinants'!$L$41*$D7,IF($E7="kW",VLOOKUP(R$4,'4. Billing Determinants'!$B$19:$Z$41,12,0)/'4. Billing Determinants'!$M$41*$D7,))),0) -> 0 | S7: =IFERROR(IF(S$4="",0,IF($E7="kWh",VLOOKUP(S$4,'4. Billing Determinants'!$B$19:$Z$41,11,0)/'4. Billing Determinants'!$L$41*$D7,IF($E7="kW",VLOOKUP(S$4,'4. Billing Determinants'!$B$19:$Z$41,12,0)/'4. Billing Determinants'!$M$41*$D7,))),0) -> 0 | T7: =IFERROR(IF(T$4="",0,IF($E7="kWh",VLOOKUP(T$4,'4. Billing Determinants'!$B$19:$Z$41,11,0)/'4. Billing Determinants'!$L$41*$D7,IF($E7="kW",VLOOKUP(T$4,'4. Billing Determinants'!$B$19:$Z$41,12,0)/'4. Billing Determinants'!$M$41*$D7,))),0) -> 0 | U7: =IFERROR(IF(U$4="",0,IF($E7="kWh",VLOOKUP(U$4,'4. Billing Determinants'!$B$19:$Z$41,11,0)/'4. Billing Determinants'!$L$41*$D7,IF($E7="kW",VLOOKUP(U$4,'4. Billing Determinants'!$B$19:$Z$41,12,0)/'4. Billing Determinants'!$M$41*$D7,))),0) -> 0 | V7: =IFERROR(IF(V$4="",0,IF($E7="kWh",VLOOKUP(V$4,'4. Billing Determinants'!$B$19:$Z$41,11,0)/'4. Billing Determinants'!$L$41*$D7,IF($E7="kW",VLOOKUP(V$4,'4. Billing Determinants'!$B$19:$Z$41,12,0)/'4. Billing Determinants'!$M$41*$D7,))),0) -> 0 | W7: =IFERROR(IF(W$4="",0,IF($E7="kWh",VLOOKUP(W$4,'4. Billing Determinants'!$B$19:$Z$41,11,0)/'4. Billing Determinants'!$L$41*$D7,IF($E7="kW",VLOOKUP(W$4,'4. Billing Determinants'!$B$19:$Z$41,12,0)/'4. Billing Determinants'!$M$41*$D7,))),0) -> 0 | X7: =IFERROR(IF(X$4="",0,IF($E7="kWh",VLOOKUP(X$4,'4. Billing Determinants'!$B$19:$Z$41,11,0)/'4. Billing Determinants'!$L$41*$D7,IF($E7="kW",VLOOKUP(X$4,'4. Billing Determinants'!$B$19:$Z$41,12,0)/'4. Billing Determinants'!$M$41*$D7,))),0) -> 0 | Y7: =IFERROR(IF(Y$4="",0,IF($E7="kWh",VLOOKUP(Y$4,'4. Billing Determinants'!$B$19:$Z$41,11,0)/'4. Billing Determinants'!$L$41*$D7,IF($E7="kW",VLOOKUP(Y$4,'4. Billing Determinants'!$B$19:$Z$41,12,0)/'4. Billing Determinants'!$M$41*$D7,))),0) -> 0
B8: RSVA - Retail Transmission Network Charge | C8: 1584 | D8: ='2. 2015 Continuity Schedule'!BS27 -> -54607.02505 | E8: kWh | F8: =IFERROR(IF(F$4="",0,IF($E8="kWh",VLOOKUP(F$4,'4. Billing Determinants'!$B$19:$Z$41,4,0)/'4. Billing Determinants'!$E$41*$D8,IF($E8="kW",VLOOKUP(F$4,'4. Billing Determinants'!$B$19:$Z$41,5,0)/'4. Billing Determinants'!$F$41*$D8,IF($E8="Non-RPP kWh",VLOOKUP(F$4,'4. Billing Determinants'!$B$19:$Z$41,6,0)/'4. Billing Determinants'!$G$41*$D8,IF($E8="Distribution Rev.",VLOOKUP(F$4,'4. Billing Determinants'!$B$19:$Z$41,8,0)/'4. Billing Determinants'!$I$41*$D8, VLOOKUP(F$4,'4. Billing Determinants'!$B$19:$Z$41,3,0)/'4. Billing Determinants'!$D$41*$D8))))),0) -> -14209.04596 | G8: =IFERROR(IF(G$4="",0,IF($E8="kWh",VLOOKUP(G$4,'4. Billing Determinants'!$B$19:$Z$41,4,0)/'4. Billing Determinants'!$E$41*$D8,IF($E8="kW",VLOOKUP(G$4,'4. Billing Determinants'!$B$19:$Z$41,5,0)/'4. Billing Determinants'!$F$41*$D8,IF($E8="Non-RPP kWh",VLOOKUP(G$4,'4. Billing Determinants'!$B$19:$Z$41,6,0)/'4. Billing Determinants'!$G$41*$D8,IF($E8="Distribution Rev.",VLOOKUP(G$4,'4. Billing Determinants'!$B$19:$Z$41,8,0)/'4. Billing Determinants'!$I$41*$D8, VLOOKUP(G$4,'4. Billing Determinants'!$B$19:$Z$41,3,0)/'4. Billing Determinants'!$D$41*$D8))))),0) -> -6477.533007 | H8: =IFERROR(IF(H$4="",0,IF($E8="kWh",VLOOKUP(H$4,'4. Billing Determinants'!$B$19:$Z$41,4,0)/'4. Billing Determinants'!$E$41*$D8,IF($E8="kW",VLOOKUP(H$4,'4. Billing Determinants'!$B$19:$Z$41,5,0)/'4. Billing Determinants'!$F$41*$D8,IF($E8="Non-RPP kWh",VLOOKUP(H$4,'4. Billing Determinants'!$B$19:$Z$41,6,0)/'4. Billing Determinants'!$G$41*$D8,IF($E8="Distribution Rev.",VLOOKUP(H$4,'4. Billing Determinants'!$B$19:$Z$41,8,0)/'4. Billing Determinants'!$I$41*$D8, VLOOKUP(H$4,'4. Billing Determinants'!$B$19:$Z$41,3,0)/'4. Billing Determinants'!$D$41*$D8))))),0) -> -7291.766597 | I8: =IFERROR(IF(I$4="",0,IF($E8="kWh",VLOOKUP(I$4,'4. Billing Determinants'!$B$19:$Z$41,4,0)/'4. Billing Determinants'!$E$41*$D8,IF($E8="kW",VLOOKUP(I$4,'4. Billing Determinants'!$B$19:$Z$41,5,0)/'4. Billing Determinants'!$F$41*$D8,IF($E8="Non-RPP kWh",VLOOKUP(I$4,'4. Billing Determinants'!$B$19:$Z$41,6,0)/'4. Billing Determinants'!$G$41*$D8,IF($E8="Distribution Rev.",VLOOKUP(I$4,'4. Billing Determinants'!$B$19:$Z$41,8,0)/'4. Billing Determinants'!$I$41*$D8, VLOOKUP(I$4,'4. Billing Determinants'!$B$19:$Z$41,3,0)/'4. Billing Determinants'!$D$41*$D8))))),0) -> -26239.06097 | J8: =IFERROR(IF(J$4="",0,IF($E8="kWh",VLOOKUP(J$4,'4. Billing Determinants'!$B$19:$Z$41,4,0)/'4. Billing Determinants'!$E$41*$D8,IF($E8="kW",VLOOKUP(J$4,'4. Billing Determinants'!$B$19:$Z$41,5,0)/'4. Billing Determinants'!$F$41*$D8,IF($E8="Non-RPP kWh",VLOOKUP(J$4,'4. Billing Determinants'!$B$19:$Z$41,6,0)/'4. Billing Determinants'!$G$41*$D8,IF($E8="Distribution Rev.",VLOOKUP(J$4,'4. Billing Determinants'!$B$19:$Z$41,8,0)/'4. Billing Determinants'!$I$41*$D8, VLOOKUP(J$4,'4. Billing Determinants'!$B$19:$Z$41,3,0)/'4. Billing Determinants'!$D$41*$D8))))),0) -> -1.567945473 | K8: =IFERROR(IF(K$4="",0,IF($E8="kWh",VLOOKUP(K$4,'4. Billing Determinants'!$B$19:$Z$41,4,0)/'4. Billing Determinants'!$E$41*$D8,IF($E8="kW",VLOOKUP(K$4,'4. Billing Determinants'!$B$19:$Z$41,5,0)/'4. Billing Determinants'!$F$41*$D8,IF($E8="Non-RPP kWh",VLOOKUP(K$4,'4. Billing Determinants'!$B$19:$Z$41,6,0)/'4. Billing Determinants'!$G$41*$D8,IF($E8="Distribution Rev.",VLOOKUP(K$4,'4. Billing Determinants'!$B$19:$Z$41,8,0)/'4. Billing Determinants'!$I$41*$D8, VLOOKUP(K$4,'4. Billing Determinants'!$B$19:$Z$41,3,0)/'4. Billing Determinants'!$D$41*$D8))))),0) -> -11.99031475 | L8: =IFERROR(IF(L$4="",0,IF($E8="kWh",VLOOKUP(L$4,'4. Billing Determinants'!$B$19:$Z$41,4,0)/'4. Billing Determinants'!$E$41*$D8,IF($E8="kW",VLOOKUP(L$4,'4. Billing Determinants'!$B$19:$Z$41,5,0)/'4. Billing Determinants'!$F$41*$D8,IF($E8="Non-RPP kWh",VLOOKUP(L$4,'4. Billing Determinants'!$B$19:$Z$41,6,0)/'4. Billing Determinants'!$G$41*$D8,IF($E8="Distribution Rev.",VLOOKUP(L$4,'4. Billing Determinants'!$B$19:$Z$41,8,0)/'4. Billing Determinants'!$I$41*$D8, VLOOKUP(L$4,'4. Billing Determinants'!$B$19:$Z$41,3,0)/'4. Billing Determinants'!$D$41*$D8))))),0) -> -376.0602662 | M8: =IFERROR(IF(M$4="",0,IF($E8="kWh",VLOOKUP(M$4,'4. Billing Determinants'!$B$19:$Z$41,4,0)/'4. Billing Determinants'!$E$41*$D8,IF($E8="kW",VLOOKUP(M$4,'4. Billing Determinants'!$B$19:$Z$41,5,0)/'4. Billing Determinants'!$F$41*$D8,IF($E8="Non-RPP kWh",VLOOKUP(M$4,'4. Billing Determinants'!$B$19:$Z$41,6,0)/'4. Billing Determinants'!$G$41*$D8,IF($E8="Distribution Rev.",VLOOKUP(M$4,'4. Billing Determinants'!$B$19:$Z$41,8,0)/'4. Billing Determinants'!$I$41*$D8, VLOOKUP(M$4,'4. Billing Determinants'!$B$19:$Z$41,3,0)/'4. Billing Determinants'!$D$41*$D8))))),0) -> 0 | N8: =IFERROR(IF(N$4="",0,IF($E8="kWh",VLOOKUP(N$4,'4. Billing Determinants'!$B$19:$Z$41,4,0)/'4. Billing Determinants'!$E$41*$D8,IF($E8="kW",VLOOKUP(N$4,'4. Billing Determinants'!$B$19:$Z$41,5,0)/'4. Billing Determinants'!$F$41*$D8,IF($E8="Non-RPP kWh",VLOOKUP(N$4,'4. Billing Determinants'!$B$19:$Z$41,6,0)/'4. Billing Determinants'!$G$41*$D8,IF($E8="Distribution Rev.",VLOOKUP(N$4,'4. Billing Determinants'!$B$19:$Z$41,8,0)/'4. Billing Determinants'!$I$41*$D8, VLOOKUP(N$4,'4. Billing Determinants'!$B$19:$Z$41,3,0)/'4. Billing Determinants'!$D$41*$D8))))),0) -> 0 | O8: =IFERROR(IF(O$4="",0,IF($E8="kWh",VLOOKUP(O$4,'4. Billing Determinants'!$B$19:$Z$41,4,0)/'4. Billing Determinants'!$E$41*$D8,IF($E8="kW",VLOOKUP(O$4,'4. Billing Determinants'!$B$19:$Z$41,5,0)/'4. Billing Determinants'!$F$41*$D8,IF($E8="Non-RPP kWh",VLOOKUP(O$4,'4. Billing Determinants'!$B$19:$Z$41,6,0)/'4. Billing Determinants'!$G$41*$D8,IF($E8="Distribution Rev.",VLOOKUP(O$4,'4. Billing Determinants'!$B$19:$Z$41,8,0)/'4. Billing Determinants'!$I$41*$D8, VLOOKUP(O$4,'4. Billing Determinants'!$B$19:$Z$41,3,0)/'4. Billing Determinants'!$D$41*$D8))))),0) -> 0 | P8: =IFERROR(IF(P$4="",0,IF($E8="kWh",VLOOKUP(P$4,'4. Billing Determinants'!$B$19:$Z$41,4,0)/'4. Billing Determinants'!$E$41*$D8,IF($E8="kW",VLOOKUP(P$4,'4. Billing Determinants'!$B$19:$Z$41,5,0)/'4. Billing Determinants'!$F$41*$D8,IF($E8="Non-RPP kWh",VLOOKUP(P$4,'4. Billing Determinants'!$B$19:$Z$41,6,0)/'4. Billing Determinants'!$G$41*$D8,IF($E8="Distribution Rev.",VLOOKUP(P$4,'4. Billing Determinants'!$B$19:$Z$41,8,0)/'4. Billing Determinants'!$I$41*$D8, VLOOKUP(P$4,'4. Billing Determinants'!$B$19:$Z$41,3,0)/'4. Billing Determinants'!$D$41*$D8))))),0) -> 0 | Q8: =IFERROR(IF(Q$4="",0,IF($E8="kWh",VLOOKUP(Q$4,'4. Billing Determinants'!$B$19:$Z$41,4,0)/'4. Billing Determinants'!$E$41*$D8,IF($E8="kW",VLOOKUP(Q$4,'4. Billing Determinants'!$B$19:$Z$41,5,0)/'4. Billing Determinants'!$F$41*$D8,IF($E8="Non-RPP kWh",VLOOKUP(Q$4,'4. Billing Determinants'!$B$19:$Z$41,6,0)/'4. Billing Determinants'!$G$41*$D8,IF($E8="Distribution Rev.",VLOOKUP(Q$4,'4. Billing Determinants'!$B$19:$Z$41,8,0)/'4. Billing Determinants'!$I$41*$D8, VLOOKUP(Q$4,'4. Billing Determinants'!$B$19:$Z$41,3,0)/'4. Billing Determinants'!$D$41*$D8))))),0) -> 0 | R8: =IFERROR(IF(R$4="",0,IF($E8="kWh",VLOOKUP(R$4,'4. Billing Determinants'!$B$19:$Z$41,4,0)/'4. Billing Determinants'!$E$41*$D8,IF($E8="kW",VLOOKUP(R$4,'4. Billing Determinants'!$B$19:$Z$41,5,0)/'4. Billing Determinants'!$F$41*$D8,IF($E8="Non-RPP kWh",VLOOKUP(R$4,'4. Billing Determinants'!$B$19:$Z$41,6,0)/'4. Billing Determinants'!$G$41*$D8,IF($E8="Distribution Rev.",VLOOKUP(R$4,'4. Billing Determinants'!$B$19:$Z$41,8,0)/'4. Billing Determinants'!$I$41*$D8, VLOOKUP(R$4,'4. Billing Determinants'!$B$19:$Z$41,3,0)/'4. Billing Determinants'!$D$41*$D8))))),0) -> 0 | S8: =IFERROR(IF(S$4="",0,IF($E8="kWh",VLOOKUP(S$4,'4. Billing Determinants'!$B$19:$Z$41,4,0)/'4. Billing Determinants'!$E$41*$D8,IF($E8="kW",VLOOKUP(S$4,'4. Billing Determinants'!$B$19:$Z$41,5,0)/'4. Billing Determinants'!$F$41*$D8,IF($E8="Non-RPP kWh",VLOOKUP(S$4,'4. Billing Determinants'!$B$19:$Z$41,6,0)/'4. Billing Determinants'!$G$41*$D8,IF($E8="Distribution Rev.",VLOOKUP(S$4,'4. Billing Determinants'!$B$19:$Z$41,8,0)/'4. Billing Determinants'!$I$41*$D8, VLOOKUP(S$4,'4. Billing Determinants'!$B$19:$Z$41,3,0)/'4. Billing Determinants'!$D$41*$D8))))),0) -> 0 | T8: =IFERROR(IF(T$4="",0,IF($E8="kWh",VLOOKUP(T$4,'4. Billing Determinants'!$B$19:$Z$41,4,0)/'4. Billing Determinants'!$E$41*$D8,IF($E8="kW",VLOOKUP(T$4,'4. Billing Determinants'!$B$19:$Z$41,5,0)/'4. Billing Determinants'!$F$41*$D8,IF($E8="Non-RPP kWh",VLOOKUP(T$4,'4. Billing Determinants'!$B$19:$Z$41,6,0)/'4. Billing Determinants'!$G$41*$D8,IF($E8="Distribution Rev.",VLOOKUP(T$4,'4. Billing Determinants'!$B$19:$Z$41,8,0)/'4. Billing Determinants'!$I$41*$D8, VLOOKUP(T$4,'4. Billing Determinants'!$B$19:$Z$41,3,0)/'4. Billing Determinants'!$D$41*$D8))))),0) -> 0 | U8: =IFERROR(IF(U$4="",0,IF($E8="kWh",VLOOKUP(U$4,'4. Billing Determinants'!$B$19:$Z$41,4,0)/'4. Billing Determinants'!$E$41*$D8,IF($E8="kW",VLOOKUP(U$4,'4. Billing Determinants'!$B$19:$Z$41,5,0)/'4. Billing Determinants'!$F$41*$D8,IF($E8="Non-RPP kWh",VLOOKUP(U$4,'4. Billing Determinants'!$B$19:$Z$41,6,0)/'4. Billing Determinants'!$G$41*$D8,IF($E8="Distribution Rev.",VLOOKUP(U$4,'4. Billing Determinants'!$B$19:$Z$41,8,0)/'4. Billing Determinants'!$I$41*$D8, VLOOKUP(U$4,'4. Billing Determinants'!$B$19:$Z$41,3,0)/'4. Billing Determinants'!$D$41*$D8))))),0) -> 0 | V8: =IFERROR(IF(V$4="",0,IF($E8="kWh",VLOOKUP(V$4,'4. Billing Determinants'!$B$19:$Z$41,4,0)/'4. Billing Determinants'!$E$41*$D8,IF($E8="kW",VLOOKUP(V$4,'4. Billing Determinants'!$B$19:$Z$41,5,0)/'4. Billing Determinants'!$F$41*$D8,IF($E8="Non-RPP kWh",VLOOKUP(V$4,'4. Billing Determinants'!$B$19:$Z$41,6,0)/'4. Billing Determinants'!$G$41*$D8,IF($E8="Distribution Rev.",VLOOKUP(V$4,'4. Billing Determinants'!$B$19:$Z$41,8,0)/'4. Billing Determinants'!$I$41*$D8, VLOOKUP(V$4,'4. Billing Determinants'!$B$19:$Z$41,3,0)/'4. Billing Determinants'!$D$41*$D8))))),0) -> 0 | W8: =IFERROR(IF(W$4="",0,IF($E8="kWh",VLOOKUP(W$4,'4. Billing Determinants'!$B$19:$Z$41,4,0)/'4. Billing Determinants'!$E$41*$D8,IF($E8="kW",VLOOKUP(W$4,'4. Billing Determinants'!$B$19:$Z$41,5,0)/'4. Billing Determinants'!$F$41*$D8,IF($E8="Non-RPP kWh",VLOOKUP(W$4,'4. Billing Determinants'!$B$19:$Z$41,6,0)/'4. Billing Determinants'!$G$41*$D8,IF($E8="Distribution Rev.",VLOOKUP(W$4,'4. Billing Determinants'!$B$19:$Z$41,8,0)/'4. Billing Determinants'!$I$41*$D8, VLOOKUP(W$4,'4. Billing Determinants'!$B$19:$Z$41,3,0)/'4. Billing Determinants'!$D$41*$D8))))),0) -> 0 | X8: =IFERROR(IF(X$4="",0,IF($E8="kWh",VLOOKUP(X$4,'4. Billing Determinants'!$B$19:$Z$41,4,0)/'4. Billing Determinants'!$E$41*$D8,IF($E8="kW",VLOOKUP(X$4,'4. Billing Determinants'!$B$19:$Z$41,5,0)/'4. Billing Determinants'!$F$41*$D8,IF($E8="Non-RPP kWh",VLOOKUP(X$4,'4. Billing Determinants'!$B$19:$Z$41,6,0)/'4. Billing Determinants'!$G$41*$D8,IF($E8="Distribution Rev.",VLOOKUP(X$4,'4. Billing Determinants'!$B$19:$Z$41,8,0)/'4. Billing Determinants'!$I$41*$D8, VLOOKUP(X$4,'4. Billing Determinants'!$B$19:$Z$41,3,0)/'4. Billing Determinants'!$D$41*$D8))))),0) -> 0 | Y8: =IFERROR(IF(Y$4="",0,IF($E8="kWh",VLOOKUP(Y$4,'4. Billing Determinants'!$B$19:$Z$41,4,0)/'4. Billing Determinants'!$E$41*$D8,IF($E8="kW",VLOOKUP(Y$4,'4. Billing Determinants'!$B$19:$Z$41,5,0)/'4. Billing Determinants'!$F$41*$D8,IF($E8="Non-RPP kWh",VLOOKUP(Y$4,'4. Billing Determinants'!$B$19:$Z$41,6,0)/'4. Billing Determinants'!$G$41*$D8,IF($E8="Distribution Rev.",VLOOKUP(Y$4,'4. Billing Determinants'!$B$19:$Z$41,8,0)/'4. Billing Determinants'!$I$41*$D8, VLOOKUP(Y$4,'4. Billing Determinants'!$B$19:$Z$41,3,0)/'4. Billing Determinants'!$D$41*$D8))))),0) -> 0
B9: RSVA - Retail Transmission Connection Charge | C9: 1586 | D9: ='2. 2015 Continuity Schedule'!BS28 -> -39662.66704 | E9: kWh | F9: =IFERROR(IF(F$4="",0,IF($E9="kWh",VLOOKUP(F$4,'4. Billing Determinants'!$B$19:$Z$41,4,0)/'4. Billing Determinants'!$E$41*$D9,IF($E9="kW",VLOOKUP(F$4,'4. Billing Determinants'!$B$19:$Z$41,5,0)/'4. Billing Determinants'!$F$41*$D9,IF($E9="Non-RPP kWh",VLOOKUP(F$4,'4. Billing Determinants'!$B$19:$Z$41,6,0)/'4. Billing Determinants'!$G$41*$D9,IF($E9="Distribution Rev.",VLOOKUP(F$4,'4. Billing Determinants'!$B$19:$Z$41,8,0)/'4. Billing Determinants'!$I$41*$D9, VLOOKUP(F$4,'4. Billing Determinants'!$B$19:$Z$41,3,0)/'4. Billing Determinants'!$D$41*$D9))))),0) -> -10320.44244 | G9: =IFERROR(IF(G$4="",0,IF($E9="kWh",VLOOKUP(G$4,'4. Billing Determinants'!$B$19:$Z$41,4,0)/'4. Billing Determinants'!$E$41*$D9,IF($E9="kW",VLOOKUP(G$4,'4. Billing Determinants'!$B$19:$Z$41,5,0)/'4. Billing Determinants'!$F$41*$D9,IF($E9="Non-RPP kWh",VLOOKUP(G$4,'4. Billing Determinants'!$B$19:$Z$41,6,0)/'4. Billing Determinants'!$G$41*$D9,IF($E9="Distribution Rev.",VLOOKUP(G$4,'4. Billing Determinants'!$B$19:$Z$41,8,0)/'4. Billing Determinants'!$I$41*$D9, VLOOKUP(G$4,'4. Billing Determinants'!$B$19:$Z$41,3,0)/'4. Billing Determinants'!$D$41*$D9))))),0) -> -4704.820207 | H9: =IFERROR(IF(H$4="",0,IF($E9="kWh",VLOOKUP(H$4,'4. Billing Determinants'!$B$19:$Z$41,4,0)/'4. Billing Determinants'!$E$41*$D9,IF($E9="kW",VLOOKUP(H$4,'4. Billing Determinants'!$B$19:$Z$41,5,0)/'4. Billing Determinants'!$F$41*$D9,IF($E9="Non-RPP kWh",VLOOKUP(H$4,'4. Billing Determinants'!$B$19:$Z$41,6,0)/'4. Billing Determinants'!$G$41*$D9,IF($E9="Distribution Rev.",VLOOKUP(H$4,'4. Billing Determinants'!$B$19:$Z$41,8,0)/'4. Billing Determinants'!$I$41*$D9, VLOOKUP(H$4,'4. Billing Determinants'!$B$19:$Z$41,3,0)/'4. Billing Determinants'!$D$41*$D9))))),0) -> -5296.221694 | I9: =IFERROR(IF(I$4="",0,IF($E9="kWh",VLOOKUP(I$4,'4. Billing Determinants'!$B$19:$Z$41,4,0)/'4. Billing Determinants'!$E$41*$D9,IF($E9="kW",VLOOKUP(I$4,'4. Billing Determinants'!$B$19:$Z$41,5,0)/'4. Billing Determinants'!$F$41*$D9,IF($E9="Non-RPP kWh",VLOOKUP(I$4,'4. Billing Determinants'!$B$19:$Z$41,6,0)/'4. Billing Determinants'!$G$41*$D9,IF($E9="Distribution Rev.",VLOOKUP(I$4,'4. Billing Determinants'!$B$19:$Z$41,8,0)/'4. Billing Determinants'!$I$41*$D9, VLOOKUP(I$4,'4. Billing Determinants'!$B$19:$Z$41,3,0)/'4. Billing Determinants'!$D$41*$D9))))),0) -> -19058.19146 | J9: =IFERROR(IF(J$4="",0,IF($E9="kWh",VLOOKUP(J$4,'4. Billing Determinants'!$B$19:$Z$41,4,0)/'4. Billing Determinants'!$E$41*$D9,IF($E9="kW",VLOOKUP(J$4,'4. Billing Determinants'!$B$19:$Z$41,5,0)/'4. Billing Determinants'!$F$41*$D9,IF($E9="Non-RPP kWh",VLOOKUP(J$4,'4. Billing Determinants'!$B$19:$Z$41,6,0)/'4. Billing Determinants'!$G$41*$D9,IF($E9="Distribution Rev.",VLOOKUP(J$4,'4. Billing Determinants'!$B$19:$Z$41,8,0)/'4. Billing Determinants'!$I$41*$D9, VLOOKUP(J$4,'4. Billing Determinants'!$B$19:$Z$41,3,0)/'4. Billing Determinants'!$D$41*$D9))))),0) -> -1.1388443 | K9: =IFERROR(IF(K$4="",0,IF($E9="kWh",VLOOKUP(K$4,'4. Billing Determinants'!$B$19:$Z$41,4,0)/'4. Billing Determinants'!$E$41*$D9,IF($E9="kW",VLOOKUP(K$4,'4. Billing Determinants'!$B$19:$Z$41,5,0)/'4. Billing Determinants'!$F$41*$D9,IF($E9="Non-RPP kWh",VLOOKUP(K$4,'4. Billing Determinants'!$B$19:$Z$41,6,0)/'4. Billing Determinants'!$G$41*$D9,IF($E9="Distribution Rev.",VLOOKUP(K$4,'4. Billing Determinants'!$B$19:$Z$41,8,0)/'4. Billing Determinants'!$I$41*$D9, VLOOKUP(K$4,'4. Billing Determinants'!$B$19:$Z$41,3,0)/'4. Billing Determinants'!$D$41*$D9))))),0) -> -8.708913574 | L9: =IFERROR(IF(L$4="",0,IF($E9="kWh",VLOOKUP(L$4,'4. Billing Determinants'!$B$19:$Z$41,4,0)/'4. Billing Determinants'!$E$41*$D9,IF($E9="kW",VLOOKUP(L$4,'4. Billing Determinants'!$B$19:$Z$41,5,0)/'4. Billing Determinants'!$F$41*$D9,IF($E9="Non-RPP kWh",VLOOKUP(L$4,'4. Billing Determinants'!$B$19:$Z$41,6,0)/'4. Billing Determinants'!$G$41*$D9,IF($E9="Distribution Rev.",VLOOKUP(L$4,'4. Billing Determinants'!$B$19:$Z$41,8,0)/'4. Billing Determinants'!$I$41*$D9, VLOOKUP(L$4,'4. Billing Determinants'!$B$19:$Z$41,3,0)/'4. Billing Determinants'!$D$41*$D9))))),0) -> -273.1434849 | M9: =IFERROR(IF(M$4="",0,IF($E9="kWh",VLOOKUP(M$4,'4. Billing Determinants'!$B$19:$Z$41,4,0)/'4. Billing Determinants'!$E$41*$D9,IF($E9="kW",VLOOKUP(M$4,'4. Billing Determinants'!$B$19:$Z$41,5,0)/'4. Billing Determinants'!$F$41*$D9,IF($E9="Non-RPP kWh",VLOOKUP(M$4,'4. Billing Determinants'!$B$19:$Z$41,6,0)/'4. Billing Determinants'!$G$41*$D9,IF($E9="Distribution Rev.",VLOOKUP(M$4,'4. Billing Determinants'!$B$19:$Z$41,8,0)/'4. Billing Determinants'!$I$41*$D9, VLOOKUP(M$4,'4. Billing Determinants'!$B$19:$Z$41,3,0)/'4. Billing Determinants'!$D$41*$D9))))),0) -> 0 | N9: =IFERROR(IF(N$4="",0,IF($E9="kWh",VLOOKUP(N$4,'4. Billing Determinants'!$B$19:$Z$41,4,0)/'4. Billing Determinants'!$E$41*$D9,IF($E9="kW",VLOOKUP(N$4,'4. Billing Determinants'!$B$19:$Z$41,5,0)/'4. Billing Determinants'!$F$41*$D9,IF($E9="Non-RPP kWh",VLOOKUP(N$4,'4. Billing Determinants'!$B$19:$Z$41,6,0)/'4. Billing Determinants'!$G$41*$D9,IF($E9="Distribution Rev.",VLOOKUP(N$4,'4. Billing Determinants'!$B$19:$Z$41,8,0)/'4. Billing Determinants'!$I$41*$D9, VLOOKUP(N$4,'4. Billing Determinants'!$B$19:$Z$41,3,0)/'4. Billing Determinants'!$D$41*$D9))))),0) -> 0 | O9: =IFERROR(IF(O$4="",0,IF($E9="kWh",VLOOKUP(O$4,'4. Billing Determinants'!$B$19:$Z$41,4,0)/'4. Billing Determinants'!$E$41*$D9,IF($E9="kW",VLOOKUP(O$4,'4. Billing Determinants'!$B$19:$Z$41,5,0)/'4. Billing Determinants'!$F$41*$D9,IF($E9="Non-RPP kWh",VLOOKUP(O$4,'4. Billing Determinants'!$B$19:$Z$41,6,0)/'4. Billing Determinants'!$G$41*$D9,IF($E9="Distribution Rev.",VLOOKUP(O$4,'4. Billing Determinants'!$B$19:$Z$41,8,0)/'4. Billing Determinants'!$I$41*$D9, VLOOKUP(O$4,'4. Billing Determinants'!$B$19:$Z$41,3,0)/'4. Billing Determinants'!$D$41*$D9))))),0) -> 0 | P9: =IFERROR(IF(P$4="",0,IF($E9="kWh",VLOOKUP(P$4,'4. Billing Determinants'!$B$19:$Z$41,4,0)/'4. Billing Determinants'!$E$41*$D9,IF($E9="kW",VLOOKUP(P$4,'4. Billing Determinants'!$B$19:$Z$41,5,0)/'4. Billing Determinants'!$F$41*$D9,IF($E9="Non-RPP kWh",VLOOKUP(P$4,'4. Billing Determinants'!$B$19:$Z$41,6,0)/'4. Billing Determinants'!$G$41*$D9,IF($E9="Distribution Rev.",VLOOKUP(P$4,'4. Billing Determinants'!$B$19:$Z$41,8,0)/'4. Billing Determinants'!$I$41*$D9, VLOOKUP(P$4,'4. Billing Determinants'!$B$19:$Z$41,3,0)/'4. Billing Determinants'!$D$41*$D9))))),0) -> 0 | Q9: =IFERROR(IF(Q$4="",0,IF($E9="kWh",VLOOKUP(Q$4,'4. Billing Determinants'!$B$19:$Z$41,4,0)/'4. Billing Determinants'!$E$41*$D9,IF($E9="kW",VLOOKUP(Q$4,'4. Billing Determinants'!$B$19:$Z$41,5,0)/'4. Billing Determinants'!$F$41*$D9,IF($E9="Non-RPP kWh",VLOOKUP(Q$4,'4. Billing Determinants'!$B$19:$Z$41,6,0)/'4. Billing Determinants'!$G$41*$D9,IF($E9="Distribution Rev.",VLOOKUP(Q$4,'4. Billing Determinants'!$B$19:$Z$41,8,0)/'4. Billing Determinants'!$I$41*$D9, VLOOKUP(Q$4,'4. Billing Determinants'!$B$19:$Z$41,3,0)/'4. Billing Determinants'!$D$41*$D9))))),0) -> 0 | R9: =IFERROR(IF(R$4="",0,IF($E9="kWh",VLOOKUP(R$4,'4. Billing Determinants'!$B$19:$Z$41,4,0)/'4. Billing Determinants'!$E$41*$D9,IF($E9="kW",VLOOKUP(R$4,'4. Billing Determinants'!$B$19:$Z$41,5,0)/'4. Billing Determinants'!$F$41*$D9,IF($E9="Non-RPP kWh",VLOOKUP(R$4,'4. Billing Determinants'!$B$19:$Z$41,6,0)/'4. Billing Determinants'!$G$41*$D9,IF($E9="Distribution Rev.",VLOOKUP(R$4,'4. Billing Determinants'!$B$19:$Z$41,8,0)/'4. Billing Determinants'!$I$41*$D9, VLOOKUP(R$4,'4. Billing Determinants'!$B$19:$Z$41,3,0)/'4. Billing Determinants'!$D$41*$D9))))),0) -> 0 | S9: =IFERROR(IF(S$4="",0,IF($E9="kWh",VLOOKUP(S$4,'4. Billing Determinants'!$B$19:$Z$41,4,0)/'4. Billing Determinants'!$E$41*$D9,IF($E9="kW",VLOOKUP(S$4,'4. Billing Determinants'!$B$19:$Z$41,5,0)/'4. Billing Determinants'!$F$41*$D9,IF($E9="Non-RPP kWh",VLOOKUP(S$4,'4. Billing Determinants'!$B$19:$Z$41,6,0)/'4. Billing Determinants'!$G$41*$D9,IF($E9="Distribution Rev.",VLOOKUP(S$4,'4. Billing Determinants'!$B$19:$Z$41,8,0)/'4. Billing Determinants'!$I$41*$D9, VLOOKUP(S$4,'4. Billing Determinants'!$B$19:$Z$41,3,0)/'4. Billing Determinants'!$D$41*$D9))))),0) -> 0 | T9: =IFERROR(IF(T$4="",0,IF($E9="kWh",VLOOKUP(T$4,'4. Billing Determinants'!$B$19:$Z$41,4,0)/'4. Billing Determinants'!$E$41*$D9,IF($E9="kW",VLOOKUP(T$4,'4. Billing Determinants'!$B$19:$Z$41,5,0)/'4. Billing Determinants'!$F$41*$D9,IF($E9="Non-RPP kWh",VLOOKUP(T$4,'4. Billing Determinants'!$B$19:$Z$41,6,0)/'4. Billing Determinants'!$G$41*$D9,IF($E9="Distribution Rev.",VLOOKUP(T$4,'4. Billing Determinants'!$B$19:$Z$41,8,0)/'4. Billing Determinants'!$I$41*$D9, VLOOKUP(T$4,'4. Billing Determinants'!$B$19:$Z$41,3,0)/'4. Billing Determinants'!$D$41*$D9))))),0) -> 0 | U9: =IFERROR(IF(U$4="",0,IF($E9="kWh",VLOOKUP(U$4,'4. Billing Determinants'!$B$19:$Z$41,4,0)/'4. Billing Determinants'!$E$41*$D9,IF($E9="kW",VLOOKUP(U$4,'4. Billing Determinants'!$B$19:$Z$41,5,0)/'4. Billing Determinants'!$F$41*$D9,IF($E9="Non-RPP kWh",VLOOKUP(U$4,'4. Billing Determinants'!$B$19:$Z$41,6,0)/'4. Billing Determinants'!$G$41*$D9,IF($E9="Distribution Rev.",VLOOKUP(U$4,'4. Billing Determinants'!$B$19:$Z$41,8,0)/'4. Billing Determinants'!$I$41*$D9, VLOOKUP(U$4,'4. Billing Determinants'!$B$19:$Z$41,3,0)/'4. Billing Determinants'!$D$41*$D9))))),0) -> 0 | V9: =IFERROR(IF(V$4="",0,IF($E9="kWh",VLOOKUP(V$4,'4. Billing Determinants'!$B$19:$Z$41,4,0)/'4. Billing Determinants'!$E$41*$D9,IF($E9="kW",VLOOKUP(V$4,'4. Billing Determinants'!$B$19:$Z$41,5,0)/'4. Billing Determinants'!$F$41*$D9,IF($E9="Non-RPP kWh",VLOOKUP(V$4,'4. Billing Determinants'!$B$19:$Z$41,6,0)/'4. Billing Determinants'!$G$41*$D9,IF($E9="Distribution Rev.",VLOOKUP(V$4,'4. Billing Determinants'!$B$19:$Z$41,8,0)/'4. Billing Determinants'!$I$41*$D9, VLOOKUP(V$4,'4. Billing Determinants'!$B$19:$Z$41,3,0)/'4. Billing Determinants'!$D$41*$D9))))),0) -> 0 | W9: =IFERROR(IF(W$4="",0,IF($E9="kWh",VLOOKUP(W$4,'4. Billing Determinants'!$B$19:$Z$41,4,0)/'4. Billing Determinants'!$E$41*$D9,IF($E9="kW",VLOOKUP(W$4,'4. Billing Determinants'!$B$19:$Z$41,5,0)/'4. Billing Determinants'!$F$41*$D9,IF($E9="Non-RPP kWh",VLOOKUP(W$4,'4. Billing Determinants'!$B$19:$Z$41,6,0)/'4. Billing Determinants'!$G$41*$D9,IF($E9="Distribution Rev.",VLOOKUP(W$4,'4. Billing Determinants'!$B$19:$Z$41,8,0)/'4. Billing Determinants'!$I$41*$D9, VLOOKUP(W$4,'4. Billing Determinants'!$B$19:$Z$41,3,0)/'4. Billing Determinants'!$D$41*$D9))))),0) -> 0 | X9: =IFERROR(IF(X$4="",0,IF($E9="kWh",VLOOKUP(X$4,'4. Billing Determinants'!$B$19:$Z$41,4,0)/'4. Billing Determinants'!$E$41*$D9,IF($E9="kW",VLOOKUP(X$4,'4. Billing Determinants'!$B$19:$Z$41,5,0)/'4. Billing Determinants'!$F$41*$D9,IF($E9="Non-RPP kWh",VLOOKUP(X$4,'4. Billing Determinants'!$B$19:$Z$41,6,0)/'4. Billing Determinants'!$G$41*$D9,IF($E9="Distribution Rev.",VLOOKUP(X$4,'4. Billing Determinants'!$B$19:$Z$41,8,0)/'4. Billing Determinants'!$I$41*$D9, VLOOKUP(X$4,'4. Billing Determinants'!$B$19:$Z$41,3,0)/'4. Billing Determinants'!$D$41*$D9))))),0) -> 0 | Y9: =IFERROR(IF(Y$4="",0,IF($E9="kWh",VLOOKUP(Y$4,'4. Billing Determinants'!$B$19:$Z$41,4,0)/'4. Billing Determinants'!$E$41*$D9,IF($E9="kW",VLOOKUP(Y$4,'4. Billing Determinants'!$B$19:$Z$41,5,0)/'4. Billing Determinants'!$F$41*$D9,IF($E9="Non-RPP kWh",VLOOKUP(Y$4,'4. Billing Determinants'!$B$19:$Z$41,6,0)/'4. Billing Determinants'!$G$41*$D9,IF($E9="Distribution Rev.",VLOOKUP(Y$4,'4. Billing Determinants'!$B$19:$Z$41,8,0)/'4. Billing Determinants'!$I$41*$D9, VLOOKUP(Y$4,'4. Billing Determinants'!$B$19:$Z$41,3,0)/'4. Billing Determinants'!$D$41*$D9))))),0) -> 0
B10: RSVA - Power (excluding Global Adjustment) | C10: 1588 | D10: ='2. 2015 Continuity Schedule'!BS29 -> 75877.9854 | E10: kWh | F10: =IFERROR(IF(F$4="",0,IF($E10="kWh",VLOOKUP(F$4,'4. Billing Determinants'!$B$19:$Z$41,11,0)/'4. Billing Determinants'!$L$41*$D10,IF($E10="kW",VLOOKUP(F$4,'4. Billing Determinants'!$B$19:$Z$41,12,0)/'4. Billing Determinants'!$M$41*$D10,))),0) -> 19743.86593 | G10: =IFERROR(IF(G$4="",0,IF($E10="kWh",VLOOKUP(G$4,'4. Billing Determinants'!$B$19:$Z$41,11,0)/'4. Billing Determinants'!$L$41*$D10,IF($E10="kW",VLOOKUP(G$4,'4. Billing Determinants'!$B$19:$Z$41,12,0)/'4. Billing Determinants'!$M$41*$D10,))),0) -> 9000.712901 | H10: =IFERROR(IF(H$4="",0,IF($E10="kWh",VLOOKUP(H$4,'4. Billing Determinants'!$B$19:$Z$41,11,0)/'4. Billing Determinants'!$L$41*$D10,IF($E10="kW",VLOOKUP(H$4,'4. Billing Determinants'!$B$19:$Z$41,12,0)/'4. Billing Determinants'!$M$41*$D10,))),0) -> 10132.1132 | I10: =IFERROR(IF(I$4="",0,IF($E10="kWh",VLOOKUP(I$4,'4. Billing Determinants'!$B$19:$Z$41,11,0)/'4. Billing Determinants'!$L$41*$D10,IF($E10="kW",VLOOKUP(I$4,'4. Billing Determinants'!$B$19:$Z$41,12,0)/'4. Billing Determinants'!$M$41*$D10,))),0) -> 36459.90755 | J10: =IFERROR(IF(J$4="",0,IF($E10="kWh",VLOOKUP(J$4,'4. Billing Determinants'!$B$19:$Z$41,11,0)/'4. Billing Determinants'!$L$41*$D10,IF($E10="kW",VLOOKUP(J$4,'4. Billing Determinants'!$B$19:$Z$41,12,0)/'4. Billing Determinants'!$M$41*$D10,))),0) -> 2.178703996 | K10: =IFERROR(IF(K$4="",0,IF($E10="kWh",VLOOKUP(K$4,'4. Billing Determinants'!$B$19:$Z$41,11,0)/'4. Billing Determinants'!$L$41*$D10,IF($E10="kW",VLOOKUP(K$4,'4. Billing Determinants'!$B$19:$Z$41,12,0)/'4. Billing Determinants'!$M$41*$D10,))),0) -> 16.660877 | L10: =IFERROR(IF(L$4="",0,IF($E10="kWh",VLOOKUP(L$4,'4. Billing Determinants'!$B$19:$Z$41,11,0)/'4. Billing Determinants'!$L$41*$D10,IF($E10="kW",VLOOKUP(L$4,'4. Billing Determinants'!$B$19:$Z$41,12,0)/'4. Billing Determinants'!$M$41*$D10,))),0) -> 522.5462357 | M10: =IFERROR(IF(M$4="",0,IF($E10="kWh",VLOOKUP(M$4,'4. Billing Determinants'!$B$19:$Z$41,11,0)/'4. Billing Determinants'!$L$41*$D10,IF($E10="kW",VLOOKUP(M$4,'4. Billing Determinants'!$B$19:$Z$41,12,0)/'4. Billing Determinants'!$M$41*$D10,))),0) -> 0 | N10: =IFERROR(IF(N$4="",0,IF($E10="kWh",VLOOKUP(N$4,'4. Billing Determinants'!$B$19:$Z$41,11,0)/'4. Billing Determinants'!$L$41*$D10,IF($E10="kW",VLOOKUP(N$4,'4. Billing Determinants'!$B$19:$Z$41,12,0)/'4. Billing Determinants'!$M$41*$D10,))),0) -> 0 | O10: =IFERROR(IF(O$4="",0,IF($E10="kWh",VLOOKUP(O$4,'4. Billing Determinants'!$B$19:$Z$41,11,0)/'4. Billing Determinants'!$L$41*$D10,IF($E10="kW",VLOOKUP(O$4,'4. Billing Determinants'!$B$19:$Z$41,12,0)/'4. Billing Determinants'!$M$41*$D10,))),0) -> 0 | P10: =IFERROR(IF(P$4="",0,IF($E10="kWh",VLOOKUP(P$4,'4. Billing Determinants'!$B$19:$Z$41,11,0)/'4. Billing Determinants'!$L$41*$D10,IF($E10="kW",VLOOKUP(P$4,'4. Billing Determinants'!$B$19:$Z$41,12,0)/'4. Billing Determinants'!$M$41*$D10,))),0) -> 0 | Q10: =IFERROR(IF(Q$4="",0,IF($E10="kWh",VLOOKUP(Q$4,'4. Billing Determinants'!$B$19:$Z$41,11,0)/'4. Billing Determinants'!$L$41*$D10,IF($E10="kW",VLOOKUP(Q$4,'4. Billing Determinants'!$B$19:$Z$41,12,0)/'4. Billing Determinants'!$M$41*$D10,))),0) -> 0 | R10: =IFERROR(IF(R$4="",0,IF($E10="kWh",VLOOKUP(R$4,'4. Billing Determinants'!$B$19:$Z$41,11,0)/'4. Billing Determinants'!$L$41*$D10,IF($E10="kW",VLOOKUP(R$4,'4. Billing Determinants'!$B$19:$Z$41,12,0)/'4. Billing Determinants'!$M$41*$D10,))),0) -> 0 | S10: =IFERROR(IF(S$4="",0,IF($E10="kWh",VLOOKUP(S$4,'4. Billing Determinants'!$B$19:$Z$41,11,0)/'4. Billing Determinants'!$L$41*$D10,IF($E10="kW",VLOOKUP(S$4,'4. Billing Determinants'!$B$19:$Z$41,12,0)/'4. Billing Determinants'!$M$41*$D10,))),0) -> 0 | T10: =IFERROR(IF(T$4="",0,IF($E10="kWh",VLOOKUP(T$4,'4. Billing Determinants'!$B$19:$Z$41,11,0)/'4. Billing Determinants'!$L$41*$D10,IF($E10="kW",VLOOKUP(T$4,'4. Billing Determinants'!$B$19:$Z$41,12,0)/'4. Billing Determinants'!$M$41*$D10,))),0) -> 0 | U10: =IFERROR(IF(U$4="",0,IF($E10="kWh",VLOOKUP(U$4,'4. Billing Determinants'!$B$19:$Z$41,11,0)/'4. Billing Determinants'!$L$41*$D10,IF($E10="kW",VLOOKUP(U$4,'4. Billing Determinants'!$B$19:$Z$41,12,0)/'4. Billing Determinants'!$M$41*$D10,))),0) -> 0 | V10: =IFERROR(IF(V$4="",0,IF($E10="kWh",VLOOKUP(V$4,'4. Billing Determinants'!$B$19:$Z$41,11,0)/'4. Billing Determinants'!$L$41*$D10,IF($E10="kW",VLOOKUP(V$4,'4. Billing Determinants'!$B$19:$Z$41,12,0)/'4. Billing Determinants'!$M$41*$D10,))),0) -> 0 | W10: =IFERROR(IF(W$4="",0,IF($E10="kWh",VLOOKUP(W$4,'4. Billing Determinants'!$B$19:$Z$41,11,0)/'4. Billing Determinants'!$L$41*$D10,IF($E10="kW",VLOOKUP(W$4,'4. Billing Determinants'!$B$19:$Z$41,12,0)/'4. Billing Determinants'!$M$41*$D10,))),0) -> 0 | X10: =IFERROR(IF(X$4="",0,IF($E10="kWh",VLOOKUP(X$4,'4. Billing Determinants'!$B$19:$Z$41,11,0)/'4. Billing Determinants'!$L$41*$D10,IF($E10="kW",VLOOKUP(X$4,'4. Billing Determinants'!$B$19:$Z$41,12,0)/'4. Billing Determinants'!$M$41*$D10,))),0) -> 0 | Y10: =IFERROR(IF(Y$4="",0,IF($E10="kWh",VLOOKUP(Y$4,'4. Billing Determinants'!$B$19:$Z$41,11,0)/'4. Billing Determinants'!$L$41*$D10,IF($E10="kW",VLOOKUP(Y$4,'4. Billing Determinants'!$B$19:$Z$41,12,0)/'4. Billing Determinants'!$M$41*$D10,))),0) -> 0
B11: RSVA - Global Adjustment | C11: 1589 | D11: =IF('4. Billing Determinants'!N41>0, '2. 2015 Continuity Schedule'!BS30-('2. 2015 Continuity Schedule'!BS30*'4. Billing Determinants'!N41), '2. 2015 Continuity Schedule'!BS30) -> 153327.9597 | E11: Non-RPP kWh | F11: =IFERROR(IF(F$4="",0,IF($E11="kWh",VLOOKUP(F$4,'4. Billing Determinants'!$B$19:$Z$41,4,0)/'4. Billing Determinants'!$E$41*$D11,IF($E11="kW",VLOOKUP(F$4,'4. Billing Determinants'!$B$19:$Z$41,5,0)/'4. Billing Determinants'!$F$41*$D11,IF($E11="Non-RPP kWh",VLOOKUP(F$4,'4. Billing Determinants'!$B$19:$Z$41,16,0)/'4. Billing Determinants'!$Q$41*$D11,IF($E11="Distribution Rev.",VLOOKUP(F$4,'4. Billing Determinants'!$B$19:$Z$41,8,0)/'4. Billing Determinants'!$I$41*$D11, VLOOKUP(F$4,'4. Billing Determinants'!$B$19:$Z$41,3,0)/'4. Billing Determinants'!$D$41*$D11))))),0) -> 3292.889565 | G11: =IFERROR(IF(G$4="",0,IF($E11="kWh",VLOOKUP(G$4,'4. Billing Determinants'!$B$19:$Z$41,4,0)/'4. Billing Determinants'!$E$41*$D11,IF($E11="kW",VLOOKUP(G$4,'4. Billing Determinants'!$B$19:$Z$41,5,0)/'4. Billing Determinants'!$F$41*$D11,IF($E11="Non-RPP kWh",VLOOKUP(G$4,'4. Billing Determinants'!$B$19:$Z$41,16,0)/'4. Billing Determinants'!$Q$41*$D11,IF($E11="Distribution Rev.",VLOOKUP(G$4,'4. Billing Determinants'!$B$19:$Z$41,8,0)/'4. Billing Determinants'!$I$41*$D11, VLOOKUP(G$4,'4. Billing Determinants'!$B$19:$Z$41,3,0)/'4. Billing Determinants'!$D$41*$D11))))),0) -> 5569.158296 | H11: =IFERROR(IF(H$4="",0,IF($E11="kWh",VLOOKUP(H$4,'4. Billing Determinants'!$B$19:$Z$41,4,0)/'4. Billing Determinants'!$E$41*$D11,IF($E11="kW",VLOOKUP(H$4,'4. Billing Determinants'!$B$19:$Z$41,5,0)/'4. Billing Determinants'!$F$41*$D11,IF($E11="Non-RPP kWh",VLOOKUP(H$4,'4. Billing Determinants'!$B$19:$Z$41,16,0)/'4. Billing Determinants'!$Q$41*$D11,IF($E11="Distribution Rev.",VLOOKUP(H$4,'4. Billing Determinants'!$B$19:$Z$41,8,0)/'4. Billing Determinants'!$I$41*$D11, VLOOKUP(H$4,'4. Billing Determinants'!$B$19:$Z$41,3,0)/'4. Billing Determinants'!$D$41*$D11))))),0) -> 29891.17146 | I11: =IFERROR(IF(I$4="",0,IF($E11="kWh",VLOOKUP(I$4,'4. Billing Determinants'!$B$19:$Z$41,4,0)/'4. Billing Determinants'!$E$41*$D11,IF($E11="kW",VLOOKUP(I$4,'4. Billing Determinants'!$B$19:$Z$41,5,0)/'4. Billing Determinants'!$F$41*$D11,IF($E11="Non-RPP kWh",VLOOKUP(I$4,'4. Billing Determinants'!$B$19:$Z$41,16,0)/'4. Billing Determinants'!$Q$41*$D11,IF($E11="Distribution Rev.",VLOOKUP(I$4,'4. Billing Determinants'!$B$19:$Z$41,8,0)/'4. Billing Determinants'!$I$41*$D11, VLOOKUP(I$4,'4. Billing Determinants'!$B$19:$Z$41,3,0)/'4. Billing Determinants'!$D$41*$D11))))),0) -> 112948.0638 | J11: =IFERROR(IF(J$4="",0,IF($E11="kWh",VLOOKUP(J$4,'4. Billing Determinants'!$B$19:$Z$41,4,0)/'4. Billing Determinants'!$E$41*$D11,IF($E11="kW",VLOOKUP(J$4,'4. Billing Determinants'!$B$19:$Z$41,5,0)/'4. Billing Determinants'!$F$41*$D11,IF($E11="Non-RPP kWh",VLOOKUP(J$4,'4. Billing Determinants'!$B$19:$Z$41,16,0)/'4. Billing Determinants'!$Q$41*$D11,IF($E11="Distribution Rev.",VLOOKUP(J$4,'4. Billing Determinants'!$B$19:$Z$41,8,0)/'4. Billing Determinants'!$I$41*$D11, VLOOKUP(J$4,'4. Billing Determinants'!$B$19:$Z$41,3,0)/'4. Billing Determinants'!$D$41*$D11))))),0) -> 0 | K11: =IFERROR(IF(K$4="",0,IF($E11="kWh",VLOOKUP(K$4,'4. Billing Determinants'!$B$19:$Z$41,4,0)/'4. Billing Determinants'!$E$41*$D11,IF($E11="kW",VLOOKUP(K$4,'4. Billing Determinants'!$B$19:$Z$41,5,0)/'4. Billing Determinants'!$F$41*$D11,IF($E11="Non-RPP kWh",VLOOKUP(K$4,'4. Billing Determinants'!$B$19:$Z$41,16,0)/'4. Billing Determinants'!$Q$41*$D11,IF($E11="Distribution Rev.",VLOOKUP(K$4,'4. Billing Determinants'!$B$19:$Z$41,8,0)/'4. Billing Determinants'!$I$41*$D11, VLOOKUP(K$4,'4. Billing Determinants'!$B$19:$Z$41,3,0)/'4. Billing Determinants'!$D$41*$D11))))),0) -> 7.896146396 | L11: =IFERROR(IF(L$4="",0,IF($E11="kWh",VLOOKUP(L$4,'4. Billing Determinants'!$B$19:$Z$41,4,0)/'4. Billing Determinants'!$E$41*$D11,IF($E11="kW",VLOOKUP(L$4,'4. Billing Determinants'!$B$19:$Z$41,5,0)/'4. Billing Determinants'!$F$41*$D11,IF($E11="Non-RPP kWh",VLOOKUP(L$4,'4. Billing Determinants'!$B$19:$Z$41,16,0)/'4. Billing Determinants'!$Q$41*$D11,IF($E11="Distribution Rev.",VLOOKUP(L$4,'4. Billing Determinants'!$B$19:$Z$41,8,0)/'4. Billing Determinants'!$I$41*$D11, VLOOKUP(L$4,'4. Billing Determinants'!$B$19:$Z$41,3,0)/'4. Billing Determinants'!$D$41*$D11))))),0) -> 1618.78045 | M11: =IFERROR(IF(M$4="",0,IF($E11="kWh",VLOOKUP(M$4,'4. Billing Determinants'!$B$19:$Z$41,4,0)/'4. Billing Determinants'!$E$41*$D11,IF($E11="kW",VLOOKUP(M$4,'4. Billing Determinants'!$B$19:$Z$41,5,0)/'4. Billing Determinants'!$F$41*$D11,IF($E11="Non-RPP kWh",VLOOKUP(M$4,'4. Billing Determinants'!$B$19:$Z$41,16,0)/'4. Billing Determinants'!$Q$41*$D11,IF($E11="Distribution Rev.",VLOOKUP(M$4,'4. Billing Determinants'!$B$19:$Z$41,8,0)/'4. Billing Determinants'!$I$41*$D11, VLOOKUP(M$4,'4. Billing Determinants'!$B$19:$Z$41,3,0)/'4. Billing Determinants'!$D$41*$D11))))),0) -> 0 | N11: =IFERROR(IF(N$4="",0,IF($E11="kWh",VLOOKUP(N$4,'4. Billing Determinants'!$B$19:$Z$41,4,0)/'4. Billing Determinants'!$E$41*$D11,IF($E11="kW",VLOOKUP(N$4,'4. Billing Determinants'!$B$19:$Z$41,5,0)/'4. Billing Determinants'!$F$41*$D11,IF($E11="Non-RPP kWh",VLOOKUP(N$4,'4. Billing Determinants'!$B$19:$Z$41,16,0)/'4. Billing Determinants'!$Q$41*$D11,IF($E11="Distribution Rev.",VLOOKUP(N$4,'4. Billing Determinants'!$B$19:$Z$41,8,0)/'4. Billing Determinants'!$I$41*$D11, VLOOKUP(N$4,'4. Billing Determinants'!$B$19:$Z$41,3,0)/'4. Billing Determinants'!$D$41*$D11))))),0) -> 0 | O11: =IFERROR(IF(O$4="",0,IF($E11="kWh",VLOOKUP(O$4,'4. Billing Determinants'!$B$19:$Z$41,4,0)/'4. Billing Determinants'!$E$41*$D11,IF($E11="kW",VLOOKUP(O$4,'4. Billing Determinants'!$B$19:$Z$41,5,0)/'4. Billing Determinants'!$F$41*$D11,IF($E11="Non-RPP kWh",VLOOKUP(O$4,'4. Billing Determinants'!$B$19:$Z$41,16,0)/'4. Billing Determinants'!$G$41*$D11,IF($E11="Distribution Rev.",VLOOKUP(O$4,'4. Billing Determinants'!$B$19:$Z$41,8,0)/'4. Billing Determinants'!$I$41*$D11, VLOOKUP(O$4,'4. Billing Determinants'!$B$19:$Z$41,3,0)/'4. Billing Determinants'!$D$41*$D11))))),0) -> 0 | P11: =IFERROR(IF(P$4="",0,IF($E11="kWh",VLOOKUP(P$4,'4. Billing Determinants'!$B$19:$Z$41,4,0)/'4. Billing Determinants'!$E$41*$D11,IF($E11="kW",VLOOKUP(P$4,'4. Billing Determinants'!$B$19:$Z$41,5,0)/'4. Billing Determinants'!$F$41*$D11,IF($E11="Non-RPP kWh",VLOOKUP(P$4,'4. Billing Determinants'!$B$19:$Z$41,16,0)/'4. Billing Determinants'!$G$41*$D11,IF($E11="Distribution Rev.",VLOOKUP(P$4,'4. Billing Determinants'!$B$19:$Z$41,8,0)/'4. Billing Determinants'!$I$41*$D11, VLOOKUP(P$4,'4. Billing Determinants'!$B$19:$Z$41,3,0)/'4. Billing Determinants'!$D$41*$D11))))),0) -> 0 | Q11: =IFERROR(IF(Q$4="",0,IF($E11="kWh",VLOOKUP(Q$4,'4. Billing Determinants'!$B$19:$Z$41,4,0)/'4. Billing Determinants'!$E$41*$D11,IF($E11="kW",VLOOKUP(Q$4,'4. Billing Determinants'!$B$19:$Z$41,5,0)/'4. Billing Determinants'!$F$41*$D11,IF($E11="Non-RPP kWh",VLOOKUP(Q$4,'4. Billing Determinants'!$B$19:$Z$41,16,0)/'4. Billing Determinants'!$G$41*$D11,IF($E11="Distribution Rev.",VLOOKUP(Q$4,'4. Billing Determinants'!$B$19:$Z$41,8,0)/'4. Billing Determinants'!$I$41*$D11, VLOOKUP(Q$4,'4. Billing Determinants'!$B$19:$Z$41,3,0)/'4. Billing Determinants'!$D$41*$D11))))),0) -> 0 | R11: =IFERROR(IF(R$4="",0,IF($E11="kWh",VLOOKUP(R$4,'4. Billing Determinants'!$B$19:$Z$41,4,0)/'4. Billing Determinants'!$E$41*$D11,IF($E11="kW",VLOOKUP(R$4,'4. Billing Determinants'!$B$19:$Z$41,5,0)/'4. Billing Determinants'!$F$41*$D11,IF($E11="Non-RPP kWh",VLOOKUP(R$4,'4. Billing Determinants'!$B$19:$Z$41,16,0)/'4. Billing Determinants'!$G$41*$D11,IF($E11="Distribution Rev.",VLOOKUP(R$4,'4. Billing Determinants'!$B$19:$Z$41,8,0)/'4. Billing Determinants'!$I$41*$D11, VLOOKUP(R$4,'4. Billing Determinants'!$B$19:$Z$41,3,0)/'4. Billing Determinants'!$D$41*$D11))))),0) -> 0 | S11: =IFERROR(IF(S$4="",0,IF($E11="kWh",VLOOKUP(S$4,'4. Billing Determinants'!$B$19:$Z$41,4,0)/'4. Billing Determinants'!$E$41*$D11,IF($E11="kW",VLOOKUP(S$4,'4. Billing Determinants'!$B$19:$Z$41,5,0)/'4. Billing Determinants'!$F$41*$D11,IF($E11="Non-RPP kWh",VLOOKUP(S$4,'4. Billing Determinants'!$B$19:$Z$41,16,0)/'4. Billing Determinants'!$G$41*$D11,IF($E11="Distribution Rev.",VLOOKUP(S$4,'4. Billing Determinants'!$B$19:$Z$41,8,0)/'4. Billing Determinants'!$I$41*$D11, VLOOKUP(S$4,'4. Billing Determinants'!$B$19:$Z$41,3,0)/'4. Billing Determinants'!$D$41*$D11))))),0) -> 0 | T11: =IFERROR(IF(T$4="",0,IF($E11="kWh",VLOOKUP(T$4,'4. Billing Determinants'!$B$19:$Z$41,4,0)/'4. Billing Determinants'!$E$41*$D11,IF($E11="kW",VLOOKUP(T$4,'4. Billing Determinants'!$B$19:$Z$41,5,0)/'4. Billing Determinants'!$F$41*$D11,IF($E11="Non-RPP kWh",VLOOKUP(T$4,'4. Billing Determinants'!$B$19:$Z$41,16,0)/'4. Billing Determinants'!$G$41*$D11,IF($E11="Distribution Rev.",VLOOKUP(T$4,'4. Billing Determinants'!$B$19:$Z$41,8,0)/'4. Billing Determinants'!$I$41*$D11, VLOOKUP(T$4,'4. Billing Determinants'!$B$19:$Z$41,3,0)/'4. Billing Determinants'!$D$41*$D11))))),0) -> 0 | U11: =IFERROR(IF(U$4="",0,IF($E11="kWh",VLOOKUP(U$4,'4. Billing Determinants'!$B$19:$Z$41,4,0)/'4. Billing Determinants'!$E$41*$D11,IF($E11="kW",VLOOKUP(U$4,'4. Billing Determinants'!$B$19:$Z$41,5,0)/'4. Billing Determinants'!$F$41*$D11,IF($E11="Non-RPP kWh",VLOOKUP(U$4,'4. Billing Determinants'!$B$19:$Z$41,16,0)/'4. Billing Determinants'!$G$41*$D11,IF($E11="Distribution Rev.",VLOOKUP(U$4,'4. Billing Determinants'!$B$19:$Z$41,8,0)/'4. Billing Determinants'!$I$41*$D11, VLOOKUP(U$4,'4. Billing Determinants'!$B$19:$Z$41,3,0)/'4. Billing Determinants'!$D$41*$D11))))),0) -> 0 | V11: =IFERROR(IF(V$4="",0,IF($E11="kWh",VLOOKUP(V$4,'4. Billing Determinants'!$B$19:$Z$41,4,0)/'4. Billing Determinants'!$E$41*$D11,IF($E11="kW",VLOOKUP(V$4,'4. Billing Determinants'!$B$19:$Z$41,5,0)/'4. Billing Determinants'!$F$41*$D11,IF($E11="Non-RPP kWh",VLOOKUP(V$4,'4. Billing Determinants'!$B$19:$Z$41,16,0)/'4. Billing Determinants'!$G$41*$D11,IF($E11="Distribution Rev.",VLOOKUP(V$4,'4. Billing Determinants'!$B$19:$Z$41,8,0)/'4. Billing Determinants'!$I$41*$D11, VLOOKUP(V$4,'4. Billing Determinants'!$B$19:$Z$41,3,0)/'4. Billing Determinants'!$D$41*$D11))))),0) -> 0 | W11: =IFERROR(IF(W$4="",0,IF($E11="kWh",VLOOKUP(W$4,'4. Billing Determinants'!$B$19:$Z$41,4,0)/'4. Billing Determinants'!$E$41*$D11,IF($E11="kW",VLOOKUP(W$4,'4. Billing Determinants'!$B$19:$Z$41,5,0)/'4. Billing Determinants'!$F$41*$D11,IF($E11="Non-RPP kWh",VLOOKUP(W$4,'4. Billing Determinants'!$B$19:$Z$41,16,0)/'4. Billing Determinants'!$G$41*$D11,IF($E11="Distribution Rev.",VLOOKUP(W$4,'4. Billing Determinants'!$B$19:$Z$41,8,0)/'4. Billing Determinants'!$I$41*$D11, VLOOKUP(W$4,'4. Billing Determinants'!$B$19:$Z$41,3,0)/'4. Billing Determinants'!$D$41*$D11))))),0) -> 0 | X11: =IFERROR(IF(X$4="",0,IF($E11="kWh",VLOOKUP(X$4,'4. Billing Determinants'!$B$19:$Z$41,4,0)/'4. Billing Determinants'!$E$41*$D11,IF($E11="kW",VLOOKUP(X$4,'4. Billing Determinants'!$B$19:$Z$41,5,0)/'4. Billing Determinants'!$F$41*$D11,IF($E11="Non-RPP kWh",VLOOKUP(X$4,'4. Billing Determinants'!$B$19:$Z$41,16,0)/'4. Billing Determinants'!$G$41*$D11,IF($E11="Distribution Rev.",VLOOKUP(X$4,'4. Billing Determinants'!$B$19:$Z$41,8,0)/'4. Billing Determinants'!$I$41*$D11, VLOOKUP(X$4,'4. Billing Determinants'!$B$19:$Z$41,3,0)/'4. Billing Determinants'!$D$41*$D11))))),0) -> 0 | Y11: =IFERROR(IF(Y$4="",0,IF($E11="kWh",VLOOKUP(Y$4,'4. Billing Determinants'!$B$19:$Z$41,4,0)/'4. Billing Determinants'!$E$41*$D11,IF($E11="kW",VLOOKUP(Y$4,'4. Billing Determinants'!$B$19:$Z$41,5,0)/'4. Billing Determinants'!$F$41*$D11,IF($E11="Non-RPP kWh",VLOOKUP(Y$4,'4. Billing Determinants'!$B$19:$Z$41,16,0)/'4. Billing Determinants'!$G$41*$D11,IF($E11="Distribution Rev.",VLOOKUP(Y$4,'4. Billing Determinants'!$B$19:$Z$41,8,0)/'4. Billing Determinants'!$I$41*$D11, VLOOKUP(Y$4,'4. Billing Determinants'!$B$19:$Z$41,3,0)/'4. Billing Determinants'!$D$41*$D11))))),0) -> 0
B12: Disposition and Recovery/Refund of Regulatory Balances (2008) | C12: 1595 | D12: ='2. 2015 Continuity Schedule'!BS31 -> 0.66953225 | E12: % | F12: =IFERROR(IF(F$4="",0,IF($E12="kWh",VLOOKUP(F$4,'4. Billing Determinants'!$B$19:$Z$41,4,0)/'4. Billing Determinants'!$E$41*$D12,IF($E12="kW",VLOOKUP(F$4,'4. Billing Determinants'!$B$19:$Z$41,5,0)/'4. Billing Determinants'!$F$41*$D12,IF($E12="Non-RPP kWh",VLOOKUP(F$4,'4. Billing Determinants'!$B$19:$Z$41,6,0)/'4. Billing Determinants'!$G$41*$D12, VLOOKUP(F$4,'4. Billing Determinants'!$B$19:$Z$41,18,0)*$D12)))),0) -> 0.3471524716 | G12: =IFERROR(IF(G$4="",0,IF($E12="kWh",VLOOKUP(G$4,'4. Billing Determinants'!$B$19:$Z$41,4,0)/'4. Billing Determinants'!$E$41*$D12,IF($E12="kW",VLOOKUP(G$4,'4. Billing Determinants'!$B$19:$Z$41,5,0)/'4. Billing Determinants'!$F$41*$D12,IF($E12="Non-RPP kWh",VLOOKUP(G$4,'4. Billing Determinants'!$B$19:$Z$41,6,0)/'4. Billing Determinants'!$G$41*$D12, VLOOKUP(G$4,'4. Billing Determinants'!$B$19:$Z$41,18,0)*$D12)))),0) -> 0.1357811403 | H12: =IFERROR(IF(H$4="",0,IF($E12="kWh",VLOOKUP(H$4,'4. Billing Determinants'!$B$19:$Z$41,4,0)/'4. Billing Determinants'!$E$41*$D12,IF($E12="kW",VLOOKUP(H$4,'4. Billing Determinants'!$B$19:$Z$41,5,0)/'4. Billing Determinants'!$F$41*$D12,IF($E12="Non-RPP kWh",VLOOKUP(H$4,'4. Billing Determinants'!$B$19:$Z$41,6,0)/'4. Billing Determinants'!$G$41*$D12, VLOOKUP(H$4,'4. Billing Determinants'!$B$19:$Z$41,18,0)*$D12)))),0) -> 0.1076607858 | I12: =IFERROR(IF(I$4="",0,IF($E12="kWh",VLOOKUP(I$4,'4. Billing Determinants'!$B$19:$Z$41,4,0)/'4. Billing Determinants'!$E$41*$D12,IF($E12="kW",VLOOKUP(I$4,'4. Billing Determinants'!$B$19:$Z$41,5,0)/'4. Billing Determinants'!$F$41*$D12,IF($E12="Non-RPP kWh",VLOOKUP(I$4,'4. Billing Determinants'!$B$19:$Z$41,6,0)/'4. Billing Determinants'!$G$41*$D12, VLOOKUP(I$4,'4. Billing Determinants'!$B$19:$Z$41,18,0)*$D12)))),0) -> 0.05711110093 | J12: =IFERROR(IF(J$4="",0,IF($E12="kWh",VLOOKUP(J$4,'4. Billing Determinants'!$B$19:$Z$41,4,0)/'4. Billing Determinants'!$E$41*$D12,IF($E12="kW",VLOOKUP(J$4,'4. Billing Determinants'!$B$19:$Z$41,5,0)/'4. Billing Determinants'!$F$41*$D12,IF($E12="Non-RPP kWh",VLOOKUP(J$4,'4. Billing Determinants'!$B$19:$Z$41,6,0)/'4. Billing Determinants'!$G$41*$D12, VLOOKUP(J$4,'4. Billing Determinants'!$B$19:$Z$41,18,0)*$D12)))),0) -> 0.001004298375 | K12: =IFERROR(IF(K$4="",0,IF($E12="kWh",VLOOKUP(K$4,'4. Billing Determinants'!$B$19:$Z$41,4,0)/'4. Billing Determinants'!$E$41*$D12,IF($E12="kW",VLOOKUP(K$4,'4. Billing Determinants'!$B$19:$Z$41,5,0)/'4. Billing Determinants'!$F$41*$D12,IF($E12="Non-RPP kWh",VLOOKUP(K$4,'4. Billing Determinants'!$B$19:$Z$41,6,0)/'4. Billing Determinants'!$G$41*$D12, VLOOKUP(K$4,'4. Billing Determinants'!$B$19:$Z$41,18,0)*$D12)))),0) -> 0.0182112772 | L12: =IFERROR(IF(L$4="",0,IF($E12="kWh",VLOOKUP(L$4,'4. Billing Determinants'!$B$19:$Z$41,4,0)/'4. Billing Determinants'!$E$41*$D12,IF($E12="kW",VLOOKUP(L$4,'4. Billing Determinants'!$B$19:$Z$41,5,0)/'4. Billing Determinants'!$F$41*$D12,IF($E12="Non-RPP kWh",VLOOKUP(L$4,'4. Billing Determinants'!$B$19:$Z$41,6,0)/'4. Billing Determinants'!$G$41*$D12, VLOOKUP(L$4,'4. Billing Determinants'!$B$19:$Z$41,18,0)*$D12)))),0) -> 0.002611175775 | M12: =IFERROR(IF(M$4="",0,IF($E12="kWh",VLOOKUP(M$4,'4. Billing Determinants'!$B$19:$Z$41,4,0)/'4. Billing Determinants'!$E$41*$D12,IF($E12="kW",VLOOKUP(M$4,'4. Billing Determinants'!$B$19:$Z$41,5,0)/'4. Billing Determinants'!$F$41*$D12,IF($E12="Non-RPP kWh",VLOOKUP(M$4,'4. Billing Determinants'!$B$19:$Z$41,6,0)/'4. Billing Determinants'!$G$41*$D12, VLOOKUP(M$4,'4. Billing Determinants'!$B$19:$Z$41,18,0)*$D12)))),0) -> 0 | N12: =IFERROR(IF(N$4="",0,IF($E12="kWh",VLOOKUP(N$4,'4. Billing Determinants'!$B$19:$Z$41,4,0)/'4. Billing Determinants'!$E$41*$D12,IF($E12="kW",VLOOKUP(N$4,'4. Billing Determinants'!$B$19:$Z$41,5,0)/'4. Billing Determinants'!$F$41*$D12,IF($E12="Non-RPP kWh",VLOOKUP(N$4,'4. Billing Determinants'!$B$19:$Z$41,6,0)/'4. Billing Determinants'!$G$41*$D12, VLOOKUP(N$4,'4. Billing Determinants'!$B$19:$Z$41,18,0)*$D12)))),0) -> 0 | O12: =IFERROR(IF(O$4="",0,IF($E12="kWh",VLOOKUP(O$4,'4. Billing Determinants'!$B$19:$Z$41,4,0)/'4. Billing Determinants'!$E$41*$D12,IF($E12="kW",VLOOKUP(O$4,'4. Billing Determinants'!$B$19:$Z$41,5,0)/'4. Billing Determinants'!$F$41*$D12,IF($E12="Non-RPP kWh",VLOOKUP(O$4,'4. Billing Determinants'!$B$19:$Z$41,6,0)/'4. Billing Determinants'!$G$41*$D12, VLOOKUP(O$4,'4. Billing Determinants'!$B$19:$Z$41,18,0)*$D12)))),0) -> 0 | P12: =IFERROR(IF(P$4="",0,IF($E12="kWh",VLOOKUP(P$4,'4. Billing Determinants'!$B$19:$Z$41,4,0)/'4. Billing Determinants'!$E$41*$D12,IF($E12="kW",VLOOKUP(P$4,'4. Billing Determinants'!$B$19:$Z$41,5,0)/'4. Billing Determinants'!$F$41*$D12,IF($E12="Non-RPP kWh",VLOOKUP(P$4,'4. Billing Determinants'!$B$19:$Z$41,6,0)/'4. Billing Determinants'!$G$41*$D12, VLOOKUP(P$4,'4. Billing Determinants'!$B$19:$Z$41,18,0)*$D12)))),0) -> 0 | Q12: =IFERROR(IF(Q$4="",0,IF($E12="kWh",VLOOKUP(Q$4,'4. Billing Determinants'!$B$19:$Z$41,4,0)/'4. Billing Determinants'!$E$41*$D12,IF($E12="kW",VLOOKUP(Q$4,'4. Billing Determinants'!$B$19:$Z$41,5,0)/'4. Billing Determinants'!$F$41*$D12,IF($E12="Non-RPP kWh",VLOOKUP(Q$4,'4. Billing Determinants'!$B$19:$Z$41,6,0)/'4. Billing Determinants'!$G$41*$D12, VLOOKUP(Q$4,'4. Billing Determinants'!$B$19:$Z$41,18,0)*$D12)))),0) -> 0 | R12: =IFERROR(IF(R$4="",0,IF($E12="kWh",VLOOKUP(R$4,'4. Billing Determinants'!$B$19:$Z$41,4,0)/'4. Billing Determinants'!$E$41*$D12,IF($E12="kW",VLOOKUP(R$4,'4. Billing Determinants'!$B$19:$Z$41,5,0)/'4. Billing Determinants'!$F$41*$D12,IF($E12="Non-RPP kWh",VLOOKUP(R$4,'4. Billing Determinants'!$B$19:$Z$41,6,0)/'4. Billing Determinants'!$G$41*$D12, VLOOKUP(R$4,'4. Billing Determinants'!$B$19:$Z$41,18,0)*$D12)))),0) -> 0 | S12: =IFERROR(IF(S$4="",0,IF($E12="kWh",VLOOKUP(S$4,'4. Billing Determinants'!$B$19:$Z$41,4,0)/'4. Billing Determinants'!$E$41*$D12,IF($E12="kW",VLOOKUP(S$4,'4. Billing Determinants'!$B$19:$Z$41,5,0)/'4. Billing Determinants'!$F$41*$D12,IF($E12="Non-RPP kWh",VLOOKUP(S$4,'4. Billing Determinants'!$B$19:$Z$41,6,0)/'4. Billing Determinants'!$G$41*$D12, VLOOKUP(S$4,'4. Billing Determinants'!$B$19:$Z$41,18,0)*$D12)))),0) -> 0 | T12: =IFERROR(IF(T$4="",0,IF($E12="kWh",VLOOKUP(T$4,'4. Billing Determinants'!$B$19:$Z$41,4,0)/'4. Billing Determinants'!$E$41*$D12,IF($E12="kW",VLOOKUP(T$4,'4. Billing Determinants'!$B$19:$Z$41,5,0)/'4. Billing Determinants'!$F$41*$D12,IF($E12="Non-RPP kWh",VLOOKUP(T$4,'4. Billing Determinants'!$B$19:$Z$41,6,0)/'4. Billing Determinants'!$G$41*$D12, VLOOKUP(T$4,'4. Billing Determinants'!$B$19:$Z$41,18,0)*$D12)))),0) -> 0 | U12: =IFERROR(IF(U$4="",0,IF($E12="kWh",VLOOKUP(U$4,'4. Billing Determinants'!$B$19:$Z$41,4,0)/'4. Billing Determinants'!$E$41*$D12,IF($E12="kW",VLOOKUP(U$4,'4. Billing Determinants'!$B$19:$Z$41,5,0)/'4. Billing Determinants'!$F$41*$D12,IF($E12="Non-RPP kWh",VLOOKUP(U$4,'4. Billing Determinants'!$B$19:$Z$41,6,0)/'4. Billing Determinants'!$G$41*$D12, VLOOKUP(U$4,'4. Billing Determinants'!$B$19:$Z$41,18,0)*$D12)))),0) -> 0 | V12: =IFERROR(IF(V$4="",0,IF($E12="kWh",VLOOKUP(V$4,'4. Billing Determinants'!$B$19:$Z$41,4,0)/'4. Billing Determinants'!$E$41*$D12,IF($E12="kW",VLOOKUP(V$4,'4. Billing Determinants'!$B$19:$Z$41,5,0)/'4. Billing Determinants'!$F$41*$D12,IF($E12="Non-RPP kWh",VLOOKUP(V$4,'4. Billing Determinants'!$B$19:$Z$41,6,0)/'4. Billing Determinants'!$G$41*$D12, VLOOKUP(V$4,'4. Billing Determinants'!$B$19:$Z$41,18,0)*$D12)))),0) -> 0 | W12: =IFERROR(IF(W$4="",0,IF($E12="kWh",VLOOKUP(W$4,'4. Billing Determinants'!$B$19:$Z$41,4,0)/'4. Billing Determinants'!$E$41*$D12,IF($E12="kW",VLOOKUP(W$4,'4. Billing Determinants'!$B$19:$Z$41,5,0)/'4. Billing Determinants'!$F$41*$D12,IF($E12="Non-RPP kWh",VLOOKUP(W$4,'4. Billing Determinants'!$B$19:$Z$41,6,0)/'4. Billing Determinants'!$G$41*$D12, VLOOKUP(W$4,'4. Billing Determinants'!$B$19:$Z$41,18,0)*$D12)))),0) -> 0 | X12: =IFERROR(IF(X$4="",0,IF($E12="kWh",VLOOKUP(X$4,'4. Billing Determinants'!$B$19:$Z$41,4,0)/'4. Billing Determinants'!$E$41*$D12,IF($E12="kW",VLOOKUP(X$4,'4. Billing Determinants'!$B$19:$Z$41,5,0)/'4. Billing Determinants'!$F$41*$D12,IF($E12="Non-RPP kWh",VLOOKUP(X$4,'4. Billing Determinants'!$B$19:$Z$41,6,0)/'4. Billing Determinants'!$G$41*$D12, VLOOKUP(X$4,'4. Billing Determinants'!$B$19:$Z$41,18,0)*$D12)))),0) -> 0 | Y12: =IFERROR(IF(Y$4="",0,IF($E12="kWh",VLOOKUP(Y$4,'4. Billing Determinants'!$B$19:$Z$41,4,0)/'4. Billing Determinants'!$E$41*$D12,IF($E12="kW",VLOOKUP(Y$4,'4. Billing Determinants'!$B$19:$Z$41,5,0)/'4. Billing Determinants'!$F$41*$D12,IF($E12="Non-RPP kWh",VLOOKUP(Y$4,'4. Billing Determinants'!$B$19:$Z$41,6,0)/'4. Billing Determinants'!$G$41*$D12, VLOOKUP(Y$4,'4. Billing Determinants'!$B$19:$Z$41,18,0)*$D12)))),0) -> 0
B13: Disposition and Recovery/Refund of Regulatory Balances (2009) | C13: 1595 | D13: ='2. 2015 Continuity Schedule'!BS32 -> 0 | E13: % | F13: =IFERROR(IF(F$4="",0,IF($E13="kWh",VLOOKUP(F$4,'4. Billing Determinants'!$B$19:$Z$41,4,0)/'4. Billing Determinants'!$E$41*$D13,IF($E13="kW",VLOOKUP(F$4,'4. Billing Determinants'!$B$19:$Z$41,5,0)/'4. Billing Determinants'!$F$41*$D13,IF($E13="Non-RPP kWh",VLOOKUP(F$4,'4. Billing Determinants'!$B$19:$Z$41,6,0)/'4. Billing Determinants'!$G$41*$D13, VLOOKUP(F$4,'4. Billing Determinants'!$B$19:$Z$41,19,0)*$D13)))),0) -> 0 | G13: =IFERROR(IF(G$4="",0,IF($E13="kWh",VLOOKUP(G$4,'4. Billing Determinants'!$B$19:$Z$41,4,0)/'4. Billing Determinants'!$E$41*$D13,IF($E13="kW",VLOOKUP(G$4,'4. Billing Determinants'!$B$19:$Z$41,5,0)/'4. Billing Determinants'!$F$41*$D13,IF($E13="Non-RPP kWh",VLOOKUP(G$4,'4. Billing Determinants'!$B$19:$Z$41,6,0)/'4. Billing Determinants'!$G$41*$D13, VLOOKUP(G$4,'4. Billing Determinants'!$B$19:$Z$41,19,0)*$D13)))),0) -> 0 | H13: =IFERROR(IF(H$4="",0,IF($E13="kWh",VLOOKUP(H$4,'4. Billing Determinants'!$B$19:$Z$41,4,0)/'4. Billing Determinants'!$E$41*$D13,IF($E13="kW",VLOOKUP(H$4,'4. Billing Determinants'!$B$19:$Z$41,5,0)/'4. Billing Determinants'!$F$41*$D13,IF($E13="Non-RPP kWh",VLOOKUP(H$4,'4. Billing Determinants'!$B$19:$Z$41,6,0)/'4. Billing Determinants'!$G$41*$D13, VLOOKUP(H$4,'4. Billing Determinants'!$B$19:$Z$41,19,0)*$D13)))),0) -> 0 | I13: =IFERROR(IF(I$4="",0,IF($E13="kWh",VLOOKUP(I$4,'4. Billing Determinants'!$B$19:$Z$41,4,0)/'4. Billing Determinants'!$E$41*$D13,IF($E13="kW",VLOOKUP(I$4,'4. Billing Determinants'!$B$19:$Z$41,5,0)/'4. Billing Determinants'!$F$41*$D13,IF($E13="Non-RPP kWh",VLOOKUP(I$4,'4. Billing Determinants'!$B$19:$Z$41,6,0)/'4. Billing Determinants'!$G$41*$D13, VLOOKUP(I$4,'4. Billing Determinants'!$B$19:$Z$41,19,0)*$D13)))),0) -> 0 | J13: =IFERROR(IF(J$4="",0,IF($E13="kWh",VLOOKUP(J$4,'4. Billing Determinants'!$B$19:$Z$41,4,0)/'4. Billing Determinants'!$E$41*$D13,IF($E13="kW",VLOOKUP(J$4,'4. Billing Determinants'!$B$19:$Z$41,5,0)/'4. Billing Determinants'!$F$41*$D13,IF($E13="Non-RPP kWh",VLOOKUP(J$4,'4. Billing Determinants'!$B$19:$Z$41,6,0)/'4. Billing Determinants'!$G$41*$D13, VLOOKUP(J$4,'4. Billing Determinants'!$B$19:$Z$41,19,0)*$D13)))),0) -> 0 | K13: =IFERROR(IF(K$4="",0,IF($E13="kWh",VLOOKUP(K$4,'4. Billing Determinants'!$B$19:$Z$41,4,0)/'4. Billing Determinants'!$E$41*$D13,IF($E13="kW",VLOOKUP(K$4,'4. Billing Determinants'!$B$19:$Z$41,5,0)/'4. Billing Determinants'!$F$41*$D13,IF($E13="Non-RPP kWh",VLOOKUP(K$4,'4. Billing Determinants'!$B$19:$Z$41,6,0)/'4. Billing Determinants'!$G$41*$D13, VLOOKUP(K$4,'4. Billing Determinants'!$B$19:$Z$41,19,0)*$D13)))),0) -> 0 | L13: =IFERROR(IF(L$4="",0,IF($E13="kWh",VLOOKUP(L$4,'4. Billing Determinants'!$B$19:$Z$41,4,0)/'4. Billing Determinants'!$E$41*$D13,IF($E13="kW",VLOOKUP(L$4,'4. Billing Determinants'!$B$19:$Z$41,5,0)/'4. Billing Determinants'!$F$41*$D13,IF($E13="Non-RPP kWh",VLOOKUP(L$4,'4. Billing Determinants'!$B$19:$Z$41,6,0)/'4. Billing Determinants'!$G$41*$D13, VLOOKUP(L$4,'4. Billing Determinants'!$B$19:$Z$41,19,0)*$D13)))),0) -> 0 | M13: =IFERROR(IF(M$4="",0,IF($E13="kWh",VLOOKUP(M$4,'4. Billing Determinants'!$B$19:$Z$41,4,0)/'4. Billing Determinants'!$E$41*$D13,IF($E13="kW",VLOOKUP(M$4,'4. Billing Determinants'!$B$19:$Z$41,5,0)/'4. Billing Determinants'!$F$41*$D13,IF($E13="Non-RPP kWh",VLOOKUP(M$4,'4. Billing Determinants'!$B$19:$Z$41,6,0)/'4. Billing Determinants'!$G$41*$D13, VLOOKUP(M$4,'4. Billing Determinants'!$B$19:$Z$41,19,0)*$D13)))),0) -> 0 | N13: =IFERROR(IF(N$4="",0,IF($E13="kWh",VLOOKUP(N$4,'4. Billing Determinants'!$B$19:$Z$41,4,0)/'4. Billing Determinants'!$E$41*$D13,IF($E13="kW",VLOOKUP(N$4,'4. Billing Determinants'!$B$19:$Z$41,5,0)/'4. Billing Determinants'!$F$41*$D13,IF($E13="Non-RPP kWh",VLOOKUP(N$4,'4. Billing Determinants'!$B$19:$Z$41,6,0)/'4. Billing Determinants'!$G$41*$D13, VLOOKUP(N$4,'4. Billing Determinants'!$B$19:$Z$41,19,0)*$D13)))),0) -> 0 | O13: =IFERROR(IF(O$4="",0,IF($E13="kWh",VLOOKUP(O$4,'4. Billing Determinants'!$B$19:$Z$41,4,0)/'4. Billing Determinants'!$E$41*$D13,IF($E13="kW",VLOOKUP(O$4,'4. Billing Determinants'!$B$19:$Z$41,5,0)/'4. Billing Determinants'!$F$41*$D13,IF($E13="Non-RPP kWh",VLOOKUP(O$4,'4. Billing Determinants'!$B$19:$Z$41,6,0)/'4. Billing Determinants'!$G$41*$D13, VLOOKUP(O$4,'4. Billing Determinants'!$B$19:$Z$41,19,0)*$D13)))),0) -> 0 | P13: =IFERROR(IF(P$4="",0,IF($E13="kWh",VLOOKUP(P$4,'4. Billing Determinants'!$B$19:$Z$41,4,0)/'4. Billing Determinants'!$E$41*$D13,IF($E13="kW",VLOOKUP(P$4,'4. Billing Determinants'!$B$19:$Z$41,5,0)/'4. Billing Determinants'!$F$41*$D13,IF($E13="Non-RPP kWh",VLOOKUP(P$4,'4. Billing Determinants'!$B$19:$Z$41,6,0)/'4. Billing Determinants'!$G$41*$D13, VLOOKUP(P$4,'4. Billing Determinants'!$B$19:$Z$41,19,0)*$D13)))),0) -> 0 | Q13: =IFERROR(IF(Q$4="",0,IF($E13="kWh",VLOOKUP(Q$4,'4. Billing Determinants'!$B$19:$Z$41,4,0)/'4. Billing Determinants'!$E$41*$D13,IF($E13="kW",VLOOKUP(Q$4,'4. Billing Determinants'!$B$19:$Z$41,5,0)/'4. Billing Determinants'!$F$41*$D13,IF($E13="Non-RPP kWh",VLOOKUP(Q$4,'4. Billing Determinants'!$B$19:$Z$41,6,0)/'4. Billing Determinants'!$G$41*$D13, VLOOKUP(Q$4,'4. Billing Determinants'!$B$19:$Z$41,19,0)*$D13)))),0) -> 0 | R13: =IFERROR(IF(R$4="",0,IF($E13="kWh",VLOOKUP(R$4,'4. Billing Determinants'!$B$19:$Z$41,4,0)/'4. Billing Determinants'!$E$41*$D13,IF($E13="kW",VLOOKUP(R$4,'4. Billing Determinants'!$B$19:$Z$41,5,0)/'4. Billing Determinants'!$F$41*$D13,IF($E13="Non-RPP kWh",VLOOKUP(R$4,'4. Billing Determinants'!$B$19:$Z$41,6,0)/'4. Billing Determinants'!$G$41*$D13, VLOOKUP(R$4,'4. Billing Determinants'!$B$19:$Z$41,19,0)*$D13)))),0) -> 0 | S13: =IFERROR(IF(S$4="",0,IF($E13="kWh",VLOOKUP(S$4,'4. Billing Determinants'!$B$19:$Z$41,4,0)/'4. Billing Determinants'!$E$41*$D13,IF($E13="kW",VLOOKUP(S$4,'4. Billing Determinants'!$B$19:$Z$41,5,0)/'4. Billing Determinants'!$F$41*$D13,IF($E13="Non-RPP kWh",VLOOKUP(S$4,'4. Billing Determinants'!$B$19:$Z$41,6,0)/'4. Billing Determinants'!$G$41*$D13, VLOOKUP(S$4,'4. Billing Determinants'!$B$19:$Z$41,19,0)*$D13)))),0) -> 0 | T13: =IFERROR(IF(T$4="",0,IF($E13="kWh",VLOOKUP(T$4,'4. Billing Determinants'!$B$19:$Z$41,4,0)/'4. Billing Determinants'!$E$41*$D13,IF($E13="kW",VLOOKUP(T$4,'4. Billing Determinants'!$B$19:$Z$41,5,0)/'4. Billing Determinants'!$F$41*$D13,IF($E13="Non-RPP kWh",VLOOKUP(T$4,'4. Billing Determinants'!$B$19:$Z$41,6,0)/'4. Billing Determinants'!$G$41*$D13, VLOOKUP(T$4,'4. Billing Determinants'!$B$19:$Z$41,19,0)*$D13)))),0) -> 0 | U13: =IFERROR(IF(U$4="",0,IF($E13="kWh",VLOOKUP(U$4,'4. Billing Determinants'!$B$19:$Z$41,4,0)/'4. Billing Determinants'!$E$41*$D13,IF($E13="kW",VLOOKUP(U$4,'4. Billing Determinants'!$B$19:$Z$41,5,0)/'4. Billing Determinants'!$F$41*$D13,IF($E13="Non-RPP kWh",VLOOKUP(U$4,'4. Billing Determinants'!$B$19:$Z$41,6,0)/'4. Billing Determinants'!$G$41*$D13, VLOOKUP(U$4,'4. Billing Determinants'!$B$19:$Z$41,19,0)*$D13)))),0) -> 0 | V13: =IFERROR(IF(V$4="",0,IF($E13="kWh",VLOOKUP(V$4,'4. Billing Determinants'!$B$19:$Z$41,4,0)/'4. Billing Determinants'!$E$41*$D13,IF($E13="kW",VLOOKUP(V$4,'4. Billing Determinants'!$B$19:$Z$41,5,0)/'4. Billing Determinants'!$F$41*$D13,IF($E13="Non-RPP kWh",VLOOKUP(V$4,'4. Billing Determinants'!$B$19:$Z$41,6,0)/'4. Billing Determinants'!$G$41*$D13, VLOOKUP(V$4,'4. Billing Determinants'!$B$19:$Z$41,19,0)*$D13)))),0) -> 0 | W13: =IFERROR(IF(W$4="",0,IF($E13="kWh",VLOOKUP(W$4,'4. Billing Determinants'!$B$19:$Z$41,4,0)/'4. Billing Determinants'!$E$41*$D13,IF($E13="kW",VLOOKUP(W$4,'4. Billing Determinants'!$B$19:$Z$41,5,0)/'4. Billing Determinants'!$F$41*$D13,IF($E13="Non-RPP kWh",VLOOKUP(W$4,'4. Billing Determinants'!$B$19:$Z$41,6,0)/'4. Billing Determinants'!$G$41*$D13, VLOOKUP(W$4,'4. Billing Determinants'!$B$19:$Z$41,19,0)*$D13)))),0) -> 0 | X13: =IFERROR(IF(X$4="",0,IF($E13="kWh",VLOOKUP(X$4,'4. Billing Determinants'!$B$19:$Z$41,4,0)/'4. Billing Determinants'!$E$41*$D13,IF($E13="kW",VLOOKUP(X$4,'4. Billing Determinants'!$B$19:$Z$41,5,0)/'4. Billing Determinants'!$F$41*$D13,IF($E13="Non-RPP kWh",VLOOKUP(X$4,'4. Billing Determinants'!$B$19:$Z$41,6,0)/'4. Billing Determinants'!$G$41*$D13, VLOOKUP(X$4,'4. Billing Determinants'!$B$19:$Z$41,19,0)*$D13)))),0) -> 0 | Y13: =IFERROR(IF(Y$4="",0,IF($E13="kWh",VLOOKUP(Y$4,'4. Billing Determinants'!$B$19:$Z$41,4,0)/'4. Billing Determinants'!$E$41*$D13,IF($E13="kW",VLOOKUP(Y$4,'4. Billing Determinants'!$B$19:$Z$41,5,0)/'4. Billing Determinants'!$F$41*$D13,IF($E13="Non-RPP kWh",VLOOKUP(Y$4,'4. Billing Determinants'!$B$19:$Z$41,6,0)/'4. Billing Determinants'!$G$41*$D13, VLOOKUP(Y$4,'4. Billing Determinants'!$B$19:$Z$41,19,0)*$D13)))),0) -> 0
B14: Disposition and Recovery/Refund of Regulatory Balances (2010) | C14: 1595 | D14: ='2. 2015 Continuity Schedule'!BS33 -> 3767.137429 | E14: kWh | F14: =IFERROR(IF(F$4="",0,IF($E14="kWh",VLOOKUP(F$4,'4. Billing Determinants'!$B$19:$Z$41,4,0)/'4. Billing Determinants'!$E$41*$D14,IF($E14="kW",VLOOKUP(F$4,'4. Billing Determinants'!$B$19:$Z$41,5,0)/'4. Billing Determinants'!$F$41*$D14,IF($E14="Non-RPP kWh",VLOOKUP(F$4,'4. Billing Determinants'!$B$19:$Z$41,6,0)/'4. Billing Determinants'!$G$41*$D14, VLOOKUP(F$4,'4. Billing Determinants'!$B$19:$Z$41,20,0)*$D14)))),0) -> 980.2297195 | G14: =IFERROR(IF(G$4="",0,IF($E14="kWh",VLOOKUP(G$4,'4. Billing Determinants'!$B$19:$Z$41,4,0)/'4. Billing Determinants'!$E$41*$D14,IF($E14="kW",VLOOKUP(G$4,'4. Billing Determinants'!$B$19:$Z$41,5,0)/'4. Billing Determinants'!$F$41*$D14,IF($E14="Non-RPP kWh",VLOOKUP(G$4,'4. Billing Determinants'!$B$19:$Z$41,6,0)/'4. Billing Determinants'!$G$41*$D14, VLOOKUP(G$4,'4. Billing Determinants'!$B$19:$Z$41,20,0)*$D14)))),0) -> 446.8611321 | H14: =IFERROR(IF(H$4="",0,IF($E14="kWh",VLOOKUP(H$4,'4. Billing Determinants'!$B$19:$Z$41,4,0)/'4. Billing Determinants'!$E$41*$D14,IF($E14="kW",VLOOKUP(H$4,'4. Billing Determinants'!$B$19:$Z$41,5,0)/'4. Billing Determinants'!$F$41*$D14,IF($E14="Non-RPP kWh",VLOOKUP(H$4,'4. Billing Determinants'!$B$19:$Z$41,6,0)/'4. Billing Determinants'!$G$41*$D14, VLOOKUP(H$4,'4. Billing Determinants'!$B$19:$Z$41,20,0)*$D14)))),0) -> 503.032107 | I14: =IFERROR(IF(I$4="",0,IF($E14="kWh",VLOOKUP(I$4,'4. Billing Determinants'!$B$19:$Z$41,4,0)/'4. Billing Determinants'!$E$41*$D14,IF($E14="kW",VLOOKUP(I$4,'4. Billing Determinants'!$B$19:$Z$41,5,0)/'4. Billing Determinants'!$F$41*$D14,IF($E14="Non-RPP kWh",VLOOKUP(I$4,'4. Billing Determinants'!$B$19:$Z$41,6,0)/'4. Billing Determinants'!$G$41*$D14, VLOOKUP(I$4,'4. Billing Determinants'!$B$19:$Z$41,20,0)*$D14)))),0) -> 1810.136124 | J14: =IFERROR(IF(J$4="",0,IF($E14="kWh",VLOOKUP(J$4,'4. Billing Determinants'!$B$19:$Z$41,4,0)/'4. Billing Determinants'!$E$41*$D14,IF($E14="kW",VLOOKUP(J$4,'4. Billing Determinants'!$B$19:$Z$41,5,0)/'4. Billing Determinants'!$F$41*$D14,IF($E14="Non-RPP kWh",VLOOKUP(J$4,'4. Billing Determinants'!$B$19:$Z$41,6,0)/'4. Billing Determinants'!$G$41*$D14, VLOOKUP(J$4,'4. Billing Determinants'!$B$19:$Z$41,20,0)*$D14)))),0) -> 0.1081667802 | K14: =IFERROR(IF(K$4="",0,IF($E14="kWh",VLOOKUP(K$4,'4. Billing Determinants'!$B$19:$Z$41,4,0)/'4. Billing Determinants'!$E$41*$D14,IF($E14="kW",VLOOKUP(K$4,'4. Billing Determinants'!$B$19:$Z$41,5,0)/'4. Billing Determinants'!$F$41*$D14,IF($E14="Non-RPP kWh",VLOOKUP(K$4,'4. Billing Determinants'!$B$19:$Z$41,6,0)/'4. Billing Determinants'!$G$41*$D14, VLOOKUP(K$4,'4. Billing Determinants'!$B$19:$Z$41,20,0)*$D14)))),0) -> 0.8271676298 | L14: =IFERROR(IF(L$4="",0,IF($E14="kWh",VLOOKUP(L$4,'4. Billing Determinants'!$B$19:$Z$41,4,0)/'4. Billing Determinants'!$E$41*$D14,IF($E14="kW",VLOOKUP(L$4,'4. Billing Determinants'!$B$19:$Z$41,5,0)/'4. Billing Determinants'!$F$41*$D14,IF($E14="Non-RPP kWh",VLOOKUP(L$4,'4. Billing Determinants'!$B$19:$Z$41,6,0)/'4. Billing Determinants'!$G$41*$D14, VLOOKUP(L$4,'4. Billing Determinants'!$B$19:$Z$41,20,0)*$D14)))),0) -> 25.94301196 | M14: =IFERROR(IF(M$4="",0,IF($E14="kWh",VLOOKUP(M$4,'4. Billing Determinants'!$B$19:$Z$41,4,0)/'4. Billing Determinants'!$E$41*$D14,IF($E14="kW",VLOOKUP(M$4,'4. Billing Determinants'!$B$19:$Z$41,5,0)/'4. Billing Determinants'!$F$41*$D14,IF($E14="Non-RPP kWh",VLOOKUP(M$4,'4. Billing Determinants'!$B$19:$Z$41,6,0)/'4. Billing Determinants'!$G$41*$D14, VLOOKUP(M$4,'4. Billing Determinants'!$B$19:$Z$41,20,0)*$D14)))),0) -> 0 | N14: =IFERROR(IF(N$4="",0,IF($E14="kWh",VLOOKUP(N$4,'4. Billing Determinants'!$B$19:$Z$41,4,0)/'4. Billing Determinants'!$E$41*$D14,IF($E14="kW",VLOOKUP(N$4,'4. Billing Determinants'!$B$19:$Z$41,5,0)/'4. Billing Determinants'!$F$41*$D14,IF($E14="Non-RPP kWh",VLOOKUP(N$4,'4. Billing Determinants'!$B$19:$Z$41,6,0)/'4. Billing Determinants'!$G$41*$D14, VLOOKUP(N$4,'4. Billing Determinants'!$B$19:$Z$41,20,0)*$D14)))),0) -> 0 | O14: =IFERROR(IF(O$4="",0,IF($E14="kWh",VLOOKUP(O$4,'4. Billing Determinants'!$B$19:$Z$41,4,0)/'4. Billing Determinants'!$E$41*$D14,IF($E14="kW",VLOOKUP(O$4,'4. Billing Determinants'!$B$19:$Z$41,5,0)/'4. Billing Determinants'!$F$41*$D14,IF($E14="Non-RPP kWh",VLOOKUP(O$4,'4. Billing Determinants'!$B$19:$Z$41,6,0)/'4. Billing Determinants'!$G$41*$D14, VLOOKUP(O$4,'4. Billing Determinants'!$B$19:$Z$41,20,0)*$D14)))),0) -> 0 | P14: =IFERROR(IF(P$4="",0,IF($E14="kWh",VLOOKUP(P$4,'4. Billing Determinants'!$B$19:$Z$41,4,0)/'4. Billing Determinants'!$E$41*$D14,IF($E14="kW",VLOOKUP(P$4,'4. Billing Determinants'!$B$19:$Z$41,5,0)/'4. Billing Determinants'!$F$41*$D14,IF($E14="Non-RPP kWh",VLOOKUP(P$4,'4. Billing Determinants'!$B$19:$Z$41,6,0)/'4. Billing Determinants'!$G$41*$D14, VLOOKUP(P$4,'4. Billing Determinants'!$B$19:$Z$41,20,0)*$D14)))),0) -> 0 | Q14: =IFERROR(IF(Q$4="",0,IF($E14="kWh",VLOOKUP(Q$4,'4. Billing Determinants'!$B$19:$Z$41,4,0)/'4. Billing Determinants'!$E$41*$D14,IF($E14="kW",VLOOKUP(Q$4,'4. Billing Determinants'!$B$19:$Z$41,5,0)/'4. Billing Determinants'!$F$41*$D14,IF($E14="Non-RPP kWh",VLOOKUP(Q$4,'4. Billing Determinants'!$B$19:$Z$41,6,0)/'4. Billing Determinants'!$G$41*$D14, VLOOKUP(Q$4,'4. Billing Determinants'!$B$19:$Z$41,20,0)*$D14)))),0) -> 0 | R14: =IFERROR(IF(R$4="",0,IF($E14="kWh",VLOOKUP(R$4,'4. Billing Determinants'!$B$19:$Z$41,4,0)/'4. Billing Determinants'!$E$41*$D14,IF($E14="kW",VLOOKUP(R$4,'4. Billing Determinants'!$B$19:$Z$41,5,0)/'4. Billing Determinants'!$F$41*$D14,IF($E14="Non-RPP kWh",VLOOKUP(R$4,'4. Billing Determinants'!$B$19:$Z$41,6,0)/'4. Billing Determinants'!$G$41*$D14, VLOOKUP(R$4,'4. Billing Determinants'!$B$19:$Z$41,20,0)*$D14)))),0) -> 0 | S14: =IFERROR(IF(S$4="",0,IF($E14="kWh",VLOOKUP(S$4,'4. Billing Determinants'!$B$19:$Z$41,4,0)/'4. Billing Determinants'!$E$41*$D14,IF($E14="kW",VLOOKUP(S$4,'4. Billing Determinants'!$B$19:$Z$41,5,0)/'4. Billing Determinants'!$F$41*$D14,IF($E14="Non-RPP kWh",VLOOKUP(S$4,'4. Billing Determinants'!$B$19:$Z$41,6,0)/'4. Billing Determinants'!$G$41*$D14, VLOOKUP(S$4,'4. Billing Determinants'!$B$19:$Z$41,20,0)*$D14)))),0) -> 0 | T14: =IFERROR(IF(T$4="",0,IF($E14="kWh",VLOOKUP(T$4,'4. Billing Determinants'!$B$19:$Z$41,4,0)/'4. Billing Determinants'!$E$41*$D14,IF($E14="kW",VLOOKUP(T$4,'4. Billing Determinants'!$B$19:$Z$41,5,0)/'4. Billing Determinants'!$F$41*$D14,IF($E14="Non-RPP kWh",VLOOKUP(T$4,'4. Billing Determinants'!$B$19:$Z$41,6,0)/'4. Billing Determinants'!$G$41*$D14, VLOOKUP(T$4,'4. Billing Determinants'!$B$19:$Z$41,20,0)*$D14)))),0) -> 0 | U14: =IFERROR(IF(U$4="",0,IF($E14="kWh",VLOOKUP(U$4,'4. Billing Determinants'!$B$19:$Z$41,4,0)/'4. Billing Determinants'!$E$41*$D14,IF($E14="kW",VLOOKUP(U$4,'4. Billing Determinants'!$B$19:$Z$41,5,0)/'4. Billing Determinants'!$F$41*$D14,IF($E14="Non-RPP kWh",VLOOKUP(U$4,'4. Billing Determinants'!$B$19:$Z$41,6,0)/'4. Billing Determinants'!$G$41*$D14, VLOOKUP(U$4,'4. Billing Determinants'!$B$19:$Z$41,20,0)*$D14)))),0) -> 0 | V14: =IFERROR(IF(V$4="",0,IF($E14="kWh",VLOOKUP(V$4,'4. Billing Determinants'!$B$19:$Z$41,4,0)/'4. Billing Determinants'!$E$41*$D14,IF($E14="kW",VLOOKUP(V$4,'4. Billing Determinants'!$B$19:$Z$41,5,0)/'4. Billing Determinants'!$F$41*$D14,IF($E14="Non-RPP kWh",VLOOKUP(V$4,'4. Billing Determinants'!$B$19:$Z$41,6,0)/'4. Billing Determinants'!$G$41*$D14, VLOOKUP(V$4,'4. Billing Determinants'!$B$19:$Z$41,20,0)*$D14)))),0) -> 0 | W14: =IFERROR(IF(W$4="",0,IF($E14="kWh",VLOOKUP(W$4,'4. Billing Determinants'!$B$19:$Z$41,4,0)/'4. Billing Determinants'!$E$41*$D14,IF($E14="kW",VLOOKUP(W$4,'4. Billing Determinants'!$B$19:$Z$41,5,0)/'4. Billing Determinants'!$F$41*$D14,IF($E14="Non-RPP kWh",VLOOKUP(W$4,'4. Billing Determinants'!$B$19:$Z$41,6,0)/'4. Billing Determinants'!$G$41*$D14, VLOOKUP(W$4,'4. Billing Determinants'!$B$19:$Z$41,20,0)*$D14)))),0) -> 0 | X14: =IFERROR(IF(X$4="",0,IF($E14="kWh",VLOOKUP(X$4,'4. Billing Determinants'!$B$19:$Z$41,4,0)/'4. Billing Determinants'!$E$41*$D14,IF($E14="kW",VLOOKUP(X$4,'4. Billing Determinants'!$B$19:$Z$41,5,0)/'4. Billing Determinants'!$F$41*$D14,IF($E14="Non-RPP kWh",VLOOKUP(X$4,'4. Billing Determinants'!$B$19:$Z$41,6,0)/'4. Billing Determinants'!$G$41*$D14, VLOOKUP(X$4,'4. Billing Determinants'!$B$19:$Z$41,20,0)*$D14)))),0) -> 0 | Y14: =IFERROR(IF(Y$4="",0,IF($E14="kWh",VLOOKUP(Y$4,'4. Billing Determinants'!$B$19:$Z$41,4,0)/'4. Billing Determinants'!$E$41*$D14,IF($E14="kW",VLOOKUP(Y$4,'4. Billing Determinants'!$B$19:$Z$41,5,0)/'4. Billing Determinants'!$F$41*$D14,IF($E14="Non-RPP kWh",VLOOKUP(Y$4,'4. Billing Determinants'!$B$19:$Z$41,6,0)/'4. Billing Determinants'!$G$41*$D14, VLOOKUP(Y$4,'4. Billing Determinants'!$B$19:$Z$41,20,0)*$D14)))),0) -> 0
B15: Disposition and Recovery/Refund of Regulatory Balances (2011) | C15: 1595 | D15: ='2. 2015 Continuity Schedule'!BS34 -> 0 | E15: % | F15: =IFERROR(IF(F$4="",0,IF($E15="kWh",VLOOKUP(F$4,'4. Billing Determinants'!$B$19:$Z$41,4,0)/'4. Billing Determinants'!$E$41*$D15,IF($E15="kW",VLOOKUP(F$4,'4. Billing Determinants'!$B$19:$Z$41,5,0)/'4. Billing Determinants'!$F$41*$D15,IF($E15="Non-RPP kWh",VLOOKUP(F$4,'4. Billing Determinants'!$B$19:$Z$41,6,0)/'4. Billing Determinants'!$G$41*$D15, VLOOKUP(F$4,'4. Billing Determinants'!$B$19:$Z$41,21,0)*$D15)))),0) -> 0 | G15: =IFERROR(IF(G$4="",0,IF($E15="kWh",VLOOKUP(G$4,'4. Billing Determinants'!$B$19:$Z$41,4,0)/'4. Billing Determinants'!$E$41*$D15,IF($E15="kW",VLOOKUP(G$4,'4. Billing Determinants'!$B$19:$Z$41,5,0)/'4. Billing Determinants'!$F$41*$D15,IF($E15="Non-RPP kWh",VLOOKUP(G$4,'4. Billing Determinants'!$B$19:$Z$41,6,0)/'4. Billing Determinants'!$G$41*$D15, VLOOKUP(G$4,'4. Billing Determinants'!$B$19:$Z$41,21,0)*$D15)))),0) -> 0 | H15: =IFERROR(IF(H$4="",0,IF($E15="kWh",VLOOKUP(H$4,'4. Billing Determinants'!$B$19:$Z$41,4,0)/'4. Billing Determinants'!$E$41*$D15,IF($E15="kW",VLOOKUP(H$4,'4. Billing Determinants'!$B$19:$Z$41,5,0)/'4. Billing Determinants'!$F$41*$D15,IF($E15="Non-RPP kWh",VLOOKUP(H$4,'4. Billing Determinants'!$B$19:$Z$41,6,0)/'4. Billing Determinants'!$G$41*$D15, VLOOKUP(H$4,'4. Billing Determinants'!$B$19:$Z$41,21,0)*$D15)))),0) -> 0 | I15: =IFERROR(IF(I$4="",0,IF($E15="kWh",VLOOKUP(I$4,'4. Billing Determinants'!$B$19:$Z$41,4,0)/'4. Billing Determinants'!$E$41*$D15,IF($E15="kW",VLOOKUP(I$4,'4. Billing Determinants'!$B$19:$Z$41,5,0)/'4. Billing Determinants'!$F$41*$D15,IF($E15="Non-RPP kWh",VLOOKUP(I$4,'4. Billing Determinants'!$B$19:$Z$41,6,0)/'4. Billing Determinants'!$G$41*$D15, VLOOKUP(I$4,'4. Billing Determinants'!$B$19:$Z$41,21,0)*$D15)))),0) -> 0 | J15: =IFERROR(IF(J$4="",0,IF($E15="kWh",VLOOKUP(J$4,'4. Billing Determinants'!$B$19:$Z$41,4,0)/'4. Billing Determinants'!$E$41*$D15,IF($E15="kW",VLOOKUP(J$4,'4. Billing Determinants'!$B$19:$Z$41,5,0)/'4. Billing Determinants'!$F$41*$D15,IF($E15="Non-RPP kWh",VLOOKUP(J$4,'4. Billing Determinants'!$B$19:$Z$41,6,0)/'4. Billing Determinants'!$G$41*$D15, VLOOKUP(J$4,'4. Billing Determinants'!$B$19:$Z$41,21,0)*$D15)))),0) -> 0 | K15: =IFERROR(IF(K$4="",0,IF($E15="kWh",VLOOKUP(K$4,'4. Billing Determinants'!$B$19:$Z$41,4,0)/'4. Billing Determinants'!$E$41*$D15,IF($E15="kW",VLOOKUP(K$4,'4. Billing Determinants'!$B$19:$Z$41,5,0)/'4. Billing Determinants'!$F$41*$D15,IF($E15="Non-RPP kWh",VLOOKUP(K$4,'4. Billing Determinants'!$B$19:$Z$41,6,0)/'4. Billing Determinants'!$G$41*$D15, VLOOKUP(K$4,'4. Billing Determinants'!$B$19:$Z$41,21,0)*$D15)))),0) -> 0 | L15: =IFERROR(IF(L$4="",0,IF($E15="kWh",VLOOKUP(L$4,'4. Billing Determinants'!$B$19:$Z$41,4,0)/'4. Billing Determinants'!$E$41*$D15,IF($E15="kW",VLOOKUP(L$4,'4. Billing Determinants'!$B$19:$Z$41,5,0)/'4. Billing Determinants'!$F$41*$D15,IF($E15="Non-RPP kWh",VLOOKUP(L$4,'4. Billing Determinants'!$B$19:$Z$41,6,0)/'4. Billing Determinants'!$G$41*$D15, VLOOKUP(L$4,'4. Billing Determinants'!$B$19:$Z$41,21,0)*$D15)))),0) -> 0 | M15: =IFERROR(IF(M$4="",0,IF($E15="kWh",VLOOKUP(M$4,'4. Billing Determinants'!$B$19:$Z$41,4,0)/'4. Billing Determinants'!$E$41*$D15,IF($E15="kW",VLOOKUP(M$4,'4. Billing Determinants'!$B$19:$Z$41,5,0)/'4. Billing Determinants'!$F$41*$D15,IF($E15="Non-RPP kWh",VLOOKUP(M$4,'4. Billing Determinants'!$B$19:$Z$41,6,0)/'4. Billing Determinants'!$G$41*$D15, VLOOKUP(M$4,'4. Billing Determinants'!$B$19:$Z$41,21,0)*$D15)))),0) -> 0 | N15: =IFERROR(IF(N$4="",0,IF($E15="kWh",VLOOKUP(N$4,'4. Billing Determinants'!$B$19:$Z$41,4,0)/'4. Billing Determinants'!$E$41*$D15,IF($E15="kW",VLOOKUP(N$4,'4. Billing Determinants'!$B$19:$Z$41,5,0)/'4. Billing Determinants'!$F$41*$D15,IF($E15="Non-RPP kWh",VLOOKUP(N$4,'4. Billing Determinants'!$B$19:$Z$41,6,0)/'4. Billing Determinants'!$G$41*$D15, VLOOKUP(N$4,'4. Billing Determinants'!$B$19:$Z$41,21,0)*$D15)))),0) -> 0 | O15: =IFERROR(IF(O$4="",0,IF($E15="kWh",VLOOKUP(O$4,'4. Billing Determinants'!$B$19:$Z$41,4,0)/'4. Billing Determinants'!$E$41*$D15,IF($E15="kW",VLOOKUP(O$4,'4. Billing Determinants'!$B$19:$Z$41,5,0)/'4. Billing Determinants'!$F$41*$D15,IF($E15="Non-RPP kWh",VLOOKUP(O$4,'4. Billing Determinants'!$B$19:$Z$41,6,0)/'4. Billing Determinants'!$G$41*$D15, VLOOKUP(O$4,'4. Billing Determinants'!$B$19:$Z$41,21,0)*$D15)))),0) -> 0 | P15: =IFERROR(IF(P$4="",0,IF($E15="kWh",VLOOKUP(P$4,'4. Billing Determinants'!$B$19:$Z$41,4,0)/'4. Billing Determinants'!$E$41*$D15,IF($E15="kW",VLOOKUP(P$4,'4. Billing Determinants'!$B$19:$Z$41,5,0)/'4. Billing Determinants'!$F$41*$D15,IF($E15="Non-RPP kWh",VLOOKUP(P$4,'4. Billing Determinants'!$B$19:$Z$41,6,0)/'4. Billing Determinants'!$G$41*$D15, VLOOKUP(P$4,'4. Billing Determinants'!$B$19:$Z$41,21,0)*$D15)))),0) -> 0 | Q15: =IFERROR(IF(Q$4="",0,IF($E15="kWh",VLOOKUP(Q$4,'4. Billing Determinants'!$B$19:$Z$41,4,0)/'4. Billing Determinants'!$E$41*$D15,IF($E15="kW",VLOOKUP(Q$4,'4. Billing Determinants'!$B$19:$Z$41,5,0)/'4. Billing Determinants'!$F$41*$D15,IF($E15="Non-RPP kWh",VLOOKUP(Q$4,'4. Billing Determinants'!$B$19:$Z$41,6,0)/'4. Billing Determinants'!$G$41*$D15, VLOOKUP(Q$4,'4. Billing Determinants'!$B$19:$Z$41,21,0)*$D15)))),0) -> 0 | R15: =IFERROR(IF(R$4="",0,IF($E15="kWh",VLOOKUP(R$4,'4. Billing Determinants'!$B$19:$Z$41,4,0)/'4. Billing Determinants'!$E$41*$D15,IF($E15="kW",VLOOKUP(R$4,'4. Billing Determinants'!$B$19:$Z$41,5,0)/'4. Billing Determinants'!$F$41*$D15,IF($E15="Non-RPP kWh",VLOOKUP(R$4,'4. Billing Determinants'!$B$19:$Z$41,6,0)/'4. Billing Determinants'!$G$41*$D15, VLOOKUP(R$4,'4. Billing Determinants'!$B$19:$Z$41,21,0)*$D15)))),0) -> 0 | S15: =IFERROR(IF(S$4="",0,IF($E15="kWh",VLOOKUP(S$4,'4. Billing Determinants'!$B$19:$Z$41,4,0)/'4. Billing Determinants'!$E$41*$D15,IF($E15="kW",VLOOKUP(S$4,'4. Billing Determinants'!$B$19:$Z$41,5,0)/'4. Billing Determinants'!$F$41*$D15,IF($E15="Non-RPP kWh",VLOOKUP(S$4,'4. Billing Determinants'!$B$19:$Z$41,6,0)/'4. Billing Determinants'!$G$41*$D15, VLOOKUP(S$4,'4. Billing Determinants'!$B$19:$Z$41,21,0)*$D15)))),0) -> 0 | T15: =IFERROR(IF(T$4="",0,IF($E15="kWh",VLOOKUP(T$4,'4. Billing Determinants'!$B$19:$Z$41,4,0)/'4. Billing Determinants'!$E$41*$D15,IF($E15="kW",VLOOKUP(T$4,'4. Billing Determinants'!$B$19:$Z$41,5,0)/'4. Billing Determinants'!$F$41*$D15,IF($E15="Non-RPP kWh",VLOOKUP(T$4,'4. Billing Determinants'!$B$19:$Z$41,6,0)/'4. Billing Determinants'!$G$41*$D15, VLOOKUP(T$4,'4. Billing Determinants'!$B$19:$Z$41,21,0)*$D15)))),0) -> 0 | U15: =IFERROR(IF(U$4="",0,IF($E15="kWh",VLOOKUP(U$4,'4. Billing Determinants'!$B$19:$Z$41,4,0)/'4. Billing Determinants'!$E$41*$D15,IF($E15="kW",VLOOKUP(U$4,'4. Billing Determinants'!$B$19:$Z$41,5,0)/'4. Billing Determinants'!$F$41*$D15,IF($E15="Non-RPP kWh",VLOOKUP(U$4,'4. Billing Determinants'!$B$19:$Z$41,6,0)/'4. Billing Determinants'!$G$41*$D15, VLOOKUP(U$4,'4. Billing Determinants'!$B$19:$Z$41,21,0)*$D15)))),0) -> 0 | V15: =IFERROR(IF(V$4="",0,IF($E15="kWh",VLOOKUP(V$4,'4. Billing Determinants'!$B$19:$Z$41,4,0)/'4. Billing Determinants'!$E$41*$D15,IF($E15="kW",VLOOKUP(V$4,'4. Billing Determinants'!$B$19:$Z$41,5,0)/'4. Billing Determinants'!$F$41*$D15,IF($E15="Non-RPP kWh",VLOOKUP(V$4,'4. Billing Determinants'!$B$19:$Z$41,6,0)/'4. Billing Determinants'!$G$41*$D15, VLOOKUP(V$4,'4. Billing Determinants'!$B$19:$Z$41,21,0)*$D15)))),0) -> 0 | W15: =IFERROR(IF(W$4="",0,IF($E15="kWh",VLOOKUP(W$4,'4. Billing Determinants'!$B$19:$Z$41,4,0)/'4. Billing Determinants'!$E$41*$D15,IF($E15="kW",VLOOKUP(W$4,'4. Billing Determinants'!$B$19:$Z$41,5,0)/'4. Billing Determinants'!$F$41*$D15,IF($E15="Non-RPP kWh",VLOOKUP(W$4,'4. Billing Determinants'!$B$19:$Z$41,6,0)/'4. Billing Determinants'!$G$41*$D15, VLOOKUP(W$4,'4. Billing Determinants'!$B$19:$Z$41,21,0)*$D15)))),0) -> 0 | X15: =IFERROR(IF(X$4="",0,IF($E15="kWh",VLOOKUP(X$4,'4. Billing Determinants'!$B$19:$Z$41,4,0)/'4. Billing Determinants'!$E$41*$D15,IF($E15="kW",VLOOKUP(X$4,'4. Billing Determinants'!$B$19:$Z$41,5,0)/'4. Billing Determinants'!$F$41*$D15,IF($E15="Non-RPP kWh",VLOOKUP(X$4,'4. Billing Determinants'!$B$19:$Z$41,6,0)/'4. Billing Determinants'!$G$41*$D15, VLOOKUP(X$4,'4. Billing Determinants'!$B$19:$Z$41,21,0)*$D15)))),0) -> 0 | Y15: =IFERROR(IF(Y$4="",0,IF($E15="kWh",VLOOKUP(Y$4,'4. Billing Determinants'!$B$19:$Z$41,4,0)/'4. Billing Determinants'!$E$41*$D15,IF($E15="kW",VLOOKUP(Y$4,'4. Billing Determinants'!$B$19:$Z$41,5,0)/'4. Billing Determinants'!$F$41*$D15,IF($E15="Non-RPP kWh",VLOOKUP(Y$4,'4. Billing Determinants'!$B$19:$Z$41,6,0)/'4. Billing Determinants'!$G$41*$D15, VLOOKUP(Y$4,'4. Billing Determinants'!$B$19:$Z$41,21,0)*$D15)))),0) -> 0
B16: Disposition and Recovery/Refund of Regulatory Balances (2012) | C16: 1595 | D16: ='2. 2015 Continuity Schedule'!BS35 -> 35906.30648 | E16: kWh | F16: =IFERROR(IF(F$4="",0,IF($E16="kWh",VLOOKUP(F$4,'4. Billing Determinants'!$B$19:$Z$41,4,0)/'4. Billing Determinants'!$E$41*$D16,IF($E16="kW",VLOOKUP(F$4,'4. Billing Determinants'!$B$19:$Z$41,5,0)/'4. Billing Determinants'!$F$41*$D16,IF($E16="Non-RPP kWh",VLOOKUP(F$4,'4. Billing Determinants'!$B$19:$Z$41,6,0)/'4. Billing Determinants'!$G$41*$D16, VLOOKUP(F$4,'4. Billing Determinants'!$B$19:$Z$41,22,0)*$D16)))),0) -> 9343.016918 | G16: =IFERROR(IF(G$4="",0,IF($E16="kWh",VLOOKUP(G$4,'4. Billing Determinants'!$B$19:$Z$41,4,0)/'4. Billing Determinants'!$E$41*$D16,IF($E16="kW",VLOOKUP(G$4,'4. Billing Determinants'!$B$19:$Z$41,5,0)/'4. Billing Determinants'!$F$41*$D16,IF($E16="Non-RPP kWh",VLOOKUP(G$4,'4. Billing Determinants'!$B$19:$Z$41,6,0)/'4. Billing Determinants'!$G$41*$D16, VLOOKUP(G$4,'4. Billing Determinants'!$B$19:$Z$41,22,0)*$D16)))),0) -> 4259.237436 | H16: =IFERROR(IF(H$4="",0,IF($E16="kWh",VLOOKUP(H$4,'4. Billing Determinants'!$B$19:$Z$41,4,0)/'4. Billing Determinants'!$E$41*$D16,IF($E16="kW",VLOOKUP(H$4,'4. Billing Determinants'!$B$19:$Z$41,5,0)/'4. Billing Determinants'!$F$41*$D16,IF($E16="Non-RPP kWh",VLOOKUP(H$4,'4. Billing Determinants'!$B$19:$Z$41,6,0)/'4. Billing Determinants'!$G$41*$D16, VLOOKUP(H$4,'4. Billing Determinants'!$B$19:$Z$41,22,0)*$D16)))),0) -> 4794.628639 | I16: =IFERROR(IF(I$4="",0,IF($E16="kWh",VLOOKUP(I$4,'4. Billing Determinants'!$B$19:$Z$41,4,0)/'4. Billing Determinants'!$E$41*$D16,IF($E16="kW",VLOOKUP(I$4,'4. Billing Determinants'!$B$19:$Z$41,5,0)/'4. Billing Determinants'!$F$41*$D16,IF($E16="Non-RPP kWh",VLOOKUP(I$4,'4. Billing Determinants'!$B$19:$Z$41,6,0)/'4. Billing Determinants'!$G$41*$D16, VLOOKUP(I$4,'4. Billing Determinants'!$B$19:$Z$41,22,0)*$D16)))),0) -> 17253.2337 | J16: =IFERROR(IF(J$4="",0,IF($E16="kWh",VLOOKUP(J$4,'4. Billing Determinants'!$B$19:$Z$41,4,0)/'4. Billing Determinants'!$E$41*$D16,IF($E16="kW",VLOOKUP(J$4,'4. Billing Determinants'!$B$19:$Z$41,5,0)/'4. Billing Determinants'!$F$41*$D16,IF($E16="Non-RPP kWh",VLOOKUP(J$4,'4. Billing Determinants'!$B$19:$Z$41,6,0)/'4. Billing Determinants'!$G$41*$D16, VLOOKUP(J$4,'4. Billing Determinants'!$B$19:$Z$41,22,0)*$D16)))),0) -> 1.030986959 | K16: =IFERROR(IF(K$4="",0,IF($E16="kWh",VLOOKUP(K$4,'4. Billing Determinants'!$B$19:$Z$41,4,0)/'4. Billing Determinants'!$E$41*$D16,IF($E16="kW",VLOOKUP(K$4,'4. Billing Determinants'!$B$19:$Z$41,5,0)/'4. Billing Determinants'!$F$41*$D16,IF($E16="Non-RPP kWh",VLOOKUP(K$4,'4. Billing Determinants'!$B$19:$Z$41,6,0)/'4. Billing Determinants'!$G$41*$D16, VLOOKUP(K$4,'4. Billing Determinants'!$B$19:$Z$41,22,0)*$D16)))),0) -> 7.88411227 | L16: =IFERROR(IF(L$4="",0,IF($E16="kWh",VLOOKUP(L$4,'4. Billing Determinants'!$B$19:$Z$41,4,0)/'4. Billing Determinants'!$E$41*$D16,IF($E16="kW",VLOOKUP(L$4,'4. Billing Determinants'!$B$19:$Z$41,5,0)/'4. Billing Determinants'!$F$41*$D16,IF($E16="Non-RPP kWh",VLOOKUP(L$4,'4. Billing Determinants'!$B$19:$Z$41,6,0)/'4. Billing Determinants'!$G$41*$D16, VLOOKUP(L$4,'4. Billing Determinants'!$B$19:$Z$41,22,0)*$D16)))),0) -> 247.2746897 | M16: =IFERROR(IF(M$4="",0,IF($E16="kWh",VLOOKUP(M$4,'4. Billing Determinants'!$B$19:$Z$41,4,0)/'4. Billing Determinants'!$E$41*$D16,IF($E16="kW",VLOOKUP(M$4,'4. Billing Determinants'!$B$19:$Z$41,5,0)/'4. Billing Determinants'!$F$41*$D16,IF($E16="Non-RPP kWh",VLOOKUP(M$4,'4. Billing Determinants'!$B$19:$Z$41,6,0)/'4. Billing Determinants'!$G$41*$D16, VLOOKUP(M$4,'4. Billing Determinants'!$B$19:$Z$41,22,0)*$D16)))),0) -> 0 | N16: =IFERROR(IF(N$4="",0,IF($E16="kWh",VLOOKUP(N$4,'4. Billing Determinants'!$B$19:$Z$41,4,0)/'4. Billing Determinants'!$E$41*$D16,IF($E16="kW",VLOOKUP(N$4,'4. Billing Determinants'!$B$19:$Z$41,5,0)/'4. Billing Determinants'!$F$41*$D16,IF($E16="Non-RPP kWh",VLOOKUP(N$4,'4. Billing Determinants'!$B$19:$Z$41,6,0)/'4. Billing Determinants'!$G$41*$D16, VLOOKUP(N$4,'4. Billing Determinants'!$B$19:$Z$41,22,0)*$D16)))),0) -> 0 | O16: =IFERROR(IF(O$4="",0,IF($E16="kWh",VLOOKUP(O$4,'4. Billing Determinants'!$B$19:$Z$41,4,0)/'4. Billing Determinants'!$E$41*$D16,IF($E16="kW",VLOOKUP(O$4,'4. Billing Determinants'!$B$19:$Z$41,5,0)/'4. Billing Determinants'!$F$41*$D16,IF($E16="Non-RPP kWh",VLOOKUP(O$4,'4. Billing Determinants'!$B$19:$Z$41,6,0)/'4. Billing Determinants'!$G$41*$D16, VLOOKUP(O$4,'4. Billing Determinants'!$B$19:$Z$41,22,0)*$D16)))),0) -> 0 | P16: =IFERROR(IF(P$4="",0,IF($E16="kWh",VLOOKUP(P$4,'4. Billing Determinants'!$B$19:$Z$41,4,0)/'4. Billing Determinants'!$E$41*$D16,IF($E16="kW",VLOOKUP(P$4,'4. Billing Determinants'!$B$19:$Z$41,5,0)/'4. Billing Determinants'!$F$41*$D16,IF($E16="Non-RPP kWh",VLOOKUP(P$4,'4. Billing Determinants'!$B$19:$Z$41,6,0)/'4. Billing Determinants'!$G$41*$D16, VLOOKUP(P$4,'4. Billing Determinants'!$B$19:$Z$41,22,0)*$D16)))),0) -> 0 | Q16: =IFERROR(IF(Q$4="",0,IF($E16="kWh",VLOOKUP(Q$4,'4. Billing Determinants'!$B$19:$Z$41,4,0)/'4. Billing Determinants'!$E$41*$D16,IF($E16="kW",VLOOKUP(Q$4,'4. Billing Determinants'!$B$19:$Z$41,5,0)/'4. Billing Determinants'!$F$41*$D16,IF($E16="Non-RPP kWh",VLOOKUP(Q$4,'4. Billing Determinants'!$B$19:$Z$41,6,0)/'4. Billing Determinants'!$G$41*$D16, VLOOKUP(Q$4,'4. Billing Determinants'!$B$19:$Z$41,22,0)*$D16)))),0) -> 0 | R16: =IFERROR(IF(R$4="",0,IF($E16="kWh",VLOOKUP(R$4,'4. Billing Determinants'!$B$19:$Z$41,4,0)/'4. Billing Determinants'!$E$41*$D16,IF($E16="kW",VLOOKUP(R$4,'4. Billing Determinants'!$B$19:$Z$41,5,0)/'4. Billing Determinants'!$F$41*$D16,IF($E16="Non-RPP kWh",VLOOKUP(R$4,'4. Billing Determinants'!$B$19:$Z$41,6,0)/'4. Billing Determinants'!$G$41*$D16, VLOOKUP(R$4,'4. Billing Determinants'!$B$19:$Z$41,22,0)*$D16)))),0) -> 0 | S16: =IFERROR(IF(S$4="",0,IF($E16="kWh",VLOOKUP(S$4,'4. Billing Determinants'!$B$19:$Z$41,4,0)/'4. Billing Determinants'!$E$41*$D16,IF($E16="kW",VLOOKUP(S$4,'4. Billing Determinants'!$B$19:$Z$41,5,0)/'4. Billing Determinants'!$F$41*$D16,IF($E16="Non-RPP kWh",VLOOKUP(S$4,'4. Billing Determinants'!$B$19:$Z$41,6,0)/'4. Billing Determinants'!$G$41*$D16, VLOOKUP(S$4,'4. Billing Determinants'!$B$19:$Z$41,22,0)*$D16)))),0) -> 0 | T16: =IFERROR(IF(T$4="",0,IF($E16="kWh",VLOOKUP(T$4,'4. Billing Determinants'!$B$19:$Z$41,4,0)/'4. Billing Determinants'!$E$41*$D16,IF($E16="kW",VLOOKUP(T$4,'4. Billing Determinants'!$B$19:$Z$41,5,0)/'4. Billing Determinants'!$F$41*$D16,IF($E16="Non-RPP kWh",VLOOKUP(T$4,'4. Billing Determinants'!$B$19:$Z$41,6,0)/'4. Billing Determinants'!$G$41*$D16, VLOOKUP(T$4,'4. Billing Determinants'!$B$19:$Z$41,22,0)*$D16)))),0) -> 0 | U16: =IFERROR(IF(U$4="",0,IF($E16="kWh",VLOOKUP(U$4,'4. Billing Determinants'!$B$19:$Z$41,4,0)/'4. Billing Determinants'!$E$41*$D16,IF($E16="kW",VLOOKUP(U$4,'4. Billing Determinants'!$B$19:$Z$41,5,0)/'4. Billing Determinants'!$F$41*$D16,IF($E16="Non-RPP kWh",VLOOKUP(U$4,'4. Billing Determinants'!$B$19:$Z$41,6,0)/'4. Billing Determinants'!$G$41*$D16, VLOOKUP(U$4,'4. Billing Determinants'!$B$19:$Z$41,22,0)*$D16)))),0) -> 0 | V16: =IFERROR(IF(V$4="",0,IF($E16="kWh",VLOOKUP(V$4,'4. Billing Determinants'!$B$19:$Z$41,4,0)/'4. Billing Determinants'!$E$41*$D16,IF($E16="kW",VLOOKUP(V$4,'4. Billing Determinants'!$B$19:$Z$41,5,0)/'4. Billing Determinants'!$F$41*$D16,IF($E16="Non-RPP kWh",VLOOKUP(V$4,'4. Billing Determinants'!$B$19:$Z$41,6,0)/'4. Billing Determinants'!$G$41*$D16, VLOOKUP(V$4,'4. Billing Determinants'!$B$19:$Z$41,22,0)*$D16)))),0) -> 0 | W16: =IFERROR(IF(W$4="",0,IF($E16="kWh",VLOOKUP(W$4,'4. Billing Determinants'!$B$19:$Z$41,4,0)/'4. Billing Determinants'!$E$41*$D16,IF($E16="kW",VLOOKUP(W$4,'4. Billing Determinants'!$B$19:$Z$41,5,0)/'4. Billing Determinants'!$F$41*$D16,IF($E16="Non-RPP kWh",VLOOKUP(W$4,'4. Billing Determinants'!$B$19:$Z$41,6,0)/'4. Billing Determinants'!$G$41*$D16, VLOOKUP(W$4,'4. Billing Determinants'!$B$19:$Z$41,22,0)*$D16)))),0) -> 0 | X16: =IFERROR(IF(X$4="",0,IF($E16="kWh",VLOOKUP(X$4,'4. Billing Determinants'!$B$19:$Z$41,4,0)/'4. Billing Determinants'!$E$41*$D16,IF($E16="kW",VLOOKUP(X$4,'4. Billing Determinants'!$B$19:$Z$41,5,0)/'4. Billing Determinants'!$F$41*$D16,IF($E16="Non-RPP kWh",VLOOKUP(X$4,'4. Billing Determinants'!$B$19:$Z$41,6,0)/'4. Billing Determinants'!$G$41*$D16, VLOOKUP(X$4,'4. Billing Determinants'!$B$19:$Z$41,22,0)*$D16)))),0) -> 0 | Y16: =IFERROR(IF(Y$4="",0,IF($E16="kWh",VLOOKUP(Y$4,'4. Billing Determinants'!$B$19:$Z$41,4,0)/'4. Billing Determinants'!$E$41*$D16,IF($E16="kW",VLOOKUP(Y$4,'4. Billing Determinants'!$B$19:$Z$41,5,0)/'4. Billing Determinants'!$F$41*$D16,IF($E16="Non-RPP kWh",VLOOKUP(Y$4,'4. Billing Determinants'!$B$19:$Z$41,6,0)/'4. Billing Determinants'!$G$41*$D16, VLOOKUP(Y$4,'4. Billing Determinants'!$B$19:$Z$41,22,0)*$D16)))),0) -> 0
B17: Disposition and Recovery/Refund of Regulatory Balances (2013) | C17: 1595 | D17: ='2. 2015 Continuity Schedule'!BS36 -> 0 | E17: % | F17: =IFERROR(IF(F$4="",0,IF($E17="kWh",VLOOKUP(F$4,'4. Billing Determinants'!$B$19:$Z$41,4,0)/'4. Billing Determinants'!$E$41*$D17,IF($E17="kW",VLOOKUP(F$4,'4. Billing Determinants'!$B$19:$Z$41,5,0)/'4. Billing Determinants'!$F$41*$D17,IF($E17="Non-RPP kWh",VLOOKUP(F$4,'4. Billing Determinants'!$B$19:$Z$41,6,0)/'4. Billing Determinants'!$G$41*$D17, VLOOKUP(F$4,'4. Billing Determinants'!$B$19:$Z$41,23,0)*$D17)))),0) -> 0 | G17: =IFERROR(IF(G$4="",0,IF($E17="kWh",VLOOKUP(G$4,'4. Billing Determinants'!$B$19:$Z$41,4,0)/'4. Billing Determinants'!$E$41*$D17,IF($E17="kW",VLOOKUP(G$4,'4. Billing Determinants'!$B$19:$Z$41,5,0)/'4. Billing Determinants'!$F$41*$D17,IF($E17="Non-RPP kWh",VLOOKUP(G$4,'4. Billing Determinants'!$B$19:$Z$41,6,0)/'4. Billing Determinants'!$G$41*$D17, VLOOKUP(G$4,'4. Billing Determinants'!$B$19:$Z$41,23,0)*$D17)))),0) -> 0 | H17: =IFERROR(IF(H$4="",0,IF($E17="kWh",VLOOKUP(H$4,'4. Billing Determinants'!$B$19:$Z$41,4,0)/'4. Billing Determinants'!$E$41*$D17,IF($E17="kW",VLOOKUP(H$4,'4. Billing Determinants'!$B$19:$Z$41,5,0)/'4. Billing Determinants'!$F$41*$D17,IF($E17="Non-RPP kWh",VLOOKUP(H$4,'4. Billing Determinants'!$B$19:$Z$41,6,0)/'4. Billing Determinants'!$G$41*$D17, VLOOKUP(H$4,'4. Billing Determinants'!$B$19:$Z$41,23,0)*$D17)))),0) -> 0 | I17: =IFERROR(IF(I$4="",0,IF($E17="kWh",VLOOKUP(I$4,'4. Billing Determinants'!$B$19:$Z$41,4,0)/'4. Billing Determinants'!$E$41*$D17,IF($E17="kW",VLOOKUP(I$4,'4. Billing Determinants'!$B$19:$Z$41,5,0)/'4. Billing Determinants'!$F$41*$D17,IF($E17="Non-RPP kWh",VLOOKUP(I$4,'4. Billing Determinants'!$B$19:$Z$41,6,0)/'4. Billing Determinants'!$G$41*$D17, VLOOKUP(I$4,'4. Billing Determinants'!$B$19:$Z$41,23,0)*$D17)))),0) -> 0 | J17: =IFERROR(IF(J$4="",0,IF($E17="kWh",VLOOKUP(J$4,'4. Billing Determinants'!$B$19:$Z$41,4,0)/'4. Billing Determinants'!$E$41*$D17,IF($E17="kW",VLOOKUP(J$4,'4. Billing Determinants'!$B$19:$Z$41,5,0)/'4. Billing Determinants'!$F$41*$D17,IF($E17="Non-RPP kWh",VLOOKUP(J$4,'4. Billing Determinants'!$B$19:$Z$41,6,0)/'4. Billing Determinants'!$G$41*$D17, VLOOKUP(J$4,'4. Billing Determinants'!$B$19:$Z$41,23,0)*$D17)))),0) -> 0 | K17: =IFERROR(IF(K$4="",0,IF($E17="kWh",VLOOKUP(K$4,'4. Billing Determinants'!$B$19:$Z$41,4,0)/'4. Billing Determinants'!$E$41*$D17,IF($E17="kW",VLOOKUP(K$4,'4. Billing Determinants'!$B$19:$Z$41,5,0)/'4. Billing Determinants'!$F$41*$D17,IF($E17="Non-RPP kWh",VLOOKUP(K$4,'4. Billing Determinants'!$B$19:$Z$41,6,0)/'4. Billing Determinants'!$G$41*$D17, VLOOKUP(K$4,'4. Billing Determinants'!$B$19:$Z$41,23,0)*$D17)))),0) -> 0 | L17: =IFERROR(IF(L$4="",0,IF($E17="kWh",VLOOKUP(L$4,'4. Billing Determinants'!$B$19:$Z$41,4,0)/'4. Billing Determinants'!$E$41*$D17,IF($E17="kW",VLOOKUP(L$4,'4. Billing Determinants'!$B$19:$Z$41,5,0)/'4. Billing Determinants'!$F$41*$D17,IF($E17="Non-RPP kWh",VLOOKUP(L$4,'4. Billing Determinants'!$B$19:$Z$41,6,0)/'4. Billing Determinants'!$G$41*$D17, VLOOKUP(L$4,'4. Billing Determinants'!$B$19:$Z$41,23,0)*$D17)))),0) -> 0 | M17: =IFERROR(IF(M$4="",0,IF($E17="kWh",VLOOKUP(M$4,'4. Billing Determinants'!$B$19:$Z$41,4,0)/'4. Billing Determinants'!$E$41*$D17,IF($E17="kW",VLOOKUP(M$4,'4. Billing Determinants'!$B$19:$Z$41,5,0)/'4. Billing Determinants'!$F$41*$D17,IF($E17="Non-RPP kWh",VLOOKUP(M$4,'4. Billing Determinants'!$B$19:$Z$41,6,0)/'4. Billing Determinants'!$G$41*$D17, VLOOKUP(M$4,'4. Billing Determinants'!$B$19:$Z$41,23,0)*$D17)))),0) -> 0 | N17: =IFERROR(IF(N$4="",0,IF($E17="kWh",VLOOKUP(N$4,'4. Billing Determinants'!$B$19:$Z$41,4,0)/'4. Billing Determinants'!$E$41*$D17,IF($E17="kW",VLOOKUP(N$4,'4. Billing Determinants'!$B$19:$Z$41,5,0)/'4. Billing Determinants'!$F$41*$D17,IF($E17="Non-RPP kWh",VLOOKUP(N$4,'4. Billing Determinants'!$B$19:$Z$41,6,0)/'4. Billing Determinants'!$G$41*$D17, VLOOKUP(N$4,'4. Billing Determinants'!$B$19:$Z$41,23,0)*$D17)))),0) -> 0 | O17: =IFERROR(IF(O$4="",0,IF($E17="kWh",VLOOKUP(O$4,'4. Billing Determinants'!$B$19:$Z$41,4,0)/'4. Billing Determinants'!$E$41*$D17,IF($E17="kW",VLOOKUP(O$4,'4. Billing Determinants'!$B$19:$Z$41,5,0)/'4. Billing Determinants'!$F$41*$D17,IF($E17="Non-RPP kWh",VLOOKUP(O$4,'4. Billing Determinants'!$B$19:$Z$41,6,0)/'4. Billing Determinants'!$G$41*$D17, VLOOKUP(O$4,'4. Billing Determinants'!$B$19:$Z$41,23,0)*$D17)))),0) -> 0 | P17: =IFERROR(IF(P$4="",0,IF($E17="kWh",VLOOKUP(P$4,'4. Billing Determinants'!$B$19:$Z$41,4,0)/'4. Billing Determinants'!$E$41*$D17,IF($E17="kW",VLOOKUP(P$4,'4. Billing Determinants'!$B$19:$Z$41,5,0)/'4. Billing Determinants'!$F$41*$D17,IF($E17="Non-RPP kWh",VLOOKUP(P$4,'4. Billing Determinants'!$B$19:$Z$41,6,0)/'4. Billing Determinants'!$G$41*$D17, VLOOKUP(P$4,'4. Billing Determinants'!$B$19:$Z$41,23,0)*$D17)))),0) -> 0 | Q17: =IFERROR(IF(Q$4="",0,IF($E17="kWh",VLOOKUP(Q$4,'4. Billing Determinants'!$B$19:$Z$41,4,0)/'4. Billing Determinants'!$E$41*$D17,IF($E17="kW",VLOOKUP(Q$4,'4. Billing Determinants'!$B$19:$Z$41,5,0)/'4. Billing Determinants'!$F$41*$D17,IF($E17="Non-RPP kWh",VLOOKUP(Q$4,'4. Billing Determinants'!$B$19:$Z$41,6,0)/'4. Billing Determinants'!$G$41*$D17, VLOOKUP(Q$4,'4. Billing Determinants'!$B$19:$Z$41,23,0)*$D17)))),0) -> 0 | R17: =IFERROR(IF(R$4="",0,IF($E17="kWh",VLOOKUP(R$4,'4. Billing Determinants'!$B$19:$Z$41,4,0)/'4. Billing Determinants'!$E$41*$D17,IF($E17="kW",VLOOKUP(R$4,'4. Billing Determinants'!$B$19:$Z$41,5,0)/'4. Billing Determinants'!$F$41*$D17,IF($E17="Non-RPP kWh",VLOOKUP(R$4,'4. Billing Determinants'!$B$19:$Z$41,6,0)/'4. Billing Determinants'!$G$41*$D17, VLOOKUP(R$4,'4. Billing Determinants'!$B$19:$Z$41,23,0)*$D17)))),0) -> 0 | S17: =IFERROR(IF(S$4="",0,IF($E17="kWh",VLOOKUP(S$4,'4. Billing Determinants'!$B$19:$Z$41,4,0)/'4. Billing Determinants'!$E$41*$D17,IF($E17="kW",VLOOKUP(S$4,'4. Billing Determinants'!$B$19:$Z$41,5,0)/'4. Billing Determinants'!$F$41*$D17,IF($E17="Non-RPP kWh",VLOOKUP(S$4,'4. Billing Determinants'!$B$19:$Z$41,6,0)/'4. Billing Determinants'!$G$41*$D17, VLOOKUP(S$4,'4. Billing Determinants'!$B$19:$Z$41,23,0)*$D17)))),0) -> 0 | T17: =IFERROR(IF(T$4="",0,IF($E17="kWh",VLOOKUP(T$4,'4. Billing Determinants'!$B$19:$Z$41,4,0)/'4. Billing Determinants'!$E$41*$D17,IF($E17="kW",VLOOKUP(T$4,'4. Billing Determinants'!$B$19:$Z$41,5,0)/'4. Billing Determinants'!$F$41*$D17,IF($E17="Non-RPP kWh",VLOOKUP(T$4,'4. Billing Determinants'!$B$19:$Z$41,6,0)/'4. Billing Determinants'!$G$41*$D17, VLOOKUP(T$4,'4. Billing Determinants'!$B$19:$Z$41,23,0)*$D17)))),0) -> 0 | U17: =IFERROR(IF(U$4="",0,IF($E17="kWh",VLOOKUP(U$4,'4. Billing Determinants'!$B$19:$Z$41,4,0)/'4. Billing Determinants'!$E$41*$D17,IF($E17="kW",VLOOKUP(U$4,'4. Billing Determinants'!$B$19:$Z$41,5,0)/'4. Billing Determinants'!$F$41*$D17,IF($E17="Non-RPP kWh",VLOOKUP(U$4,'4. Billing Determinants'!$B$19:$Z$41,6,0)/'4. Billing Determinants'!$G$41*$D17, VLOOKUP(U$4,'4. Billing Determinants'!$B$19:$Z$41,23,0)*$D17)))),0) -> 0 | V17: =IFERROR(IF(V$4="",0,IF($E17="kWh",VLOOKUP(V$4,'4. Billing Determinants'!$B$19:$Z$41,4,0)/'4. Billing Determinants'!$E$41*$D17,IF($E17="kW",VLOOKUP(V$4,'4. Billing Determinants'!$B$19:$Z$41,5,0)/'4. Billing Determinants'!$F$41*$D17,IF($E17="Non-RPP kWh",VLOOKUP(V$4,'4. Billing Determinants'!$B$19:$Z$41,6,0)/'4. Billing Determinants'!$G$41*$D17, VLOOKUP(V$4,'4. Billing Determinants'!$B$19:$Z$41,23,0)*$D17)))),0) -> 0 | W17: =IFERROR(IF(W$4="",0,IF($E17="kWh",VLOOKUP(W$4,'4. Billing Determinants'!$B$19:$Z$41,4,0)/'4. Billing Determinants'!$E$41*$D17,IF($E17="kW",VLOOKUP(W$4,'4. Billing Determinants'!$B$19:$Z$41,5,0)/'4. Billing Determinants'!$F$41*$D17,IF($E17="Non-RPP kWh",VLOOKUP(W$4,'4. Billing Determinants'!$B$19:$Z$41,6,0)/'4. Billing Determinants'!$G$41*$D17, VLOOKUP(W$4,'4. Billing Determinants'!$B$19:$Z$41,23,0)*$D17)))),0) -> 0 | X17: =IFERROR(IF(X$4="",0,IF($E17="kWh",VLOOKUP(X$4,'4. Billing Determinants'!$B$19:$Z$41,4,0)/'4. Billing Determinants'!$E$41*$D17,IF($E17="kW",VLOOKUP(X$4,'4. Billing Determinants'!$B$19:$Z$41,5,0)/'4. Billing Determinants'!$F$41*$D17,IF($E17="Non-RPP kWh",VLOOKUP(X$4,'4. Billing Determinants'!$B$19:$Z$41,6,0)/'4. Billing Determinants'!$G$41*$D17, VLOOKUP(X$4,'4. Billing Determinants'!$B$19:$Z$41,23,0)*$D17)))),0) -> 0 | Y17: =IFERROR(IF(Y$4="",0,IF($E17="kWh",VLOOKUP(Y$4,'4. Billing Determinants'!$B$19:$Z$41,4,0)/'4. Billing Determinants'!$E$41*$D17,IF($E17="kW",VLOOKUP(Y$4,'4. Billing Determinants'!$B$19:$Z$41,5,0)/'4. Billing Determinants'!$F$41*$D17,IF($E17="Non-RPP kWh",VLOOKUP(Y$4,'4. Billing Determinants'!$B$19:$Z$41,6,0)/'4. Billing Determinants'!$G$41*$D17, VLOOKUP(Y$4,'4. Billing Determinants'!$B$19:$Z$41,23,0)*$D17)))),0) -> 0
B18: Disposition and Recovery/Refund of Regulatory Balances (2014) | C18: 1595 | D18: ='2. 2015 Continuity Schedule'!BS37 -> 0 | E18: % | F18: =IFERROR(IF(F$4="",0,IF($E18="kWh",VLOOKUP(F$4,'4. Billing Determinants'!$B$19:$Z$41,4,0)/'4. Billing Determinants'!$E$41*$D18,IF($E18="kW",VLOOKUP(F$4,'4. Billing Determinants'!$B$19:$Z$41,5,0)/'4. Billing Determinants'!$F$41*$D18,IF($E18="Non-RPP kWh",VLOOKUP(F$4,'4. Billing Determinants'!$B$19:$Z$41,6,0)/'4. Billing Determinants'!$G$41*$D18, VLOOKUP(F$4,'4. Billing Determinants'!$B$19:$Z$41,24,0)*$D18)))),0) -> 0 | G18: =IFERROR(IF(G$4="",0,IF($E18="kWh",VLOOKUP(G$4,'4. Billing Determinants'!$B$19:$Z$41,4,0)/'4. Billing Determinants'!$E$41*$D18,IF($E18="kW",VLOOKUP(G$4,'4. Billing Determinants'!$B$19:$Z$41,5,0)/'4. Billing Determinants'!$F$41*$D18,IF($E18="Non-RPP kWh",VLOOKUP(G$4,'4. Billing Determinants'!$B$19:$Z$41,6,0)/'4. Billing Determinants'!$G$41*$D18, VLOOKUP(G$4,'4. Billing Determinants'!$B$19:$Z$41,24,0)*$D18)))),0) -> 0 | H18: =IFERROR(IF(H$4="",0,IF($E18="kWh",VLOOKUP(H$4,'4. Billing Determinants'!$B$19:$Z$41,4,0)/'4. Billing Determinants'!$E$41*$D18,IF($E18="kW",VLOOKUP(H$4,'4. Billing Determinants'!$B$19:$Z$41,5,0)/'4. Billing Determinants'!$F$41*$D18,IF($E18="Non-RPP kWh",VLOOKUP(H$4,'4. Billing Determinants'!$B$19:$Z$41,6,0)/'4. Billing Determinants'!$G$41*$D18, VLOOKUP(H$4,'4. Billing Determinants'!$B$19:$Z$41,24,0)*$D18)))),0) -> 0 | I18: =IFERROR(IF(I$4="",0,IF($E18="kWh",VLOOKUP(I$4,'4. Billing Determinants'!$B$19:$Z$41,4,0)/'4. Billing Determinants'!$E$41*$D18,IF($E18="kW",VLOOKUP(I$4,'4. Billing Determinants'!$B$19:$Z$41,5,0)/'4. Billing Determinants'!$F$41*$D18,IF($E18="Non-RPP kWh",VLOOKUP(I$4,'4. Billing Determinants'!$B$19:$Z$41,6,0)/'4. Billing Determinants'!$G$41*$D18, VLOOKUP(I$4,'4. Billing Determinants'!$B$19:$Z$41,24,0)*$D18)))),0) -> 0 | J18: =IFERROR(IF(J$4="",0,IF($E18="kWh",VLOOKUP(J$4,'4. Billing Determinants'!$B$19:$Z$41,4,0)/'4. Billing Determinants'!$E$41*$D18,IF($E18="kW",VLOOKUP(J$4,'4. Billing Determinants'!$B$19:$Z$41,5,0)/'4. Billing Determinants'!$F$41*$D18,IF($E18="Non-RPP kWh",VLOOKUP(J$4,'4. Billing Determinants'!$B$19:$Z$41,6,0)/'4. Billing Determinants'!$G$41*$D18, VLOOKUP(J$4,'4. Billing Determinants'!$B$19:$Z$41,24,0)*$D18)))),0) -> 0 | K18: =IFERROR(IF(K$4="",0,IF($E18="kWh",VLOOKUP(K$4,'4. Billing Determinants'!$B$19:$Z$41,4,0)/'4. Billing Determinants'!$E$41*$D18,IF($E18="kW",VLOOKUP(K$4,'4. Billing Determinants'!$B$19:$Z$41,5,0)/'4. Billing Determinants'!$F$41*$D18,IF($E18="Non-RPP kWh",VLOOKUP(K$4,'4. Billing Determinants'!$B$19:$Z$41,6,0)/'4. Billing Determinants'!$G$41*$D18, VLOOKUP(K$4,'4. Billing Determinants'!$B$19:$Z$41,24,0)*$D18)))),0) -> 0 | L18: =IFERROR(IF(L$4="",0,IF($E18="kWh",VLOOKUP(L$4,'4. Billing Determinants'!$B$19:$Z$41,4,0)/'4. Billing Determinants'!$E$41*$D18,IF($E18="kW",VLOOKUP(L$4,'4. Billing Determinants'!$B$19:$Z$41,5,0)/'4. Billing Determinants'!$F$41*$D18,IF($E18="Non-RPP kWh",VLOOKUP(L$4,'4. Billing Determinants'!$B$19:$Z$41,6,0)/'4. Billing Determinants'!$G$41*$D18, VLOOKUP(L$4,'4. Billing Determinants'!$B$19:$Z$41,24,0)*$D18)))),0) -> 0 | M18: =IFERROR(IF(M$4="",0,IF($E18="kWh",VLOOKUP(M$4,'4. Billing Determinants'!$B$19:$Z$41,4,0)/'4. Billing Determinants'!$E$41*$D18,IF($E18="kW",VLOOKUP(M$4,'4. Billing Determinants'!$B$19:$Z$41,5,0)/'4. Billing Determinants'!$F$41*$D18,IF($E18="Non-RPP kWh",VLOOKUP(M$4,'4. Billing Determinants'!$B$19:$Z$41,6,0)/'4. Billing Determinants'!$G$41*$D18, VLOOKUP(M$4,'4. Billing Determinants'!$B$19:$Z$41,24,0)*$D18)))),0) -> 0 | N18: =IFERROR(IF(N$4="",0,IF($E18="kWh",VLOOKUP(N$4,'4. Billing Determinants'!$B$19:$Z$41,4,0)/'4. Billing Determinants'!$E$41*$D18,IF($E18="kW",VLOOKUP(N$4,'4. Billing Determinants'!$B$19:$Z$41,5,0)/'4. Billing Determinants'!$F$41*$D18,IF($E18="Non-RPP kWh",VLOOKUP(N$4,'4. Billing Determinants'!$B$19:$Z$41,6,0)/'4. Billing Determinants'!$G$41*$D18, VLOOKUP(N$4,'4. Billing Determinants'!$B$19:$Z$41,24,0)*$D18)))),0) -> 0 | O18: =IFERROR(IF(O$4="",0,IF($E18="kWh",VLOOKUP(O$4,'4. Billing Determinants'!$B$19:$Z$41,4,0)/'4. Billing Determinants'!$E$41*$D18,IF($E18="kW",VLOOKUP(O$4,'4. Billing Determinants'!$B$19:$Z$41,5,0)/'4. Billing Determinants'!$F$41*$D18,IF($E18="Non-RPP kWh",VLOOKUP(O$4,'4. Billing Determinants'!$B$19:$Z$41,6,0)/'4. Billing Determinants'!$G$41*$D18, VLOOKUP(O$4,'4. Billing Determinants'!$B$19:$Z$41,24,0)*$D18)))),0) -> 0 | P18: =IFERROR(IF(P$4="",0,IF($E18="kWh",VLOOKUP(P$4,'4. Billing Determinants'!$B$19:$Z$41,4,0)/'4. Billing Determinants'!$E$41*$D18,IF($E18="kW",VLOOKUP(P$4,'4. Billing Determinants'!$B$19:$Z$41,5,0)/'4. Billing Determinants'!$F$41*$D18,IF($E18="Non-RPP kWh",VLOOKUP(P$4,'4. Billing Determinants'!$B$19:$Z$41,6,0)/'4. Billing Determinants'!$G$41*$D18, VLOOKUP(P$4,'4. Billing Determinants'!$B$19:$Z$41,24,0)*$D18)))),0) -> 0 | Q18: =IFERROR(IF(Q$4="",0,IF($E18="kWh",VLOOKUP(Q$4,'4. Billing Determinants'!$B$19:$Z$41,4,0)/'4. Billing Determinants'!$E$41*$D18,IF($E18="kW",VLOOKUP(Q$4,'4. Billing Determinants'!$B$19:$Z$41,5,0)/'4. Billing Determinants'!$F$41*$D18,IF($E18="Non-RPP kWh",VLOOKUP(Q$4,'4. Billing Determinants'!$B$19:$Z$41,6,0)/'4. Billing Determinants'!$G$41*$D18, VLOOKUP(Q$4,'4. Billing Determinants'!$B$19:$Z$41,24,0)*$D18)))),0) -> 0 | R18: =IFERROR(IF(R$4="",0,IF($E18="kWh",VLOOKUP(R$4,'4. Billing Determinants'!$B$19:$Z$41,4,0)/'4. Billing Determinants'!$E$41*$D18,IF($E18="kW",VLOOKUP(R$4,'4. Billing Determinants'!$B$19:$Z$41,5,0)/'4. Billing Determinants'!$F$41*$D18,IF($E18="Non-RPP kWh",VLOOKUP(R$4,'4. Billing Determinants'!$B$19:$Z$41,6,0)/'4. Billing Determinants'!$G$41*$D18, VLOOKUP(R$4,'4. Billing Determinants'!$B$19:$Z$41,24,0)*$D18)))),0) -> 0 | S18: =IFERROR(IF(S$4="",0,IF($E18="kWh",VLOOKUP(S$4,'4. Billing Determinants'!$B$19:$Z$41,4,0)/'4. Billing Determinants'!$E$41*$D18,IF($E18="kW",VLOOKUP(S$4,'4. Billing Determinants'!$B$19:$Z$41,5,0)/'4. Billing Determinants'!$F$41*$D18,IF($E18="Non-RPP kWh",VLOOKUP(S$4,'4. Billing Determinants'!$B$19:$Z$41,6,0)/'4. Billing Determinants'!$G$41*$D18, VLOOKUP(S$4,'4. Billing Determinants'!$B$19:$Z$41,24,0)*$D18)))),0) -> 0 | T18: =IFERROR(IF(T$4="",0,IF($E18="kWh",VLOOKUP(T$4,'4. Billing Determinants'!$B$19:$Z$41,4,0)/'4. Billing Determinants'!$E$41*$D18,IF($E18="kW",VLOOKUP(T$4,'4. Billing Determinants'!$B$19:$Z$41,5,0)/'4. Billing Determinants'!$F$41*$D18,IF($E18="Non-RPP kWh",VLOOKUP(T$4,'4. Billing Determinants'!$B$19:$Z$41,6,0)/'4. Billing Determinants'!$G$41*$D18, VLOOKUP(T$4,'4. Billing Determinants'!$B$19:$Z$41,24,0)*$D18)))),0) -> 0 | U18: =IFERROR(IF(U$4="",0,IF($E18="kWh",VLOOKUP(U$4,'4. Billing Determinants'!$B$19:$Z$41,4,0)/'4. Billing Determinants'!$E$41*$D18,IF($E18="kW",VLOOKUP(U$4,'4. Billing Determinants'!$B$19:$Z$41,5,0)/'4. Billing Determinants'!$F$41*$D18,IF($E18="Non-RPP kWh",VLOOKUP(U$4,'4. Billing Determinants'!$B$19:$Z$41,6,0)/'4. Billing Determinants'!$G$41*$D18, VLOOKUP(U$4,'4. Billing Determinants'!$B$19:$Z$41,24,0)*$D18)))),0) -> 0 | V18: =IFERROR(IF(V$4="",0,IF($E18="kWh",VLOOKUP(V$4,'4. Billing Determinants'!$B$19:$Z$41,4,0)/'4. Billing Determinants'!$E$41*$D18,IF($E18="kW",VLOOKUP(V$4,'4. Billing Determinants'!$B$19:$Z$41,5,0)/'4. Billing Determinants'!$F$41*$D18,IF($E18="Non-RPP kWh",VLOOKUP(V$4,'4. Billing Determinants'!$B$19:$Z$41,6,0)/'4. Billing Determinants'!$G$41*$D18, VLOOKUP(V$4,'4. Billing Determinants'!$B$19:$Z$41,24,0)*$D18)))),0) -> 0 | W18: =IFERROR(IF(W$4="",0,IF($E18="kWh",VLOOKUP(W$4,'4. Billing Determinants'!$B$19:$Z$41,4,0)/'4. Billing Determinants'!$E$41*$D18,IF($E18="kW",VLOOKUP(W$4,'4. Billing Determinants'!$B$19:$Z$41,5,0)/'4. Billing Determinants'!$F$41*$D18,IF($E18="Non-RPP kWh",VLOOKUP(W$4,'4. Billing Determinants'!$B$19:$Z$41,6,0)/'4. Billing Determinants'!$G$41*$D18, VLOOKUP(W$4,'4. Billing Determinants'!$B$19:$Z$41,24,0)*$D18)))),0) -> 0 | X18: =IFERROR(IF(X$4="",0,IF($E18="kWh",VLOOKUP(X$4,'4. Billing Determinants'!$B$19:$Z$41,4,0)/'4. Billing Determinants'!$E$41*$D18,IF($E18="kW",VLOOKUP(X$4,'4. Billing Determinants'!$B$19:$Z$41,5,0)/'4. Billing Determinants'!$F$41*$D18,IF($E18="Non-RPP kWh",VLOOKUP(X$4,'4. Billing Determinants'!$B$19:$Z$41,6,0)/'4. Billing Determinants'!$G$41*$D18, VLOOKUP(X$4,'4. Billing Determinants'!$B$19:$Z$41,24,0)*$D18)))),0) -> 0 | Y18: =IFERROR(IF(Y$4="",0,IF($E18="kWh",VLOOKUP(Y$4,'4. Billing Determinants'!$B$19:$Z$41,4,0)/'4. Billing Determinants'!$E$41*$D18,IF($E18="kW",VLOOKUP(Y$4,'4. Billing Determinants'!$B$19:$Z$41,5,0)/'4. Billing Determinants'!$F$41*$D18,IF($E18="Non-RPP kWh",VLOOKUP(Y$4,'4. Billing Determinants'!$B$19:$Z$41,6,0)/'4. Billing Determinants'!$G$41*$D18, VLOOKUP(Y$4,'4. Billing Determinants'!$B$19:$Z$41,24,0)*$D18)))),0) -> 0
B19: Total of Group 1 Accounts (excluding 1589) | D19: =SUM(D5:D18)-D11 -> 22444.57761 | F19: =SUM(F5:F18)-F11 -> 7192.566872 | G19: 2682.30901 | H19: 2702.134938 | I19: 9723.168445 | J19: 0.5820200755 | K19: 4.461326273 | L19: 139.3550004 | M19: 0 | N19: 0 | O19: 0 | P19: 0 | Q19: 0 | R19: 0 | S19: 0 | T19: 0 | U19: 0 | V19: 0 | W19: 0 | X19: 0 | Y19: 0
B21: Other Regulatory Assets - Sub-Account - Deferred IFRS Transition Costs | C21: 1508 | D21: ='2. 2015 Continuity Schedule'!BS44 -> 49011.41661 | E21: kWh | F21: =IFERROR(IF(F$4="",0,IF($E21="kWh",VLOOKUP(F$4,'4. Billing Determinants'!$B$19:$Z$41,4,0)/'4. Billing Determinants'!$E$41*$D21,IF($E21="kW",VLOOKUP(F$4,'4. Billing Determinants'!$B$19:$Z$41,5,0)/'4. Billing Determinants'!$F$41*$D21,IF($E21="Non-RPP kWh",VLOOKUP(F$4,'4. Billing Determinants'!$B$19:$Z$41,6,0)/'4. Billing Determinants'!$G$41*$D21,IF($E21="Distribution Rev.",VLOOKUP(F$4,'4. Billing Determinants'!$B$19:$Z$41,8,0)/'4. Billing Determinants'!$I$41*$D21, VLOOKUP(F$4,'4. Billing Determinants'!$B$19:$Z$41,3,0)/'4. Billing Determinants'!$D$41*$D21))))),0) -> 12753.0381 | G21: =IFERROR(IF(G$4="",0,IF($E21="kWh",VLOOKUP(G$4,'4. Billing Determinants'!$B$19:$Z$41,4,0)/'4. Billing Determinants'!$E$41*$D21,IF($E21="kW",VLOOKUP(G$4,'4. Billing Determinants'!$B$19:$Z$41,5,0)/'4. Billing Determinants'!$F$41*$D21,IF($E21="Non-RPP kWh",VLOOKUP(G$4,'4. Billing Determinants'!$B$19:$Z$41,6,0)/'4. Billing Determinants'!$G$41*$D21,IF($E21="Distribution Rev.",VLOOKUP(G$4,'4. Billing Determinants'!$B$19:$Z$41,8,0)/'4. Billing Determinants'!$I$41*$D21, VLOOKUP(G$4,'4. Billing Determinants'!$B$19:$Z$41,3,0)/'4. Billing Determinants'!$D$41*$D21))))),0) -> 5813.777046 | H21: =IFERROR(IF(H$4="",0,IF($E21="kWh",VLOOKUP(H$4,'4. Billing Determinants'!$B$19:$Z$41,4,0)/'4. Billing Determinants'!$E$41*$D21,IF($E21="kW",VLOOKUP(H$4,'4. Billing Determinants'!$B$19:$Z$41,5,0)/'4. Billing Determinants'!$F$41*$D21,IF($E21="Non-RPP kWh",VLOOKUP(H$4,'4. Billing Determinants'!$B$19:$Z$41,6,0)/'4. Billing Determinants'!$G$41*$D21,IF($E21="Distribution Rev.",VLOOKUP(H$4,'4. Billing Determinants'!$B$19:$Z$41,8,0)/'4. Billing Determinants'!$I$41*$D21, VLOOKUP(H$4,'4. Billing Determinants'!$B$19:$Z$41,3,0)/'4. Billing Determinants'!$D$41*$D21))))),0) -> 6544.575723 | I21: =IFERROR(IF(I$4="",0,IF($E21="kWh",VLOOKUP(I$4,'4. Billing Determinants'!$B$19:$Z$41,4,0)/'4. Billing Determinants'!$E$41*$D21,IF($E21="kW",VLOOKUP(I$4,'4. Billing Determinants'!$B$19:$Z$41,5,0)/'4. Billing Determinants'!$F$41*$D21,IF($E21="Non-RPP kWh",VLOOKUP(I$4,'4. Billing Determinants'!$B$19:$Z$41,6,0)/'4. Billing Determinants'!$G$41*$D21,IF($E21="Distribution Rev.",VLOOKUP(I$4,'4. Billing Determinants'!$B$19:$Z$41,8,0)/'4. Billing Determinants'!$I$41*$D21, VLOOKUP(I$4,'4. Billing Determinants'!$B$19:$Z$41,3,0)/'4. Billing Determinants'!$D$41*$D21))))),0) -> 23550.33161 | J21: =IFERROR(IF(J$4="",0,IF($E21="kWh",VLOOKUP(J$4,'4. Billing Determinants'!$B$19:$Z$41,4,0)/'4. Billing Determinants'!$E$41*$D21,IF($E21="kW",VLOOKUP(J$4,'4. Billing Determinants'!$B$19:$Z$41,5,0)/'4. Billing Determinants'!$F$41*$D21,IF($E21="Non-RPP kWh",VLOOKUP(J$4,'4. Billing Determinants'!$B$19:$Z$41,6,0)/'4. Billing Determinants'!$G$41*$D21,IF($E21="Distribution Rev.",VLOOKUP(J$4,'4. Billing Determinants'!$B$19:$Z$41,8,0)/'4. Billing Determinants'!$I$41*$D21, VLOOKUP(J$4,'4. Billing Determinants'!$B$19:$Z$41,3,0)/'4. Billing Determinants'!$D$41*$D21))))),0) -> 1.407277337 | K21: =IFERROR(IF(K$4="",0,IF($E21="kWh",VLOOKUP(K$4,'4. Billing Determinants'!$B$19:$Z$41,4,0)/'4. Billing Determinants'!$E$41*$D21,IF($E21="kW",VLOOKUP(K$4,'4. Billing Determinants'!$B$19:$Z$41,5,0)/'4. Billing Determinants'!$F$41*$D21,IF($E21="Non-RPP kWh",VLOOKUP(K$4,'4. Billing Determinants'!$B$19:$Z$41,6,0)/'4. Billing Determinants'!$G$41*$D21,IF($E21="Distribution Rev.",VLOOKUP(K$4,'4. Billing Determinants'!$B$19:$Z$41,8,0)/'4. Billing Determinants'!$I$41*$D21, VLOOKUP(K$4,'4. Billing Determinants'!$B$19:$Z$41,3,0)/'4. Billing Determinants'!$D$41*$D21))))),0) -> 10.76166136 | L21: =IFERROR(IF(L$4="",0,IF($E21="kWh",VLOOKUP(L$4,'4. Billing Determinants'!$B$19:$Z$41,4,0)/'4. Billing Determinants'!$E$41*$D21,IF($E21="kW",VLOOKUP(L$4,'4. Billing Determinants'!$B$19:$Z$41,5,0)/'4. Billing Determinants'!$F$41*$D21,IF($E21="Non-RPP kWh",VLOOKUP(L$4,'4. Billing Determinants'!$B$19:$Z$41,6,0)/'4. Billing Determinants'!$G$41*$D21,IF($E21="Distribution Rev.",VLOOKUP(L$4,'4. Billing Determinants'!$B$19:$Z$41,8,0)/'4. Billing Determinants'!$I$41*$D21, VLOOKUP(L$4,'4. Billing Determinants'!$B$19:$Z$41,3,0)/'4. Billing Determinants'!$D$41*$D21))))),0) -> 337.5251876 | M21: =IFERROR(IF(M$4="",0,IF($E21="kWh",VLOOKUP(M$4,'4. Billing Determinants'!$B$19:$Z$41,4,0)/'4. Billing Determinants'!$E$41*$D21,IF($E21="kW",VLOOKUP(M$4,'4. Billing Determinants'!$B$19:$Z$41,5,0)/'4. Billing Determinants'!$F$41*$D21,IF($E21="Non-RPP kWh",VLOOKUP(M$4,'4. Billing Determinants'!$B$19:$Z$41,6,0)/'4. Billing Determinants'!$G$41*$D21,IF($E21="Distribution Rev.",VLOOKUP(M$4,'4. Billing Determinants'!$B$19:$Z$41,8,0)/'4. Billing Determinants'!$I$41*$D21, VLOOKUP(M$4,'4. Billing Determinants'!$B$19:$Z$41,3,0)/'4. Billing Determinants'!$D$41*$D21))))),0) -> 0 | N21: =IFERROR(IF(N$4="",0,IF($E21="kWh",VLOOKUP(N$4,'4. Billing Determinants'!$B$19:$Z$41,4,0)/'4. Billing Determinants'!$E$41*$D21,IF($E21="kW",VLOOKUP(N$4,'4. Billing Determinants'!$B$19:$Z$41,5,0)/'4. Billing Determinants'!$F$41*$D21,IF($E21="Non-RPP kWh",VLOOKUP(N$4,'4. Billing Determinants'!$B$19:$Z$41,6,0)/'4. Billing Determinants'!$G$41*$D21,IF($E21="Distribution Rev.",VLOOKUP(N$4,'4. Billing Determinants'!$B$19:$Z$41,8,0)/'4. Billing Determinants'!$I$41*$D21, VLOOKUP(N$4,'4. Billing Determinants'!$B$19:$Z$41,3,0)/'4. Billing Determinants'!$D$41*$D21))))),0) -> 0 | O21: =IFERROR(IF(O$4="",0,IF($E21="kWh",VLOOKUP(O$4,'4. Billing Determinants'!$B$19:$Z$41,4,0)/'4. Billing Determinants'!$E$41*$D21,IF($E21="kW",VLOOKUP(O$4,'4. Billing Determinants'!$B$19:$Z$41,5,0)/'4. Billing Determinants'!$F$41*$D21,IF($E21="Non-RPP kWh",VLOOKUP(O$4,'4. Billing Determinants'!$B$19:$Z$41,6,0)/'4. Billing Determinants'!$G$41*$D21,IF($E21="Distribution Rev.",VLOOKUP(O$4,'4. Billing Determinants'!$B$19:$Z$41,8,0)/'4. Billing Determinants'!$I$41*$D21, VLOOKUP(O$4,'4. Billing Determinants'!$B$19:$Z$41,3,0)/'4. Billing Determinants'!$D$41*$D21))))),0) -> 0 | P21: =IFERROR(IF(P$4="",0,IF($E21="kWh",VLOOKUP(P$4,'4. Billing Determinants'!$B$19:$Z$41,4,0)/'4. Billing Determinants'!$E$41*$D21,IF($E21="kW",VLOOKUP(P$4,'4. Billing Determinants'!$B$19:$Z$41,5,0)/'4. Billing Determinants'!$F$41*$D21,IF($E21="Non-RPP kWh",VLOOKUP(P$4,'4. Billing Determinants'!$B$19:$Z$41,6,0)/'4. Billing Determinants'!$G$41*$D21,IF($E21="Distribution Rev.",VLOOKUP(P$4,'4. Billing Determinants'!$B$19:$Z$41,8,0)/'4. Billing Determinants'!$I$41*$D21, VLOOKUP(P$4,'4. Billing Determinants'!$B$19:$Z$41,3,0)/'4. Billing Determinants'!$D$41*$D21))))),0) -> 0 | Q21: =IFERROR(IF(Q$4="",0,IF($E21="kWh",VLOOKUP(Q$4,'4. Billing Determinants'!$B$19:$Z$41,4,0)/'4. Billing Determinants'!$E$41*$D21,IF($E21="kW",VLOOKUP(Q$4,'4. Billing Determinants'!$B$19:$Z$41,5,0)/'4. Billing Determinants'!$F$41*$D21,IF($E21="Non-RPP kWh",VLOOKUP(Q$4,'4. Billing Determinants'!$B$19:$Z$41,6,0)/'4. Billing Determinants'!$G$41*$D21,IF($E21="Distribution Rev.",VLOOKUP(Q$4,'4. Billing Determinants'!$B$19:$Z$41,8,0)/'4. Billing Determinants'!$I$41*$D21, VLOOKUP(Q$4,'4. Billing Determinants'!$B$19:$Z$41,3,0)/'4. Billing Determinants'!$D$41*$D21))))),0) -> 0 | R21: =IFERROR(IF(R$4="",0,IF($E21="kWh",VLOOKUP(R$4,'4. Billing Determinants'!$B$19:$Z$41,4,0)/'4. Billing Determinants'!$E$41*$D21,IF($E21="kW",VLOOKUP(R$4,'4. Billing Determinants'!$B$19:$Z$41,5,0)/'4. Billing Determinants'!$F$41*$D21,IF($E21="Non-RPP kWh",VLOOKUP(R$4,'4. Billing Determinants'!$B$19:$Z$41,6,0)/'4. Billing Determinants'!$G$41*$D21,IF($E21="Distribution Rev.",VLOOKUP(R$4,'4. Billing Determinants'!$B$19:$Z$41,8,0)/'4. Billing Determinants'!$I$41*$D21, VLOOKUP(R$4,'4. Billing Determinants'!$B$19:$Z$41,3,0)/'4. Billing Determinants'!$D$41*$D21))))),0) -> 0 | S21: =IFERROR(IF(S$4="",0,IF($E21="kWh",VLOOKUP(S$4,'4. Billing Determinants'!$B$19:$Z$41,4,0)/'4. Billing Determinants'!$E$41*$D21,IF($E21="kW",VLOOKUP(S$4,'4. Billing Determinants'!$B$19:$Z$41,5,0)/'4. Billing Determinants'!$F$41*$D21,IF($E21="Non-RPP kWh",VLOOKUP(S$4,'4. Billing Determinants'!$B$19:$Z$41,6,0)/'4. Billing Determinants'!$G$41*$D21,IF($E21="Distribution Rev.",VLOOKUP(S$4,'4. Billing Determinants'!$B$19:$Z$41,8,0)/'4. Billing Determinants'!$I$41*$D21, VLOOKUP(S$4,'4. Billing Determinants'!$B$19:$Z$41,3,0)/'4. Billing Determinants'!$D$41*$D21))))),0) -> 0 | T21: =IFERROR(IF(T$4="",0,IF($E21="kWh",VLOOKUP(T$4,'4. Billing Determinants'!$B$19:$Z$41,4,0)/'4. Billing Determinants'!$E$41*$D21,IF($E21="kW",VLOOKUP(T$4,'4. Billing Determinants'!$B$19:$Z$41,5,0)/'4. Billing Determinants'!$F$41*$D21,IF($E21="Non-RPP kWh",VLOOKUP(T$4,'4. Billing Determinants'!$B$19:$Z$41,6,0)/'4. Billing Determinants'!$G$41*$D21,IF($E21="Distribution Rev.",VLOOKUP(T$4,'4. Billing Determinants'!$B$19:$Z$41,8,0)/'4. Billing Determinants'!$I$41*$D21, VLOOKUP(T$4,'4. Billing Determinants'!$B$19:$Z$41,3,0)/'4. Billing Determinants'!$D$41*$D21))))),0) -> 0 | U21: =IFERROR(IF(U$4="",0,IF($E21="kWh",VLOOKUP(U$4,'4. Billing Determinants'!$B$19:$Z$41,4,0)/'4. Billing Determinants'!$E$41*$D21,IF($E21="kW",VLOOKUP(U$4,'4. Billing Determinants'!$B$19:$Z$41,5,0)/'4. Billing Determinants'!$F$41*$D21,IF($E21="Non-RPP kWh",VLOOKUP(U$4,'4. Billing Determinants'!$B$19:$Z$41,6,0)/'4. Billing Determinants'!$G$41*$D21,IF($E21="Distribution Rev.",VLOOKUP(U$4,'4. Billing Determinants'!$B$19:$Z$41,8,0)/'4. Billing Determinants'!$I$41*$D21, VLOOKUP(U$4,'4. Billing Determinants'!$B$19:$Z$41,3,0)/'4. Billing Determinants'!$D$41*$D21))))),0) -> 0 | V21: =IFERROR(IF(V$4="",0,IF($E21="kWh",VLOOKUP(V$4,'4. Billing Determinants'!$B$19:$Z$41,4,0)/'4. Billing Determinants'!$E$41*$D21,IF($E21="kW",VLOOKUP(V$4,'4. Billing Determinants'!$B$19:$Z$41,5,0)/'4. Billing Determinants'!$F$41*$D21,IF($E21="Non-RPP kWh",VLOOKUP(V$4,'4. Billing Determinants'!$B$19:$Z$41,6,0)/'4. Billing Determinants'!$G$41*$D21,IF($E21="Distribution Rev.",VLOOKUP(V$4,'4. Billing Determinants'!$B$19:$Z$41,8,0)/'4. Billing Determinants'!$I$41*$D21, VLOOKUP(V$4,'4. Billing Determinants'!$B$19:$Z$41,3,0)/'4. Billing Determinants'!$D$41*$D21))))),0) -> 0 | W21: =IFERROR(IF(W$4="",0,IF($E21="kWh",VLOOKUP(W$4,'4. Billing Determinants'!$B$19:$Z$41,4,0)/'4. Billing Determinants'!$E$41*$D21,IF($E21="kW",VLOOKUP(W$4,'4. Billing Determinants'!$B$19:$Z$41,5,0)/'4. Billing Determinants'!$F$41*$D21,IF($E21="Non-RPP kWh",VLOOKUP(W$4,'4. Billing Determinants'!$B$19:$Z$41,6,0)/'4. Billing Determinants'!$G$41*$D21,IF($E21="Distribution Rev.",VLOOKUP(W$4,'4. Billing Determinants'!$B$19:$Z$41,8,0)/'4. Billing Determinants'!$I$41*$D21, VLOOKUP(W$4,'4. Billing Determinants'!$B$19:$Z$41,3,0)/'4. Billing Determinants'!$D$41*$D21))))),0) -> 0 | X21: =IFERROR(IF(X$4="",0,IF($E21="kWh",VLOOKUP(X$4,'4. Billing Determinants'!$B$19:$Z$41,4,0)/'4. Billing Determinants'!$E$41*$D21,IF($E21="kW",VLOOKUP(X$4,'4. Billing Determinants'!$B$19:$Z$41,5,0)/'4. Billing Determinants'!$F$41*$D21,IF($E21="Non-RPP kWh",VLOOKUP(X$4,'4. Billing Determinants'!$B$19:$Z$41,6,0)/'4. Billing Determinants'!$G$41*$D21,IF($E21="Distribution Rev.",VLOOKUP(X$4,'4. Billing Determinants'!$B$19:$Z$41,8,0)/'4. Billing Determinants'!$I$41*$D21, VLOOKUP(X$4,'4. Billing Determinants'!$B$19:$Z$41,3,0)/'4. Billing Determinants'!$D$41*$D21))))),0) -> 0 | Y21: =IFERROR(IF(Y$4="",0,IF($E21="kWh",VLOOKUP(Y$4,'4. Billing Determinants'!$B$19:$Z$41,4,0)/'4. Billing Determinants'!$E$41*$D21,IF($E21="kW",VLOOKUP(Y$4,'4. Billing Determinants'!$B$19:$Z$41,5,0)/'4. Billing Determinants'!$F$41*$D21,IF($E21="Non-RPP kWh",VLOOKUP(Y$4,'4. Billing Determinants'!$B$19:$Z$41,6,0)/'4. Billing Determinants'!$G$41*$D21,IF($E21="Distribution Rev.",VLOOKUP(Y$4,'4. Billing Determinants'!$B$19:$Z$41,8,0)/'4. Billing Determinants'!$I$41*$D21, VLOOKUP(Y$4,'4. Billing Determinants'!$B$19:$Z$41,3,0)/'4. Billing Determinants'!$D$41*$D21))))),0) -> 0
B22: Other Regulatory Assets - Sub-Account - Incremental Capital Charges | C22: 1508 | D22: ='2. 2015 Continuity Schedule'!BS45 -> 0 | E22: kWh | F22: =IFERROR(IF(F$4="",0,IF($E22="kWh",VLOOKUP(F$4,'4. Billing Determinants'!$B$19:$Z$41,4,0)/'4. Billing Determinants'!$E$41*$D22,IF($E22="kW",VLOOKUP(F$4,'4. Billing Determinants'!$B$19:$Z$41,5,0)/'4. Billing Determinants'!$F$41*$D22,IF($E22="Non-RPP kWh",VLOOKUP(F$4,'4. Billing Determinants'!$B$19:$Z$41,6,0)/'4. Billing Determinants'!$G$41*$D22,IF($E22="Distribution Rev.",VLOOKUP(F$4,'4. Billing Determinants'!$B$19:$Z$41,8,0)/'4. Billing Determinants'!$I$41*$D22, VLOOKUP(F$4,'4. Billing Determinants'!$B$19:$Z$41,3,0)/'4. Billing Determinants'!$D$41*$D22))))),0) -> 0 | G22: =IFERROR(IF(G$4="",0,IF($E22="kWh",VLOOKUP(G$4,'4. Billing Determinants'!$B$19:$Z$41,4,0)/'4. Billing Determinants'!$E$41*$D22,IF($E22="kW",VLOOKUP(G$4,'4. Billing Determinants'!$B$19:$Z$41,5,0)/'4. Billing Determinants'!$F$41*$D22,IF($E22="Non-RPP kWh",VLOOKUP(G$4,'4. Billing Determinants'!$B$19:$Z$41,6,0)/'4. Billing Determinants'!$G$41*$D22,IF($E22="Distribution Rev.",VLOOKUP(G$4,'4. Billing Determinants'!$B$19:$Z$41,8,0)/'4. Billing Determinants'!$I$41*$D22, VLOOKUP(G$4,'4. Billing Determinants'!$B$19:$Z$41,3,0)/'4. Billing Determinants'!$D$41*$D22))))),0) -> 0 | H22: =IFERROR(IF(H$4="",0,IF($E22="kWh",VLOOKUP(H$4,'4. Billing Determinants'!$B$19:$Z$41,4,0)/'4. Billing Determinants'!$E$41*$D22,IF($E22="kW",VLOOKUP(H$4,'4. Billing Determinants'!$B$19:$Z$41,5,0)/'4. Billing Determinants'!$F$41*$D22,IF($E22="Non-RPP kWh",VLOOKUP(H$4,'4. Billing Determinants'!$B$19:$Z$41,6,0)/'4. Billing Determinants'!$G$41*$D22,IF($E22="Distribution Rev.",VLOOKUP(H$4,'4. Billing Determinants'!$B$19:$Z$41,8,0)/'4. Billing Determinants'!$I$41*$D22, VLOOKUP(H$4,'4. Billing Determinants'!$B$19:$Z$41,3,0)/'4. Billing Determinants'!$D$41*$D22))))),0) -> 0 | I22: =IFERROR(IF(I$4="",0,IF($E22="kWh",VLOOKUP(I$4,'4. Billing Determinants'!$B$19:$Z$41,4,0)/'4. Billing Determinants'!$E$41*$D22,IF($E22="kW",VLOOKUP(I$4,'4. Billing Determinants'!$B$19:$Z$41,5,0)/'4. Billing Determinants'!$F$41*$D22,IF($E22="Non-RPP kWh",VLOOKUP(I$4,'4. Billing Determinants'!$B$19:$Z$41,6,0)/'4. Billing Determinants'!$G$41*$D22,IF($E22="Distribution Rev.",VLOOKUP(I$4,'4. Billing Determinants'!$B$19:$Z$41,8,0)/'4. Billing Determinants'!$I$41*$D22, VLOOKUP(I$4,'4. Billing Determinants'!$B$19:$Z$41,3,0)/'4. Billing Determinants'!$D$41*$D22))))),0) -> 0 | J22: =IFERROR(IF(J$4="",0,IF($E22="kWh",VLOOKUP(J$4,'4. Billing Determinants'!$B$19:$Z$41,4,0)/'4. Billing Determinants'!$E$41*$D22,IF($E22="kW",VLOOKUP(J$4,'4. Billing Determinants'!$B$19:$Z$41,5,0)/'4. Billing Determinants'!$F$41*$D22,IF($E22="Non-RPP kWh",VLOOKUP(J$4,'4. Billing Determinants'!$B$19:$Z$41,6,0)/'4. Billing Determinants'!$G$41*$D22,IF($E22="Distribution Rev.",VLOOKUP(J$4,'4. Billing Determinants'!$B$19:$Z$41,8,0)/'4. Billing Determinants'!$I$41*$D22, VLOOKUP(J$4,'4. Billing Determinants'!$B$19:$Z$41,3,0)/'4. Billing Determinants'!$D$41*$D22))))),0) -> 0 | K22: =IFERROR(IF(K$4="",0,IF($E22="kWh",VLOOKUP(K$4,'4. Billing Determinants'!$B$19:$Z$41,4,0)/'4. Billing Determinants'!$E$41*$D22,IF($E22="kW",VLOOKUP(K$4,'4. Billing Determinants'!$B$19:$Z$41,5,0)/'4. Billing Determinants'!$F$41*$D22,IF($E22="Non-RPP kWh",VLOOKUP(K$4,'4. Billing Determinants'!$B$19:$Z$41,6,0)/'4. Billing Determinants'!$G$41*$D22,IF($E22="Distribution Rev.",VLOOKUP(K$4,'4. Billing Determinants'!$B$19:$Z$41,8,0)/'4. Billing Determinants'!$I$41*$D22, VLOOKUP(K$4,'4. Billing Determinants'!$B$19:$Z$41,3,0)/'4. Billing Determinants'!$D$41*$D22))))),0) -> 0 | L22: =IFERROR(IF(L$4="",0,IF($E22="kWh",VLOOKUP(L$4,'4. Billing Determinants'!$B$19:$Z$41,4,0)/'4. Billing Determinants'!$E$41*$D22,IF($E22="kW",VLOOKUP(L$4,'4. Billing Determinants'!$B$19:$Z$41,5,0)/'4. Billing Determinants'!$F$41*$D22,IF($E22="Non-RPP kWh",VLOOKUP(L$4,'4. Billing Determinants'!$B$19:$Z$41,6,0)/'4. Billing Determinants'!$G$41*$D22,IF($E22="Distribution Rev.",VLOOKUP(L$4,'4. Billing Determinants'!$B$19:$Z$41,8,0)/'4. Billing Determinants'!$I$41*$D22, VLOOKUP(L$4,'4. Billing Determinants'!$B$19:$Z$41,3,0)/'4. Billing Determinants'!$D$41*$D22))))),0) -> 0 | M22: =IFERROR(IF(M$4="",0,IF($E22="kWh",VLOOKUP(M$4,'4. Billing Determinants'!$B$19:$Z$41,4,0)/'4. Billing Determinants'!$E$41*$D22,IF($E22="kW",VLOOKUP(M$4,'4. Billing Determinants'!$B$19:$Z$41,5,0)/'4. Billing Determinants'!$F$41*$D22,IF($E22="Non-RPP kWh",VLOOKUP(M$4,'4. Billing Determinants'!$B$19:$Z$41,6,0)/'4. Billing Determinants'!$G$41*$D22,IF($E22="Distribution Rev.",VLOOKUP(M$4,'4. Billing Determinants'!$B$19:$Z$41,8,0)/'4. Billing Determinants'!$I$41*$D22, VLOOKUP(M$4,'4. Billing Determinants'!$B$19:$Z$41,3,0)/'4. Billing Determinants'!$D$41*$D22))))),0) -> 0 | N22: =IFERROR(IF(N$4="",0,IF($E22="kWh",VLOOKUP(N$4,'4. Billing Determinants'!$B$19:$Z$41,4,0)/'4. Billing Determinants'!$E$41*$D22,IF($E22="kW",VLOOKUP(N$4,'4. Billing Determinants'!$B$19:$Z$41,5,0)/'4. Billing Determinants'!$F$41*$D22,IF($E22="Non-RPP kWh",VLOOKUP(N$4,'4. Billing Determinants'!$B$19:$Z$41,6,0)/'4. Billing Determinants'!$G$41*$D22,IF($E22="Distribution Rev.",VLOOKUP(N$4,'4. Billing Determinants'!$B$19:$Z$41,8,0)/'4. Billing Determinants'!$I$41*$D22, VLOOKUP(N$4,'4. Billing Determinants'!$B$19:$Z$41,3,0)/'4. Billing Determinants'!$D$41*$D22))))),0) -> 0 | O22: =IFERROR(IF(O$4="",0,IF($E22="kWh",VLOOKUP(O$4,'4. Billing Determinants'!$B$19:$Z$41,4,0)/'4. Billing Determinants'!$E$41*$D22,IF($E22="kW",VLOOKUP(O$4,'4. Billing Determinants'!$B$19:$Z$41,5,0)/'4. Billing Determinants'!$F$41*$D22,IF($E22="Non-RPP kWh",VLOOKUP(O$4,'4. Billing Determinants'!$B$19:$Z$41,6,0)/'4. Billing Determinants'!$G$41*$D22,IF($E22="Distribution Rev.",VLOOKUP(O$4,'4. Billing Determinants'!$B$19:$Z$41,8,0)/'4. Billing Determinants'!$I$41*$D22, VLOOKUP(O$4,'4. Billing Determinants'!$B$19:$Z$41,3,0)/'4. Billing Determinants'!$D$41*$D22))))),0) -> 0 | P22: =IFERROR(IF(P$4="",0,IF($E22="kWh",VLOOKUP(P$4,'4. Billing Determinants'!$B$19:$Z$41,4,0)/'4. Billing Determinants'!$E$41*$D22,IF($E22="kW",VLOOKUP(P$4,'4. Billing Determinants'!$B$19:$Z$41,5,0)/'4. Billing Determinants'!$F$41*$D22,IF($E22="Non-RPP kWh",VLOOKUP(P$4,'4. Billing Determinants'!$B$19:$Z$41,6,0)/'4. Billing Determinants'!$G$41*$D22,IF($E22="Distribution Rev.",VLOOKUP(P$4,'4. Billing Determinants'!$B$19:$Z$41,8,0)/'4. Billing Determinants'!$I$41*$D22, VLOOKUP(P$4,'4. Billing Determinants'!$B$19:$Z$41,3,0)/'4. Billing Determinants'!$D$41*$D22))))),0) -> 0 | Q22: =IFERROR(IF(Q$4="",0,IF($E22="kWh",VLOOKUP(Q$4,'4. Billing Determinants'!$B$19:$Z$41,4,0)/'4. Billing Determinants'!$E$41*$D22,IF($E22="kW",VLOOKUP(Q$4,'4. Billing Determinants'!$B$19:$Z$41,5,0)/'4. Billing Determinants'!$F$41*$D22,IF($E22="Non-RPP kWh",VLOOKUP(Q$4,'4. Billing Determinants'!$B$19:$Z$41,6,0)/'4. Billing Determinants'!$G$41*$D22,IF($E22="Distribution Rev.",VLOOKUP(Q$4,'4. Billing Determinants'!$B$19:$Z$41,8,0)/'4. Billing Determinants'!$I$41*$D22, VLOOKUP(Q$4,'4. Billing Determinants'!$B$19:$Z$41,3,0)/'4. Billing Determinants'!$D$41*$D22))))),0) -> 0 | R22: =IFERROR(IF(R$4="",0,IF($E22="kWh",VLOOKUP(R$4,'4. Billing Determinants'!$B$19:$Z$41,4,0)/'4. Billing Determinants'!$E$41*$D22,IF($E22="kW",VLOOKUP(R$4,'4. Billing Determinants'!$B$19:$Z$41,5,0)/'4. Billing Determinants'!$F$41*$D22,IF($E22="Non-RPP kWh",VLOOKUP(R$4,'4. Billing Determinants'!$B$19:$Z$41,6,0)/'4. Billing Determinants'!$G$41*$D22,IF($E22="Distribution Rev.",VLOOKUP(R$4,'4. Billing Determinants'!$B$19:$Z$41,8,0)/'4. Billing Determinants'!$I$41*$D22, VLOOKUP(R$4,'4. Billing Determinants'!$B$19:$Z$41,3,0)/'4. Billing Determinants'!$D$41*$D22))))),0) -> 0 | S22: =IFERROR(IF(S$4="",0,IF($E22="kWh",VLOOKUP(S$4,'4. Billing Determinants'!$B$19:$Z$41,4,0)/'4. Billing Determinants'!$E$41*$D22,IF($E22="kW",VLOOKUP(S$4,'4. Billing Determinants'!$B$19:$Z$41,5,0)/'4. Billing Determinants'!$F$41*$D22,IF($E22="Non-RPP kWh",VLOOKUP(S$4,'4. Billing Determinants'!$B$19:$Z$41,6,0)/'4. Billing Determinants'!$G$41*$D22,IF($E22="Distribution Rev.",VLOOKUP(S$4,'4. Billing Determinants'!$B$19:$Z$41,8,0)/'4. Billing Determinants'!$I$41*$D22, VLOOKUP(S$4,'4. Billing Determinants'!$B$19:$Z$41,3,0)/'4. Billing Determinants'!$D$41*$D22))))),0) -> 0 | T22: =IFERROR(IF(T$4="",0,IF($E22="kWh",VLOOKUP(T$4,'4. Billing Determinants'!$B$19:$Z$41,4,0)/'4. Billing Determinants'!$E$41*$D22,IF($E22="kW",VLOOKUP(T$4,'4. Billing Determinants'!$B$19:$Z$41,5,0)/'4. Billing Determinants'!$F$41*$D22,IF($E22="Non-RPP kWh",VLOOKUP(T$4,'4. Billing Determinants'!$B$19:$Z$41,6,0)/'4. Billing Determinants'!$G$41*$D22,IF($E22="Distribution Rev.",VLOOKUP(T$4,'4. Billing Determinants'!$B$19:$Z$41,8,0)/'4. Billing Determinants'!$I$41*$D22, VLOOKUP(T$4,'4. Billing Determinants'!$B$19:$Z$41,3,0)/'4. Billing Determinants'!$D$41*$D22))))),0) -> 0 | U22: =IFERROR(IF(U$4="",0,IF($E22="kWh",VLOOKUP(U$4,'4. Billing Determinants'!$B$19:$Z$41,4,0)/'4. Billing Determinants'!$E$41*$D22,IF($E22="kW",VLOOKUP(U$4,'4. Billing Determinants'!$B$19:$Z$41,5,0)/'4. Billing Determinants'!$F$41*$D22,IF($E22="Non-RPP kWh",VLOOKUP(U$4,'4. Billing Determinants'!$B$19:$Z$41,6,0)/'4. Billing Determinants'!$G$41*$D22,IF($E22="Distribution Rev.",VLOOKUP(U$4,'4. Billing Determinants'!$B$19:$Z$41,8,0)/'4. Billing Determinants'!$I$41*$D22, VLOOKUP(U$4,'4. Billing Determinants'!$B$19:$Z$41,3,0)/'4. Billing Determinants'!$D$41*$D22))))),0) -> 0 | V22: =IFERROR(IF(V$4="",0,IF($E22="kWh",VLOOKUP(V$4,'4. Billing Determinants'!$B$19:$Z$41,4,0)/'4. Billing Determinants'!$E$41*$D22,IF($E22="kW",VLOOKUP(V$4,'4. Billing Determinants'!$B$19:$Z$41,5,0)/'4. Billing Determinants'!$F$41*$D22,IF($E22="Non-RPP kWh",VLOOKUP(V$4,'4. Billing Determinants'!$B$19:$Z$41,6,0)/'4. Billing Determinants'!$G$41*$D22,IF($E22="Distribution Rev.",VLOOKUP(V$4,'4. Billing Determinants'!$B$19:$Z$41,8,0)/'4. Billing Determinants'!$I$41*$D22, VLOOKUP(V$4,'4. Billing Determinants'!$B$19:$Z$41,3,0)/'4. Billing Determinants'!$D$41*$D22))))),0) -> 0 | W22: =IFERROR(IF(W$4="",0,IF($E22="kWh",VLOOKUP(W$4,'4. Billing Determinants'!$B$19:$Z$41,4,0)/'4. Billing Determinants'!$E$41*$D22,IF($E22="kW",VLOOKUP(W$4,'4. Billing Determinants'!$B$19:$Z$41,5,0)/'4. Billing Determinants'!$F$41*$D22,IF($E22="Non-RPP kWh",VLOOKUP(W$4,'4. Billing Determinants'!$B$19:$Z$41,6,0)/'4. Billing Determinants'!$G$41*$D22,IF($E22="Distribution Rev.",VLOOKUP(W$4,'4. Billing Determinants'!$B$19:$Z$41,8,0)/'4. Billing Determinants'!$I$41*$D22, VLOOKUP(W$4,'4. Billing Determinants'!$B$19:$Z$41,3,0)/'4. Billing Determinants'!$D$41*$D22))))),0) -> 0 | X22: =IFERROR(IF(X$4="",0,IF($E22="kWh",VLOOKUP(X$4,'4. Billing Determinants'!$B$19:$Z$41,4,0)/'4. Billing Determinants'!$E$41*$D22,IF($E22="kW",VLOOKUP(X$4,'4. Billing Determinants'!$B$19:$Z$41,5,0)/'4. Billing Determinants'!$F$41*$D22,IF($E22="Non-RPP kWh",VLOOKUP(X$4,'4. Billing Determinants'!$B$19:$Z$41,6,0)/'4. Billing Determinants'!$G$41*$D22,IF($E22="Distribution Rev.",VLOOKUP(X$4,'4. Billing Determinants'!$B$19:$Z$41,8,0)/'4. Billing Determinants'!$I$41*$D22, VLOOKUP(X$4,'4. Billing Determinants'!$B$19:$Z$41,3,0)/'4. Billing Determinants'!$D$41*$D22))))),0) -> 0 | Y22: =IFERROR(IF(Y$4="",0,IF($E22="kWh",VLOOKUP(Y$4,'4. Billing Determinants'!$B$19:$Z$41,4,0)/'4. Billing Determinants'!$E$41*$D22,IF($E22="kW",VLOOKUP(Y$4,'4. Billing Determinants'!$B$19:$Z$41,5,0)/'4. Billing Determinants'!$F$41*$D22,IF($E22="Non-RPP kWh",VLOOKUP(Y$4,'4. Billing Determinants'!$B$19:$Z$41,6,0)/'4. Billing Determinants'!$G$41*$D22,IF($E22="Distribution Rev.",VLOOKUP(Y$4,'4. Billing Determinants'!$B$19:$Z$41,8,0)/'4. Billing Determinants'!$I$41*$D22, VLOOKUP(Y$4,'4. Billing Determinants'!$B$19:$Z$41,3,0)/'4. Billing Determinants'!$D$41*$D22))))),0) -> 0
B23: Other Regulatory Assets - Sub-Account - Financial Assistance Payment and Recovery Variance - Ontario Clean Energy Benefit Act8 | C23: 1508 | D23: ='2. 2015 Continuity Schedule'!BS46 -> 0 | E23: kWh | F23: =IFERROR(IF(F$4="",0,IF($E23="kWh",VLOOKUP(F$4,'4. Billing Determinants'!$B$19:$Z$41,4,0)/'4. Billing Determinants'!$E$41*$D23,IF($E23="kW",VLOOKUP(F$4,'4. Billing Determinants'!$B$19:$Z$41,5,0)/'4. Billing Determinants'!$F$41*$D23,IF($E23="Non-RPP kWh",VLOOKUP(F$4,'4. Billing Determinants'!$B$19:$Z$41,6,0)/'4. Billing Determinants'!$G$41*$D23,IF($E23="Distribution Rev.",VLOOKUP(F$4,'4. Billing Determinants'!$B$19:$Z$41,8,0)/'4. Billing Determinants'!$I$41*$D23, VLOOKUP(F$4,'4. Billing Determinants'!$B$19:$Z$41,3,0)/'4. Billing Determinants'!$D$41*$D23))))),0) -> 0 | G23: =IFERROR(IF(G$4="",0,IF($E23="kWh",VLOOKUP(G$4,'4. Billing Determinants'!$B$19:$Z$41,4,0)/'4. Billing Determinants'!$E$41*$D23,IF($E23="kW",VLOOKUP(G$4,'4. Billing Determinants'!$B$19:$Z$41,5,0)/'4. Billing Determinants'!$F$41*$D23,IF($E23="Non-RPP kWh",VLOOKUP(G$4,'4. Billing Determinants'!$B$19:$Z$41,6,0)/'4. Billing Determinants'!$G$41*$D23,IF($E23="Distribution Rev.",VLOOKUP(G$4,'4. Billing Determinants'!$B$19:$Z$41,8,0)/'4. Billing Determinants'!$I$41*$D23, VLOOKUP(G$4,'4. Billing Determinants'!$B$19:$Z$41,3,0)/'4. Billing Determinants'!$D$41*$D23))))),0) -> 0 | H23: =IFERROR(IF(H$4="",0,IF($E23="kWh",VLOOKUP(H$4,'4. Billing Determinants'!$B$19:$Z$41,4,0)/'4. Billing Determinants'!$E$41*$D23,IF($E23="kW",VLOOKUP(H$4,'4. Billing Determinants'!$B$19:$Z$41,5,0)/'4. Billing Determinants'!$F$41*$D23,IF($E23="Non-RPP kWh",VLOOKUP(H$4,'4. Billing Determinants'!$B$19:$Z$41,6,0)/'4. Billing Determinants'!$G$41*$D23,IF($E23="Distribution Rev.",VLOOKUP(H$4,'4. Billing Determinants'!$B$19:$Z$41,8,0)/'4. Billing Determinants'!$I$41*$D23, VLOOKUP(H$4,'4. Billing Determinants'!$B$19:$Z$41,3,0)/'4. Billing Determinants'!$D$41*$D23))))),0) -> 0 | I23: =IFERROR(IF(I$4="",0,IF($E23="kWh",VLOOKUP(I$4,'4. Billing Determinants'!$B$19:$Z$41,4,0)/'4. Billing Determinants'!$E$41*$D23,IF($E23="kW",VLOOKUP(I$4,'4. Billing Determinants'!$B$19:$Z$41,5,0)/'4. Billing Determinants'!$F$41*$D23,IF($E23="Non-RPP kWh",VLOOKUP(I$4,'4. Billing Determinants'!$B$19:$Z$41,6,0)/'4. Billing Determinants'!$G$41*$D23,IF($E23="Distribution Rev.",VLOOKUP(I$4,'4. Billing Determinants'!$B$19:$Z$41,8,0)/'4. Billing Determinants'!$I$41*$D23, VLOOKUP(I$4,'4. Billing Determinants'!$B$19:$Z$41,3,0)/'4. Billing Determinants'!$D$41*$D23))))),0) -> 0 | J23: =IFERROR(IF(J$4="",0,IF($E23="kWh",VLOOKUP(J$4,'4. Billing Determinants'!$B$19:$Z$41,4,0)/'4. Billing Determinants'!$E$41*$D23,IF($E23="kW",VLOOKUP(J$4,'4. Billing Determinants'!$B$19:$Z$41,5,0)/'4. Billing Determinants'!$F$41*$D23,IF($E23="Non-RPP kWh",VLOOKUP(J$4,'4. Billing Determinants'!$B$19:$Z$41,6,0)/'4. Billing Determinants'!$G$41*$D23,IF($E23="Distribution Rev.",VLOOKUP(J$4,'4. Billing Determinants'!$B$19:$Z$41,8,0)/'4. Billing Determinants'!$I$41*$D23, VLOOKUP(J$4,'4. Billing Determinants'!$B$19:$Z$41,3,0)/'4. Billing Determinants'!$D$41*$D23))))),0) -> 0 | K23: =IFERROR(IF(K$4="",0,IF($E23="kWh",VLOOKUP(K$4,'4. Billing Determinants'!$B$19:$Z$41,4,0)/'4. Billing Determinants'!$E$41*$D23,IF($E23="kW",VLOOKUP(K$4,'4. Billing Determinants'!$B$19:$Z$41,5,0)/'4. Billing Determinants'!$F$41*$D23,IF($E23="Non-RPP kWh",VLOOKUP(K$4,'4. Billing Determinants'!$B$19:$Z$41,6,0)/'4. Billing Determinants'!$G$41*$D23,IF($E23="Distribution Rev.",VLOOKUP(K$4,'4. Billing Determinants'!$B$19:$Z$41,8,0)/'4. Billing Determinants'!$I$41*$D23, VLOOKUP(K$4,'4. Billing Determinants'!$B$19:$Z$41,3,0)/'4. Billing Determinants'!$D$41*$D23))))),0) -> 0 | L23: =IFERROR(IF(L$4="",0,IF($E23="kWh",VLOOKUP(L$4,'4. Billing Determinants'!$B$19:$Z$41,4,0)/'4. Billing Determinants'!$E$41*$D23,IF($E23="kW",VLOOKUP(L$4,'4. Billing Determinants'!$B$19:$Z$41,5,0)/'4. Billing Determinants'!$F$41*$D23,IF($E23="Non-RPP kWh",VLOOKUP(L$4,'4. Billing Determinants'!$B$19:$Z$41,6,0)/'4. Billing Determinants'!$G$41*$D23,IF($E23="Distribution Rev.",VLOOKUP(L$4,'4. Billing Determinants'!$B$19:$Z$41,8,0)/'4. Billing Determinants'!$I$41*$D23, VLOOKUP(L$4,'4. Billing Determinants'!$B$19:$Z$41,3,0)/'4. Billing Determinants'!$D$41*$D23))))),0) -> 0 | M23: =IFERROR(IF(M$4="",0,IF($E23="kWh",VLOOKUP(M$4,'4. Billing Determinants'!$B$19:$Z$41,4,0)/'4. Billing Determinants'!$E$41*$D23,IF($E23="kW",VLOOKUP(M$4,'4. Billing Determinants'!$B$19:$Z$41,5,0)/'4. Billing Determinants'!$F$41*$D23,IF($E23="Non-RPP kWh",VLOOKUP(M$4,'4. Billing Determinants'!$B$19:$Z$41,6,0)/'4. Billing Determinants'!$G$41*$D23,IF($E23="Distribution Rev.",VLOOKUP(M$4,'4. Billing Determinants'!$B$19:$Z$41,8,0)/'4. Billing Determinants'!$I$41*$D23, VLOOKUP(M$4,'4. Billing Determinants'!$B$19:$Z$41,3,0)/'4. Billing Determinants'!$D$41*$D23))))),0) -> 0 | N23: =IFERROR(IF(N$4="",0,IF($E23="kWh",VLOOKUP(N$4,'4. Billing Determinants'!$B$19:$Z$41,4,0)/'4. Billing Determinants'!$E$41*$D23,IF($E23="kW",VLOOKUP(N$4,'4. Billing Determinants'!$B$19:$Z$41,5,0)/'4. Billing Determinants'!$F$41*$D23,IF($E23="Non-RPP kWh",VLOOKUP(N$4,'4. Billing Determinants'!$B$19:$Z$41,6,0)/'4. Billing Determinants'!$G$41*$D23,IF($E23="Distribution Rev.",VLOOKUP(N$4,'4. Billing Determinants'!$B$19:$Z$41,8,0)/'4. Billing Determinants'!$I$41*$D23, VLOOKUP(N$4,'4. Billing Determinants'!$B$19:$Z$41,3,0)/'4. Billing Determinants'!$D$41*$D23))))),0) -> 0 | O23: =IFERROR(IF(O$4="",0,IF($E23="kWh",VLOOKUP(O$4,'4. Billing Determinants'!$B$19:$Z$41,4,0)/'4. Billing Determinants'!$E$41*$D23,IF($E23="kW",VLOOKUP(O$4,'4. Billing Determinants'!$B$19:$Z$41,5,0)/'4. Billing Determinants'!$F$41*$D23,IF($E23="Non-RPP kWh",VLOOKUP(O$4,'4. Billing Determinants'!$B$19:$Z$41,6,0)/'4. Billing Determinants'!$G$41*$D23,IF($E23="Distribution Rev.",VLOOKUP(O$4,'4. Billing Determinants'!$B$19:$Z$41,8,0)/'4. Billing Determinants'!$I$41*$D23, VLOOKUP(O$4,'4. Billing Determinants'!$B$19:$Z$41,3,0)/'4. Billing Determinants'!$D$41*$D23))))),0) -> 0 | P23: =IFERROR(IF(P$4="",0,IF($E23="kWh",VLOOKUP(P$4,'4. Billing Determinants'!$B$19:$Z$41,4,0)/'4. Billing Determinants'!$E$41*$D23,IF($E23="kW",VLOOKUP(P$4,'4. Billing Determinants'!$B$19:$Z$41,5,0)/'4. Billing Determinants'!$F$41*$D23,IF($E23="Non-RPP kWh",VLOOKUP(P$4,'4. Billing Determinants'!$B$19:$Z$41,6,0)/'4. Billing Determinants'!$G$41*$D23,IF($E23="Distribution Rev.",VLOOKUP(P$4,'4. Billing Determinants'!$B$19:$Z$41,8,0)/'4. Billing Determinants'!$I$41*$D23, VLOOKUP(P$4,'4. Billing Determinants'!$B$19:$Z$41,3,0)/'4. Billing Determinants'!$D$41*$D23))))),0) -> 0 | Q23: =IFERROR(IF(Q$4="",0,IF($E23="kWh",VLOOKUP(Q$4,'4. Billing Determinants'!$B$19:$Z$41,4,0)/'4. Billing Determinants'!$E$41*$D23,IF($E23="kW",VLOOKUP(Q$4,'4. Billing Determinants'!$B$19:$Z$41,5,0)/'4. Billing Determinants'!$F$41*$D23,IF($E23="Non-RPP kWh",VLOOKUP(Q$4,'4. Billing Determinants'!$B$19:$Z$41,6,0)/'4. Billing Determinants'!$G$41*$D23,IF($E23="Distribution Rev.",VLOOKUP(Q$4,'4. Billing Determinants'!$B$19:$Z$41,8,0)/'4. Billing Determinants'!$I$41*$D23, VLOOKUP(Q$4,'4. Billing Determinants'!$B$19:$Z$41,3,0)/'4. Billing Determinants'!$D$41*$D23))))),0) -> 0 | R23: =IFERROR(IF(R$4="",0,IF($E23="kWh",VLOOKUP(R$4,'4. Billing Determinants'!$B$19:$Z$41,4,0)/'4. Billing Determinants'!$E$41*$D23,IF($E23="kW",VLOOKUP(R$4,'4. Billing Determinants'!$B$19:$Z$41,5,0)/'4. Billing Determinants'!$F$41*$D23,IF($E23="Non-RPP kWh",VLOOKUP(R$4,'4. Billing Determinants'!$B$19:$Z$41,6,0)/'4. Billing Determinants'!$G$41*$D23,IF($E23="Distribution Rev.",VLOOKUP(R$4,'4. Billing Determinants'!$B$19:$Z$41,8,0)/'4. Billing Determinants'!$I$41*$D23, VLOOKUP(R$4,'4. Billing Determinants'!$B$19:$Z$41,3,0)/'4. Billing Determinants'!$D$41*$D23))))),0) -> 0 | S23: =IFERROR(IF(S$4="",0,IF($E23="kWh",VLOOKUP(S$4,'4. Billing Determinants'!$B$19:$Z$41,4,0)/'4. Billing Determinants'!$E$41*$D23,IF($E23="kW",VLOOKUP(S$4,'4. Billing Determinants'!$B$19:$Z$41,5,0)/'4. Billing Determinants'!$F$41*$D23,IF($E23="Non-RPP kWh",VLOOKUP(S$4,'4. Billing Determinants'!$B$19:$Z$41,6,0)/'4. Billing Determinants'!$G$41*$D23,IF($E23="Distribution Rev.",VLOOKUP(S$4,'4. Billing Determinants'!$B$19:$Z$41,8,0)/'4. Billing Determinants'!$I$41*$D23, VLOOKUP(S$4,'4. Billing Determinants'!$B$19:$Z$41,3,0)/'4. Billing Determinants'!$D$41*$D23))))),0) -> 0 | T23: =IFERROR(IF(T$4="",0,IF($E23="kWh",VLOOKUP(T$4,'4. Billing Determinants'!$B$19:$Z$41,4,0)/'4. Billing Determinants'!$E$41*$D23,IF($E23="kW",VLOOKUP(T$4,'4. Billing Determinants'!$B$19:$Z$41,5,0)/'4. Billing Determinants'!$F$41*$D23,IF($E23="Non-RPP kWh",VLOOKUP(T$4,'4. Billing Determinants'!$B$19:$Z$41,6,0)/'4. Billing Determinants'!$G$41*$D23,IF($E23="Distribution Rev.",VLOOKUP(T$4,'4. Billing Determinants'!$B$19:$Z$41,8,0)/'4. Billing Determinants'!$I$41*$D23, VLOOKUP(T$4,'4. Billing Determinants'!$B$19:$Z$41,3,0)/'4. Billing Determinants'!$D$41*$D23))))),0) -> 0 | U23: =IFERROR(IF(U$4="",0,IF($E23="kWh",VLOOKUP(U$4,'4. Billing Determinants'!$B$19:$Z$41,4,0)/'4. Billing Determinants'!$E$41*$D23,IF($E23="kW",VLOOKUP(U$4,'4. Billing Determinants'!$B$19:$Z$41,5,0)/'4. Billing Determinants'!$F$41*$D23,IF($E23="Non-RPP kWh",VLOOKUP(U$4,'4. Billing Determinants'!$B$19:$Z$41,6,0)/'4. Billing Determinants'!$G$41*$D23,IF($E23="Distribution Rev.",VLOOKUP(U$4,'4. Billing Determinants'!$B$19:$Z$41,8,0)/'4. Billing Determinants'!$I$41*$D23, VLOOKUP(U$4,'4. Billing Determinants'!$B$19:$Z$41,3,0)/'4. Billing Determinants'!$D$41*$D23))))),0) -> 0 | V23: =IFERROR(IF(V$4="",0,IF($E23="kWh",VLOOKUP(V$4,'4. Billing Determinants'!$B$19:$Z$41,4,0)/'4. Billing Determinants'!$E$41*$D23,IF($E23="kW",VLOOKUP(V$4,'4. Billing Determinants'!$B$19:$Z$41,5,0)/'4. Billing Determinants'!$F$41*$D23,IF($E23="Non-RPP kWh",VLOOKUP(V$4,'4. Billing Determinants'!$B$19:$Z$41,6,0)/'4. Billing Determinants'!$G$41*$D23,IF($E23="Distribution Rev.",VLOOKUP(V$4,'4. Billing Determinants'!$B$19:$Z$41,8,0)/'4. Billing Determinants'!$I$41*$D23, VLOOKUP(V$4,'4. Billing Determinants'!$B$19:$Z$41,3,0)/'4. Billing Determinants'!$D$41*$D23))))),0) -> 0 | W23: =IFERROR(IF(W$4="",0,IF($E23="kWh",VLOOKUP(W$4,'4. Billing Determinants'!$B$19:$Z$41,4,0)/'4. Billing Determinants'!$E$41*$D23,IF($E23="kW",VLOOKUP(W$4,'4. Billing Determinants'!$B$19:$Z$41,5,0)/'4. Billing Determinants'!$F$41*$D23,IF($E23="Non-RPP kWh",VLOOKUP(W$4,'4. Billing Determinants'!$B$19:$Z$41,6,0)/'4. Billing Determinants'!$G$41*$D23,IF($E23="Distribution Rev.",VLOOKUP(W$4,'4. Billing Determinants'!$B$19:$Z$41,8,0)/'4. Billing Determinants'!$I$41*$D23, VLOOKUP(W$4,'4. Billing Determinants'!$B$19:$Z$41,3,0)/'4. Billing Determinants'!$D$41*$D23))))),0) -> 0 | X23: =IFERROR(IF(X$4="",0,IF($E23="kWh",VLOOKUP(X$4,'4. Billing Determinants'!$B$19:$Z$41,4,0)/'4. Billing Determinants'!$E$41*$D23,IF($E23="kW",VLOOKUP(X$4,'4. Billing Determinants'!$B$19:$Z$41,5,0)/'4. Billing Determinants'!$F$41*$D23,IF($E23="Non-RPP kWh",VLOOKUP(X$4,'4. Billing Determinants'!$B$19:$Z$41,6,0)/'4. Billing Determinants'!$G$41*$D23,IF($E23="Distribution Rev.",VLOOKUP(X$4,'4. Billing Determinants'!$B$19:$Z$41,8,0)/'4. Billing Determinants'!$I$41*$D23, VLOOKUP(X$4,'4. Billing Determinants'!$B$19:$Z$41,3,0)/'4. Billing Determinants'!$D$41*$D23))))),0) -> 0 | Y23: =IFERROR(IF(Y$4="",0,IF($E23="kWh",VLOOKUP(Y$4,'4. Billing Determinants'!$B$19:$Z$41,4,0)/'4. Billing Determinants'!$E$41*$D23,IF($E23="kW",VLOOKUP(Y$4,'4. Billing Determinants'!$B$19:$Z$41,5,0)/'4. Billing Determinants'!$F$41*$D23,IF($E23="Non-RPP kWh",VLOOKUP(Y$4,'4. Billing Determinants'!$B$19:$Z$41,6,0)/'4. Billing Determinants'!$G$41*$D23,IF($E23="Distribution Rev.",VLOOKUP(Y$4,'4. Billing Determinants'!$B$19:$Z$41,8,0)/'4. Billing Determinants'!$I$41*$D23, VLOOKUP(Y$4,'4. Billing Determinants'!$B$19:$Z$41,3,0)/'4. Billing Determinants'!$D$41*$D23))))),0) -> 0
